Workbook

Sheet Overview
A2: Overview of the Economic Evaluation

Sheet Testing choice
B1: Summary of testing choice description
B2: Testing choice | C2: Name | D2: Description | E2: Coverage of screening [SQ/U] | F2: Percent coverage of screening | G2: Provision of ART regimen | H2: Aggressive treatment (+RAL) on late ANC in HIV+ pregnant screened [R] | I2: Mode of delivery of HIV+ pregnant screened [CS] | J2: Provision of neonatal prophylaxis among HIV+ pregnant screened [NP] | K2: Provision of substitute feeding for infant among HIV+ pregnant screened [SF]
B3: Testing choice 0 | C3: Do Nothing | D3: Do Nothing | E3: No screening | F3: 0 | G3: no | H3: none | I3: normal delivery | J3: none | K3: none
B4: Testing choice 1 | C4: SQ | D4: Status Quo screening | E4: Ad hoc / status quo | F4: =(155774/pop) -> 0.09159846597 | G4: yes | H4: none | I4: cesarean section | J4: yes | K4: none
B5: Testing choice 2.1 | C5: UCSNP | D5: Universal screening: cesarean section, neonatal prophylaxis | E5: Universal | F5: 1 | G5: yes | H5: none | I5: cesarean section | J5: yes | K5: none
B6: Testing choice 3.1.1 | C6: URCSNP | D6: Universal screening: raltegravir, cesarean section, neonatal prophylaxis | E6: Universal | F6: 1 | G6: yes | H6: yes | I6: cesarean section | J6: yes | K6: none
B7: Testing choice 3.1.2 | C7: UCSNPSF | D7: Universal screening: cesarean section, neonatal prophylaxis, substitute feeding | E7: Universal | F7: 1 | G7: yes | H7: none | I7: cesarean section | J7: yes | K7: yes
B8: Testing choice 4.1 | C8: URCSNPSF | D8: Universal screening: raltegravir, cesarean section, neonatal prophylaxis, substitute feeding | E8: Universal | F8: 1 | G8: yes | H8: yes | I8: cesarean section | J8: yes | K8: yes
B9: Testing choice 2.2 | C9: UNDNP | D9: Universal screening: normal delivery, neonatal prophylaxis | E9: Universal | F9: 1 | G9: yes | H9: none | I9: normal delivery | J9: yes | K9: none
B10: Testing choice 3.2.1 | C10: URNDNP | D10: Universal screening: raltegravir, normal delivery, neonatal prophylaxis | E10: Universal | F10: 1 | G10: yes | H10: yes | I10: normal delivery | J10: yes | K10: none
B11: Testing choice 3.2.2 | C11: UNDNPSF | D11: Universal screening: normal delivery, neonatal prophylaxis, substitute feeding | E11: Universal | F11: 1 | G11: yes | H11: none | I11: normal delivery | J11: yes | K11: yes
B12: Testing choice 4.2 | C12: URNDNPSF | D12: Universal screening: raltegravir, normal delivery, neonatal prophylaxis, substitute feeding | E12: Universal | F12: 1 | G12: yes | H12: yes | I12: normal delivery | J12: yes | K12: yes

Sheet Base Case analysis
B2: Perspective of the study: | C2: Government / Payer
B6: Results vs status quo screening | T6: VERSUS STATUS QUO | X6: VERSUS DO NOTHING
A7: Policy Number | B7: Testing choice | C7: Name | D7: Program Cost per person | E7: Incremental Program cost per person | F7: Program Cost total pop | G7: Screening Cost | H7: ART only cost | I7: RAL cost | J7: NP cost | K7: Total treatment cost | L7: Mode of Delivery cost | M7: SF cost | N7: Pediatric HIV cost | O7: LYG per person | P7: LYG total population | Q7: QALY per person | R7: Incremental QALY per person | S7: QALY total pop | T7: Incremental program cost | U7: Incremental LYG | V7: Incremental QALY gained | W7: ICER (PhP/QALY) | X7: Incremental program cost | Y7: Incremental LYG | Z7: Incremental QALY gained | AA7: ICER (PhP/QALY)
A8: 0 | B8: Testing choice 0 | C8: do nothing | D8: ='Tree for Do Nothing'!C138 -> 46.79550167 | F8: =D8*'Parameters of 17 trees'!$C$10 -> 79581272.47 | G8: 0 | H8: 0 | I8: 0 | J8: 0 | K8: =(J8+I8+H8) -> 0 | L8: 0 | M8: 0 | N8: 79581272.47 | Q8: ='Tree for Do Nothing'!C139 -> 28.30777023 | S8: =Q8*'Parameters of 17 trees'!$C$10 -> 48140703.59
A9: 1 | B9: Testing choice 1 | C9: sq | D9: ='Tree for Status Quo'!C138 -> 94.81839989 | F9: =D9*'Parameters of 17 trees'!$C$10 -> 161249877.6 | G9: 87573306.72 | H9: 142457.0447 | I9: 0 | J9: 5691.313688 | K9: =(J9+I9+H9) -> 148148.3584 | L9: 690737.5284 | M9: 0 | N9: 72833671.04 | O9: 70.80986929 | P9: 120420538.3 | Q9: ='Tree for Status Quo'!C139 -> 28.30793185 | S9: =Q9*'Parameters of 17 trees'!$C$10 -> 48140978.45
A10: 2 | B10: Testing choice 2.1 | C10: ucsnp | D10: ='Tree for UCSNP'!C138 -> 566.9367246 | E10: =D10-$D$9 -> 472.1183247 | F10: =D10*'Parameters of 17 trees'!$C$10 -> 964142798.7 | G10: 956056477.5 | H10: 1555233.958 | I10: 0 | J10: 62133.28605 | K10: 1617367.244 | L10: 301637.16 | M10: 0 | N10: 6233960.302 | O10: 70.8142694 | P10: 120428021.2 | Q10: ='Tree for UCSNP'!C139 -> 28.30952978 | R10: =Q10-$Q$9 -> 0.001597924727 | S10: =Q10*'Parameters of 17 trees'!$C$10 -> 48143695.91 | T10: =F10-$F$9 -> 802892921.1 | U10: 7482.907759 | V10: =S10-$S$9 -> 2717.459554 | W10: =T10/V10 -> 295457.1743 | X10: =F10-$F$8 -> 884561526.2 | Y10: 7482.907759 | Z10: =S10-$S$8 -> 2992.32562 | AA10: =X10/Z10 -> 295610.0501
A11: 3 | B11: Testing choice 3.1.1 | C11: urcsnp | D11: ='Tree for URCSNP'!C138 -> 566.9920692 | E11: =D11-$D$9 -> 472.1736693 | F11: =D11*'Parameters of 17 trees'!$C$10 -> 964236918.8 | G11: 956056477.5 | H11: 1555233.958 | I11: 246989.227 | J11: 62133.28605 | K11: 1864356.471 | L11: 301637.16 | M11: 0 | N11: 6081091.141 | O11: 70.81427889 | P11: 120428037.3 | Q11: ='Tree for URCSNP'!C139 -> 28.30953344 | R11: =Q11-$Q$9 -> 0.001601588338 | S11: =Q11*'Parameters of 17 trees'!$C$10 -> 48143702.14 | T11: 802987041.2 | U11: 7499.039628 | V11: =S11-$S$9 -> 2723.689957 | W11: =T11/V11 -> 294815.8762 | X11: =F11-$F$8 -> 884655646.3 | Y11: 7499.039628 | Z11: =S11-$S$8 -> 2998.556022 | AA11: =X11/Z11 -> 295027.2197
A12: 4 | B12: Testing choice 3.1.2 | C12: ucsnpsf | D12: ='Tree for UCSNPSF'!C138 -> 566.5294352 | E12: 471.7110353 | F12: =D12*'Parameters of 17 trees'!$C$10 -> 963450155.1 | G12: 956056477.5 | H12: 1555233.958 | I12: 0 | J12: 62133.28605 | K12: 1617367.244 | L12: 301637.16 | M12: 60300.62547 | N12: 5580782.007 | O12: 70.81430994 | P12: 120428090.1 | Q12: ='Tree for UCSNPSF'!C139 -> 28.30954782 | R12: 0.001615969536 | S12: =Q12*'Parameters of 17 trees'!$C$10 -> 48143726.6 | T12: 802200277.5 | U12: 7551.835899 | V12: =S12-$S$9 -> 2748.146881 | W12: =T12/V12 -> 291905.896 | X12: 883868882.6 | Y12: 7551.835899 | Z12: 3023.012946 | AA12: =X12/Z12 -> 292380.1182
A13: 5 | B13: Testing choice 4.1 | C13: urcsnpsf | D13: ='Tree for URCSNPSF'!C138 -> 566.5847798 | E13: 471.76638 | F13: =D13*'Parameters of 17 trees'!$C$10 -> 963544275.1 | G13: 956056477.5 | H13: 1555233.958 | I13: 246989.227 | J13: 62133.28605 | K13: 1864356.471 | L13: 301637.16 | M13: 60300.62547 | N13: 5427912.846 | O13: 70.81431942 | P13: 120428106.3 | Q13: ='Tree for URCSNPSF'!C139 -> 28.30955149 | R13: 0.001619633147 | S13: =Q13*'Parameters of 17 trees'!$C$10 -> 48143732.83 | T13: 802294397.5 | U13: 7567.967769 | V13: =S13-$S$9 -> 2754.377283 | W13: =T13/V13 -> 291279.7758 | X13: 883963002.7 | Y13: 7567.967769 | Z13: 3029.243349 | AA13: =X13/Z13 -> 291809.8353
A14: 6 | B14: Testing choice 2.2 | C14: undnp | D14: ='Tree for UNDNP'!C138 -> 567.0873863 | E14: 472.2689864 | F14: =D14*'Parameters of 17 trees'!$C$10 -> 964399016.8 | G14: 956056477.5 | H14: 1555233.958 | I14: 0 | J14: 62133.28605 | K14: 1617367.244 | L14: 0 | M14: 0 | N14: 6791815.512 | O14: 70.81423479 | P14: 120427962.3 | Q14: ='Tree for UNDNP'!C139 -> 28.30951641 | R14: 0.001584555357 | S14: =Q14*'Parameters of 17 trees'!$C$10 -> 48143673.18 | T14: 803149139.2 | U14: 7424.038806 | V14: 2694.723363 | W14: 298045.1167 | X14: 884817744.3 | Y14: 7424.038806 | Z14: 2969.589428 | AA14: =X14/Z14 -> 297959.6222
A15: 7 | B15: Testing choice 3.2.1 | C15: urndnp | D15: ='Tree for URNDNP'!C138 -> 566.8147001 | E15: 471.9963002 | F15: =D15*'Parameters of 17 trees'!$C$10 -> 963935281.6 | G15: 956056477.5 | H15: 1555233.958 | I15: 246989.227 | J15: 62133.28605 | K15: 1864356.471 | L15: 0 | M15: 0 | N15: 6081091.141 | O15: 70.81427889 | P15: 120428037.3 | Q15: ='Tree for URNDNP'!C139 -> 28.30953344 | R15: 0.001601588338 | S15: =Q15*'Parameters of 17 trees'!$C$10 -> 48143702.14 | T15: 802685404 | U15: 7499.039628 | V15: 2723.689957 | W15: =T15/V15 -> 294705.1305 | X15: 884354009.2 | Y15: 7499.039628 | Z15: 2998.556022 | AA15: =X15/Z15 -> 294926.6256
A16: 8 | B16: Testing choice 3.2.2 | C16: undnpsf | D16: ='Tree for UNDNPSF'!C138 -> 566.680097 | E16: 471.8616971 | F16: =D16*'Parameters of 17 trees'!$C$10 -> 963706373.1 | G16: 956056477.5 | H16: 1555233.958 | I16: 0 | J16: 62133.28605 | K16: 1617367.244 | L16: 0 | M16: 60300.62547 | N16: 6138637.217 | O16: 70.81427532 | P16: 120428031.3 | Q16: ='Tree for UNDNPSF'!C139 -> 28.30953445 | R16: 0.001602600166 | S16: =Q16*'Parameters of 17 trees'!$C$10 -> 48143703.86 | T16: 802456495.5 | U16: 7492.966946 | V16: 2725.41069 | W16: 294435.0731 | X16: 884125100.7 | Y16: 7492.966946 | Z16: 3000.276755 | AA16: =X16/Z16 -> 294681.182
A17: 9 | B17: Testing choice 4.2 | C17: urndnpsf | D17: ='Tree for URNDNPSF'!C138 -> 566.4074107 | E17: 471.5890108 | F17: =D17*'Parameters of 17 trees'!$C$10 -> 963242638 | G17: 956056477.5 | H17: 1555233.958 | I17: 246989.227 | J17: 62133.28605 | K17: 1864356.471 | L17: 0 | M17: 60300.62547 | N17: 5427912.846 | O17: 70.81431942 | P17: 120428106.3 | Q17: ='Tree for URNDNPSF'!C139 -> 28.30955149 | R17: 0.001619633147 | S17: =Q17*'Parameters of 17 trees'!$C$10 -> 48143732.83 | T17: 801992760.4 | U17: 7567.967769 | V17: 2754.377283 | W17: =T17/V17 -> 291170.2639 | X17: 883661365.5 | Y17: 7567.967769 | Z17: 3029.243349 | AA17: =X17/Z17 -> 291710.2602
T19: 650000000 | V19: =T19/150000 -> 4333.333333
T20: 0 | V20: 0
T21: =LOG(651999885.11) -> 8.814247519 | V21: 2711.530464
T22: =LOG(654090193.38) -> 8.815637638 | V22: 2684.83
T23: =LOG(650000000) -> 8.812913357 | V23: =650000000/150000 -> 4333.333333

Sheet Parameters of 17 trees
B2: Parameters
C4: Input here: | D4: 1
D5: Deterministic=1
D6: Probabilistic=0
B8: Name of input parameter | C8: Value | D8: Description | E8: Distribution | F8: Probabilistic | G8: Mean | H8: SE | I8: alpha | J8: beta | L8: CI low | M8: CI high | N8: Reference | O8: Remarks
B9: Epidemiological
B10: pop | C10: =IF($D$4=1,G10,F10) -> 1700618 | D10: Annual population of pregnant women | E10: log-normal | F10: =EXP(NORMINV(RAND(),J10,M10)) -> 1730143.481 | G10: =1700618 -> 1700618 | H10: =G10*0.75 -> 1275463.5 | I10: =G10*1.25 -> 2125772.5 | J10: =LN(G10) -> 14.34650227 | K10: 14.0588202 | L10: 14.56964582 | M10: =(L10-K10)/(1.96*2) -> 0.1303126591 | N10: Philippine Statistics Authority Annual Report, 2017 | O10: Vital Statistics 2017
B11: pwhiv | C11: =G11 -> 422 | D11: Pregnant women living with HIV | G11: =pwhiv -> 422 | N11: Spectrum-AEM 2018 | O11: 2019 estimate
B12: earlyanc | C12: =IF($D$4=1,G12,F12) -> 0.96 | D12: Percentage of pregnant women who had first ANC > 6 weeks before delivery | E12: Beta | F12: =BETAINV(RAND(),I12,J12) -> 0.9851782099 | G12: 0.96 | H12: =(M12-L12)/3.92 -> 0.07142857143 | I12: =G12*((G12*(1-G12)/H12^2)-1) -> 6.265344 | J12: =I12/G12-I12 -> 0.261056 | L12: =G12*0.75 -> 0.72 | M12: 1 | N12: National Demographic Health Survey 2017 | O12: Covering those who had first ANC visit from month 0-7
B13: lateanc | C13: 0.04 | D13: Percentage of pregnant women who had first ANC < 6 weeks before delivery | F13: =1-F12 -> 0.01482179008 | G13: =1-earlyanc -> 0.04 | N13: National Demographic Health Survey 2017 | O13: Covering those who had first ANC visit from month 8, including unknown and no ANC before labor
B14: percentsqs | C14: =G14 -> 0.09159846597 | D14: Percent coverage of status quo screening | G14: =(155774/pop) -> 0.09159846597 | N14: Epidemiology Bureau | O14: 2018 data
B15: percentus | C15: =G15 -> 1 | D15: Percent coverage of universal screening | G15: 1
B17: Intervention effect
B18: base | C18: =IF($D$4=1,G18,F18) -> 0.1891891892 | D18: prob of perinatal HIV transmission without intervention | E18: Beta | F18: =BETAINV(RAND(),I18,J18) -> 0.1740961813 | G18: =14/74 -> 0.1891891892 | H18: =(M18-L18)/3.92 -> 0.03596938776 | I18: =G18*((G18*(1-G18)/H18^2)-1) -> 22.24167838 | J18: =I18/G18-I18 -> 95.32147876 | L18: 0.184 | M18: 0.325 | N18: Connor, 1994
B19: breastfeed | C19: 0.162 | D19: prob of postnatal transmission | E19: Beta | F19: 0.1497813493 | G19: =0.162 -> 0.162 | H19: 0.04948979592 | I19: =G19*((G19*(1-G19)/H19^2)-1) -> 8.817304967 | J19: =I19/G19-I19 -> 45.61050347 | L19: 0.065 | M19: 0.259 | N19: Nduati, 2000
B20: pmore4 | C20: 0.20125 | D20: RR of HIV transmission when pregnant woman received 1st line ART > 4 weeks before birth | E20: Beta | F20: 0.2231131969 | G20: =(0.035)/(4/23) -> 0.20125 | H20: 0.02566964286 | I20: 48.894398 | J20: 194.0591324 | L20: =G20*0.75 -> 0.1509375 | M20: =G20*1.25 -> 0.2515625 | N20: Hoffman, 2011
B21: pless4 | C21: 0.5331125828 | D21: RR of HIV transmission when pregnant woman received 1st line ART < 4 weeks | E21: Beta | F21: 0.6032580883 | G21: =(14/151)/(4/23) -> 0.5331125828 | H21: 0.06799905393 | I21: 28.16440265 | J21: 24.66571909 | L21: =G21*0.75 -> 0.3998344371 | M21: =G21*1.25 -> 0.6663907285 | N21: Hoffman, 2011
B22: pless4r | C22: 0.2715344225 | D22: RR of HIV transmission when pregnant woman received 1st line ART +RAL < 4 weeks | E22: Beta | F22: 0.3152891583 | G22: =6/155/0.076*((14/151)/(4/23)) -> 0.2715344225 | H22: 0.03463449266 | I22: 44.50403938 | J22: 119.3942943 | L22: =G22*0.75 -> 0.2036508169 | M22: =G22*1.25 -> 0.3394180281 | N22: Puthanakit, 2019
B23: pcs | C23: 0.3583535109 | D23: RR of HIV transmission when pregnant women delivered through cesarean section | E23: Beta | F23: 0.3256776963 | G23: =(4/59)/(14/74) -> 0.3583535109 | H23: 0.07397959184 | I23: 14.69715012 | J23: 26.31584312 | L23: 0.16 | M23: 0.45 | N23: Kennedy et.al 2017
B24: psf | C24: =G24 -> 0 | D24: RR of HIV transmission when infant received substitute feeding instead of breastfeeding | F24: 0 | G24: 0 | N24: Read, 2005
B25: pdelmore4 | C25: 0.03924344543 | D25: RR of HIV transmission when pregnant woman delivered vaginally and received 1st line ART > 4 weeks | E25: Beta | F25: =BETAINV(RAND(),I25,J25) -> 0.03725359522 | G25: =(3+2)/(2309+3859)/((38+7+2+3+6)/(1787+655+104+100+65)) -> 0.03924344543 | H25: =(M25-L25)/3.92 -> 0.005005541509 | I25: =G25*((G25*(1-G25)/H25^2)-1) -> 59.01423463 | J25: =I25/G25-I25 -> 1444.784272 | L25: =G25*0.75 -> 0.02943258407 | M25: =G25*1.25 -> 0.04905430679 | N25: Townsend, 2014
B26: pless4bf | C26: 0.5391844997 | D26: RR of HIV transmission when preganr women breastfeed and received 1st line ART < 4 weeks | E26: Beta | F26: =BETAINV(RAND(),I26,J26) -> 0.4996099649 | G26: =(33/133)/(52/113) -> 0.5391844997 | H26: =(M26-L26)/3.92 -> 0.06877353313 | I26: =G26*((G26*(1-G26)/H26^2)-1) -> 27.78511671 | J26: =I26/G26-I26 -> 23.74662563 | L26: =G26*0.75 -> 0.4043883748 | M26: =G26*1.25 -> 0.6739806246 | N26: Dabis, 1999
B27: phivneg | C27: =G27 -> 0 | D27: odds of HIV transmission when pregnant woman is HIV- | F27: 0 | G27: 0
B28: sens | C28: 1 | D28: sensitivity | F28: 1 | G28: 1 | H28: =(M28-L28)/3.92 -> 0.01275510204 | I28: =G28*((G28*(1-G28)/H28^2)-1) -> -1 | J28: =I28/G28-I28 -> 0 | L28: 0.95 | M28: 1 | N28: Literature review, SLH expert consultation
B29: spec | C29: 1 | D29: specificity | F29: 1 | G29: 1 | H29: =(M29-L29)/3.92 -> 0.01275510204 | I29: =G29*((G29*(1-G29)/H29^2)-1) -> -1 | J29: =I29/G29-I29 -> 0 | L29: 0.95 | M29: 1 | N29: Literature review, SLH expert consultation
B31: Compliance
B32: acceptsq | C32: =G32 -> 0.95 | D32: acceptance to VTP by policy sq | G32: 0.95 | N32: assumption | O32: Acceptance to outpatient HIV ART regimen is considered as crtical step
B33: acceptucsnp | C33: =G33 -> 0.95 | D33: acceptance to VTP by policy ucsnp | G33: 0.95 | N33: assumption
B34: acceptundnp | C34: 0.95 | D34: acceptance to VTP by policy urcsnp | G34: 0.95 | N34: assumption
B35: accepturcsnp | C35: 0.95 | D35: acceptance to VTP by policy ucsnpsf | G35: 0.95 | N35: assumption
B36: acceptucsnpsf | C36: 0.95 | D36: acceptance to VTP by policy urcsnpsf | G36: 0.95 | N36: assumption
B37: accepturndnp | C37: 0.95 | D37: acceptance to VTP by policy undnp | G37: 0.95 | N37: assumption
B38: acceptundnpsf | C38: 0.95 | D38: acceptance to VTP by policy urndnp | G38: 0.95 | N38: assumption
B39: accepturcsnpsf | C39: 0.95 | D39: acceptance to VTP by policy undnpsf | G39: 0.95 | N39: assumption
B40: accepturndnpsf | C40: 0.95 | D40: acceptance to VTP by policy urndnpsf | G40: 0.95 | N40: assumption
B41: acceptHIV | C41: 0.99 | D41: acceptance to HIV test | G41: 0.99 | N41: assumption
B43: Costs
B44: reqHIVtestcost | C44: =IF($D$4=1,G44,F44) -> 566.67 | D44: HIV test session during ANC for HIV- result | E44: Gamma | F44: =GAMMAINV(RAND(),I44,J44) -> 547.7325065 | G44: =hivnegtest -> 566.67 | H44: 566.6666667 | I44: =(G44/H44)^2 -> 1.000011765 | J44: =(H44^2)/G44 -> 566.6633334 | N44: PPMP, 2018, SLH expert consultation | O44: ABC calculation - see cost computation worksheet
B45: allHIVtestcost | C45: 1920.833333 | D45: HIV test session during ANC for HIV+ result | E45: Gamma | F45: =GAMMAINV(RAND(),I45,J45) -> 377.1131624 | G45: =hivpostest -> 1920.833333 | H45: 1920.833333 | I45: =(G45/H45)^2 -> 1 | J45: =(H45^2)/G45 -> 1920.833333 | N45: PPMP, 2018, SLH expert consultation | O45: ABC calculation - see cost computation worksheet
B46: outhivcost | C46: 3918.889333 | D46: Outpatient HIV/AIDS treatment cost | E46: Gamma | F46: =GAMMAINV(RAND(),I46,J46) -> 890.1236456 | G46: =artcost -> 3918.889333 | H46: 4048.4934 | I46: 0.9369990008 | J46: 4182.383685 | N46: PPMP, 2018, SLH expert consultation | O46: Weighted duration with ANC visits - see cost computation worksheet
B47: ndcost | C47: =G47 -> 0 | D47: Normal delivery | G47: 0 | H47: 0 | N47: PhilHealth Case Rate Circular 25 s 2015
B48: lifecost | C48: 542974.1822 | D48: Lifetime pediatric HIV treatment cost | E48: Gamma | F48: =GAMMAINV(RAND(),I48,J48) -> 380456.2776 | G48: ='Lifetime HIV Markov'!$G$4 -> 542974.1822 | H48: ='Lifetime HIV Markov'!$G$4 -> 542974.1822 | I48: 1 | J48: 542974.1822 | N48: Collins, 2017 | O48: assumption that all HIV+ newborn will borne the same cost
B49: npcost | C49: 156.55 | D49: Provision of neonatal prophylaxis | E49: Gamma | F49: 566.9905548 | G49: ='Cost computations'!$B$40 -> 156.55 | H49: 156.55 | I49: 1 | J49: 156.55 | N49: WHO Simplified infant dosing | O49: 15mg once daily
B50: sfcost | C50: 3798.311467 | D50: Provision of substitute feeding | E50: Gamma | F50: 494.5660842 | G50: =feedcost -> 3798.311467 | H50: 3798.311467 | I50: 1 | J50: 3798.311467 | N50: Sobel, 2012 | O50: Weighted cost based on household income - see cost computation worksheet
B51: cscost | C51: 19000 | D51: Cesarean section delivery | E51: Gamma | F51: 10082.86501 | G51: =19000 -> 19000 | H51: 19000 | I51: 1 | J51: 19000 | N51: PhilHealth Case Rate Circular 25 s 2015
B52: rcost | C52: 15557.74929 | D52: addition of raltegravir therapy | E52: Gamma | F52: 18589.74413 | G52: =ralcost -> 15557.74929 | H52: 24654.42 | I52: 0.398202477 | J52: 39069.94605 | N52: HITAP report | O52: see cost computation worksheet
B53: vltest | C53: 2658.333333 | D53: Viral load count test (1 - birth) | E53: Gamma | F53: 4207.081543 | G53: ='Cost computations'!$B$24 -> 2658.333333 | H53: 2658.333333 | I53: 1 | J53: 2658.333333 | N53: PPMP, 2018, SLH expert consultation | O53: see cost computation worksheet
B54: cd4test | C54: 931.0334984 | D54: CD4+ test (x1 - start of ART) | E54: Gamma | F54: 2871.820924 | G54: ='Cost computations'!$B$19 -> 931.0334984 | H54: 931.0334984 | I54: 1 | J54: 931.0334984 | N54: PPMP, 2018, SLH expert consultation | O54: weighted cost - see cost computation worksheet
B56: Utilities
B57: utility | C57: 0.83 | D57: Utility of HIV infection with HAART | E57: Beta | F57: =BETAINV(RAND(),I57,J57) -> 0.6990131132 | G57: 0.83 | H57: =(M57-L57)/3.92 -> 0.1403061224 | I57: =G57*((G57*(1-G57)/H57^2)-1) -> 5.11910811 | J57: =I57/G57-I57 -> 1.048492022 | L57: 0.45 | M57: 1 | N57: Sanders, 2005
B58: qwohiv | C58: =G58 -> 28.30967744 | D58: quality-adjusted life-years of infant without HIV | G58: ='Lifetime HIV Markov'!$F$5 -> 28.30967744 | O58: Markov Model
B59: qwhiv | C59: =G59 -> 6.179983884 | D59: quality-adjusted life-years of infant with HIV | G59: ='Lifetime HIV Markov'!$F$4 -> 6.179983884 | O59: Markov model
B61: Others
B62: drate | C62: 0.03 | D62: discount rate for costs and outcomes | G62: 0.03 | N62: Draft PH Methods Guide

Sheet Transmission probabilities
F2: Provision of ART regimen | G2: Relative Risk for early ART | H2: Aggressive treatment (+RAL) on late ANC in HIV+ pregnant screened | I2: Relative Risk for late ART | J2: Mode of delivery | K2: Relative Risk for mode of delivery | L2: Provision of neonatal prophylaxis among HIV+ pregnant screened | M2: Probability of transmission | N2: Transmission prenatal to delivery | O2: Provision of substitute feeding for infant among HIV+ pregnant screened | P2: Transmission postnatal | Q2: Probability of transmission | R2: Total
B3: NO INTERVENTION | E3: baseline | F3: none | G3: 1 | H3: none | J3: normal delivery | K3: 1 | N3: =base*G3 -> 0.1891891892 | O3: none | P3: 1 | Q3: =breastfeed*P3 -> 0.162 | R3: =Q3+N3 -> 0.3511891892
A4: SQ | B4: Early ART | C4: Cesarean Section | D4: Breastfeeding | E4: early | F4: yes | G4: =pmore4 -> 0.20125 | H4: none | J4: cesarean section | K4: =pdelmore4*pcs -> 0.01406302645 | L4: none | N4: =base*G4*K4 -> 0.0005354402301 | O4: none | P4: 0 | Q4: 0 | R4: =Q4+N4 -> 0.0005354402301
B5: Late ART | C5: Cesarean Section | D5: Breastfeeding | E5: late | F5: none | H5: none | I5: =pless4 -> 0.5331125828 | J5: cesarean section | K5: =pcs -> 0.3583535109 | L5: none | N5: =base*I5*K5 -> 0.03614322595 | O5: none | P5: =pless4bf -> 0.5391844997 | Q5: 0.08734788895 | R5: 0.1234911149
A6: UCSNP | B6: Early ART | C6: Normal Delivery | D6: Breastfeeding | E6: early | F6: yes | G6: =pmore4 -> 0.20125 | H6: none | J6: normal delivery | K6: =pdelmore4 -> 0.03924344543 | L6: yes | N6: =base*G6*K6 -> 0.001494167669 | O6: none | P6: 0 | Q6: 0 | R6: 0.001494167669
B7: Late ART | C7: Cesarean Section | D7: Breastfeeding | E7: late | F7: none | H7: none | I7: =pless4 -> 0.5331125828 | J7: cesarean section | K7: =pcs -> 0.3583535109 | L7: yes | N7: =base*I7*K7 -> 0.03614322595 | O7: none | P7: =pless4bf -> 0.5391844997 | Q7: 0.08734788895 | R7: 0.1234911149
A8: UNDNP | B8: Early ART | C8: Normal Delivery | D8: Breastfeeding | E8: early | F8: yes | G8: =pmore4 -> 0.20125 | H8: none | J8: normal delivery | K8: =pdelmore4 -> 0.03924344543 | L8: yes | N8: =base*G8*K8 -> 0.001494167669 | O8: none | P8: 0 | Q8: 0 | R8: 0.001494167669
B9: Late ART | C9: Normal Delivery | D9: Breastfeeding | E9: late | F9: none | H9: none | I9: =pless4 -> 0.5331125828 | J9: normal delivery | K9: 1 | L9: yes | N9: =base*I9*K9 -> 0.1008591373 | O9: none | P9: =pless4bf -> 0.5391844997 | Q9: 0.08734788895 | R9: 0.1882070262
A10: URCSNP | B10: Early ART | C10: Normal Delivery | D10: Breastfeeding | E10: early | F10: yes | G10: =pmore4 -> 0.20125 | H10: none | J10: normal delivery | K10: =pdelmore4 -> 0.03924344543 | L10: yes | N10: =base*G10*K10 -> 0.001494167669 | O10: none | P10: 0 | Q10: 0 | R10: 0.001494167669
B11: Late ART + RAL | C11: Cesarean Section | D11: Breastfeeding | E11: late | F11: none | H11: yes | I11: =pless4r -> 0.2715344225 | J11: cesarean section | K11: =pcs -> 0.3583535109 | L11: yes | N11: =base*I11*K11 -> 0.01840911339 | O11: none | P11: =pless4bf -> 0.5391844997 | Q11: 0.08734788895 | R11: 0.1057570023
A12: UCSNPSF | B12: Early ART | C12: Normal Delivery | D12: Breastfeeding | E12: early | F12: yes | G12: =pmore4 -> 0.20125 | H12: none | J12: normal delivery | K12: =pdelmore4 -> 0.03924344543 | L12: yes | N12: =base*G12*K12 -> 0.001494167669 | O12: yes | P12: 0 | Q12: 0 | R12: 0.001494167669
B13: Late ART | C13: Cesarean Section | D13: Substitute feeding | E13: late | F13: none | H13: none | I13: =pless4 -> 0.5331125828 | J13: cesarean section | K13: =pcs -> 0.3583535109 | L13: yes | N13: =base*I13*K13 -> 0.03614322595 | O13: yes | P13: 0 | Q13: 0 | R13: 0.03614322595
A14: URNDNP | B14: Early ART | C14: Normal Delivery | D14: Breastfeeding | E14: early | F14: yes | G14: =pmore4 -> 0.20125 | H14: none | J14: normal delivery | K14: =pdelmore4 -> 0.03924344543 | L14: yes | N14: =base*G14*K14 -> 0.001494167669 | O14: none | P14: 0 | Q14: 0 | R14: 0.001494167669
B15: Late ART + RAL | C15: Normal Delivery | D15: Breastfeeding | E15: late | F15: none | H15: yes | I15: =pless4r -> 0.2715344225 | J15: normal delivery | K15: =pcs -> 0.3583535109 | L15: yes | N15: =base*I15*K15 -> 0.01840911339 | O15: none | P15: =pless4bf -> 0.5391844997 | Q15: 0.08734788895 | R15: 0.1057570023
A16: UNDNPSF | B16: Early ART | C16: Normal Delivery | D16: Breastfeeding | E16: early | F16: yes | G16: =pmore4 -> 0.20125 | H16: none | J16: normal delivery | K16: =pdelmore4 -> 0.03924344543 | L16: yes | N16: =base*G16*K16 -> 0.001494167669 | O16: yes | P16: 0 | Q16: 0 | R16: 0.001494167669
B17: Late ART | C17: Normal Delivery | D17: Substitute feeding | E17: late | F17: none | H17: none | I17: =pless4 -> 0.5331125828 | J17: normal delivery | K17: 1 | L17: yes | N17: =base*I17*K17 -> 0.1008591373 | O17: yes | P17: 0 | Q17: 0 | R17: 0.1008591373
A18: URCSNPSF | B18: Early ART | C18: Normal Delivery | D18: Breastfeeding | E18: early | F18: yes | G18: =pmore4 -> 0.20125 | H18: none | J18: normal delivery | K18: =pdelmore4 -> 0.03924344543 | L18: yes | N18: =base*G18*K18 -> 0.001494167669 | O18: yes | P18: 0 | Q18: 0 | R18: 0.001494167669
B19: Late ART + RAL | C19: Cesarean Section | D19: Substitute feeding | E19: late | F19: none | H19: yes | I19: =pless4r -> 0.2715344225 | J19: cesarean section | K19: =pcs -> 0.3583535109 | L19: yes | N19: =base*I19*K19 -> 0.01840911339 | O19: yes | P19: 0 | Q19: 0 | R19: 0.01840911339
A20: URNDNPSF | B20: Early ART | C20: Normal Delivery | D20: Breastfeeding | E20: early | F20: yes | G20: =pmore4 -> 0.20125 | H20: none | J20: normal delivery | K20: =pdelmore4 -> 0.03924344543 | L20: yes | N20: =base*G20*K20 -> 0.001494167669 | O20: yes | P20: 0 | Q20: 0 | R20: 0.001494167669
B21: Late ART + RAL | C21: Normal Delivery | D21: Substitute feeding | E21: late | F21: none | H21: yes | I21: =pless4r -> 0.2715344225 | J21: normal delivery | K21: =pcs -> 0.3583535109 | L21: yes | N21: =base*I21*K21 -> 0.01840911339 | O21: yes | P21: 0 | Q21: 0 | R21: 0.01840911339

Sheet Probabilities summary
G2: Provision of ART regimen | H2: Relative Risk for early ART | I2: Aggressive treatment (+RAL) on late ANC in HIV+ pregnant screened | J2: Relative Risk for late ART | K2: Mode of delivery | L2: Relative Risk for mode of delivery | M2: Provision of neonatal prophylaxis among HIV+ pregnant screened | N2: Probability of transmission | O2: Transmission prenatal to delivery | P2: Provision of substitute feeding for infant among HIV+ pregnant screened | Q2: Transmission postnatal | R2: Transmission postnatal | S2: Total
C3: NO INTERVENTION | F3: baseline | G3: none | H3: 1 | I3: none | K3: normal delivery | L3: 1 | O3: =base*H3 -> 0.1891891892 | P3: none | Q3: 1 | R3: =breastfeed*Q3 -> 0.162 | S3: =R3+O3 -> 0.3511891892
C4: Late ART | D4: Normal Delivery | E4: Breastfeeding | F4: late | G4: none | I4: none | J4: =pless4 -> 0.5331125828 | K4: normal delivery | L4: 1 | M4: yes | O4: =base*J4*L4 -> 0.1008591373 | P4: none | Q4: =pless4bf -> 0.5391844997 | R4: 0.08734788895 | S4: =R4+O4 -> 0.1882070262
C5: Late ART | D5: Cesarean Section | E5: Breastfeeding | F5: late | G5: none | I5: none | J5: =pless4 -> 0.5331125828 | K5: cesarean section | L5: =pcs -> 0.3583535109 | M5: none | O5: 0.03614322595 | P5: none | Q5: =pless4bf -> 0.5391844997 | R5: 0.08734788895 | S5: =R5+O5 -> 0.1234911149
C6: Late ART | D6: Normal Delivery | E6: Substitute feeding | F6: late | G6: none | I6: none | J6: =pless4 -> 0.5331125828 | K6: normal delivery | L6: 1 | M6: yes | O6: 0.1008591373 | P6: yes | Q6: 0 | R6: 0 | S6: =R6+O6 -> 0.1008591373
C7: Late ART + RAL | D7: Cesarean Section | E7: Breastfeeding | F7: late | G7: none | I7: yes | J7: =pless4r -> 0.2715344225 | K7: cesarean section | L7: =pcs -> 0.3583535109 | M7: yes | O7: 0.01840911339 | P7: none | Q7: =pless4bf -> 0.5391844997 | R7: 0.08734788895 | S7: 0.1057570023
C8: Late ART + RAL | D8: Normal Delivery | E8: Breastfeeding | F8: late | G8: none | I8: yes | J8: =pless4r -> 0.2715344225 | K8: normal delivery | L8: =pcs -> 0.3583535109 | M8: yes | O8: 0.01840911339 | P8: none | Q8: =pless4bf -> 0.5391844997 | R8: 0.08734788895 | S8: 0.1057570023
C9: Late ART | D9: Cesarean Section | E9: Substitute feeding | F9: late | G9: none | I9: none | J9: =pless4 -> 0.5331125828 | K9: cesarean section | L9: =pcs -> 0.3583535109 | M9: yes | O9: 0.03614322595 | P9: yes | Q9: 0 | R9: 0 | S9: 0.03614322595
C10: Late ART + RAL | D10: Cesarean Section | E10: Substitute feeding | F10: late | G10: none | I10: yes | J10: =pless4r -> 0.2715344225 | K10: cesarean section | L10: =pcs -> 0.3583535109 | M10: yes | O10: 0.01840911339 | P10: yes | Q10: 0 | R10: 0 | S10: 0.01840911339
C11: Late ART + RAL | D11: Normal Delivery | E11: Substitute feeding | F11: late | G11: none | I11: yes | J11: =pless4r -> 0.2715344225 | K11: normal delivery | L11: =pcs -> 0.3583535109 | M11: yes | O11: 0.01840911339 | P11: yes | Q11: 0 | R11: 0 | S11: 0.01840911339
A12: SQ | C12: Early ART | D12: Normal Delivery | E12: Breastfeeding | F12: early | G12: yes | H12: =pmore4 -> 0.20125 | I12: none | K12: normal delivery | L12: =pdelmore4 -> 0.03924344543 | M12: none | O12: =base*H12*L12 -> 0.001494167669 | P12: none | Q12: 0 | R12: 0 | S12: =R12+O12 -> 0.001494167669

Sheet Cost computations
C1: Intervention | D1: Description | E1: Source
A2: Human Resource
B3: 10000 | C3: Salary of Global Fund Case Manager per month | D3: Visit facility 2-3x per week or 8-12 per month | E3: SLH Consultation
B4: =B3/12 -> 833.3333333 | D4: minimum daily rate of case managers
A6: HIV Test kit
B7: =75000000/1500000 -> 50 | C7: HIV ScreeningRapid Diagnostic Test | D7: Test 1 of rHIVda algorithm | E7: 2018 PPMP
B8: =2500000/25000 -> 100 | C8: rHIVda Confirmatory Rapid Diagnostic Test | D8: Test 2 of rHIVda algorithm | E8: 2018 PPMP
B9: =31250000/25000 -> 1250 | C9: rHIVda Re-Confirmatory/Differentiation Test | D9: Test 3 of rHIVda algorithm | E9: 2018 PPMP
A10: TOTAL | B10: =B7+B8 -> 150 | D10: for screening only
B11: =B9+B8+B7 -> 1400 | D11: for screening + confirmatory
A13: CD4 test | F13: Number of Facilities Available
B14: =1289378.2/18/50 -> 1432.642444 | C14: CD4 BD FACS Count | D14: CD4 reagents compatible with BD FACS Count machine, 50 test per kit | E14: 2018 PPMP | F14: 1 | G14: STI-HIV Program
B15: =13680000/144/100 -> 950 | C15: CD4 BD FACS Presto | D15: CD4 cartridge compatible with BD FACS Presto machine, 100 test per kit | E15: 2018 PPMP | F15: 20 | G15: STI-HIV Program
B16: =7410000/78/100 -> 950 | C16: CD4 PIMA | D16: CD4 cartridge compatible with PIMA Machine, 100 tests per kit | E16: 2018 PPMP | F16: 10 | G16: STI-HIV Program
B17: =1990147.5/30/100 -> 663.3825 | C17: CD4 CyFlow_SL3 | D17: CD4 reagents and other consumables compatible with CyFlow_SL3 machine, 100 test per kit | E17: 2018 PPMP | F17: 4 | G17: STI-HIV Program
B18: =2680000/20/50 -> 2680 | C18: CD4 FACSVIA | D18: CD4 reagents compatible with FACSVIA machine, 50 tests per kit | E18: 2018 PPMP | F18: 0 | G18: STI-HIV Program
A19: WEIGHTED AVERAGE | B19: =(B14*F14+B15*F15+B16*F16+B17*F17+B18*F18)/SUM(F14:F18) -> 931.0334984 | F19: =SUM(F14:F18) -> 35
A21: Viral Load Test
B22: =40194000/315/48 -> 2658.333333 | C22: Viral Load SACCL | D22: National Reference Laboratory HIV Viral Load Reagents | E22: 2018 PPMP
B23: =18750000/7500 -> 2500 | C23: Viral Load Point of Care | D23: Point of Care Viral Load Reagents | E23: 2018 PPMP
A24: TOTAL | B24: =40194000/315/48 -> 2658.333333
A26: Antiretrovirals
A27: MOST COMMON REGIMEN | B27: =563.75/30 -> 18.79166667 | C27: 3TC/TDF/EFV | D27: Php563.75/bottle | E27: STI-HIV Program
B28: =453.75/60 -> 7.5625 | C28: 3TC/AZT | D28: Php453.75/bottle | E28: STI-HIV Program
B29: =309.65/30 -> 10.32166667 | C29: 3TC/TDF | D29: Php309.65/bottle | E29: STI-HIV Program
B30: =349.53/60 -> 5.8255 | C30: AZT | D30: Php349.53/bottle | E30: STI-HIV Program
B31: =115.5/60 -> 1.925 | C31: 3TC | D31: Php115.50/bottle | E31: STI-HIV Program
B32: =104/60 -> 1.733333333 | C32: NVP | D32: Php104.00/bottle | E32: STI-HIV Program
B33: =270.05/30 -> 9.001666667 | C33: EFV 600mg | D33: Php270.05/bottle | E33: STI-HIV Program
B34: =215.13/90 -> 2.390333333 | C34: EFV 200mg | D34: Php215.13/bottle | E34: STI-HIV Program
B35: =187/30 -> 6.233333333 | C35: TDF | D35: PHp187.00/bottle | E35: STI-HIV Program
B36: =923.97/60 -> 15.3995 | C36: ABC | D36: Php923.97/bottle | E36: STI-HIV Program
B37: =1732.5/120 -> 14.4375 | C37: LPV/r | D37: Php1,732.50/bottle | E37: STI-HIV Program
B38: 130 | C38: AZT Oral Suspension 50mg/5ml (240ml) | D38: Php130.00/bottle | E38: STI-HIV Program
B39: 104.71 | C39: 3TC Oral Suspension 10mg/ml (240ml) | D39: Php104.71/bottle | E39: STI-HIV Program
B40: 156.55 | C40: NVP Oral Suspension 50mg/5ml (240ml) | D40: Php156.55/bottle | E40: STI-HIV Program
A43: ART regimen cost
A44: Pregnancy length when starting ART | B44: Weeks on therapy | C44: days | D44: % | E44: Weighted days | F44: Minimum weeks pregnant before first visit
A45: less than 4 months | B45: =38-F45 -> 34 | C45: =B45*7 -> 238 | D45: 0.727 | E45: =C45*D45 -> 173.026 | F45: 4
A46: 4 to 5 months | B46: =38-F46 -> 22 | C46: =B46*7 -> 154 | D46: 0.207 | E46: =C46*D46 -> 31.878 | F46: 16
A47: 6 to 7 months | B47: =38-F47 -> 14 | C47: =B47*7 -> 98 | D47: 0.035 | E47: =C47*D47 -> 3.43 | F47: 24
A48: at least 8 months | B48: =38-F48 -> 6 | C48: =B48*7 -> 42 | D48: 0.005 | E48: =C48*D48 -> 0.21 | F48: 32
A50: Weighted days of therapy | E50: =SUM(E45:E48) -> 208.544
A51: TOTAL | D51: =E50*B27 -> 3918.889333
A53: Substitute feeding | D53: cost of annual infant formula in 2003 (USD) | E53: Sobel, 2012
B54: 1551129 | C54: Families with <$2 capita per day | D54: 36.71
B55: =3227052-B54 -> 1675923 | C55: Families with >$2 capita per day | D55: 106.56
A56: Weighted annual cost | D56: =(D54*B54+D55*B55)/(B54+B55) -> 72.98559195
A57: Adjusted weighted annual cost | D57: =D56*('Formula sheet'!AG8/'Formula sheet'!Y15)*'Lifetime HIV Markov'!C71 -> 3798.311467
A59: Raltegravir | B59: 172.65 | D59: ='Cost computations'!B59/'Lifetime HIV Markov'!C74*('Lifetime HIV Markov'!C75/'Lifetime HIV Markov'!C76)*'Lifetime HIV Markov'!C71 -> 277.8169517 | E59: =D59*4*7*2 -> 15557.74929
A63: HIV test session during ANC of HIV- | D63: =D64+D65*(C66+C67)/8 -> 566.6666667
B64: Testing kit | D64: ='Cost computations'!B10 -> 150
B65: Human resource cost | D65: ='Cost computations'!B4 -> 833.3333333 | F65: minimum daily rate based on Global Fund Case managers
B66: Counselling (pre-test) in hrs | C66: 3 | F66: 2 to 3 hrs
B67: Counselling (post-test) in hrs | C67: 1 | F67: 0.5 to 1 hr
A70: HIV test session during ANC of HIV+ | D70: =D71+D72*(C73+C74)/8 -> 1920.833333
B71: Testing kit | D71: ='Cost computations'!B11 -> 1400
B72: Human resource cost | D72: ='Cost computations'!B4 -> 833.3333333 | F72: daily rate based on Global Fund Case managers
B73: Counselling (pre-test) in hrs | C73: 3 | F73: 2 to 3 hrs
B74: Counselling (post-test) in hrs | C74: 2 | F74: 0.5 to 1 hr
A76: Vertical transmission program
B77: antiretroviral therapy | D77: =D51 -> 3918.889333 | E77: 18.79 each tablet | F77: 71% have first ANC on 1st trimester, 26% on 2nd or 3rd trimester
B78: viral load test | D78: ='Cost computations'!B22 -> 2658.333333
B79: CD4 cell count | D79: 931.0334984
A82: Lifetime pediatric HIV treatment cost | D82: ='Lifetime HIV cost'!G18 -> 542974.1822
A85: Outpatient HIV treatment cost | D85: =E50*B27 -> 3918.889333

Sheet Lifetime HIV Markov
B1: Simple markov model for lifetime HIV+/- patient
D2: Analysis
E3: Undiscounted life years | F3: Discounted QALY | G3: Discounted costs
D4: Borne with HIV | E4: ='Life years with HIV'!G19 -> 8.986309735 | F4: ='Life years with HIV'!K19 -> 6.179983884 | G4: ='Lifetime HIV cost'!G18 -> 542974.1822
D5: Borne without HIV | E5: ='Life years without HIV'!G102 -> 70.81475653 | F5: ='Life years borne without HIV'!K102 -> 28.30967744 | G5: 0
C10: Value | D10: Source | E10: Comment
B11: Utility
B12: Utility of a healthy person using Filipino value set (11111) | C12: 1 | D12: Lam, 2018
B13: Utility of HIV infection with HAART | C13: =utility -> 0.83 | D13: Sanders, 2005
B15: Life expectancy
B16: Life expectancy of healthy person in the Philippines | C16: 69.09 | D16: World Bank, 2016
B17: Life expectancy of HIV+ infant with treatment | C17: 15 | D17: Soorapanth, 2006 | E17: No data available from DOH-EB
B18: Life expectancy of HIV+ infant without treatment | C18: 2 | D18: Soorapanth, 2006 | E18: No data available from DOH-EB
B20: Transitional probabilities for mortality
B21: Annual death probability of HIV+infant from <1 years | C21: =1-EXP(-'Formula sheet'!$D$2) -> 0.1665657136 | D21: Davies, 2014
B22: Annual death probability of HIV+infant from 1 year | C22: =1-EXP(-'Formula sheet'!$D$3) -> 0.1364570436 | D22: Davies, 2014
B23: Annual death probability of HIV+infant from 2-4 years | C23: =1-EXP(-'Formula sheet'!$D$4) -> 0.05520482801 | D23: Davies, 2014
B24: Annual death probability of HIV+infant from 5-10 years | C24: =1-EXP(-'Formula sheet'!$D$5) -> 0.03788350989 | D24: Davies, 2014
B25: Annual death probability of HIV+infant from 11-15 years | C25: =1-EXP(-'Formula sheet'!$D$6) -> 0.01291586498 | D25: Walker, 2012 | E25: with good HIV prognosis
B26: Annual death probability for Age <1 | C26: =1-EXP(-'Formula sheet'!$D$11) -> 0.01009683762 | D26: WHO, 2016 | E26: PH Life Table
B27: Annual death probability for Age 1-4 | C27: =1-EXP(-'Formula sheet'!$D$12) -> 0.001098791108 | D27: WHO, 2016 | E27: PH Life Table
B28: Annual death probability for Age 5-9 | C28: =1-EXP(-'Formula sheet'!$D$13) -> 0.0003998400533 | D28: WHO, 2016 | E28: PH Life Table
B29: Annual death probability for Age 10-14 | C29: =1-EXP(-'Formula sheet'!$D$14) -> 0.0003998400533 | D29: WHO, 2016 | E29: PH Life Table
B30: Annual death probability Age 15-19 | C30: =1-EXP(-'Formula sheet'!$D$15) -> 0.0006995102857 | D30: WHO, 2016 | E30: PH Life Table
B31: Annual death probability Age 20-24 | C31: =1-EXP(-'Formula sheet'!$D$16) -> 0.001198561439 | D31: WHO, 2016 | E31: PH Life Table
B32: Annual death probability Age 25-29 | C32: =1-EXP(-'Formula sheet'!$D$17) -> 0.001497752809 | D32: WHO, 2016 | E32: PH Life Table
B33: Annual death probability Age 30-34 | C33: =1-EXP(-'Formula sheet'!$D$18) -> 0.001996006657 | D33: WHO, 2016 | E33: PH Life Table
B34: Annual death probability 35-39 | C34: =1-EXP(-'Formula sheet'!$D$19) -> 0.002593254618 | D34: WHO, 2016 | E34: PH Life Table
B35: Annual death probability 40-44 | C35: =1-EXP(-'Formula sheet'!$D$20) -> 0.003587078775 | D35: WHO, 2016 | E35: PH Life Table
B36: Annual death probability 45-49 | C36: =1-EXP(-'Formula sheet'!$D$21) -> 0.005272033573 | D36: WHO, 2016 | E36: PH Life Table
B37: Annual death probability 50-54 | C37: =1-EXP(-'Formula sheet'!$D$22) -> 0.007739553159 | D37: WHO, 2016 | E37: PH Life Table
B38: Annual death probability 55-59 | C38: =1-EXP(-'Formula sheet'!$D$23) -> 0.01175978187 | D38: WHO, 2016 | E38: PH Life Table
B39: Annual death probability 60-64 | C39: =1-EXP(-'Formula sheet'!$D$24) -> 0.01902963713 | D39: WHO, 2016 | E39: PH Life Table
B40: Annual death probability 65-69 | C40: =1-EXP(-'Formula sheet'!$D$25) -> 0.02949872929 | D40: WHO, 2016 | E40: PH Life Table
B41: Annual death probability >70 | C41: =1-EXP(-'Formula sheet'!$D$26) -> 0.06693739478 | D41: WHO, 2016 | E41: PH Life Table
B43: Cost (adjusted) | D43: Turner, 2019
B45: Cost of HIV diagnosis per test
B46: Early infant HIV diagnosis using DNA PCR and dried blood spots | C46: ='Formula sheet'!N6 -> 2950.602081 | D46: Collins, 2014 | E46: once only
B47: HIV rapid test by serology | C47: ='Formula sheet'!N7 -> 51.63811833 | D47: Collins, 2014 | E47: once only
B48: Mean cost of antiretroviral drugs per child per year
B49: Mean cost during the first five years of therapy (includes first and second line therapy) | C49: ='Formula sheet'!N9 -> 37861.06836 | D49: Collins, 2014 | E49: year 1 to 5
B50: Mean cost after five years of therapy (includes first and second line therapy) | C50: ='Formula sheet'!N10 -> 53476.43534 | D50: Collins, 2014 | E50: Year 6 to 10
B51: Third line ART | C51: ='Formula sheet'!N11 -> 91895.19538 | D51: Collins, 2014 | E51: year 11 to 15
B52: Laboratory monitoring on ART | C52: ='Formula sheet'!N12 -> 16166.86209 | D52: Collins, 2014 | E52: year 1 to 15
B53: Hospitalization in disease stage A or B | C53: ='Formula sheet'!N13 -> 12704.49245 | D53: Collins, 2014 | E53: year 6, 8, 10
B54: Hospitalization in disease stage C | C54: ='Formula sheet'!N14 -> 21939.48495 | D54: Collins, 2014 | E54: year 11-15
B55: Hospitalization after first year of ART (all disease states) | C55: ='Formula sheet'!N15 -> 2653.147017 | D55: Collins, 2014 | E55: year 2 to 15
B58: year1cost | C58: =C46+C47+C49+C52 -> 57030.17065
B59: year2cost | C59: =C49+C52+C55 -> 56681.07746
B60: year3cost | C60: =C49+C52+C55 -> 56681.07746
B61: year4cost | C61: =C49+C52+C55 -> 56681.07746
B62: year5cost | C62: =C49+C52+C55 -> 56681.07746
B63: year6cost | C63: =C50+C53+C52+C55 -> 85000.93689 | D63: =SUM(C63:C68) -> 532250.389
B64: year7cost | C64: =C50+C52+C55 -> 72296.44445
B65: year8cost | C65: =C50+C52+C53+C55 -> 85000.93689
B66: year9cost | C66: =C50+C52+C55 -> 72296.44445
B67: year10cost | C67: =C50+C52+C53+C55 -> 85000.93689
B68: year11to15cost | C68: =C51+C52+C54+C55 -> 132654.6894
B70: Exchange rates
B71: IMF Exchange rate August 15, 2019 for 1 USD | C71: 52.195 | D71: IMF
B72: IMF Exchange rate December 29, 2011 for 1USD | C72: 42.928 | D72: IMF
B73: Exchange rate December 29, 2003 for 1 USD | C73: 55.587 | D73: Pacific Exchange Rate
B74: Baht Exchange rate 2018 for 1 USD | C74: 32.31 | D74: World Bank
B75: US CPI 2019 | C75: 102 | D75: IMF
B76: US CPI 2018 | C76: 102.4 | D76: IMF
B77: US CPI 2011 | C77: 103.1 | D77: IMF
B78: US CPI 2003 | C78: 102.3 | D78: IMF
B79: PH CPI 2019 | C79: 103.8 | D79: IMF
B80: PH CPI 2018 | C80: 105.2 | D80: IMF
B81: PH CPI 2011 | C81: 104.8 | D81: IMF
B82: TH CPI 2018 | C82: 101.1 | D82: IMF
B85: Discount rate
B86: Discount rate for costs and outcomes | C86: 0.03 | D86: Draft PH Methods Guide
B88: Prevalence of HIV in the Philippines
B90: Year | C90: Value
B91: 2018 | C91: 363 | D91: Epidemiology Bureau
B92: 2019 | C92: x | D92: Epidemiology Bureau
B93: 2020 | C93: 491 | D93: Epidemiology Bureau
B94: 2021 | C94: 569 | D94: Epidemiology Bureau
B95: 2022 | C95: 653 | D95: Epidemiology Bureau
B96: 2023 | C96: =281.5+72.7*6 -> 717.7 | D96: Extrapolation

Sheet Life years without HIV
A1: years in model | B1: Age | C1: Total alive | D1: Progress to death | E1: Total death | F1: Check | G1: Total life years (undiscounted) | H1: Total QALYs (undiscounted) | I1: Discount factor | J1: Total life years (discounted) | K1: Total QALYs (discounted)
A2: 0 | B2: 0 | C2: =1-D2 -> 0.9899031624 | D2: =1*'Formula sheet'!$E$11 -> 0.01009683762 | E2: =0+D2 -> 0.01009683762 | F2: =E2+C2 -> 1 | G2: =C2 -> 0.9899031624 | H2: =C2*'Lifetime HIV Markov'!$C$12 -> 0.9899031624 | I2: =(1+'Lifetime HIV Markov'!$C$86)^-A2 -> 1 | J2: =G2*$I2 -> 0.9899031624 | K2: =H2*$I2 -> 0.9899031624
A3: =A2+1 -> 1 | B3: =B2+1 -> 1 | C3: =C2-D3 -> 0.9888154656 | D3: =C2*'Formula sheet'!$E$12 -> 0.001087696793 | E3: =E2+D3 -> 0.01118453442 | F3: =E3+C3 -> 1 | G3: =C3 -> 0.9888154656 | H3: =C3*'Lifetime HIV Markov'!$C$12 -> 0.9888154656 | I3: =(1+'Lifetime HIV Markov'!$C$86)^-A3 -> 0.9708737864 | J3: =G3*$I3 -> 0.9600150151 | K3: =H3*$I3 -> 0.9600150151
A4: =A3+1 -> 2 | B4: 2 | C4: =C3-D4 -> 0.9877289639 | D4: =C3*'Formula sheet'!$E$12 -> 0.001086501641 | E4: =E3+D4 -> 0.01227103606 | F4: 1 | G4: =C4 -> 0.9877289639 | H4: =C4*'Lifetime HIV Markov'!$C$12 -> 0.9877289639 | I4: =(1+'Lifetime HIV Markov'!$C$86)^-A4 -> 0.9425959091 | J4: =G4*$I4 -> 0.9310292807 | K4: 0.9310292807
A5: 3 | B5: 3 | C5: 0.9866436561 | D5: =C4*'Formula sheet'!$E$12 -> 0.001085307803 | E5: 0.01335634386 | F5: 1 | G5: 0.9866436561 | H5: =C5*'Lifetime HIV Markov'!$C$12 -> 0.9866436561 | I5: =(1+'Lifetime HIV Markov'!$C$86)^-A5 -> 0.9151416594 | J5: 0.9029187127 | K5: 0.9029187127
A6: 4 | B6: 4 | C6: 0.9855595409 | D6: =C5*'Formula sheet'!$E$12 -> 0.001084115276 | E6: 0.01444045914 | F6: 1 | G6: 0.9855595409 | H6: =C6*'Lifetime HIV Markov'!$C$12 -> 0.9855595409 | I6: =(1+'Lifetime HIV Markov'!$C$86)^-A6 -> 0.8884870479 | J6: 0.875656887 | K6: 0.875656887
A7: 5 | B7: 5 | C7: 0.9851654747 | D7: =C6*'Formula sheet'!$E$13 -> 0.0003940661794 | E7: 0.01483452532 | F7: 1 | G7: 0.9851654747 | H7: =C7*'Lifetime HIV Markov'!$C$12 -> 0.9851654747 | I7: =(1+'Lifetime HIV Markov'!$C$86)^-A7 -> 0.8626087844 | J7: 0.8498123925 | K7: 0.8498123925
A8: 6 | B8: 6 | C8: 0.9847715661 | D8: =C7*'Formula sheet'!$E$13 -> 0.0003939086159 | E8: 0.01522843393 | F8: 1 | G8: 0.9847715661 | H8: =C8*'Lifetime HIV Markov'!$C$12 -> 0.9847715661 | I8: =(1+'Lifetime HIV Markov'!$C$86)^-A8 -> 0.8374842567 | J8: 0.824730683 | K8: 0.824730683
A9: 7 | B9: 7 | C9: 0.984377815 | D9: =C8*'Formula sheet'!$E$13 -> 0.0003937511155 | E9: 0.01562218505 | F9: 1 | G9: 0.984377815 | H9: =C9*'Lifetime HIV Markov'!$C$12 -> 0.984377815 | I9: =(1+'Lifetime HIV Markov'!$C$86)^-A9 -> 0.8130915113 | J9: 0.8003892453 | K9: 0.8003892453
A10: 8 | B10: 8 | C10: 0.9839842213 | D10: =C9*'Formula sheet'!$E$13 -> 0.000393593678 | E10: 0.01601577872 | F10: 1 | G10: 0.9839842213 | H10: =C10*'Lifetime HIV Markov'!$C$12 -> 0.9839842213 | I10: =(1+'Lifetime HIV Markov'!$C$86)^-A10 -> 0.7894092343 | J10: 0.7767662307 | K10: 0.7767662307
A11: 9 | B11: 9 | C11: 0.983590785 | D11: =C10*'Formula sheet'!$E$13 -> 0.0003934363035 | E11: 0.01640921503 | F11: 1 | G11: 0.983590785 | H11: =C11*'Lifetime HIV Markov'!$C$12 -> 0.983590785 | I11: =(1+'Lifetime HIV Markov'!$C$86)^-A11 -> 0.7664167323 | J11: 0.7538404354 | K11: 0.7538404354
A12: 10 | B12: 10 | C12: 0.983197506 | D12: =C11*'Formula sheet'!$E$14 -> 0.0003932789919 | E12: 0.01680249402 | F12: 1 | G12: 0.983197506 | H12: =C12*'Lifetime HIV Markov'!$C$12 -> 0.983197506 | I12: =(1+'Lifetime HIV Markov'!$C$86)^-A12 -> 0.7440939149 | J12: 0.7315912813 | K12: 0.7315912813
A13: 11 | B13: 11 | C13: 0.9828043842 | D13: =C12*'Formula sheet'!$E$14 -> 0.0003931217432 | E13: 0.01719561576 | F13: 1 | G13: 0.9828043842 | H13: =C13*'Lifetime HIV Markov'!$C$12 -> 0.9828043842 | I13: =(1+'Lifetime HIV Markov'!$C$86)^-A13 -> 0.7224212766 | J13: 0.7099987979 | K13: 0.7099987979
A14: 12 | B14: 12 | C14: 0.9824114197 | D14: =C13*'Formula sheet'!$E$14 -> 0.0003929645574 | E14: 0.01758858032 | F14: 1 | G14: 0.9824114197 | H14: =C14*'Lifetime HIV Markov'!$C$12 -> 0.9824114197 | I14: =(1+'Lifetime HIV Markov'!$C$86)^-A14 -> 0.7013798802 | J14: 0.6890436038 | K14: 0.6890436038
A15: 13 | B15: 13 | C15: 0.9820186122 | D15: =C14*'Formula sheet'!$E$14 -> 0.0003928074344 | E15: 0.01798138776 | F15: 1 | G15: 0.9820186122 | H15: =C15*'Lifetime HIV Markov'!$C$12 -> 0.9820186122 | I15: =(1+'Lifetime HIV Markov'!$C$86)^-A15 -> 0.68095134 | J15: 0.6687068899 | K15: 0.6687068899
A16: 14 | B16: 14 | C16: 0.9816259619 | D16: =C15*'Formula sheet'!$E$14 -> 0.0003926503743 | E16: 0.01837403813 | F16: 1 | G16: 0.9816259619 | H16: =C16*'Lifetime HIV Markov'!$C$12 -> 0.9816259619 | I16: =(1+'Lifetime HIV Markov'!$C$86)^-A16 -> 0.6611178058 | J16: 0.648970402 | K16: 0.648970402
A17: 15 | B17: 15 | C17: 0.9809393044 | D17: =C16*'Formula sheet'!$E$15 -> 0.000686657457 | E17: 0.01906069559 | F17: 1 | G17: 0.9809393044 | H17: =C17*'Lifetime HIV Markov'!$C$12 -> 0.9809393044 | I17: =(1+'Lifetime HIV Markov'!$C$86)^-A17 -> 0.6418619474 | J17: 0.6296276122 | K17: 0.6296276122
A18: 16 | B18: 16 | C18: 0.9802531273 | D18: =C17*'Formula sheet'!$E$15 -> 0.0006861771331 | E18: 0.01974687272 | F18: 1 | G18: 0.9802531273 | H18: =C18*'Lifetime HIV Markov'!$C$12 -> 0.9802531273 | I18: =(1+'Lifetime HIV Markov'!$C$86)^-A18 -> 0.6231669392 | J18: 0.610861341 | K18: 0.610861341
A19: 17 | B19: 17 | C19: 0.9795674301 | D19: =C18*'Formula sheet'!$E$15 -> 0.0006856971451 | E19: 0.02043256986 | F19: 1 | G19: 0.9795674301 | H19: =C19*'Lifetime HIV Markov'!$C$12 -> 0.9795674301 | I19: =(1+'Lifetime HIV Markov'!$C$86)^-A19 -> 0.6050164458 | J19: 0.592654405 | K19: 0.592654405
A20: =A19+1 -> 18 | B20: 18 | C20: 0.9788822126 | D20: =C19*'Formula sheet'!$E$15 -> 0.0006852174929 | E20: 0.02111778736 | F20: 1 | G20: 0.9788822126 | H20: =C20*'Lifetime HIV Markov'!$C$12 -> 0.9788822126 | I20: =(1+'Lifetime HIV Markov'!$C$86)^-A20 -> 0.5873946076 | J20: 0.5749901332 | K20: 0.5749901332
A21: 19 | B21: 19 | C21: 0.9781974745 | D21: =C20*'Formula sheet'!$E$15 -> 0.0006847381762 | E21: 0.02180252553 | F21: 1 | G21: 0.9781974745 | H21: =C21*'Lifetime HIV Markov'!$C$12 -> 0.9781974745 | I21: =(1+'Lifetime HIV Markov'!$C$86)^-A21 -> 0.5702860268 | J21: 0.5578523512 | K21: 0.5578523512
A22: 20 | B22: 20 | C22: 0.9770250447 | D22: =C21*'Formula sheet'!$E$16 -> 0.001172429772 | E22: 0.02297495531 | F22: 1 | G22: 0.9770250447 | H22: =C22*'Lifetime HIV Markov'!$C$12 -> 0.9770250447 | I22: =(1+'Lifetime HIV Markov'!$C$86)^-A22 -> 0.5536757542 | J22: 0.5409550785 | K22: 0.5409550785
A23: 21 | B23: 21 | C23: 0.9758540202 | D23: =C22*'Formula sheet'!$E$16 -> 0.001171024543 | E23: 0.02414597985 | F23: 1 | G23: 0.9758540202 | H23: =C23*'Lifetime HIV Markov'!$C$12 -> 0.9758540202 | I23: =(1+'Lifetime HIV Markov'!$C$86)^-A23 -> 0.5375492759 | J23: 0.5245696219 | K23: 0.5245696219
A24: 22 | B24: 22 | C24: 0.9746843992 | D24: =C23*'Formula sheet'!$E$16 -> 0.001169620998 | E24: 0.02531560085 | F24: 1 | G24: 0.9746843992 | H24: =C24*'Lifetime HIV Markov'!$C$12 -> 0.9746843992 | I24: =(1+'Lifetime HIV Markov'!$C$86)^-A24 -> 0.5218925009 | J24: 0.5086804786 | K24: 0.5086804786
A25: 23 | B25: 23 | C25: 0.97351618 | D25: =C24*'Formula sheet'!$E$16 -> 0.001168219136 | E25: 0.02648381998 | F25: 1 | G25: 0.97351618 | H25: =C25*'Lifetime HIV Markov'!$C$12 -> 0.97351618 | I25: =(1+'Lifetime HIV Markov'!$C$86)^-A25 -> 0.5066917484 | J25: 0.4932726154 | K25: 0.4932726154
A26: 24 | B26: 24 | C26: 0.9723493611 | D26: =C25*'Formula sheet'!$E$16 -> 0.001166818953 | E26: 0.02765063894 | F26: 1 | G26: 0.9723493611 | H26: =C26*'Lifetime HIV Markov'!$C$12 -> 0.9723493611 | I26: =(1+'Lifetime HIV Markov'!$C$86)^-A26 -> 0.4919337363 | J26: 0.4783314542 | K26: 0.4783314542
A27: 25 | B27: 25 | C27: 0.9708930221 | D27: =C26*'Formula sheet'!$E$17 -> 0.001456338987 | E27: 0.02910697792 | F27: 1 | G27: 0.9708930221 | H27: =C27*'Lifetime HIV Markov'!$C$12 -> 0.9708930221 | I27: =(1+'Lifetime HIV Markov'!$C$86)^-A27 -> 0.4776055693 | J27: 0.4637039145 | K27: 0.4637039145
A28: 26 | B28: 26 | C28: 0.9694388643 | D28: =C27*'Formula sheet'!$E$17 -> 0.001454157751 | E28: 0.03056113568 | F28: 1 | G28: 0.9694388643 | H28: =C28*'Lifetime HIV Markov'!$C$12 -> 0.9694388643 | I28: =(1+'Lifetime HIV Markov'!$C$86)^-A28 -> 0.4636947274 | J28: 0.44952369 | K28: 0.44952369
A29: 27 | B29: 27 | C29: 0.9679868845 | D29: =C28*'Formula sheet'!$E$17 -> 0.001451979783 | E29: 0.03201311546 | F29: 1 | G29: 0.9679868845 | H29: =C29*'Lifetime HIV Markov'!$C$12 -> 0.9679868845 | I29: =(1+'Lifetime HIV Markov'!$C$86)^-A29 -> 0.4501890558 | J29: 0.4357771015 | K29: 0.4357771015
A30: 28 | B30: 28 | C30: 0.9665370795 | D30: =C29*'Formula sheet'!$E$17 -> 0.001449805076 | E30: 0.03346292053 | F30: 1 | G30: 0.9665370795 | H30: =C30*'Lifetime HIV Markov'!$C$12 -> 0.9665370795 | I30: =(1+'Lifetime HIV Markov'!$C$86)^-A30 -> 0.4370767532 | J30: 0.4224508885 | K30: 0.4224508885
A31: 29 | B31: 29 | C31: 0.9650894458 | D31: =C30*'Formula sheet'!$E$17 -> 0.001447633626 | E31: 0.03491055416 | F31: 1 | G31: 0.9650894458 | H31: =C31*'Lifetime HIV Markov'!$C$12 -> 0.9650894458 | I31: =(1+'Lifetime HIV Markov'!$C$86)^-A31 -> 0.4243463623 | J31: 0.4095321956 | K31: 0.4095321956
A32: 30 | B32: 30 | C32: 0.9631631209 | D32: =C31*'Formula sheet'!$E$18 -> 0.001926324958 | E32: 0.03683687912 | F32: 1 | G32: 0.9631631209 | H32: =C32*'Lifetime HIV Markov'!$C$12 -> 0.9631631209 | I32: =(1+'Lifetime HIV Markov'!$C$86)^-A32 -> 0.4119867595 | J32: 0.3968104531 | K32: 0.3968104531
A33: 31 | B33: 31 | C33: 0.9612406409 | D33: =C32*'Formula sheet'!$E$18 -> 0.001922480001 | E33: 0.03875935912 | F33: 1 | G33: 0.9612406409 | H33: =C33*'Lifetime HIV Markov'!$C$12 -> 0.9612406409 | I33: =(1+'Lifetime HIV Markov'!$C$86)^-A33 -> 0.3999871452 | J33: 0.3844838998 | K33: 0.3844838998
A34: 32 | B34: 32 | C34: 0.9593219982 | D34: =C33*'Formula sheet'!$E$18 -> 0.001918642718 | E34: 0.04067800184 | F34: 1 | G34: 0.9593219982 | H34: =C34*'Lifetime HIV Markov'!$C$12 -> 0.9593219982 | I34: =(1+'Lifetime HIV Markov'!$C$86)^-A34 -> 0.3883370341 | J34: 0.3725402595 | K34: 0.3725402595
A35: 33 | B35: 33 | C35: 0.9574071851 | D35: =C34*'Formula sheet'!$E$18 -> 0.001914813094 | E35: 0.04259281493 | F35: 1 | G35: 0.9574071851 | H35: =C35*'Lifetime HIV Markov'!$C$12 -> 0.9574071851 | I35: =(1+'Lifetime HIV Markov'!$C$86)^-A35 -> 0.3770262467 | J35: 0.3609676376 | K35: 0.3609676376
A36: =A35+1 -> 34 | B36: 34 | C36: 0.955496194 | D36: =C35*'Formula sheet'!$E$18 -> 0.001910991115 | E36: 0.04450380605 | F36: 1 | G36: 0.955496194 | H36: =C36*'Lifetime HIV Markov'!$C$12 -> 0.955496194 | I36: =(1+'Lifetime HIV Markov'!$C$86)^-A36 -> 0.3660448997 | J36: 0.3497545085 | K36: 0.3497545085
A37: 35 | B37: 35 | C37: 0.953018349 | D37: =C36*'Formula sheet'!$E$19 -> 0.002477844918 | E37: 0.04698165096 | F37: 1 | G37: 0.953018349 | H37: =C37*'Lifetime HIV Markov'!$C$12 -> 0.953018349 | I37: =(1+'Lifetime HIV Markov'!$C$86)^-A37 -> 0.3553833978 | J37: 0.3386868991 | K37: 0.3386868991
A38: 36 | B38: 36 | C38: 0.9505469298 | D38: =C37*'Formula sheet'!$E$19 -> 0.002471419235 | E38: 0.0494530702 | F38: 1 | G38: 0.9505469298 | H38: =C38*'Lifetime HIV Markov'!$C$12 -> 0.9505469298 | I38: =(1+'Lifetime HIV Markov'!$C$86)^-A38 -> 0.3450324251 | J38: 0.3279695123 | K38: 0.3279695123
A39: 37 | B39: 37 | C39: 0.9480819196 | D39: =C38*'Formula sheet'!$E$19 -> 0.002465010215 | E39: 0.05191808041 | F39: 1 | G39: 0.9480819196 | H39: =C39*'Lifetime HIV Markov'!$C$12 -> 0.9480819196 | I39: =(1+'Lifetime HIV Markov'!$C$86)^-A39 -> 0.3349829369 | J39: 0.3175912659 | K39: 0.3175912659
A40: 38 | B40: 38 | C40: 0.9456233018 | D40: =C39*'Formula sheet'!$E$19 -> 0.002458617816 | E40: 0.05437669823 | F40: 1 | G40: 0.9456233018 | H40: =C40*'Lifetime HIV Markov'!$C$12 -> 0.9456233018 | I40: =(1+'Lifetime HIV Markov'!$C$86)^-A40 -> 0.3252261524 | J40: 0.307541428 | K40: 0.307541428
A41: 39 | B41: 39 | C41: 0.9431710598 | D41: =C40*'Formula sheet'!$E$19 -> 0.002452241994 | E41: 0.05682894022 | F41: 1 | G41: 0.9431710598 | H41: =C41*'Lifetime HIV Markov'!$C$12 -> 0.9431710598 | I41: =(1+'Lifetime HIV Markov'!$C$86)^-A41 -> 0.315753546 | J41: 0.2978096066 | K41: 0.2978096066
A42: 40 | B42: 40 | C42: 0.9397878309 | D42: =C41*'Formula sheet'!$E$20 -> 0.00338322889 | E42: 0.06021216911 | F42: 1 | G42: 0.9397878309 | H42: =C42*'Lifetime HIV Markov'!$C$12 -> 0.9397878309 | I42: =(1+'Lifetime HIV Markov'!$C$86)^-A42 -> 0.3065568408 | J42: 0.2880983884 | K42: 0.2880983884
A43: 41 | B43: 41 | C43: 0.9364167379 | D43: =C42*'Formula sheet'!$E$20 -> 0.003371092981 | E43: 0.0635832621 | F43: 1 | G43: 0.9364167379 | H43: =C43*'Lifetime HIV Markov'!$C$12 -> 0.9364167379 | I43: =(1+'Lifetime HIV Markov'!$C$86)^-A43 -> 0.2976280008 | J43: 0.2787038416 | K43: 0.2787038416
A44: 42 | B44: 42 | C44: 0.9330577373 | D44: =C43*'Formula sheet'!$E$20 -> 0.003359000605 | E44: 0.0669422627 | F44: 1 | G44: 0.9330577373 | H44: =C44*'Lifetime HIV Markov'!$C$12 -> 0.9330577373 | I44: =(1+'Lifetime HIV Markov'!$C$86)^-A44 -> 0.288959224 | J44: 0.2696156397 | K44: 0.2696156397
A45: 43 | B45: 43 | C45: 0.9297107857 | D45: =C44*'Formula sheet'!$E$20 -> 0.003346951606 | E45: 0.07028921431 | F45: 1 | G45: 0.9297107857 | H45: =C45*'Lifetime HIV Markov'!$C$12 -> 0.9297107857 | I45: =(1+'Lifetime HIV Markov'!$C$86)^-A45 -> 0.280542936 | J45: 0.2608237934 | K45: 0.2608237934
A46: 44 | B46: 44 | C46: 0.9263758399 | D46: =C45*'Formula sheet'!$E$20 -> 0.003334945827 | E46: 0.07362416013 | F46: 1 | G46: 0.9263758399 | H46: =C46*'Lifetime HIV Markov'!$C$12 -> 0.9263758399 | I46: =(1+'Lifetime HIV Markov'!$C$86)^-A46 -> 0.2723717825 | J46: 0.2523186387 | K46: 0.2523186387
A47: 45 | B47: 45 | C47: 0.9214919553 | D47: =C46*'Formula sheet'!$E$21 -> 0.004883884529 | E47: 0.07850804466 | F47: 1 | G47: 0.9214919553 | H47: =C47*'Lifetime HIV Markov'!$C$12 -> 0.9214919553 | I47: =(1+'Lifetime HIV Markov'!$C$86)^-A47 -> 0.2644386238 | J47: 0.2436780645 | K47: 0.2436780645
A48: 46 | B48: 46 | C48: 0.9166338188 | D48: =C47*'Formula sheet'!$E$21 -> 0.004858136526 | E48: 0.08336618119 | F48: 1 | G48: 0.9166338188 | H48: =C48*'Lifetime HIV Markov'!$C$12 -> 0.9166338188 | I48: =(1+'Lifetime HIV Markov'!$C$86)^-A48 -> 0.2567365279 | J48: 0.235333384 | K48: 0.235333384
A49: 47 | B49: 47 | C49: 0.9118012945 | D49: =C48*'Formula sheet'!$E$21 -> 0.004832524267 | E49: 0.08819870545 | F49: 1 | G49: 0.9118012945 | H49: =C49*'Lifetime HIV Markov'!$C$12 -> 0.9118012945 | I49: =(1+'Lifetime HIV Markov'!$C$86)^-A49 -> 0.249258765 | J49: 0.2272744646 | K49: 0.2272744646
A50: 48 | B50: 48 | C50: 0.9069942475 | D50: =C49*'Formula sheet'!$E$21 -> 0.004807047037 | E50: 0.09300575249 | F50: 1 | G50: 0.9069942475 | H50: =C50*'Lifetime HIV Markov'!$C$12 -> 0.9069942475 | I50: =(1+'Lifetime HIV Markov'!$C$86)^-A50 -> 0.2419988009 | J50: 0.2194915204 | K50: 0.2194915204
A51: 49 | B51: 49 | C51: 0.9022125434 | D51: =C50*'Formula sheet'!$E$21 -> 0.004781704123 | E51: 0.09778745661 | F51: 1 | G51: 0.9022125434 | H51: =C51*'Lifetime HIV Markov'!$C$12 -> 0.9022125434 | I51: =(1+'Lifetime HIV Markov'!$C$86)^-A51 -> 0.2349502922 | J51: 0.2119751007 | K51: 0.2119751007
A52: =A51+1 -> 50 | B52: 50 | C52: 0.8952298214 | D52: =C51*'Formula sheet'!$E$22 -> 0.00698272194 | E52: 0.1047701786 | F52: 1 | G52: 0.8952298214 | H52: =C52*'Lifetime HIV Markov'!$C$12 -> 0.8952298214 | I52: =(1+'Lifetime HIV Markov'!$C$86)^-A52 -> 0.2281070798 | J52: 0.2042082603 | K52: 0.2042082603
A53: 51 | B53: 51 | C53: 0.8883011427 | D53: =C52*'Formula sheet'!$E$22 -> 0.006928678793 | E53: 0.1116988573 | F53: 1 | G53: 0.8883011427 | H53: =C53*'Lifetime HIV Markov'!$C$12 -> 0.8883011427 | I53: =(1+'Lifetime HIV Markov'!$C$86)^-A53 -> 0.2214631843 | J53: 0.1967259996 | K53: 0.1967259996
A54: 52 | B54: 52 | C54: 0.8814260887 | D54: =C53*'Formula sheet'!$E$22 -> 0.006875053915 | E54: 0.1185739113 | F54: 1 | G54: 0.8814260887 | H54: =C54*'Lifetime HIV Markov'!$C$12 -> 0.8814260887 | I54: =(1+'Lifetime HIV Markov'!$C$86)^-A54 -> 0.2150128003 | J54: 0.1895178916 | K54: 0.1895178916
A55: 53 | B55: 53 | C55: 0.8746042447 | D55: =C54*'Formula sheet'!$E$22 -> 0.00682184407 | E55: 0.1253957553 | F55: 1 | G55: 0.8746042447 | H55: =C55*'Lifetime HIV Markov'!$C$12 -> 0.8746042447 | I55: =(1+'Lifetime HIV Markov'!$C$86)^-A55 -> 0.2087502915 | J55: 0.182573891 | K55: 0.182573891
A56: 54 | B56: 54 | C56: 0.8678351986 | D56: =C55*'Formula sheet'!$E$22 -> 0.006769046045 | E56: 0.1321648014 | F56: 1 | G56: 0.8678351986 | H56: =C56*'Lifetime HIV Markov'!$C$12 -> 0.8678351986 | I56: =(1+'Lifetime HIV Markov'!$C$86)^-A56 -> 0.2026701859 | J56: 0.1758843211 | K56: 0.1758843211
A57: 55 | B57: 55 | C57: 0.857629646 | D57: =C56*'Formula sheet'!$E$23 -> 0.01020555263 | E57: 0.142370354 | F57: 1 | G57: 0.857629646 | H57: =C57*'Lifetime HIV Markov'!$C$12 -> 0.857629646 | I57: =(1+'Lifetime HIV Markov'!$C$86)^-A57 -> 0.1967671708 | J57: 0.168753359 | K57: 0.168753359
A58: 56 | B58: 56 | C58: 0.8475441084 | D58: =C57*'Formula sheet'!$E$23 -> 0.01008553756 | E58: 0.1524558916 | F58: 1 | G58: 0.8475441084 | H58: =C58*'Lifetime HIV Markov'!$C$12 -> 0.8475441084 | I58: =(1+'Lifetime HIV Markov'!$C$86)^-A58 -> 0.1910360882 | J58: 0.161911511 | K58: 0.161911511
A59: 57 | B59: 57 | C59: 0.8375771746 | D59: =C58*'Formula sheet'!$E$23 -> 0.009966933839 | E59: 0.1624228254 | F59: 1 | G59: 0.8375771746 | H59: =C59*'Lifetime HIV Markov'!$C$12 -> 0.8375771746 | I59: =(1+'Lifetime HIV Markov'!$C$86)^-A59 -> 0.1854719303 | J59: 0.1553470553 | K59: 0.1553470553
A60: 58 | B60: 58 | C60: 0.8277274497 | D60: =C59*'Formula sheet'!$E$23 -> 0.009849724871 | E60: 0.1722725503 | F60: 1 | G60: 0.8277274497 | H60: =C60*'Lifetime HIV Markov'!$C$12 -> 0.8277274497 | I60: =(1+'Lifetime HIV Markov'!$C$86)^-A60 -> 0.1800698352 | J60: 0.1490487455 | K60: 0.1490487455
A61: 59 | B61: 59 | C61: 0.8179935555 | D61: =C60*'Formula sheet'!$E$23 -> 0.009733894255 | E61: 0.1820064445 | F61: 1 | G61: 0.8179935555 | H61: =C61*'Lifetime HIV Markov'!$C$12 -> 0.8179935555 | I61: =(1+'Lifetime HIV Markov'!$C$86)^-A61 -> 0.1748250827 | J61: 0.143005791 | K61: 0.143005791
A62: 60 | B62: 60 | C62: 0.8024274349 | D62: =C61*'Formula sheet'!$E$24 -> 0.01556612054 | E62: 0.1975725651 | F62: 1 | G62: 0.8024274349 | H62: =C62*'Lifetime HIV Markov'!$C$12 -> 0.8024274349 | I62: =(1+'Lifetime HIV Markov'!$C$86)^-A62 -> 0.16973309 | J62: 0.136198488 | K62: 0.136198488
A63: 61 | B63: 61 | C63: 0.787157532 | D63: =C62*'Formula sheet'!$E$24 -> 0.01526990291 | E63: 0.212842468 | F63: 1 | G63: 0.787157532 | H63: =C63*'Lifetime HIV Markov'!$C$12 -> 0.787157532 | I63: =(1+'Lifetime HIV Markov'!$C$86)^-A63 -> 0.1647894078 | J63: 0.1297152235 | K63: 0.1297152235
A64: 62 | B64: 62 | C64: 0.7721782098 | D64: =C63*'Formula sheet'!$E$24 -> 0.0149793222 | E64: 0.2278217902 | F64: 1 | G64: 0.7721782098 | H64: =C64*'Lifetime HIV Markov'!$C$12 -> 0.7721782098 | I64: =(1+'Lifetime HIV Markov'!$C$86)^-A64 -> 0.1599897163 | J64: 0.1235405727 | K64: 0.1235405727
A65: 63 | B65: 63 | C65: 0.7574839387 | D65: =C64*'Formula sheet'!$E$24 -> 0.01469427114 | E65: 0.2425160613 | F65: 1 | G65: 0.7574839387 | H65: =C65*'Lifetime HIV Markov'!$C$12 -> 0.7574839387 | I65: =(1+'Lifetime HIV Markov'!$C$86)^-A65 -> 0.1553298216 | J65: 0.1176598451 | K65: 0.1176598451
A66: 64 | B66: 64 | C66: 0.7430692942 | D66: =C65*'Formula sheet'!$E$24 -> 0.01441464449 | E66: 0.2569307058 | F66: 1 | G66: 0.7430692942 | H66: =C66*'Lifetime HIV Markov'!$C$12 -> 0.7430692942 | I66: =(1+'Lifetime HIV Markov'!$C$86)^-A66 -> 0.1508056521 | J66: 0.1120590495 | K66: 0.1120590495
A67: 65 | B67: 65 | C67: 0.7211496942 | D67: =C66*'Formula sheet'!$E$25 -> 0.02191959995 | E67: 0.2788503058 | F67: =E67+C67 -> 1 | G67: 0.7211496942 | H67: =C67*'Lifetime HIV Markov'!$C$12 -> 0.7211496942 | I67: =(1+'Lifetime HIV Markov'!$C$86)^-A67 -> 0.1464132544 | J67: 0.1055858737 | K67: 0.1055858737
A68: =A67+1 -> 66 | B68: 66 | C68: =C67-D68 -> 0.6998766946 | D68: =C67*'Formula sheet'!$E$25 -> 0.02127299961 | E68: =E67+D68 -> 0.3001233054 | F68: 1 | G68: =C68 -> 0.6998766946 | H68: =C68*'Lifetime HIV Markov'!$C$12 -> 0.6998766946 | I68: =(1+'Lifetime HIV Markov'!$C$86)^-A68 -> 0.1421487907 | J68: =G68*$I68 -> 0.0994866258 | K68: 0.0994866258
A69: 67 | B69: 67 | C69: 0.6792312215 | D69: =C68*'Formula sheet'!$E$25 -> 0.02064547315 | E69: 0.3207687785 | F69: 1 | G69: 0.6792312215 | H69: =C69*'Lifetime HIV Markov'!$C$12 -> 0.6792312215 | I69: =(1+'Lifetime HIV Markov'!$C$86)^-A69 -> 0.1380085347 | J69: 0.09373970559 | K69: 0.09373970559
A70: 68 | B70: 68 | C70: 0.6591947635 | D70: =C69*'Formula sheet'!$E$25 -> 0.02003645793 | E70: 0.3408052365 | F70: 1 | G70: 0.6591947635 | H70: =C70*'Lifetime HIV Markov'!$C$12 -> 0.6591947635 | I70: =(1+'Lifetime HIV Markov'!$C$86)^-A70 -> 0.1339888686 | J70: 0.08832476057 | K70: 0.08832476057
A71: 69 | B71: 69 | C71: 0.6397493557 | D71: =C70*'Formula sheet'!$E$25 -> 0.01944540788 | E71: 0.3602506443 | F71: 1 | G71: 0.6397493557 | H71: =C71*'Lifetime HIV Markov'!$C$12 -> 0.6397493557 | I71: =(1+'Lifetime HIV Markov'!$C$86)^-A71 -> 0.1300862802 | J71: 0.08322261395 | K71: 0.08322261395
A72: 70 | B72: 70 | C72: 0.5969262005 | D72: =C71*'Formula sheet'!$E$26 -> 0.04282315518 | E72: 0.4030737995 | F72: 1 | G72: 0.5969262005 | H72: =C72*'Lifetime HIV Markov'!$C$12 -> 0.5969262005 | I72: =(1+'Lifetime HIV Markov'!$C$86)^-A72 -> 0.1262973594 | J72: 0.0753902029 | K72: 0.0753902029
A73: 71 | B73: 71 | C73: 0.5569695158 | D73: =C72*'Formula sheet'!$E$26 -> 0.03995668474 | E73: 0.4430304842 | F73: 1 | G73: 0.5569695158 | H73: =C73*'Lifetime HIV Markov'!$C$12 -> 0.5569695158 | I73: =(1+'Lifetime HIV Markov'!$C$86)^-A73 -> 0.1226187956 | J73: 0.06829493119 | K73: 0.06829493119
A74: 72 | B74: 72 | C74: 0.5196874274 | D74: =C73*'Formula sheet'!$E$26 -> 0.03728208836 | E74: 0.4803125726 | F74: 1 | G74: 0.5196874274 | H74: =C74*'Lifetime HIV Markov'!$C$12 -> 0.5196874274 | I74: =(1+'Lifetime HIV Markov'!$C$86)^-A74 -> 0.1190473743 | J74: 0.06186742371 | K74: 0.06186742371
A75: 73 | B75: 73 | C75: 0.4849009049 | D75: =C74*'Formula sheet'!$E$26 -> 0.03478652249 | E75: 0.5150990951 | F75: 1 | G75: 0.4849009049 | H75: =C75*'Lifetime HIV Markov'!$C$12 -> 0.4849009049 | I75: =(1+'Lifetime HIV Markov'!$C$86)^-A75 -> 0.1155799751 | J75: 0.05604483451 | K75: 0.05604483451
A76: 74 | B76: 74 | C76: 0.4524429016 | D76: =C75*'Formula sheet'!$E$26 -> 0.0324580033 | E76: 0.5475570984 | F76: 1 | G76: 0.4524429016 | H76: =C76*'Lifetime HIV Markov'!$C$12 -> 0.4524429016 | I76: =(1+'Lifetime HIV Markov'!$C$86)^-A76 -> 0.112213568 | J76: 0.05077023233 | K76: 0.05077023233
A77: 75 | B77: 75 | C77: 0.4221575525 | D77: =C76*'Formula sheet'!$E$26 -> 0.03028534912 | E77: 0.5778424475 | F77: 1 | G77: 0.4221575525 | H77: =C77*'Lifetime HIV Markov'!$C$12 -> 0.4221575525 | I77: =(1+'Lifetime HIV Markov'!$C$86)^-A77 -> 0.1089452117 | J77: 0.04599204392 | K77: 0.04599204392
A78: 76 | B78: 76 | C78: 0.3938994257 | D78: =C77*'Formula sheet'!$E$26 -> 0.02825812675 | E78: 0.6061005743 | F78: 1 | G78: 0.3938994257 | H78: =C78*'Lifetime HIV Markov'!$C$12 -> 0.3938994257 | I78: =(1+'Lifetime HIV Markov'!$C$86)^-A78 -> 0.1057720502 | J78: 0.04166354983 | K78: 0.04166354983
A79: 77 | B79: 77 | C79: 0.3675328244 | D79: =C78*'Formula sheet'!$E$26 -> 0.02636660136 | E79: 0.6324671756 | F79: 1 | G79: 0.3675328244 | H79: =C79*'Lifetime HIV Markov'!$C$12 -> 0.3675328244 | I79: =(1+'Lifetime HIV Markov'!$C$86)^-A79 -> 0.1026913109 | J79: 0.03774242752 | K79: 0.03774242752
A80: 78 | B80: 78 | C80: 0.3429311346 | D80: =C79*'Formula sheet'!$E$26 -> 0.02460168976 | E80: 0.6570688654 | F80: 1 | G80: 0.3429311346 | H80: =C80*'Lifetime HIV Markov'!$C$12 -> 0.3429311346 | I80: =(1+'Lifetime HIV Markov'!$C$86)^-A80 -> 0.09970030181 | J80: 0.03419033762 | K80: 0.03419033762
A81: 79 | B81: 79 | C81: 0.3199762179 | D81: =C80*'Formula sheet'!$E$26 -> 0.02295491674 | E81: 0.6800237821 | F81: 1 | G81: 0.3199762179 | H81: =C81*'Lifetime HIV Markov'!$C$12 -> 0.3199762179 | I81: =(1+'Lifetime HIV Markov'!$C$86)^-A81 -> 0.09679640952 | J81: 0.03097254902 | K81: 0.03097254902
A82: 80 | B82: 80 | C82: 0.2985578435 | D82: =C81*'Formula sheet'!$E$26 -> 0.02141837442 | E82: 0.7014421565 | F82: 1 | G82: 0.2985578435 | H82: =C82*'Lifetime HIV Markov'!$C$12 -> 0.2985578435 | I82: =(1+'Lifetime HIV Markov'!$C$86)^-A82 -> 0.09397709663 | J82: 0.0280575993 | K82: 0.0280575993
A83: 81 | B83: 81 | C83: 0.2785731592 | D83: =C82*'Formula sheet'!$E$26 -> 0.01998468423 | E83: 0.7214268408 | F83: 1 | G83: 0.2785731592 | H83: =C83*'Lifetime HIV Markov'!$C$12 -> 0.2785731592 | I83: =(1+'Lifetime HIV Markov'!$C$86)^-A83 -> 0.09123989964 | J83: 0.02541698709 | K83: 0.02541698709
A84: =A83+1 -> 82 | B84: 82 | C84: 0.2599261977 | D84: =C83*'Formula sheet'!$E$26 -> 0.01864696153 | E84: 0.7400738023 | F84: 1 | G84: 0.2599261977 | H84: =C84*'Lifetime HIV Markov'!$C$12 -> 0.2599261977 | I84: =(1+'Lifetime HIV Markov'!$C$86)^-A84 -> 0.08858242683 | J84: 0.02302489339 | K84: 0.02302489339
A85: 83 | B85: 83 | C85: 0.2425274152 | D85: =C84*'Formula sheet'!$E$26 -> 0.01739878251 | E85: 0.7574725848 | F85: 1 | G85: 0.2425274152 | H85: =C85*'Lifetime HIV Markov'!$C$12 -> 0.2425274152 | I85: =(1+'Lifetime HIV Markov'!$C$86)^-A85 -> 0.08600235615 | J85: 0.02085792914 | K85: 0.02085792914
A86: 84 | B86: 84 | C86: 0.2262932619 | D86: =C85*'Formula sheet'!$E$26 -> 0.01623415333 | E86: 0.7737067381 | F86: 1 | G86: 0.2262932619 | H86: =C86*'Lifetime HIV Markov'!$C$12 -> 0.2262932619 | I86: =(1+'Lifetime HIV Markov'!$C$86)^-A86 -> 0.08349743315 | J86: 0.0188949065 | K86: 0.0188949065
A87: 85 | B87: 85 | C87: 0.2111457804 | D87: =C86*'Formula sheet'!$E$26 -> 0.0151474814 | E87: 0.7888542196 | F87: 1 | G87: 0.2111457804 | H87: =C87*'Lifetime HIV Markov'!$C$12 -> 0.2111457804 | I87: =(1+'Lifetime HIV Markov'!$C$86)^-A87 -> 0.08106546908 | J87: 0.01711663174 | K87: 0.01711663174
A88: 86 | B88: 86 | C88: 0.197012232 | D88: =C87*'Formula sheet'!$E$26 -> 0.01413354846 | E88: 0.802987768 | F88: 1 | G88: 0.197012232 | H88: =C88*'Lifetime HIV Markov'!$C$12 -> 0.197012232 | I88: =(1+'Lifetime HIV Markov'!$C$86)^-A88 -> 0.07870433891 | J88: 0.01550571748 | K88: 0.01550571748
A89: 87 | B89: 87 | C89: 0.1838247464 | D89: =C88*'Formula sheet'!$E$26 -> 0.01318748555 | E89: 0.8161752536 | F89: 1 | G89: 0.1838247464 | H89: =C89*'Lifetime HIV Markov'!$C$12 -> 0.1838247464 | I89: =(1+'Lifetime HIV Markov'!$C$86)^-A89 -> 0.07641197953 | J89: 0.01404641276 | K89: 0.01404641276
A90: 88 | B90: 88 | C90: 0.1715199968 | D90: =C89*'Formula sheet'!$E$26 -> 0.01230474962 | E90: 0.8284800032 | F90: 1 | G90: 0.1715199968 | H90: =C90*'Lifetime HIV Markov'!$C$12 -> 0.1715199968 | I90: =(1+'Lifetime HIV Markov'!$C$86)^-A90 -> 0.07418638789 | J90: 0.01272444901 | K90: 0.01272444901
A91: 89 | B91: 89 | C91: 0.1600388951 | D91: =C90*'Formula sheet'!$E$26 -> 0.01148110174 | E91: 0.8399611049 | F91: 1 | G91: 0.1600388951 | H91: =C91*'Lifetime HIV Markov'!$C$12 -> 0.1600388951 | I91: =(1+'Lifetime HIV Markov'!$C$86)^-A91 -> 0.07202561931 | J91: 0.01152690053 | K91: 0.01152690053
A92: 90 | B92: 90 | C92: 0.1493263084 | D92: =C91*'Formula sheet'!$E$26 -> 0.0107125867 | E92: 0.8506736916 | F92: 1 | G92: 0.1493263084 | H92: =C92*'Lifetime HIV Markov'!$C$12 -> 0.1493263084 | I92: =(1+'Lifetime HIV Markov'!$C$86)^-A92 -> 0.06992778574 | J92: 0.0104420581 | K92: 0.0104420581
A93: 91 | B93: 91 | C93: 0.1393307943 | D93: =C92*'Formula sheet'!$E$26 -> 0.009995514055 | E93: 0.8606692057 | F93: 1 | G93: 0.1393307943 | H93: =C93*'Lifetime HIV Markov'!$C$12 -> 0.1393307943 | I93: =(1+'Lifetime HIV Markov'!$C$86)^-A93 -> 0.06789105412 | J93: 0.009459314497 | K93: 0.009459314497
A94: 92 | B94: 92 | C94: 0.1300043539 | D94: =C93*'Formula sheet'!$E$26 -> 0.009326440384 | E94: 0.8699956461 | F94: 1 | G94: 0.1300043539 | H94: =C94*'Lifetime HIV Markov'!$C$12 -> 0.1300043539 | I94: =(1+'Lifetime HIV Markov'!$C$86)^-A94 -> 0.06591364477 | J94: 0.008569060804 | K94: 0.008569060804
A95: 93 | B95: 93 | C95: 0.1213022012 | D95: =C94*'Formula sheet'!$E$26 -> 0.008702152762 | E95: 0.8786977988 | F95: 1 | G95: 0.1213022012 | H95: =C95*'Lifetime HIV Markov'!$C$12 -> 0.1213022012 | I95: =(1+'Lifetime HIV Markov'!$C$86)^-A95 -> 0.06399382988 | J95: 0.007762592426 | K95: 0.007762592426
A96: 94 | B96: 94 | C96: 0.1131825478 | D96: =C95*'Formula sheet'!$E$26 -> 0.008119653328 | E96: 0.8868174522 | F96: 1 | G96: 0.1131825478 | H96: =C96*'Lifetime HIV Markov'!$C$12 -> 0.1131825478 | I96: =(1+'Lifetime HIV Markov'!$C$86)^-A96 -> 0.06212993192 | J96: 0.007032023992 | K96: 0.007032023992
A97: 95 | B97: 95 | C97: 0.105606403 | D97: =C96*'Formula sheet'!$E$26 -> 0.007576144887 | E97: 0.894393597 | F97: 1 | G97: 0.105606403 | H97: =C97*'Lifetime HIV Markov'!$C$12 -> 0.105606403 | I97: =(1+'Lifetime HIV Markov'!$C$86)^-A97 -> 0.06032032225 | J97: 0.006370212258 | K97: 0.006370212258
A98: 96 | B98: 96 | C98: 0.09853738548 | D98: =C97*'Formula sheet'!$E$26 -> 0.007069017486 | E98: 0.9014626145 | F98: 1 | G98: 0.09853738548 | H98: =C98*'Lifetime HIV Markov'!$C$12 -> 0.09853738548 | I98: =(1+'Lifetime HIV Markov'!$C$86)^-A98 -> 0.05856341966 | J98: 0.005770686258 | K98: 0.005770686258
A99: 97 | B99: 97 | C99: 0.0919415496 | D99: =C98*'Formula sheet'!$E$26 -> 0.006595835872 | E99: 0.9080584504 | F99: 1 | G99: 0.0919415496 | H99: =C99*'Lifetime HIV Markov'!$C$12 -> 0.0919415496 | I99: =(1+'Lifetime HIV Markov'!$C$86)^-A99 -> 0.05685768899 | J99: 0.005227584033 | K99: 0.005227584033
A100: =A99+1 -> 98 | B100: =B99+1 -> 98 | C100: 0.0857872218 | D100: =C99*'Formula sheet'!$E$26 -> 0.006154327802 | E100: 0.9142127782 | F100: 1 | G100: 0.0857872218 | H100: =C100*'Lifetime HIV Markov'!$C$12 -> 0.0857872218 | I100: =(1+'Lifetime HIV Markov'!$C$86)^-A100 -> 0.0552016398 | J100: 0.004735595317 | K100: 0.004735595317
A101: =A100+1 -> 99 | B101: =B100+1 -> 99 | C101: 0.08004484867 | D101: =C100*'Formula sheet'!$E$26 -> 0.005742373133 | E101: 0.9199551513 | F101: 1 | G101: 0.08004484867 | H101: =C101*'Lifetime HIV Markov'!$C$12 -> 0.08004484867 | I101: =(1+'Lifetime HIV Markov'!$C$86)^-A101 -> 0.05359382505 | J101: 0.004289909615 | K101: 0.004289909615
F102: TOTAL | G102: =SUM(G3:G101) -> 70.81475653 | H102: =SUM(H3:H101) -> 70.81475653 | J102: =SUM(J3:J101) -> 28.33399063 | K102: =SUM(K3:K101) -> 28.33399063

Sheet Life years with HIV
A1: years in model | B1: Age | C1: Total alive | D1: Progress to death | E1: Total death | F1: Check | G1: Total life years (undiscounted) | H1: Total QALYs (undiscounted) | I1: Discount factor | J1: Total life years (discounted) | K1: Total QALYs (discounted)
A2: 0 | B2: 0 | C2: =1-E2 -> 0.8334342864 | D2: =1*'Formula sheet'!E2 -> 0.1665657136 | E2: =D2 -> 0.1665657136 | F2: =E2+C2 -> 1 | G2: =C2 -> 0.8334342864 | H2: ='Lifetime HIV Markov'!$C$13*C2 -> 0.6917504577 | I2: =(1+'Lifetime HIV Markov'!$C$86)^(-'Life years with HIV'!A2) -> 1 | J2: =I2*G2 -> 0.8334342864 | K2: =I2*H2 -> 0.6917504577
A3: =A2+1 -> 1 | B3: =B2+1 -> 1 | C3: =C2-D3 -> 0.7197063077 | D3: =C2*'Formula sheet'!E3 -> 0.1137279787 | E3: =D3+E2 -> 0.2802936923 | F3: =E3+C3 -> 1 | G3: =C3 -> 0.7197063077 | H3: ='Lifetime HIV Markov'!$C$13*C3 -> 0.5973562354 | I3: =(1+'Lifetime HIV Markov'!$C$86)^(-'Life years with HIV'!A3) -> 0.9708737864 | J3: =I3*G3 -> 0.698743988 | K3: =I3*H3 -> 0.5799575101
A4: =A3+1 -> 2 | B4: 2 | C4: =C3-D4 -> 0.6799750447 | D4: =C3*'Formula sheet'!$E$4 -> 0.03973126293 | E4: =D4+E3 -> 0.3200249553 | F4: 1 | G4: 0.6799750447 | H4: ='Lifetime HIV Markov'!$C$13*C4 -> 0.5643792871 | I4: =(1+'Lifetime HIV Markov'!$C$86)^(-'Life years with HIV'!A4) -> 0.9425959091 | J4: 0.6409416955 | K4: 0.5319816072
A5: 3 | B5: 3 | C5: 0.6424371393 | D5: =C4*'Formula sheet'!$E$4 -> 0.0375379054 | E5: 0.3575628607 | F5: 1 | G5: 0.6424371393 | H5: ='Lifetime HIV Markov'!$C$13*C5 -> 0.5332228256 | I5: =(1+'Lifetime HIV Markov'!$C$86)^(-'Life years with HIV'!A5) -> 0.9151416594 | J5: 0.5879209897 | K5: 0.4879744215
A6: 4 | B6: 4 | C6: 0.6069715075 | D6: =C5*'Formula sheet'!$E$4 -> 0.03546563179 | E6: 0.3930284925 | F6: 1 | G6: 0.6069715075 | H6: ='Lifetime HIV Markov'!$C$13*C6 -> 0.5037863513 | I6: =(1+'Lifetime HIV Markov'!$C$86)^(-'Life years with HIV'!A6) -> 0.8884870479 | J6: 0.5392863229 | K6: 0.447607648
A7: 5 | B7: 5 | C7: 0.5839772964 | D7: =C6*'Formula sheet'!$E$5 -> 0.02299421111 | E7: 0.4160227036 | F7: 1 | G7: 0.5839772964 | H7: ='Lifetime HIV Markov'!$C$13*C7 -> 0.484701156 | I7: =(1+'Lifetime HIV Markov'!$C$86)^(-'Life years with HIV'!A7) -> 0.8626087844 | J7: 0.5037439458 | K7: 0.418107475
A8: 6 | B8: 6 | C8: 0.5618541867 | D8: =C7*'Formula sheet'!$E$5 -> 0.02212310969 | E8: 0.4381458133 | F8: 1 | G8: 0.5618541867 | H8: ='Lifetime HIV Markov'!$C$13*C8 -> 0.466338975 | I8: =(1+'Lifetime HIV Markov'!$C$86)^(-'Life years with HIV'!A8) -> 0.8374842567 | J8: 0.470544036 | K8: 0.3905515498
A9: 7 | B9: 7 | C9: 0.5405691781 | D9: =C8*'Formula sheet'!$E$5 -> 0.02128500864 | E9: 0.4594308219 | F9: 1 | G9: 0.5405691781 | H9: ='Lifetime HIV Markov'!$C$13*C9 -> 0.4486724178 | I9: =(1+'Lifetime HIV Markov'!$C$86)^(-'Life years with HIV'!A9) -> 0.8130915113 | J9: 0.43953221 | K9: 0.3648117343
A10: 8 | B10: 8 | C10: 0.5200905203 | D10: =C9*'Formula sheet'!$E$5 -> 0.02047865781 | E10: 0.4799094797 | F10: 1 | G10: 0.5200905203 | H10: ='Lifetime HIV Markov'!$C$13*C10 -> 0.4316751318 | I10: =(1+'Lifetime HIV Markov'!$C$86)^(-'Life years with HIV'!A10) -> 0.7894092343 | J10: 0.4105642594 | K10: 0.3407683353
A11: 9 | B11: 9 | C11: 0.5003876659 | D11: =C10*'Formula sheet'!$E$5 -> 0.01970285437 | E11: 0.4996123341 | F11: 1 | G11: 0.5003876659 | H11: ='Lifetime HIV Markov'!$C$13*C11 -> 0.4153217627 | I11: =(1+'Lifetime HIV Markov'!$C$86)^(-'Life years with HIV'!A11) -> 0.7664167323 | J11: 0.3835054798 | K11: 0.3183095483
A12: 10 | B12: 10 | C12: 0.4814312248 | D12: =C11*'Formula sheet'!$E$5 -> 0.01895644109 | E12: 0.5185687752 | F12: 1 | G12: 0.4814312248 | H12: ='Lifetime HIV Markov'!$C$13*C12 -> 0.3995879166 | I12: =(1+'Lifetime HIV Markov'!$C$86)^(-'Life years with HIV'!A12) -> 0.7440939149 | J12: 0.3582300448 | K12: 0.2973309372
A13: 11 | B13: =B12+1 -> 11 | C13: 0.4752131241 | D13: =C12*'Formula sheet'!$E$6 -> 0.006218100697 | E13: 0.5247868759 | F13: 1 | G13: =C13 -> 0.4752131241 | H13: ='Lifetime HIV Markov'!$C$13*C13 -> 0.394426893 | I13: =(1+'Lifetime HIV Markov'!$C$86)^(-'Life years with HIV'!A13) -> 0.7224212766 | J13: =I13*G13 -> 0.3433040718 | K13: =I13*H13 -> 0.2849423796
A14: 12 | B14: =B13+1 -> 12 | C14: 0.4690753356 | D14: =C13*'Formula sheet'!$E$6 -> 0.006137788548 | E14: 0.5309246644 | F14: 1 | G14: =C14 -> 0.4690753356 | H14: ='Lifetime HIV Markov'!$C$13*C14 -> 0.3893325285 | I14: =(1+'Lifetime HIV Markov'!$C$86)^(-'Life years with HIV'!A14) -> 0.7013798802 | J14: =I14*G14 -> 0.3290000027 | K14: =I14*H14 -> 0.2730700022
A15: 13 | B15: =B14+1 -> 13 | C15: 0.4630168219 | D15: =C14*'Formula sheet'!$E$6 -> 0.0060585137 | E15: 0.5369831781 | F15: 1 | G15: =C15 -> 0.4630168219 | H15: ='Lifetime HIV Markov'!$C$13*C15 -> 0.3843039622 | I15: =(1+'Lifetime HIV Markov'!$C$86)^(-'Life years with HIV'!A15) -> 0.68095134 | J15: =I15*G15 -> 0.3152919253 | K15: =I15*H15 -> 0.261692298
A16: 14 | B16: =B15+1 -> 14 | C16: 0.4570365591 | D16: =C15*'Formula sheet'!$E$6 -> 0.005980262755 | E16: 0.5429634409 | F16: 1 | G16: =C16 -> 0.4570365591 | H16: ='Lifetime HIV Markov'!$C$13*C16 -> 0.3793403441 | I16: =(1+'Lifetime HIV Markov'!$C$86)^(-'Life years with HIV'!A16) -> 0.6611178058 | J16: =I16*G16 -> 0.3021550072 | K16: =I16*H16 -> 0.2507886559
A17: 15 | B17: =B16+1 -> 15 | C17: 0.4511335366 | D17: =C16*'Formula sheet'!$E$6 -> 0.005903022489 | E17: 0.5488664634 | F17: 1 | G17: =C17 -> 0.4511335366 | H17: ='Lifetime HIV Markov'!$C$13*C17 -> 0.3744408354 | I17: =(1+'Lifetime HIV Markov'!$C$86)^(-'Life years with HIV'!A17) -> 0.6418619474 | J17: =I17*G17 -> 0.2895654504 | K17: =I17*H17 -> 0.2403393238
F19: TOTAL | G19: =SUM(G2:G17) -> 8.986309735 | H19: =SUM(H2:H17) -> 7.45863708 | J19: =SUM(J2:J17) -> 7.445763716 | K19: =SUM(K2:K17) -> 6.179983884

Sheet Lifetime HIV cost
A1: years in model | B1: drug cost | C1: Cost alive | D1: Cost death | E1: Total cost undiscounted | F1: discount factor | G1: Total cost discounted
A2: 0 | C2: =0*'Life years with HIV'!G2 -> 0 | E2: =C2 -> 0 | F2: =(1+'Lifetime HIV Markov'!$C$86)^(-'Lifetime HIV cost'!A2) -> 1 | G2: =E2*F2 -> 0
A3: =A2+1 -> 1 | C3: =year1cost*'Life years with HIV'!G3 -> 41044.97354 | E3: =C3 -> 41044.97354 | F3: =(1+'Lifetime HIV Markov'!$C$86)^(-'Lifetime HIV cost'!A3) -> 0.9708737864 | G3: =E3*F3 -> 39849.48888
A4: =A3+1 -> 2 | C4: =year2cost*'Life years with HIV'!G4 -> 38541.71818 | E4: 38541.71818 | F4: =(1+'Lifetime HIV Markov'!$C$86)^(-'Lifetime HIV cost'!A4) -> 0.9425959091 | G4: 36329.26589
A5: 3 | C5: =year3cost*'Life years with HIV'!G5 -> 36414.02926 | E5: 36414.02926 | F5: =(1+'Lifetime HIV Markov'!$C$86)^(-'Lifetime HIV cost'!A5) -> 0.9151416594 | G5: 33323.99516
A6: 4 | C6: =year4cost*'Life years with HIV'!G6 -> 34403.79904 | E6: 34403.79904 | F6: =(1+'Lifetime HIV Markov'!$C$86)^(-'Lifetime HIV cost'!A6) -> 0.8884870479 | G6: 30567.32984
A7: 5 | C7: =year5cost*'Life years with HIV'!G7 -> 33100.46238 | E7: 33100.46238 | F7: =(1+'Lifetime HIV Markov'!$C$86)^(-'Lifetime HIV cost'!A7) -> 0.8626087844 | G7: 28552.74961
A8: 6 | C8: =year6cost*'Life years with HIV'!G8 -> 47758.13227 | E8: 47758.13227 | F8: =(1+'Lifetime HIV Markov'!$C$86)^(-'Lifetime HIV cost'!A8) -> 0.8374842567 | G8: 39996.68391
A9: 7 | C9: =year7cost*'Life years with HIV'!G9 -> 39081.22956 | E9: 39081.22956 | F9: =(1+'Lifetime HIV Markov'!$C$86)^(-'Lifetime HIV cost'!A9) -> 0.8130915113 | G9: 31776.616
A10: 8 | C10: =year8cost*'Life years with HIV'!G10 -> 44208.1815 | E10: 44208.1815 | F10: =(1+'Lifetime HIV Markov'!$C$86)^(-'Lifetime HIV cost'!A10) -> 0.7894092343 | G10: 34898.3467
A11: 9 | C11: =year9cost*'Life years with HIV'!G11 -> 36176.24909 | E11: 36176.24909 | F11: =(1+'Lifetime HIV Markov'!$C$86)^(-'Lifetime HIV cost'!A11) -> 0.7664167323 | G11: 27726.08262
A12: 10 | C12: =year10cost*'Life years with HIV'!G12 -> 40922.10516 | E12: 40922.10516 | F12: =(1+'Lifetime HIV Markov'!$C$86)^(-'Lifetime HIV cost'!A12) -> 0.7440939149 | G12: 30449.88944
A13: 11 | C13: =year11to15cost*'Life years with HIV'!G13 -> 63039.2494 | E13: 63039.2494 | F13: =(1+'Lifetime HIV Markov'!$C$86)^(-'Lifetime HIV cost'!A13) -> 0.7224212766 | G13: 45540.89503
A14: 12 | C14: =year11to15cost*'Life years with HIV'!G14 -> 62225.04296 | E14: 62225.04296 | F14: =(1+'Lifetime HIV Markov'!$C$86)^(-'Lifetime HIV cost'!A14) -> 0.7013798802 | G14: 43643.39318
A15: 13 | C15: =year11to15cost*'Life years with HIV'!G15 -> 61421.35271 | E15: 61421.35271 | F15: =(1+'Lifetime HIV Markov'!$C$86)^(-'Lifetime HIV cost'!A15) -> 0.68095134 | G15: 41824.95243
A16: 14 | C16: =year11to15cost*'Life years with HIV'!G16 -> 60628.04281 | E16: 60628.04281 | F16: =(1+'Lifetime HIV Markov'!$C$86)^(-'Lifetime HIV cost'!A16) -> 0.6611178058 | G16: 40082.27864
A17: 15 | C17: =year11to15cost*'Life years with HIV'!G17 -> 59844.9792 | E17: 59844.9792 | F17: =(1+'Lifetime HIV Markov'!$C$86)^(-'Lifetime HIV cost'!A17) -> 0.6418619474 | G17: 38412.21489
D18: TOTAL | E18: =SUM(E2:E17) -> 698809.5471 | G18: =SUM(G2:G17) -> 542974.1822

Sheet Cases averted (50-100%)
B2: Results vs status quo screening 100%
B3: Testing choice | C3: Name | E3: HIV+ newborn | F3: pediatric HIV case averted | G3: Percent pediatric HIV averted
B4: Testing choice 0 | C4: do nothing | D4: =422-E4 -> 275.4345185 | E4: 146.5654815
B5: Testing choice 1 | C5: sq | D5: =422-E5 -> 288.5234998 | E5: 133.4765002 | F5: 0
B6: Testing choice 2.1 | C6: ucsnp | D6: =422-E6 -> 417.7146907 | E6: 4.285309339 | F6: =$E$5-E6 -> 129.1911908 | G6: =F6/$E$5 -> 0.9678946531
B7: Testing choice 3.1.1 | C7: urcsnp | D7: 418.011049 | E7: 3.988951037 | F7: 129.4875491 | G7: 0.9701149563
B8: Testing choice 3.1.2 | C8: ucsnpsf | D8: 418.9809684 | E8: 3.019031636 | F8: 130.4574685 | G8: 0.9773815493
B9: Testing choice 4.1 | C9: urcsnpsf | D9: 419.2773267 | E9: 2.722673334 | F9: 130.7538268 | G9: 0.9796018525
B10: Testing choice 2.2 | C10: undnp | D10: 416.6332101 | E10: 5.366789876 | F10: 128.1097103 | G10: 0.959792249
B11: Testing choice 3.2.1 | C11: urndnp | D11: 418.011049 | E11: 3.988951037 | F11: 129.4875491 | G11: 0.9701149563
B12: Testing choice 3.2.2 | C12: undnpsf | D12: 417.8994878 | E12: 4.100512173 | F12: 129.375988 | G12: 0.9692791453
B13: Testing choice 4.2 | C13: urndnpsf | D13: 419.2773267 | E13: 2.722673334 | F13: 130.7538268 | G13: 0.9796018525
B15: Results vs status quo screening base case (95%)
B16: Testing choice | C16: Name | E16: HIV+ newborn | F16: pediatric HIV case averted | G16: Percent pediatric HIV averted
B17: Testing choice 0 | C17: do nothing | D17: =422-E17 -> 275.4345185 | E17: 146.5654815
B18: Testing choice 1 | C18: sq | D18: =422-E18 -> 287.8616313 | E18: 134.1383687
B19: Testing choice 2.1 | C19: ucsnp | D19: =422-E19 -> 410.5188642 | E19: 11.48113576 | F19: =$E$18-E19 -> 122.6572329 | G19: =F19/$E$18 -> 0.9144082646
B20: Testing choice 3.1.1 | C20: urcsnp | D20: =422-E20 -> 410.8004046 | E20: 11.19959538 | F20: 122.9387733 | G20: 0.9165071449
B21: Testing choice 3.1.2 | C21: ucsnpsf | D21: 411.7218281 | E21: 10.27817195 | F21: 123.8601967 | G21: 0.923376346
B22: Testing choice 4.1 | C22: urcsnpsf | D22: 412.0033684 | E22: 9.996631559 | F22: 124.1417371 | G22: 0.9254752264
B23: Testing choice 2.2 | C23: undnp | D23: 409.4914577 | E23: 12.50854227 | F23: 121.6298264 | G23: 0.9067489608
B24: Testing choice 3.2.1 | C24: urndnp | D24: 410.8004046 | E24: 11.19959538 | F24: 122.9387733 | G24: 0.9165071449
B25: Testing choice 3.2.2 | C25: undnpsf | D25: 410.6944215 | E25: 11.30557846 | F25: 122.8327902 | G25: 0.9157170423
B26: Testing choice 4.2 | C26: urndnpsf | D26: 412.0033684 | E26: 9.996631559 | F26: 124.1417371 | G26: 0.9254752264
B29: Results vs status quo screening 90%
B30: Testing choice | C30: Name | E30: HIV+ newborn | F30: pediatric HIV case averted | G30: Percent pediatric HIV averted
B31: Testing choice 0 | C31: do nothing | D31: =422-E31 -> 275.4345185 | E31: 146.5654815
B32: Testing choice 1 | C32: sq | D32: =422-E32 -> 287.1997628 | E32: 134.8002372
B33: Testing choice 2.1 | C33: ucsnp | D33: =422-E33 -> 403.3230378 | E33: 18.67696219 | F33: =$E$18-E33 -> 115.4614065 | G33: =F33/$E$18 -> 0.8607634611
B34: Testing choice 3.1.1 | C34: urcsnp | D34: =422-E34 -> 403.5897603 | E34: 18.41023972 | F34: 115.728129 | G34: 0.8627518741
B35: Testing choice 3.1.2 | C35: ucsnpsf | D35: 404.4626877 | E35: 17.53731226 | F35: 116.6010564 | G35: 0.8692595383
B36: Testing choice 4.1 | C36: urcsnpsf | D36: 404.7294102 | E36: 17.27058978 | F36: 116.8677789 | G36: 0.8712479512
B37: Testing choice 2.2 | C37: undnp | D37: 402.3497053 | E37: 19.65029467 | F37: 114.488074 | G37: 0.8535072786
B38: Testing choice 3.2.1 | C38: urndnp | D38: 403.5897603 | E38: 18.41023972 | F38: 115.728129 | G38: 0.8627518741
B39: Testing choice 3.2.2 | C39: undnpsf | D39: 403.4893553 | E39: 18.51064474 | F39: 115.6277239 | G39: 0.8620033558
B40: Testing choice 4.2 | C40: urndnpsf | D40: 404.7294102 | E40: 17.27058978 | F40: 116.8677789 | G40: 0.8712479512
B42: Results vs status quo screening 50%
B43: Testing choice | C43: Name | E43: HIV+ newborn | F43: pediatric HIV case averted | G43: Percent pediatric HIV averted
B44: Testing choice 0 | C44: do nothing | D44: =422-E44 -> 275.4345185 | E44: 146.5654815
B45: Testing choice 1 | C45: sq | D45: =422-E45 -> 281.9048147 | E45: 140.0951853
B46: Testing choice 2.1 | C46: ucsnp | D46: =422-E46 -> 345.7564264 | E46: 76.24357359 | F46: =$E$18-E46 -> 57.89479509 | G46: =F46/$E$18 -> 0.4316050334
B47: Testing choice 3.1.1 | C47: urcsnp | D47: =422-E47 -> 345.9046056 | E47: 76.09539444 | F47: 58.04297424 | G47: 0.4327097072
B48: Testing choice 3.1.2 | C48: ucsnpsf | D48: 346.3895653 | E48: 75.61043474 | F48: 58.52793394 | G48: 0.4363250762
B49: Testing choice 4.1 | C49: urcsnpsf | D49: 346.5377444 | E49: 75.46225559 | F49: 58.67611309 | G49: 0.4374297501
B50: Testing choice 2.2 | C50: undnp | D50: 345.2156861 | E50: 76.78431386 | F50: 57.35405482 | G50: 0.4275738209
B51: Testing choice 3.2.1 | C51: urndnp | D51: 345.9046056 | E51: 76.09539444 | F51: 58.04297424 | G51: 0.4327097072
B52: Testing choice 3.2.2 | C52: undnpsf | D52: 345.848825 | E52: 76.15117501 | F52: 57.98719367 | G52: 0.4322938637
B53: Testing choice 4.2 | C53: urndnpsf | D53: 346.5377444 | E53: 75.46225559 | F53: 58.67611309 | G53: 0.4374297501
B55: Results vs status quo screening 60%
B56: Testing choice | C56: Name | E56: HIV+ newborn | F56: pediatric HIV case averted | G56: Percent pediatric HIV averted
B57: Testing choice 0 | C57: do nothing | D57: =422-E57 -> 275.4345185 | E57: 146.5654815
B58: Testing choice 1 | C58: sq | D58: =422-E58 -> 283.2285518 | E58: 138.7714482
B59: Testing choice 2.1 | C59: ucsnp | D59: =422-E59 -> 360.1480793 | E59: 61.85192074 | F59: =$E$18-E59 -> 72.28644794 | G59: =F59/$E$18 -> 0.5388946403
B60: Testing choice 3.1.1 | C60: urcsnp | D60: =422-E60 -> 360.3258942 | E60: 61.67410576 | F60: 72.46426292 | G60: 0.5402202489
B61: Testing choice 3.1.2 | C61: ucsnpsf | D61: 360.9078459 | E61: 61.09215412 | F61: 73.04621456 | G61: 0.5445586917
B62: Testing choice 4.1 | C62: urcsnpsf | D62: 361.0856609 | E62: 60.91433914 | F62: 73.22402954 | G62: 0.5458843004
B63: Testing choice 2.2 | C63: undnp | D63: 359.4991909 | E63: 62.50080906 | F63: 71.63755961 | G63: 0.5340571853
B64: Testing choice 3.2.1 | C64: urndnp | D64: 360.3258942 | E64: 61.67410576 | F64: 72.46426292 | G64: 0.5402202489
B65: Testing choice 3.2.2 | C65: undnpsf | D65: 360.2589576 | E65: 61.74104244 | F65: 72.39732624 | G65: 0.5397212367
B66: Testing choice 4.2 | C66: urndnpsf | D66: 361.0856609 | E66: 60.91433914 | F66: 73.22402954 | G66: 0.5458843004
B68: Results vs status quo screening 70%
B69: Testing choice | C69: Name | E69: HIV+ newborn | F69: pediatric HIV case averted | G69: Percent pediatric HIV averted
B70: Testing choice 0 | C70: do nothing | D70: =422-E70 -> 275.4345185 | E70: 146.5654815
B71: Testing choice 1 | C71: sq | D71: =422-E71 -> 284.5522888 | E71: 137.4477112
B72: Testing choice 2.1 | C72: ucsnp | D72: =422-E72 -> 374.5397321 | E72: 47.46026789 | F72: =$E$18-E72 -> 86.67810079 | G72: =F72/$E$18 -> 0.6461842472
B73: Testing choice 3.1.1 | C73: urcsnp | D73: =422-E73 -> 374.7471829 | E73: 47.25281708 | F73: 86.8855516 | G73: 0.6477307906
B74: Testing choice 3.1.2 | C74: ucsnpsf | D74: 375.4261265 | E74: 46.5738735 | F74: 87.56449518 | G74: 0.6527923073
B75: Testing choice 4.1 | C75: urcsnpsf | D75: 375.6335773 | E75: 46.36642269 | F75: 87.77194599 | G75: 0.6543388507
B76: Testing choice 2.2 | C76: undnp | D76: 373.7826957 | E76: 48.21730426 | F76: 85.92106441 | G76: 0.6405405497
B77: Testing choice 3.2.1 | C77: urndnp | D77: 374.7471829 | E77: 47.25281708 | F77: 86.8855516 | G77: 0.6477307906
B78: Testing choice 3.2.2 | C78: undnpsf | D78: 374.6690901 | E78: 47.33090987 | F78: 86.8074588 | G78: 0.6471486098
B79: Testing choice 4.2 | C79: urndnpsf | D79: 375.6335773 | E79: 46.36642269 | F79: 87.77194599 | G79: 0.6543388507
B81: Results vs status quo screening 80%
B82: Testing choice | C82: Name | E82: HIV+ newborn | F82: pediatric HIV case averted | G82: Percent pediatric HIV averted
B83: Testing choice 0 | C83: do nothing | D83: =422-E83 -> 275.4345185 | E83: 146.5654815
B84: Testing choice 1 | C84: sq | D84: =422-E84 -> 285.8760258 | E84: 136.1239742
B85: Testing choice 2.1 | C85: ucsnp | D85: =422-E85 -> 388.931385 | E85: 33.06861504 | F85: =$E$18-E85 -> 101.0697536 | G85: =F85/$E$18 -> 0.7534738542
B86: Testing choice 3.1.1 | C86: urcsnp | D86: =422-E86 -> 389.1684716 | E86: 32.8315284 | F86: 101.3068403 | G86: 0.7552413324
B87: Testing choice 3.1.2 | C87: ucsnpsf | D87: 389.9444071 | E87: 32.05559288 | F87: 102.0827758 | G87: 0.7610259228
B88: Testing choice 4.1 | C88: urcsnpsf | D88: 390.1814938 | E88: 31.81850623 | F88: 102.3198624 | G88: 0.762793401
B89: Testing choice 2.2 | C89: undnp | D89: 388.0662005 | E89: 33.93379947 | F89: 100.2045692 | G89: 0.7470239142
B90: Testing choice 3.2.1 | C90: urndnp | D90: 389.1684716 | E90: 32.8315284 | F90: 101.3068403 | G90: 0.7552413324
B91: Testing choice 3.2.2 | C91: undnpsf | D91: 389.0792227 | E91: 32.92077731 | F91: 101.2175914 | G91: 0.7545759828
B92: Testing choice 4.2 | C92: urndnpsf | D92: 390.1814938 | E92: 31.81850623 | F92: 102.3198624 | G92: 0.762793401

Sheet Cases averted 2019-2023
B3: Results vs status quo screening base case (95%) - 2019
B4: Testing choice | C4: Name | E4: HIV+ newborn | F4: pediatric HIV case averted | G4: Percent pediatric HIV averted
B5: Testing choice 0 | C5: zero | D5: =422-E5 -> 275.4345185 | E5: 146.5654815
B6: Testing choice 1 | C6: sq | D6: =422-E6 -> 287.8616313 | E6: 134.1383687
B7: Testing choice 2.1 | C7: ucsnp | D7: =422-E7 -> 410.5188642 | E7: 11.48113576 | F7: =$E$6-E7 -> 122.6572329 | G7: =F7/$E$6 -> 0.9144082646
B8: Testing choice 3.1.1 | C8: urcsnp | D8: =422-E8 -> 410.8004046 | E8: 11.19959538 | F8: =$E$6-E8 -> 122.9387733 | G8: 0.9165071449
B9: Testing choice 3.1.2 | C9: ucsnpsf | D9: 411.7218281 | E9: 10.27817195 | F9: 123.8601967 | G9: 0.923376346
B10: Testing choice 4.1 | C10: urcsnpsf | D10: 412.0033684 | E10: 9.996631559 | F10: 124.1417371 | G10: 0.9254752264
B11: Testing choice 2.2 | C11: undnp | D11: 409.4914577 | E11: 12.50854227 | F11: 121.6298264 | G11: 0.9067489608
B12: Testing choice 3.2.1 | C12: urndnp | D12: 410.8004046 | E12: 11.19959538 | F12: 122.9387733 | G12: 0.9165071449
B13: Testing choice 3.2.2 | C13: undnpsf | D13: 410.6944215 | E13: 11.30557846 | F13: 122.8327902 | G13: 0.9157170423
B14: Testing choice 4.2 | C14: urndnpsf | D14: 412.0033684 | E14: 9.996631559 | F14: 124.1417371 | G14: 0.9254752264
B17: Results vs status quo screening base case (95%) - 2020
B18: Testing choice | C18: Name | E18: HIV+ newborn | F18: pediatric HIV case averted | G18: Percent pediatric HIV averted
B19: Testing choice 0 | C19: zero | D19: =491-E19 -> 320.4700203 | E19: 170.5299797
B20: Testing choice 1 | C20: sq | D20: =491-E20 -> 334.9290545 | E20: 156.0709455
B21: Testing choice 2.1 | C21: ucsnp | D21: 477.6416169 | E21: 13.35838308 | F21: =$E$20-E21 -> 142.7125625 | G21: =F21/$E$20 -> 0.9144082646
B22: Testing choice 3.1.1 | C22: urcsnp | D22: 477.9691912 | E22: 13.03080884 | F22: =$E$20-E22 -> 143.0401367 | G22: =F22/$E$20 -> 0.9165071449
B23: Testing choice 3.1.2 | C23: ucsnpsf | D23: 479.0412739 | E23: 11.95872613 | F23: 144.1122194 | G23: 0.923376346
B24: Testing choice 4.1 | C24: urcsnpsf | D24: 479.3688481 | E24: 11.63115189 | F24: 144.4397937 | G24: 0.9254752264
B25: Testing choice 2.2 | C25: undnp | D25: 476.4462221 | E25: 14.55377786 | F25: 141.5171677 | G25: 0.9067489608
B26: Testing choice 3.2.1 | C26: urndnp | D26: 477.9691912 | E26: 13.03080884 | F26: 143.0401367 | G26: 0.9165071449
B27: Testing choice 3.2.2 | C27: undnpsf | D27: 477.8458791 | E27: 13.15412091 | F27: 142.9168246 | G27: 0.9157170423
B28: Testing choice 4.2 | C28: urndnpsf | D28: 479.3688481 | E28: 11.63115189 | F28: 144.4397937 | G28: 0.9254752264
B30: Results vs status quo screening base case (95%) - 2021
B31: Testing choice | C31: Name | E31: HIV+ newborn | F31: pediatric HIV case averted | G31: Percent pediatric HIV averted
B32: Testing choice 0 | C32: zero | D32: =569-E32 -> 371.3797181 | E32: 197.6202819
B33: Testing choice 1 | C33: sq | D33: =569-E33 -> 388.1357067 | E33: 180.8642933
B34: Testing choice 2.1 | C34: ucsnp | D34: 553.5195113 | E34: 15.48048874 | F34: =$E$33-E34 -> 165.3838046 | G34: =F34/$E$33 -> 0.9144082646
B35: Testing choice 3.1.1 | C35: urcsnp | D35: 553.8991238 | E35: 15.10087623 | F35: =$E$33-E35 -> 165.7634171 | G35: =F35/$E$33 -> 0.9165071449
B36: Testing choice 3.1.2 | C36: ucsnpsf | D36: 555.141517 | E36: 13.85848303 | F36: 167.0058103 | G36: 0.923376346
B37: Testing choice 4.1 | C37: urcsnpsf | D37: 555.5211295 | E37: 13.47887051 | F37: 167.3854228 | G37: 0.9254752264
B38: Testing choice 2.2 | C38: undnp | D38: 552.1342167 | E38: 16.8657833 | F38: 163.99851 | G38: 0.9067489608
B39: Testing choice 3.2.1 | C39: urndnp | D39: 553.8991238 | E39: 15.10087623 | F39: 165.7634171 | G39: 0.9165071449
B40: Testing choice 3.2.2 | C40: undnpsf | D40: 553.7562224 | E40: 15.24377759 | F40: 165.6205157 | G40: 0.9157170423
B41: Testing choice 4.2 | C41: urndnpsf | D41: 555.5211295 | E41: 13.47887051 | F41: 167.3854228 | G41: 0.9254752264
B43: Results vs status quo screening base case (95%) - 2022
B44: Testing choice | C44: Name | E44: HIV+ newborn | F44: pediatric HIV case averted | G44: Percent pediatric HIV averted
B45: Testing choice 0 | C45: zero | D45: =653-E45 -> 426.2055464 | E45: 226.7944536
B46: Testing choice 1 | C46: sq | D46: =653-E46 -> 445.4351783 | E46: 207.5648217
B47: Testing choice 2.1 | C47: ucsnp | D47: 635.2341667 | E47: 17.7658333 | F47: =$E$46-E47 -> 189.7989884 | G47: =F47/$E$46 -> 0.9144082646
B48: Testing choice 3.1.1 | C48: urcsnp | D48: 635.6698204 | E48: 17.33017958 | F48: =$E$46-E48 -> 190.2346421 | G48: =F48/$E$46 -> 0.9165071449
B49: Testing choice 3.1.2 | C49: ucsnpsf | D49: 637.0956249 | E49: 15.90437507 | F49: 191.6604466 | G49: 0.923376346
B50: Testing choice 4.1 | C50: urcsnpsf | D50: 637.5312787 | E50: 15.46872135 | F50: 192.0961003 | G50: 0.9254752264
B51: Testing choice 2.2 | C51: undnp | D51: 633.6443647 | E51: 19.35563532 | F51: 188.2091864 | G51: 0.9067489608
B52: Testing choice 3.2.1 | C52: urndnp | D52: 635.6698204 | E52: 17.33017958 | F52: 190.2346421 | G52: 0.9165071449
B53: Testing choice 3.2.2 | C53: undnpsf | D53: 635.5058229 | E53: 17.49417709 | F53: 190.0706446 | G53: 0.9157170423
B54: Testing choice 4.2 | C54: urndnpsf | D54: 637.5312787 | E54: 15.46872135 | F54: 192.0961003 | G54: 0.9254752264
B56: Results vs status quo screening base case (95%) - 2023
B57: Testing choice | C57: Name | E57: HIV+ newborn | F57: pediatric HIV case averted | G57: Percent pediatric HIV averted
B58: Testing choice 0 | C58: zero | D58: =718-E58 -> 468.6302945 | E58: 249.3697055
B59: Testing choice 1 | C59: sq | D59: =718-E59 -> 489.7740552 | E59: 228.2259448
B60: Testing choice 2.1 | C60: ucsnp | D60: 698.4657453 | E60: 19.53425469 | F60: =$E$59-E60 -> 208.6916901 | G60: =F60/$E$59 -> 0.9144082646
B61: Testing choice 3.1.1 | C61: urcsnp | D61: 698.9447643 | E61: 19.05523574 | F61: =$E$59-E61 -> 209.1707091 | G61: =F61/$E$59 -> 0.9165071449
B62: Testing choice 3.1.2 | C62: ucsnpsf | D62: 700.5124942 | E62: 17.48750582 | F62: 210.738439 | G62: 0.923376346
B63: Testing choice 4.1 | C63: urcsnpsf | D63: 700.9915131 | E63: 17.00848687 | F63: 211.2174579 | G63: 0.9254752264
B64: Testing choice 2.2 | C64: undnp | D64: 696.7176935 | E64: 21.28230652 | F64: 206.9436383 | G64: 0.9067489608
B65: Testing choice 3.2.1 | C65: urndnp | D65: 698.9447643 | E65: 19.05523574 | F65: 209.1707091 | G65: 0.9165071449
B66: Testing choice 3.2.2 | C66: undnpsf | D66: 698.7644423 | E66: 19.23555766 | F66: 208.9903872 | G66: 0.9157170423
B67: Testing choice 4.2 | C67: urndnpsf | D67: 700.9915131 | E67: 17.00848687 | F67: 211.2174579 | G67: 0.9254752264

Sheet Chart Analysis

Sheet Uncertainty Analysis
B3: Sensitivity Analysis of Critical Parameters
B5: Policy | C5: Base Case
B6: URNDNPSF | C6: ='Base Case analysis'!W17 -> 291170.2639
B7: UCSNPSF | C7: ='Base Case analysis'!W12 -> 291905.896
B8: UCSNP | C8: ='Base Case analysis'!W10 -> 295457.1743
E10: ICER | O10: ICER
C11: Base | D11: lower range | E11: URNDNPSF | F11: Percent change | G11: Absolute change | H11: UCSNPSF | I11: Percent change | J11: Absolute change | K11: UCSNP | L11: Percent change | M11: Absolute change | N11: upper range | O11: URNDNPSF | R11: UCSNPSF | U11: UCSNP | V11: Percent change | W11: Absolute change
B12: cd4test | C12: =cd4test -> 931.0334984 | D12: =C12*0.75 -> 698.2751238 | E12: 291958.87 | F12: =(E12-$C$6)/$C$6 -> 0.002708402008 | G12: =ABS(F12) -> 0.002708402008 | H12: 292698.22 | I12: =(H12-$C$7)/$C$7 -> 0.002714313241 | J12: =ABS(I12) -> 0.002714313241 | K12: 295787.29 | L12: =(K12-$C$8)/$C$8 -> 0.001117304779 | M12: =ABS(L12) -> 0.001117304779 | N12: =C12*1.25 -> 1163.791873 | O12: 292023.18 | P12: =(O12-$C$6)/$C$6 -> 0.002929269342 | Q12: =ABS(P12) -> 0.002929269342 | R12: 292762.67 | S12: =(R12-$C$7)/$C$7 -> 0.002935103574 | T12: =ABS(S12) -> 0.002935103574 | U12: 295852.37 | V12: =(U12-$C$8)/$C$8 -> 0.001337573589 | W12: =ABS(V12) -> 0.001337573589 | X12: `+25%
B13: percentsqs | C13: =percentsqs -> 0.09159846597 | D13: =C13*0.75 -> 0.06869884948 | E13: 291991.03 | F13: =(E13-$C$6)/$C$6 -> 0.002818852847 | G13: =ABS(F13) -> 0.002818852847 | H13: 292730.45 | I13: =(H13-$C$7)/$C$7 -> 0.002824725537 | J13: =ABS(I13) -> 0.002824725537 | K13: 295819.83 | L13: =(K13-$C$8)/$C$8 -> 0.001227439184 | M13: =ABS(L13) -> 0.001227439184 | N13: =C13*1.25 -> 0.1144980825 | O13: 291991.03 | P13: =(O13-$C$6)/$C$6 -> 0.002818852847 | Q13: =ABS(P13) -> 0.002818852847 | R13: 292730.45 | S13: =(R13-$C$7)/$C$7 -> 0.002824725537 | T13: =ABS(S13) -> 0.002824725537 | U13: 295819.83 | V13: =(U13-$C$8)/$C$8 -> 0.001227439184 | W13: =ABS(V13) -> 0.001227439184 | X13: `+25%
B14: pless4 | C14: =pless4 -> 0.5331125828 | D14: =C14*0.75 -> 0.3998344371 | E14: 292024.53 | F14: =(E14-$C$6)/$C$6 -> 0.002933905804 | G14: =ABS(F14) -> 0.002933905804 | H14: 292397.01 | I14: =(H14-$C$7)/$C$7 -> 0.001682439599 | J14: =ABS(I14) -> 0.001682439599 | K14: 295479.85 | L14: 7.674788384e-05 | M14: =ABS(L14) -> 7.674788384e-05 | N14: =C14*1.25 -> 0.6663907285 | O14: 291957.53 | P14: =(O14-$C$6)/$C$6 -> 0.002703799889 | Q14: =ABS(P14) -> 0.002703799889 | R14: 293064.58 | S14: =(R14-$C$7)/$C$7 -> 0.00396937525 | T14: =ABS(S14) -> 0.00396937525 | U14: 296160.53 | V14: 0.002380567385 | W14: =ABS(V14) -> 0.002380567385 | X14: `+25%
B15: pcs | C15: =pcs -> 0.3583535109 | D15: =C15*0.75 -> 0.2687651332 | E15: 291694.08 | F15: 0.001799002825 | G15: 0.001799002825 | H15: 292034.21 | I15: 0.0004395733022 | J15: 0.0004395733022 | K15: 295109.93 | L15: -0.001175277899 | M15: 0.001175277899 | N15: =C15*1.25 -> 0.4479418886 | O15: 292128.42 | P15: =(O15-$C$6)/$C$6 -> 0.003290707349 | Q15: 0.003290707349 | R15: 293053.17 | S15: 0.00393028731 | T15: 0.00393028731 | U15: 296148.89 | V15: 0.002341170813 | W15: 0.002341170813 | X15: `+25%
B16: pdelmore4 | C16: =pdelmore4 -> 0.03924344543 | D16: 0.02943258407 | E16: 291445.52 | F16: 0.0009453442243 | G16: 0.0009453442243 | H16: 292182.42 | I16: 0.0009473054243 | J16: 0.0009473054243 | K16: 295261.05 | L16: -0.0006637993732 | M16: 0.0006637993732 | N16: 0.04905430679 | O16: 292538.42 | P16: 0.004698818173 | Q16: 0.004698818173 | R16: 293280.37 | S16: 0.004708620338 | T16: 0.004708620338 | U16: 296380.56 | V16: 0.003125277682 | W16: 0.003125277682 | X16: `+25%
B17: pless4bf | C17: =pless4bf -> 0.5391844997 | D17: 0.4043883748 | E17: 292061.28 | F17: 0.003060120616 | G17: 0.003060120616 | H17: 292801.03 | I17: 0.003066515788 | J17: 0.003066515788 | K17: 295107.89 | L17: -0.001182182453 | M17: 0.001182182453 | N17: 0.6739806246 | O17: 291920.81 | P17: 0.00257768811 | Q17: 0.00257768811 | R17: 292659.9 | S17: 0.002583038058 | T17: 0.002583038058 | U17: 296534.95 | V17: 0.003647823802 | W17: 0.003647823802 | X17: `+25%
B18: cost of HIV test for HIV+ | C18: =HIVtestcost -> 1920.833333 | D18: 1440.625 | E18: 291924.69 | F18: 0.002591013647 | G18: 0.002591013647 | H18: 292663.96 | I18: 0.00259694665 | J18: 0.00259694665 | K18: 295752.69 | L18: 0.001000198129 | M18: 0.001000198129 | N18: 2401.041667 | O18: 292057.37 | P18: 0.003046692047 | Q18: 0.003046692047 | R18: 292796.94 | S18: 0.003052504423 | T18: 0.003052504423 | U18: 295886.97 | V18: 0.001454680239 | W18: 0.001454680239 | X18: `+25%
B19: outhivcost | C19: =outhivcost -> 3918.889333 | D19: 2939.167 | E19: 291862.46 | F19: 0.002377289899 | G19: 0.002377289899 | H19: 292601.59 | I19: 0.002383281901 | J19: 0.002383281901 | K19: 295689.71 | L19: 0.0007870369486 | M19: 0.0007870369486 | N19: 4898.611667 | O19: 292119.59 | P19: 0.00326038145 | Q19: 0.00326038145 | R19: 292859.3 | S19: 0.003266134915 | T19: 0.003266134915 | U19: 295949.95 | V19: 0.001667841419 | W19: 0.001667841419 | X19: `+25%
B20: npcost | C20: =npcost -> 156.55 | D20: 117.4125 | E20: 291985.89 | F20: 0.002801199945 | G20: 0.002801199945 | H20: 292725.3 | I20: 0.002807082865 | J20: 0.002807082865 | K20: 295814.63 | L20: 0.001209839341 | M20: 0.001209839341 | N20: 195.6875 | O20: 291996.16 | P20: 0.002836471404 | Q20: 0.002836471404 | R20: 292735.6 | S20: 0.002842368209 | T20: 0.002842368209 | U20: 295825.03 | V20: 0.001245039027 | W20: 0.001245039027 | X20: `+25%
B21: sfcost | C21: =sfcost -> 3798.311467 | D21: 2848.733601 | E21: 291985.54 | F21: 0.002799997899 | G21: 0.002799997899 | H21: 292724.95 | I21: 0.002805883848 | J21: 0.002805883848 | K21: 295819.83 | L21: 0.001227439184 | M21: 0.001227439184 | N21: 4747.889334 | O21: 291996.52 | P21: 0.002837707794 | Q21: 0.002837707794 | R21: 292735.95 | S21: 0.002843567225 | T21: 0.002843567225 | U21: 295819.83 | V21: 0.001227439184 | W21: 0.001227439184 | X21: `+25%
B22: cscost | C22: =cscost -> 19000 | D22: 14250 | E22: 292053.89 | F22: 0.003034740277 | G22: 0.003034740277 | H22: 292765.94 | I22: 0.002946305815 | J22: 0.002946305815 | K22: 295855.67 | L22: 0.00134874272 | M22: 0.00134874272 | N22: 23750 | O22: 291928.17 | P22: 0.002602965417 | Q22: 0.002602965417 | R22: 292694.96 | S22: 0.002703145259 | T22: 0.002703145259 | U22: 295783.99 | V22: 0.001106135648 | W22: 0.001106135648 | X22: `+25%
B23: rcost | C23: =rcost -> 15557.74929 | D23: 11668.31197 | E23: 291968.55 | F23: 0.002741647161 | G23: 0.002741647161 | H23: 292730.45 | I23: 0.002824725537 | J23: 0.002824725537 | K23: 295819.83 | L23: 0.001227439184 | M23: 0.001227439184 | N23: 19447.18662 | O23: 292013.5 | P23: 0.002896024189 | Q23: 0.002896024189 | R23: 292730.45 | S23: 0.002824725537 | T23: 0.002824725537 | U23: 295819.83 | V23: 0.001227439184 | W23: 0.001227439184 | X23: `+25%
B24: vltest | C24: =vltest -> 2658.333333 | D24: 1993.75 | E24: 291903.81 | F24: =(E24-$C$6)/$C$6 -> 0.002519303027 | G24: =ABS(F24) -> 0.002519303027 | H24: 292643.03 | I24: =(H24-$C$7)/$C$7 -> 0.00252524546 | J24: =ABS(I24) -> 0.00252524546 | K24: 295731.56 | L24: 0.0009286818421 | M24: 0.0009286818421 | N24: 3322.916667 | O24: 292078.25 | P24: =(O24-$C$6)/$C$6 -> 0.003118402666 | Q24: =ABS(P24) -> 0.003118402666 | R24: 292817.86 | S24: =(R24-$C$7)/$C$7 -> 0.003124171355 | T24: =ABS(S24) -> 0.003124171355 | U24: 295908.1 | V24: 0.001526196526 | W24: 0.001526196526 | X24: `+25%
B25: pmore4 | C25: =pmore4 -> 0.20125 | D25: 0.1509375 | E25: 291445.52 | F25: 0.0009453442243 | G25: 0.0009453442243 | H25: 292182.42 | I25: 0.0009473054243 | J25: 0.0009473054243 | K25: 295261.05 | L25: -0.0006637993732 | M25: 0.0006637993732 | N25: 0.2515625 | O25: 292538.42 | P25: 0.004698818173 | Q25: 0.004698818173 | R25: 293280.37 | S25: 0.004708620338 | T25: 0.004708620338 | U25: 296380.56 | V25: 0.003125277682 | W25: 0.003125277682 | X25: `+25%
B26: earlyANC | C26: =earlyanc -> 0.96 | D26: 0.9 | E26: 292280.5 | F26: 0.003813013432 | G26: 0.003813013432 | H26: 294137.74 | I26: 0.007645765534 | J26: 0.007645765534 | K26: 302042.28 | L26: 0.0222878518 | M26: 0.0222878518 | N26: 1 | O26: 291798.17 | P26: 0.002156491253 | Q26: 0.002156491253 | R26: 291798.17 | S26: -0.0003690434584 | T26: 0.0003690434584 | U26: 291798.17 | V26: -0.01238421201 | W26: 0.01238421201
B27: pless4r | C27: =pless4r -> 0.2715344225 | D27: 0.014 | E27: 291804.84 | F27: =(E27-$C$6)/$C$6 -> 0.002179398812 | G27: =ABS(F27) -> 0.002179398812 | H27: 292730.45 | I27: =(H27-$C$7)/$C$7 -> 0.002824725537 | J27: =ABS(I27) -> 0.002824725537 | K27: 295819.83 | L27: =(K27-$C$8)/$C$8 -> 0.001227439184 | M27: =ABS(L27) -> 0.001227439184 | N27: 0.082 | O27: 292177.43 | P27: =(O27-$C$6)/$C$6 -> 0.003459028109 | Q27: =ABS(P27) -> 0.003459028109 | R27: 292730.45 | S27: =(R27-$C$7)/$C$7 -> 0.002824725537 | T27: =ABS(S27) -> 0.002824725537 | U27: 295819.83 | V27: =(U27-$C$8)/$C$8 -> 0.001227439184 | W27: =ABS(V27) -> 0.001227439184
B28: HIV transmission without intervention | C28: =base -> 0.1891891892 | D28: 0.184 | E28: 291810.6 | F28: 0.002199181052 | G28: 0.002199181052 | H28: 292529.43 | I28: 0.002136078946 | J28: 0.002136078946 | K28: 295614.87 | L28: 0.000533734587 | M28: 0.000533734587 | N28: 0.325 | O28: 296787.47 | P28: 0.01929182621 | Q28: 0.01929182621 | R28: 298083.61 | S28: 0.02116337533 | T28: 0.02116337533 | U28: 301279.04 | V28: 0.01970460094 | W28: 0.01970460094
B29: HIV transmission though breastfeeding | C29: =breastfeed -> 0.162 | D29: 0.065 | E29: 290228.55 | F29: =(E29-$C$6)/$C$6 -> -0.003234237797 | G29: =ABS(F29) -> 0.003234237797 | H29: 290959.85 | I29: =(H29-$C$7)/$C$7 -> -0.003240927896 | J29: =ABS(I29) -> 0.003240927896 | K29: 292165.24 | L29: =(K29-$C$8)/$C$8 -> -0.0111418323 | M29: =ABS(L29) -> 0.0111418323 | N29: 0.259 | O29: 293773.36 | P29: =(O29-$C$6)/$C$6 -> 0.008940116661 | Q29: =ABS(P29) -> 0.008940116661 | R29: 294521.03 | S29: =(R29-$C$7)/$C$7 -> 0.008958825686 | T29: =ABS(S29) -> 0.008958825686 | U29: 299559.75 | V29: =(U29-$C$8)/$C$8 -> 0.01388551733 | W29: =ABS(V29) -> 0.01388551733
B30: lifetime cost of HIV | C30: =lifecost -> 542974.1822 | D30: =C30*0.75 -> 407230.6367 | E30: 298125.03 | F30: =(E30-$C$6)/$C$6 -> 0.02388556453 | G30: =ABS(F30) -> 0.02388556453 | H30: 298864.45 | I30: =(H30-$C$7)/$C$7 -> 0.023838347 | J30: =ABS(I30) -> 0.023838347 | K30: 301953.83 | L30: =(K30-$C$8)/$C$8 -> 0.02198848523 | M30: =ABS(L30) -> 0.02198848523 | N30: =C30*1.25 -> 678717.7278 | O30: 285857.03 | P30: =(O30-$C$6)/$C$6 -> -0.01824785884 | Q30: =ABS(P30) -> 0.01824785884 | R30: 286596.45 | S30: =(R30-$C$7)/$C$7 -> -0.01818889592 | T30: =ABS(S30) -> 0.01818889592 | U30: 289685.83 | V30: =(U30-$C$8)/$C$8 -> -0.01953360686 | W30: =ABS(V30) -> 0.01953360686 | X30: `+25%
B31: sensitivity | C31: =sens -> 1 | D31: 0.95 | E31: 308804.85 | F31: 0.06056451608 | G31: 0.06056451608 | H31: 309582.98 | I31: 0.06055747514 | J31: 0.06055747514 | K31: 312839.73 | L31: 0.05883274202 | M31: 0.05883274202 | N31: 1 | O31: =$C$6 -> 291170.2639 | P31: 0 | Q31: 0 | R31: =$C$7 -> 291905.896 | S31: 0 | T31: 0 | U31: =$C$8 -> 295457.1743 | V31: 0 | W31: 0 | X31: `-5%
B32: acceptance rate | C32: 0.95 | D32: 0.9 | E32: 309757.13 | F32: 0.06383504236 | G32: 0.06383504236 | H32: 310537.45 | I32: 0.06382726179 | J32: 0.06382726179 | K32: 313803.68 | L32: 0.06209531299 | M32: 0.06209531299 | N32: 1 | O32: 276021.76 | P32: -0.05202627381 | Q32: 0.05202627381 | R32: 276724.45 | S32: -0.05200801413 | T32: 0.05200801413 | U32: 279655.08 | V32: -0.05348353556 | W32: 0.05348353556
B33: utility | C33: 0.83 | D33: 0.45 | E33: 258890.59 | F33: =(E33-$C$6)/$C$6 -> -0.1108618492 | G33: =ABS(F33) -> 0.1108618492 | H33: 259546.19 | I33: =(H33-$C$7)/$C$7 -> -0.1108566371 | J33: =ABS(I33) -> 0.1108566371 | K33: 262285.36 | L33: =(K33-$C$8)/$C$8 -> -0.112272834 | M33: =ABS(L33) -> 0.112272834 | N33: 1 | O33: 309705.65 | P33: =(O33-$C$6)/$C$6 -> 0.06365823859 | Q33: =ABS(P33) -> 0.06365823859 | R33: =310489.93 -> 310489.93 | S33: =(R33-$C$7)/$C$7 -> 0.0636644696 | T33: =ABS(S33) -> 0.0636644696 | U33: 313766.74 | V33: =(U33-$C$8)/$C$8 -> 0.06197028641 | W33: =ABS(V33) -> 0.06197028641
B34: population of pregnant women | C34: =pop -> 1700618 | D34: =C34*0.75 -> 1275463.5 | E34: 213124.22 | F34: =(E34-$C$6)/$C$6 -> -0.2680426319 | G34: 0.2680426319 | H34: 213684.37 | I34: -0.2679682975 | J34: 0.2679682975 | K34: 215998.5 | L34: -0.2689346586 | M34: 0.2689346586 | N34: =C34*1.25 -> 2125772.5 | O34: 370857.84 | P34: =(O34-$C$6)/$C$6 -> 0.2736803376 | Q34: 0.2736803376 | R34: 371776.53 | S34: 0.2736177485 | T34: 0.2736177485 | U34: 375641.16 | V34: 0.2713895369 | W34: 0.2713895369 | X34: `+25%
B35: cost of HIV test for HIV- | C35: =reqHIVtestcost -> 566.67 | D35: =C35*0.75 -> 425.0025 | E35: 213143.79 | F35: -0.2679754204 | G35: 0.2679754204 | H35: 213703.98 | I35: -0.2679011183 | J35: 0.2679011183 | K35: 216018.31 | L35: -0.2688676099 | M35: 0.2688676099 | N35: =C35*1.25 -> 708.3375 | O35: 370838.27 | P35: 0.2736131261 | Q35: 0.2736131261 | R35: 371756.91 | S35: 0.2735505351 | T35: 0.2735505351 | U35: 375621.35 | V35: 0.2713224883 | W35: 0.2713224883 | X35: `+25%
B36: pregnant women with hiv | C36: =pwhiv -> 422 | D36: =C36*0.75 -> 316.5 | E36: 397146.78 | F36: =(E36-$C$6)/$C$6 -> 0.3639675107 | G36: 0.3639675107 | H36: 398125.22 | I36: =(H36-$C$7)/$C$7 -> 0.3638820781 | J36: 0.3638820781 | K36: 402248.26 | L36: 0.3614435357 | M36: 0.3614435357 | N36: =C36*1.25 -> 527.5 | O36: 228897.58 | P36: -0.2138703419 | Q36: 0.2138703419 | R36: 229493.58 | S36: -0.2138097134 | T36: 0.2138097134 | U36: 231962.77 | V36: -0.2149022255 | W36: 0.2149022255 | X36: `+25%
B37: quality of life without hiv | C37: =qwohiv -> 28.30967744 | D37: =C37*0.75 -> 21.23225808 | E37: 429282.11 | F37: 0.4743336228 | G37: 0.4743336228 | H37: 430369.19 | I37: 0.4743422314 | J37: 0.4743422314 | K37: 434911.17 | L37: 0.4719939397 | M37: 0.4719939397 | N37: =C37*1.25 -> 35.3870968 | O37: 221236.24 | P37: -0.2401825755 | Q37: 0.2401825755 | R37: 221796.49 | S37: -0.2401781085 | T37: 0.2401781085 | U37: 224137.26 | V37: -0.2413883314 | W37: 0.2413883314 | X37: `+25%
B38: specificity | C38: =spec -> 1 | D38: 0.95 | E38: 554102.87 | F38: 0.9030201183 | G38: 0.9030201183 | H38: 559454.36 | I38: 0.9165572458 | J38: 0.9165572458 | K38: 560684.47 | L38: 0.8976843983 | M38: 0.8976843983 | N38: 1 | O38: =$C$6 -> 291170.2639 | P38: 0 | Q38: 0 | R38: =$C$7 -> 291905.896 | S38: 0 | T38: 0 | U38: =$C$8 -> 295457.1743 | V38: 0 | W38: 0 | X38: `-5%

Sheet Threshold analysis
A4: Policy | B4: Base Case | C4: Cost-effective ICER for the Philippines
A5: URNDNPSF | B5: ='Base Case analysis'!$W$17 -> 291170.2639 | C5: 150000
A6: URNDNP | B6: ='Base Case analysis'!$W$15 -> 294705.1305 | C6: 150000 | E6: URNDNPSF | Q6: URNDNPSF
A7: UCSNP | B7: ='Base Case analysis'!$W$10 -> 295457.1743 | C7: 150000 | E7: Prevalence of HIV among PW | P7: Pax/counselling | Q7: Prevalence of HIV among PW
E8: =B5 -> 291170.2639 | F8: 200 | G8: 250 | H8: 300 | I8: 350 | J8: 400 | K8: 450 | L8: 500 | M8: 550 | N8: 600 | O8: 650 | Q8: =B5 -> 291170.2639 | R8: 300 | S8: 400 | T8: 500 | U8: 600 | V8: 700 | W8: 800
A9: pwhiv | B9: 422 | E9: 100 | F9: 93745.23599 | G9: 70313.26353 | H9: 54691.94856 | I9: 43533.86644 | J9: 35165.30485 | K9: 28656.42361 | L9: 23449.31862 | M9: 19188.95999 | N9: 15638.66114 | O9: 12634.56211 | P9: 1 | Q9: 566.6666667 | R9: 419124.9982 | S9: 308474.0171 | T9: 242083.4285 | U9: 197823.0361 | V9: 166208.4701 | W9: 142497.5456
A10: hivnegtest | B10: 566.67 | E10: 150 | F10: 152318.2779 | G10: 117170.3192 | H10: 93738.34674 | I10: 77001.22355 | J10: 64448.38117 | K10: 54685.05931 | L10: 46874.40183 | M10: 40483.86388 | N10: 35158.4156 | O10: 30652.26705 | P10: 2 | Q10: 358.3333333 | R10: 256431.6725 | S10: 186461.1992 | T10: 144478.9152 | U10: 116490.7258 | V10: 96499.16205 | W10: 81505.4892
E11: 200 | F11: 210891.3198 | G11: 164027.3748 | H11: 132784.7449 | I11: 110468.5807 | J11: 93731.45748 | K11: 80713.69501 | L11: 70299.48503 | M11: 61778.76777 | N11: 54678.17006 | O11: 48669.97199 | P11: 3 | Q11: 288.8888889 | R11: 202200.5639 | S11: 145790.2598 | T11: 111944.0774 | U11: 89379.95576 | V11: 73262.72603 | W11: 61174.80374
E12: 250 | F12: 269464.3616 | G12: 210884.4305 | H12: 171831.1431 | I12: 143935.9378 | J12: 123014.5338 | K12: 106742.3307 | L12: 93724.56823 | M12: 83073.67166 | N12: 74197.92452 | O12: 66687.67694 | P12: 4 | Q12: 254.1666667 | R12: 175085.0096 | S12: 125454.7902 | T12: 95676.6585 | U12: 75824.57072 | V12: 61644.50803 | W12: 51009.46101
E13: 300 | F13: 328037.4035 | G13: 257741.4862 | H13: 210877.5413 | I13: 177403.2949 | J13: 152297.6101 | K13: 132770.9664 | L13: 117149.6514 | M13: 104368.5755 | N13: 93717.67898 | O13: 84705.38188 | P13: 5 | Q13: 233.3333333 | R13: 158815.677 | S13: 113253.5084 | T13: 85916.20716 | U13: 67691.3397 | V13: 54673.57722 | W13: 44910.25537
E14: 350 | F14: 386610.4454 | G14: 304598.5418 | H14: 249923.9394 | I14: 210870.652 | J14: 181580.6864 | K14: 158799.6021 | L14: 140574.7346 | M14: 125663.4794 | N14: 113237.4334 | O14: 102723.0868 | P14: 6 | Q14: 219.4444444 | R14: 147969.4553 | S14: 105119.3205 | T14: 79409.23961 | U14: 62269.18568 | V14: 50026.29002 | W14: 40844.11828
E15: 400 | F15: 445183.4873 | G15: 351455.5975 | H15: 288970.3376 | I15: 244338.0091 | J15: 210863.7627 | K15: 184828.2378 | L15: 163999.8178 | M15: 146958.3833 | N15: 132757.1879 | O15: 120740.7918 | P15: 8 | Q15: 202.0833333 | R15: 134411.6782 | S15: 94951.58566 | T15: 71275.53016 | U15: 55491.49316 | V15: 44217.18102 | W15: 35761.44691
E16: 450 | F16: 503756.5292 | G16: 398312.6531 | H16: 328016.7358 | I16: 277805.3662 | J16: 240146.8391 | K16: 210856.8735 | L16: 187424.901 | M16: 168253.2872 | N16: 152276.9424 | O16: 138758.4967 | P16: 10 | Q16: 191.6666667 | R16: 126277.0119 | S16: 88850.94476 | T16: 66395.30449 | U16: 51424.87765 | V16: 40731.71562 | W16: 32711.84409
E17: 500 | F17: 562329.5711 | G17: 445169.7088 | H17: 367063.1339 | I17: 311272.7233 | J17: 269429.9154 | K17: 236885.5092 | L17: 210849.9842 | M17: 189548.1911 | N17: 171796.6968 | O17: 156776.2017 | P17: 12 | Q17: 184.7222222 | R17: 120853.901 | S17: 84783.85083 | T17: 63141.82072 | U17: 48713.80064 | V17: 38408.07201 | W17: 30678.77554
E18: 550 | F18: 620902.613 | G18: 492026.7644 | H18: 406109.5321 | I18: 344740.0804 | J18: 298712.9917 | K18: 262914.1449 | L18: 234275.0674 | M18: 210843.095 | N18: 191316.4513 | O18: 174793.9066 | P18: 15 | Q18: 177.7777778 | R18: 115430.7902 | S18: 80716.7569 | T18: 59888.33694 | U18: 46002.72363 | V18: 36084.42841 | W18: 28645.707
E19: 600 | F19: 679475.6548 | G19: 538883.8201 | H19: 445155.9303 | I19: 378207.4376 | J19: 327996.068 | K19: 288942.7806 | L19: 257700.1506 | M19: 232137.9989 | N19: 210836.2057 | O19: 192811.6115 | P19: 20 | Q19: 170.8333333 | R19: 110007.6793 | S19: 76649.66296 | T19: 56634.85316 | U19: 43291.64662 | V19: 33760.78481 | W19: 26612.63845
E20: Threshold value | F20: 150000 | Q20: Threshold value | R20: 150000
E23: URNDNP | Q23: URNDNP
E24: Prevalence of HIV among PW | P24: Pax/counselling | Q24: Prevalence of HIV among PW
E25: =B6 -> 294705.1305 | F25: 200 | G25: 250 | H25: 300 | I25: 350 | J25: 400 | K25: 450 | L25: 500 | M25: 550 | N25: 600 | O25: 650 | Q25: =B6 -> 294705.1305 | R25: 300 | S25: 400 | T25: 500 | U25: 600 | V25: 700 | W25: 800
E26: 100 | F26: 95055.75017 | G26: 71359.77388 | H26: 55562.45636 | I26: 44278.65812 | J26: 35815.80945 | K26: 29233.59381 | L26: 23967.82131 | M26: 19659.46198 | N26: 16069.16254 | O26: 13031.21686 | P26: 1 | Q26: 566.6666667 | R26: 424101.5078 | S26: 312203.842 | T26: 245065.2425 | U26: 200306.1762 | V26: 168335.4145 | W26: 144357.3433
E27: 150 | F27: 154288.724 | G27: 118744.7596 | H27: 95048.7833 | I27: 78123.08595 | J27: 65428.81294 | K27: 55555.48949 | L27: 47656.83072 | M27: 41194.29173 | N27: 35808.84258 | O27: 31251.92406 | P27: 2 | Q27: 358.3333333 | R27: 259575.1456 | S27: 188816.3275 | T27: 146361.0366 | U27: 118057.5094 | V27: 97840.70422 | W27: 82678.10035
E28: 200 | F28: 213521.6979 | G28: 166129.7453 | H28: 134535.1102 | I28: 111967.5138 | J28: 95041.81643 | K28: 81877.38516 | L28: 71345.84014 | M28: 62729.12149 | N28: 55548.52261 | O28: 49472.63126 | P28: 3 | Q28: 288.8888889 | R28: 204733.0248 | S28: 147687.156 | T28: 113459.6347 | U28: 90641.28712 | V28: 74342.46745 | W28: 62118.3527
E29: 250 | F29: 272754.6717 | G29: 213514.731 | H29: 174021.4372 | I29: 145811.9416 | J29: 124654.8199 | K29: 108199.2808 | L29: 95034.84956 | M29: 84263.95124 | N29: 75288.20265 | O29: 67693.33845 | P29: 4 | Q29: 254.1666667 | R29: 177311.9644 | S29: 127122.5702 | T29: 97008.93367 | U29: 76933.17598 | V29: 62593.34906 | W29: 51838.47887
E30: 300 | F30: 331987.6456 | G30: 260899.7167 | H30: 213507.7641 | I30: 179656.3694 | J30: 154267.8234 | K30: 134521.1765 | L30: 118723.859 | M30: 105798.781 | N30: 95027.88268 | O30: 85914.04565 | P30: 5 | Q30: 233.3333333 | R30: 160859.3282 | S30: 114783.8188 | T30: 87138.51308 | U30: 68708.3093 | V30: 55543.87803 | W30: 45670.55458
E31: 350 | F31: 391220.6194 | G31: 308284.7024 | H31: 252994.0911 | I31: 213500.7973 | J31: 183880.8269 | K31: 160843.0722 | L31: 142412.8684 | M31: 127333.6108 | N31: 114767.5627 | O31: 104134.7528 | P31: 6 | Q31: 219.4444444 | R31: 149890.9041 | S31: 106557.9845 | T31: 80558.23269 | U31: 63225.06485 | V31: 50844.23068 | W31: 41558.60505
E32: 400 | F32: 450453.5933 | G32: 355669.6881 | H32: 292480.418 | I32: 247345.2251 | J32: 213493.8304 | K32: 187164.9678 | L32: 166101.8778 | M32: 148868.4405 | N32: 134507.2428 | O32: 122355.46 | P32: 8 | Q32: 202.0833333 | R32: 136180.3739 | S32: 96275.69157 | T32: 72332.8822 | U32: 56371.00928 | V32: 44969.67148 | W32: 36418.66813
E33: 450 | F33: 509686.5671 | G33: 403054.6738 | H33: 331966.745 | I33: 281189.6529 | J33: 243106.8339 | K33: 213486.8635 | L33: 189790.8872 | M33: 170403.2703 | N33: 154246.9228 | O33: 140576.1672 | P33: 10 | Q33: 191.6666667 | R33: 127954.0558 | S33: 90106.31585 | T33: 67397.6719 | U33: 52258.57594 | V33: 41444.93597 | W33: 33334.70599
E34: 500 | F34: 568919.541 | G34: 450439.6595 | H34: 371453.0719 | I34: 315034.0807 | J34: 272719.8374 | K34: 239808.7592 | L34: 213479.8966 | M34: 191938.1 | N34: 173986.6028 | O34: 158796.8744 | P34: 12 | Q34: 184.7222222 | R34: 122469.8437 | S34: 85993.3987 | T34: 64107.53171 | U34: 49516.95371 | V34: 39095.11229 | W34: 31278.73122
E35: 550 | F35: 628152.5148 | G35: 497824.6452 | H35: 410939.3988 | I35: 348878.5086 | J35: 302332.8409 | K35: 266130.6549 | L35: 237168.9061 | M35: 213472.9298 | N35: 193726.2829 | O35: 177017.5816 | P35: 15 | Q35: 177.7777778 | R35: 116985.6316 | S35: 81880.48154 | T35: 60817.39151 | U35: 46775.33149 | V35: 36745.28861 | W35: 29222.75646
E36: 600 | F36: 687385.4887 | G36: 545209.6309 | H36: 450425.7258 | I36: 382722.9364 | J36: 331945.8443 | K36: 292452.5505 | L36: 260857.9155 | M36: 235007.7595 | N36: 213465.9629 | O36: 195238.2888 | P36: 20 | Q36: 170.8333333 | R36: 111501.4195 | S36: 77767.56439 | T36: 57527.25131 | U36: 44033.70926 | V36: 34395.46494 | W36: 27166.78169
E37: Threshold value | F37: 150000 | Q37: Threshold value | R37: 150000
E39: UCSNP | Q39: UCSNP
E40: Prevalence of HIV among PW | P40: Pax/counselling | Q40: Prevalence of HIV among PW
E41: =B7 -> 295457.1743 | F41: 200 | G41: 250 | H41: 300 | I41: 350 | J41: 400 | K41: 450 | L41: 500 | M41: 550 | N41: 600 | O41: 650 | Q41: =B7 -> 295457.1743 | R41: 300 | S41: 400 | T41: 500 | U41: 600 | V41: 700 | W41: 800
E42: 100 | F42: 95350.05177 | G42: 71599.74699 | H42: 55766.21047 | I42: 44456.54153 | J42: 35974.28982 | K42: 29376.98294 | L42: 24099.13743 | M42: 19780.9002 | N42: 16182.36917 | O42: 13137.45831 | P42: 1 | Q42: 566.6666667 | R42: 425150.2227 | S42: 312996.0057 | T42: 245703.4755 | U42: 200841.7887 | V42: 168797.7267 | W42: 144764.6802
E43: 150 | F43: 154718.8309 | G43: 119093.3737 | H43: 95343.06892 | I43: 78378.56551 | J43: 65655.18795 | K43: 55759.22762 | L43: 47842.45937 | M43: 41365.10352 | N43: 35967.30698 | O43: 31399.94067 | P43: 2 | Q43: 358.3333333 | R43: 260246.6458 | S43: 189325.5968 | T43: 146772.9674 | U43: 118404.5478 | V43: 98141.39097 | W43: 82944.02333
E44: 200 | F44: 214087.61 | G44: 166587.0004 | H44: 134919.9274 | I44: 112300.5895 | J44: 95336.08607 | K44: 82141.47231 | L44: 71585.7813 | M44: 62949.30683 | N44: 55752.24478 | O44: 49662.42304 | P44: 3 | Q44: 288.8888889 | R44: 205278.7868 | S44: 148102.1272 | T44: 113796.1314 | U44: 90925.46754 | V44: 74589.27907 | W44: 62337.13771
E45: 250 | F45: 273456.3891 | G45: 214080.6271 | H45: 174496.7858 | I45: 146222.6135 | J45: 125016.9842 | K45: 108523.717 | L45: 95329.10323 | M45: 84533.51015 | N45: 75537.18258 | O45: 67924.90541 | P45: 4 | Q45: 254.1666667 | R45: 177794.8574 | S45: 127490.3924 | T45: 97307.71339 | U45: 77185.9274 | V45: 62813.22312 | W45: 52033.69491
E46: 300 | F46: 332825.1682 | G46: 261574.2538 | H46: 214073.6443 | I46: 180144.6374 | J46: 154697.8823 | K46: 134905.9617 | L46: 119072.4252 | M46: 106117.7135 | N46: 95322.12038 | O46: 86187.38778 | P46: 5 | Q46: 233.3333333 | R46: 161304.4997 | S46: 115123.3515 | T46: 87414.66259 | U46: 68942.20331 | V46: 55747.58955 | W46: 45851.62923
E47: 350 | F47: 392193.9473 | G47: 309067.8805 | H47: 253650.5027 | I47: 214066.6614 | J47: 184378.7805 | K47: 161288.2064 | L47: 142815.7471 | M47: 127701.9168 | N47: 115107.0582 | O47: 104449.8701 | P47: 6 | Q47: 219.4444444 | R47: 150310.9279 | S47: 106878.6576 | T47: 80819.29538 | U47: 63446.38726 | V47: 51037.16717 | W47: 41730.2521
E48: 400 | F48: 451562.7264 | G48: 356561.5072 | H48: 293227.3612 | I48: 247988.6854 | J48: 214059.6786 | K48: 187670.451 | L48: 166559.069 | M48: 149286.1201 | N48: 134891.996 | O48: 122712.3525 | P48: 8 | Q48: 202.0833333 | R48: 136568.9631 | S48: 96572.79016 | T48: 72575.08638 | U48: 56576.61719 | V48: 45149.13919 | W48: 36578.5307
E49: 450 | F49: 510931.5054 | G49: 404055.134 | H49: 332804.2196 | I49: 281910.7094 | J49: 243740.5767 | K49: 214052.6957 | L49: 190302.391 | M49: 170870.3234 | N49: 154676.9338 | O49: 140974.8349 | P49: 10 | Q49: 191.6666667 | R49: 128323.7843 | S49: 90389.26972 | T49: 67628.56098 | U49: 52454.75515 | V49: 41616.32241 | W49: 33487.49786
E50: 500 | F50: 570300.2845 | G50: 451548.7607 | H50: 372381.0781 | I50: 315832.7334 | J50: 273421.4748 | K50: 240434.9404 | L50: 214045.7129 | M50: 192454.5267 | N50: 174461.8716 | O50: 159237.3172 | P50: 12 | Q50: 184.7222222 | R50: 122826.9984 | S50: 86266.92276 | T50: 64330.87737 | U50: 49706.84712 | V50: 39261.11122 | W50: 31426.8093
E51: 550 | F51: 629669.0636 | G51: 499042.3874 | H51: 411957.9365 | I51: 349754.7573 | J51: 303102.373 | K51: 266817.1851 | L51: 237789.0348 | M51: 214038.73 | N51: 194246.8094 | O51: 177499.7996 | P51: 15 | Q51: 177.7777778 | R51: 117330.2125 | S51: 82144.5758 | T51: 61033.19377 | U51: 46958.93909 | V51: 36905.90003 | W51: 29366.12074
E52: 600 | F52: 689037.8427 | G52: 546536.0141 | H52: 451534.795 | I52: 383676.7813 | J52: 332783.2711 | K52: 293199.4298 | L52: 261532.3568 | M52: 235622.9334 | N52: 214031.7472 | O52: 195762.282 | P52: 20 | Q52: 170.8333333 | R52: 111833.4266 | S52: 78022.22883 | T52: 57735.51017 | U52: 44211.03106 | V52: 34550.68884 | W52: 27305.43217
E53: Threshold value | F53: 150000 | Q53: Threshold value | R53: 150000

Sheet PSA
C1: Probabilistic Sensitivity Analysis | X1: Cost-effectiveness Results | Z1: Cost-effectiveness Results | AB1: Cost-effectiveness Results | AG1: Cost-effectiveness Results | AL1: Cost-effectiveness Results | AQ1: Cost-effectiveness Results | AV1: Cost-effectiveness Results | BA1: Cost-effectiveness Results | BF1: Cost-effectiveness Results | BK1: Cost-effectiveness Results | BS1: Net Monetary Benefit | DA1: Acceptability Curve
X2: Policy Do Nothing | Z2: Policy SQ | AB2: Policy UCSNP | AG2: Policy URCSNP | AL2: Policy UCSNPSF | AQ2: Policy URCSNPSF | AV2: Policy UNDNP | BA2: Policy URNDNP | BF2: Policy UNDNPSF | BK2: Policy URNDNPSF | BS2: Policy Do nothing | BT2: Policy SQ | BU2: Policy UCSNP | BV2: Policy URCSNP | BW2: Policy UCSNPSF | BX2: Policy URCSNPSF | BY2: Policy UNDNP | BZ2: Policy URNDNP | CA2: Policy UNDNPSF | CB2: Policy URNDNPSF | CC2: Policy Do nothing | CD2: Policy SQ | CE2: Policy UCSNP | CF2: Policy URCSNP | CG2: Policy UCSNPSF | CH2: Policy URCSNPSF | CI2: Policy UNDNP | CJ2: Policy URNDNP | CK2: Policy UNDNPSF | CL2: Policy URNDNPSF | CN2: Policy SQ | CO2: Policy UCSNP | CP2: Policy URCSNP | CQ2: Policy UCSNPSF | CR2: Policy URCSNPSF | CS2: Policy UNDNP | CT2: Policy URNDNP | CU2: Policy UNDNPSF | CV2: Policy URNDNPSF | DB2: Policy Do nothing | DC2: Policy SQ | DD2: Policy UCSNP | DE2: Policy URCSNP | DF2: Policy UCSNPSF | DG2: Policy URCSNPSF | DH2: Policy UNDNP | DI2: Policy URNDNP | DJ2: Policy UNDNPSF | DK2: Policy URNDNPSF
C3: pop | D3: base | E3: breastfeed | F3: pmore4 | G3: pless4 | H3: pless4r | I3: pcs | J3: pdelmore4 | K3: pless4bf | L3: reqHIVtestcost | M3: HIVtestcost | N3: outHIVcost | O3: lifecost | P3: npcost | Q3: sfcost | R3: cscost | S3: rcost | T3: vltest | U3: cd4test | V3: utility | X3: Total QALY | Y3: Total cost | Z3: Total QALY | AA3: Total cost | AB3: Total QALY | AC3: Total cost | AD3: incremental QALY | AE3: Incremental cost | AF3: ICER | AG3: Total QALY | AH3: Total cost | AI3: incremental QALY | AJ3: Incremental cost | AK3: ICER | AL3: Total QALY | AM3: Total cost | AN3: incremental QALY | AO3: Incremental cost | AP3: ICER | AQ3: Total QALY | AR3: Total cost | AS3: incremental QALY | AT3: Incremental cost | AU3: ICER | AV3: Total QALY | AW3: Total cost | AX3: incremental QALY | AY3: Incremental cost | AZ3: ICER | BA3: Total QALY | BB3: Total cost | BC3: incremental QALY | BD3: Incremental cost | BE3: ICER | BF3: Total QALY | BG3: Total cost | BH3: incremental QALY | BI3: Incremental cost | BJ3: ICER | BK3: Total QALY | BL3: Total cost | BM3: incremental QALY | BN3: Incremental cost | BO3: ICER | BQ3: cRatio | BR3: 1600000 | DA3: WTP Threshold
C4: =pop -> 1700618 | D4: =base -> 0.1891891892 | E4: =breastfeed -> 0.162 | F4: =pmore4 -> 0.20125 | G4: =pless4 -> 0.5331125828 | H4: =pless4r -> 0.2715344225 | I4: =pcs -> 0.3583535109 | J4: =pdelmore4 -> 0.03924344543 | K4: =pless4bf -> 0.5391844997 | L4: =reqHIVtestcost -> 566.67 | M4: =HIVtestcost -> 1920.833333 | N4: =outhivcost -> 3918.889333 | O4: =lifecost -> 542974.1822 | P4: =npcost -> 156.55 | Q4: =sfcost -> 3798.311467 | R4: =cscost -> 19000 | S4: =rcost -> 15557.74929 | T4: =vltest -> 2658.333333 | U4: =cd4test -> 931.0334984 | V4: =utility -> 0.83 | X4: ='Base Case analysis'!S8 -> 48140703.59 | Y4: ='Base Case analysis'!F8 -> 79581272.47 | Z4: ='Base Case analysis'!S9 -> 48140978.45 | AA4: ='Base Case analysis'!F9 -> 161249877.6 | AB4: ='Base Case analysis'!S10 -> 48143695.91 | AC4: ='Base Case analysis'!F10 -> 964142798.7 | AD4: ='Base Case analysis'!V10 -> 2717.459554 | AE4: ='Base Case analysis'!T10 -> 802892921.1 | AF4: =AE4/AD4 -> 295457.1743 | AG4: ='Base Case analysis'!S11 -> 48143702.14 | AH4: ='Base Case analysis'!F11 -> 964236918.8 | AI4: ='Base Case analysis'!V11 -> 2723.689957 | AJ4: ='Base Case analysis'!T11 -> 802987041.2 | AK4: =AJ4/AI4 -> 294815.8762 | AL4: ='Base Case analysis'!S12 -> 48143726.6 | AM4: ='Base Case analysis'!F12 -> 963450155.1 | AN4: ='Base Case analysis'!V12 -> 2748.146881 | AO4: ='Base Case analysis'!T12 -> 802200277.5 | AP4: =AO4/AN4 -> 291905.896 | AQ4: ='Base Case analysis'!S13 -> 48143732.83 | AR4: ='Base Case analysis'!F13 -> 963544275.1 | AS4: ='Base Case analysis'!V13 -> 2754.377283 | AT4: ='Base Case analysis'!T13 -> 802294397.5 | AU4: =AT4/AS4 -> 291279.7758 | AV4: ='Base Case analysis'!S14 -> 48143673.18 | AW4: ='Base Case analysis'!F14 -> 964399016.8 | AX4: ='Base Case analysis'!V14 -> 2694.723363 | AY4: ='Base Case analysis'!T15 -> 802685404 | AZ4: =AY4/AX4 -> 297873.0266 | BA4: ='Base Case analysis'!S15 -> 48143702.14 | BB4: ='Base Case analysis'!F15 -> 963935281.6 | BC4: ='Base Case analysis'!V15 -> 2723.689957 | BD4: ='Base Case analysis'!T15 -> 802685404 | BE4: =BD4/BC4 -> 294705.1305 | BF4: ='Base Case analysis'!S16 -> 48143703.86 | BG4: ='Base Case analysis'!F16 -> 963706373.1 | BH4: ='Base Case analysis'!V16 -> 2725.41069 | BI4: ='Base Case analysis'!T16 -> 802456495.5 | BJ4: =BI4/BH4 -> 294435.0731 | BK4: ='Base Case analysis'!S17 -> 48143732.83 | BL4: ='Base Case analysis'!F17 -> 963242638 | BM4: ='Base Case analysis'!V17 -> 2754.377283 | BN4: ='Base Case analysis'!T17 -> 801992760.4 | BO4: =BN4/BM4 -> 291170.2639
AF5: =COUNTIF(AF8:AF1007,"<=150000") -> 435 | AK5: =COUNTIF(AK8:AK1007,"<=150000") -> 435 | AP5: =COUNTIF(AP8:AP1007,"<=150000") -> 440 | AU5: =COUNTIF(AU8:AU1007,"<=150000") -> 440 | AZ5: =COUNTIF(AZ8:AZ1007,"<=150000") -> 434 | BE5: =COUNTIF(BE8:BE1007,"<=150000") -> 435 | BJ5: =COUNTIF(BJ8:BJ1007,"<=150000") -> 435 | BO5: =COUNTIF(BO8:BO1007,"<=150000") -> 440 | BP5: <= 150000
AF6: =COUNTIF(AF8:AF1007,"<0") -> 72 | AK6: =COUNTIF(AK8:AK1007,"<0") -> 72 | AP6: =COUNTIF(AP8:AP1007,"<0") -> 72 | AU6: =COUNTIF(AU8:AU1007,"<0") -> 72 | AZ6: =COUNTIF(AZ8:AZ1007,"<0") -> 72 | BE6: =COUNTIF(BE8:BE1007,"<0") -> 72 | BJ6: =COUNTIF(BJ8:BJ1007,"<0") -> 72 | BO6: =COUNTIF(BO8:BO1007,"<0") -> 72 | BP6: <0
B7: Trial | X7: =AVERAGE(X8:X1007) -> 48298357.67 | Y7: 78407365.84 | Z7: 48298633.15 | AA7: 158013799.9 | AB7: 48301356.8 | AC7: 940851235.7 | AD7: 2723.646006 | AE7: 782837435.9 | AF7: 288890.9686 | AG7: 48301363.12 | AH7: 940935989.4 | AI7: 2729.965433 | AJ7: 782922189.6 | AK7: 288185.1317 | AL7: 48301386.26 | AM7: 940207129.9 | AN7: 2753.108568 | AO7: 782193330 | AP7: 285365.7929 | AQ7: 48301392.58 | AR7: 940291883.6 | AS7: 2759.427995 | AT7: 782278083.7 | AU7: 284724.5063 | AV7: 48301333.35 | AW7: 941134945.9 | AX7: 2700.197186 | AY7: 782631458.4 | AZ7: 291683.7719 | BA7: 48301363.12 | BB7: 940645258.2 | BC7: 2729.965433 | BD7: 782631458.4 | BE7: 288073.5585 | BF7: 48301362.81 | BG7: 940490840.1 | BH7: 2729.659748 | BI7: 782477040.2 | BJ7: 288048.4558 | BK7: 48301392.58 | BL7: 940001152.4 | BM7: 2759.427995 | BN7: 781987352.5 | BO7: 284617.9752 | BS7: =AVERAGE(BS8:BS1007) -> 7.727729387e+13 | BT7: =AVERAGE(BT8:BT1007) -> 7.727765503e+13 | BU7: 7.728123003e+13 | BV7: 7.728124006e+13 | BW7: 7.728127781e+13 | BX7: 7.728128784e+13 | BY7: 7.728119223e+13 | BZ7: 7.728124035e+13 | CA7: 7.728124001e+13 | CB7: =AVERAGE(CB8:CB1007) -> 7.728128813e+13 | CC7: 0.009 | CD7: 0 | CE7: 0.003 | CF7: 0.004 | CG7: 0.004 | CH7: 0.016 | CI7: 0.003 | CJ7: 0.004 | CK7: 0.004 | CL7: 0.991 | CM7: =SUM(CC7:CL7) -> 1.038 | CN7: =AVERAGE(CN8:CN1007) -> 0.008 | CO7: 0.003 | CP7: 0.004 | CQ7: 0.004 | CR7: 0.016 | CS7: 0.003 | CT7: 0.004 | CU7: 0.004 | CV7: 0.992 | DA7: 0 | DB7: 0.928 | DC7: 0 | DD7: 0 | DE7: 0 | DF7: 0.012 | DG7: 0 | DH7: 0 | DI7: 0.002 | DJ7: 0 | DK7: 0.058
B8: 1 | C8: 2082839.465 | D8: 0.1766780558 | E8: 0.151447435 | F8: 0.2068179784 | G8: 0.6583880329 | H8: 0.217678282 | I8: 0.378751837 | J8: 0.03392297484 | K8: 0.5274391327 | L8: 96.95762335 | M8: 85.6843719 | N8: 234.1571974 | O8: 38951.47927 | P8: 307.1628642 | Q8: 10856.97199 | R8: 3809.112411 | S8: 133778.4495 | T8: 10137.08676 | U8: 212.9080824 | V8: 0.8032213303 | X8: 58961265.88 | Y8: 5665105.633 | Z8: 58961532.78 | AA8: 24046997.95 | AB8: 58964175.28 | AC8: 205039052.3 | AD8: 2642.5008 | AE8: 180992054.3 | AF8: 68492.71505 | AG8: 58964209.7 | AH8: 211971047 | AI8: 2676.918212 | AJ8: 187924049 | AK8: 70201.64015 | AL8: 58964268.5 | AM8: 205443879.6 | AN8: 2735.723668 | AO8: 181396881.7 | AP8: 66306.72673 | AQ8: 58964302.92 | AR8: 212375874.4 | AS8: 2770.14108 | AT8: 188328876.4 | AU8: 67985.30145 | AV8: 58964090.94 | AW8: 204987085.8 | AX8: 2558.163859 | AY8: 187724962.8 | AZ8: 73382.69682 | BA8: 58964209.7 | BB8: 211771960.8 | BC8: 2676.918212 | BD8: 187724962.8 | BE8: 70127.26874 | BF8: 58964184.16 | BG8: 205391913.2 | BH8: 2651.386727 | BI8: 181344915.3 | BJ8: 68396.2522 | BK8: 58964302.92 | BL8: 212176788.2 | BM8: 2770.14108 | BN8: 188129790.2 | BO8: 67913.43284 | BS8: =cRatio*X8-Y8 -> 9.433801974e+13 | BT8: =cRatio*Z8-AA8 -> 9.43384284e+13 | BU8: =cRatio*AB8-AC8 -> 9.434247541e+13 | BV8: =cRatio*AG8-AH8 -> 9.434252354e+13 | BW8: =cRatio*AL8-AM8 -> 9.434262416e+13 | BX8: =cRatio*AQ8-AR8 -> 9.434267229e+13 | BY8: =cRatio*AV8-AW8 -> 9.434234052e+13 | BZ8: =cRatio*BA8-BB8 -> 9.434252374e+13 | CA8: =cRatio*BF8-BG8 -> 9.434248927e+13 | CB8: =cRatio*BK8-BL8 -> 9.434267249e+13 | CC8: =IF(BS8=MAX($BS8:$CB8),1,0) -> 0 | CD8: =IF(BT8=MAX($BS8:$CB8),1,0) -> 0 | CE8: =IF(BU8=MAX($BS8:$CB8),1,0) -> 0 | CF8: 0 | CG8: 0 | CH8: =IF(BX8=MAX($BS8:$CB8),1,0) -> 0 | CI8: =IF(BY8=MAX($BS8:$CB8),1,0) -> 0 | CJ8: =IF(BZ8=MAX($BS8:$CB8),1,0) -> 0 | CK8: =IF(CA8=MAX($BS8:$CB8),1,0) -> 0 | CL8: =IF(CB8=MAX($BS8:$CB8),1,0) -> 1 | CN8: =IF(BT8=MAX($BT8:$CB8),1,0) -> 0 | CO8: =IF(BU8=MAX($BT8:$CB8),1,0) -> 0 | CP8: 0 | CQ8: 0 | CR8: 0 | CS8: 0 | CT8: 0 | CU8: 0 | CV8: 1 | DA8: 5000 | DB8: 0.908 | DC8: 0 | DD8: 0 | DE8: 0 | DF8: 0.014 | DG8: 0 | DH8: 0 | DI8: 0 | DJ8: 0.002 | DK8: 0.076
B9: 2 | C9: 1460289.727 | D9: 0.1952722638 | E9: 0.2061368561 | F9: 0.1788739812 | G9: 0.6887580421 | H9: 0.3154076622 | I9: 0.3354007581 | J9: 0.03266314455 | K9: 0.5167623472 | L9: 484.3188783 | M9: 3477.719805 | N9: 4109.955402 | O9: 72075.75229 | P9: 64.20609241 | Q9: 7314.460044 | R9: 14641.01935 | S9: 14861.64508 | T9: 1019.060592 | U9: 933.6120531 | V9: 0.4900501826 | X9: 41336678.09 | Y9: 10676746.94 | Z9: 41336980.39 | AA9: 74799370.03 | AB9: 41339966.26 | AC9: 705356614.8 | AD9: 2985.867898 | AE9: 630557244.7 | AF9: 211180.5566 | AG9: 41339983.35 | AH9: 705727850 | AI9: 3002.957561 | AJ9: 630928480 | AK9: 210102.3632 | AL9: 41340040.71 | AM9: 705346318.2 | AN9: 3060.316886 | AO9: 630546948.2 | AP9: 206039.7572 | AQ9: 41340057.79 | AR9: 705717553.4 | AS9: 3077.406549 | AT9: 630918183.4 | AU9: 205016.1957 | AV9: 41339903.79 | AW9: 705124267.4 | AX9: 2923.396766 | AY9: 630513549.8 | AZ9: 215678.4044 | BA9: 41339983.35 | BB9: 705312919.8 | BC9: 3002.957561 | BD9: 630513549.8 | BE9: 209964.1893 | BF9: 41339978.23 | BG9: 705113970.8 | BH9: 2997.845754 | BI9: 630314600.8 | BJ9: 210255.8479 | BK9: 41340057.79 | BL9: 705302623.2 | BM9: 3077.406549 | BN9: 630503253.2 | BO9: 204881.3646 | BS9: =cRatio*X9-Y9 -> 6.613867426e+13 | BT9: 6.613909382e+13 | BU9: 6.614324065e+13 | BV9: 6.614326763e+13 | BW9: 6.614335978e+13 | BX9: 6.614338675e+13 | BY9: 6.614314093e+13 | BZ9: 6.614326804e+13 | CA9: 6.614326006e+13 | CB9: 6.614338717e+13 | CC9: =IF(BS9=MAX($BS9:$CB9),1,0) -> 0 | CD9: =IF(BT9=MAX($BS9:$CB9),1,0) -> 0 | CE9: =IF(BU9=MAX($BS9:$CB9),1,0) -> 0 | CF9: =IF(BV9=MAX($BS9:$CB9),1,0) -> 0 | CG9: =IF(BW9=MAX($BS9:$CB9),1,0) -> 0 | CH9: =IF(BX9=MAX($BS9:$CB9),1,0) -> 0 | CI9: =IF(BY9=MAX($BS9:$CB9),1,0) -> 0 | CJ9: =IF(BZ9=MAX($BS9:$CB9),1,0) -> 0 | CK9: =IF(CA9=MAX($BS9:$CB9),1,0) -> 0 | CL9: =IF(CB9=MAX($BS9:$CB9),1,0) -> 1 | CN9: =IF(BT9=MAX($BT9:$CB9),1,0) -> 0 | CO9: =IF(BU9=MAX($BT9:$CB9),1,0) -> 0 | CP9: =IF(BV9=MAX($BT9:$CB9),1,0) -> 0 | CQ9: =IF(BW9=MAX($BT9:$CB9),1,0) -> 0 | CR9: =IF(BX9=MAX($BT9:$CB9),1,0) -> 0 | CS9: =IF(BY9=MAX($BT9:$CB9),1,0) -> 0 | CT9: =IF(BZ9=MAX($BT9:$CB9),1,0) -> 0 | CU9: =IF(CA9=MAX($BT9:$CB9),1,0) -> 0 | CV9: =IF(CB9=MAX($BT9:$CB9),1,0) -> 1 | DA9: 10000 | DB9: 0.887 | DC9: 0 | DD9: 0 | DE9: 0 | DF9: 0.016 | DG9: 0 | DH9: 0 | DI9: 0 | DJ9: 0 | DK9: 0.097
B10: 3 | C10: 1655660.851 | D10: 0.1741132313 | E10: 0.1504313871 | F10: 0.2216896353 | G10: 0.6000602973 | H10: 0.3144587465 | I10: 0.4670242467 | J10: 0.04135366679 | K10: 0.6356401029 | L10: 921.3630349 | M10: 1024.073347 | N10: 907.997511 | O10: 37764.48994 | P10: 177.5653615 | Q10: 9055.227982 | R10: 20483.01718 | S10: 132959.0641 | T10: 5783.627807 | U10: 969.4645228 | V10: 0.7006660247 | X10: 46867859.48 | Y10: 5503201.343 | Z10: 46868139.9 | AA10: 144412949.9 | AB10: 46870915.76 | AC10: 1514548258 | AD10: 2775.853838 | AE10: 1370135309 | AF10: 493590.581 | AG10: 46870933.01 | AH10: 1518796485 | AI10: 2793.103083 | AJ10: 1374383535 | AK10: 492063.3054 | AL10: 46870986.78 | AM10: 1514723363 | AN10: 2846.875049 | AO10: 1370310413 | AP10: 481338.4463 | AQ10: 46871004.03 | AR10: 1518971589 | AS10: 2864.124294 | AT10: 1374558639 | AU10: 479922.8309 | AV10: 46870874.4 | AW10: 1513957089 | AX10: 2734.494608 | AY10: 1373724729 | AZ10: 502368.7832 | BA10: 46870933.01 | BB10: 1518137678 | BC10: 2793.103083 | BD10: 1373724729 | BE10: 491827.4364 | BF10: 46870945.42 | BG10: 1514132193 | BH10: 2805.515819 | BI10: 1369719243 | BJ10: 488223.6748 | BK10: 46871004.03 | BL10: 1518312783 | BM10: 2864.124294 | BN10: 1373899833 | BO10: 479692.8107 | BS10: 7.498856967e+13 | BT10: 7.498887943e+13 | BU10: 7.499195066e+13 | BV10: 7.499197402e+13 | BW10: 7.499206412e+13 | BX10: 7.499208747e+13 | BY10: 7.499188508e+13 | BZ10: 7.499197467e+13 | CA10: 7.499199854e+13 | CB10: 7.499208813e+13 | CC10: 0 | CD10: 0 | CE10: 0 | CF10: 0 | CG10: 0 | CH10: 0 | CI10: 0 | CJ10: 0 | CK10: 0 | CL10: 1 | CN10: 0 | CO10: 0 | CP10: 0 | CQ10: 0 | CR10: 0 | CS10: 0 | CT10: 0 | CU10: 0 | CV10: 1 | DA10: =DA9+10000 -> 20000 | DB10: 0.86 | DC10: 0 | DD10: 0 | DE10: 0 | DF10: 0.018 | DG10: 0 | DH10: 0 | DI10: 0 | DJ10: 0 | DK10: 0.122
B11: 4 | C11: 1719555.505 | D11: 0.1948232385 | E11: 0.1536981937 | F11: 0.1821985044 | G11: 0.4911703027 | H11: 0.2562805429 | I11: 0.4495936484 | J11: 0.04470032485 | K11: 0.6306810557 | L11: 3162.015885 | M11: 4058.673253 | N11: 951.1217013 | O11: 25748.33182 | P11: 165.1093202 | Q11: 607.3377392 | R11: 38221.4132 | S11: 12906.64853 | T11: 4193.100644 | U11: 26.349915 | V11: 0.6975260742 | X11: 48676675.18 | Y11: 3772135.249 | Z11: 48676965.68 | AA11: 498130813.8 | AB11: 48679838.52 | AC11: 5385706110 | AD11: 2872.843464 | AE11: 4887575296 | AF11: 1701302.336 | AG11: 48679839.46 | AH11: 5385730556 | AI11: 2873.782819 | AJ11: 4887599742 | AK11: 1700754.737 | AL11: 48679842.95 | AM11: 5385702380 | AN11: 2877.269178 | AO11: 4887571566 | AP11: 1698684.157 | AQ11: 48679843.89 | AR11: 5385726825 | AS11: 2878.208533 | AT11: 4887596012 | AU11: 1698138.254 | AV11: 48679836.12 | AW11: 5385633297 | AX11: 2870.438763 | AY11: 4887524250 | AZ11: 1702709.813 | BA11: 48679839.46 | BB11: 5385655064 | BC11: 2873.782819 | BD11: 4887524250 | BE11: 1700728.468 | BF11: 48679840.54 | BG11: 5385629567 | BH11: 2874.864477 | BI11: 4887498753 | BJ11: 1700079.706 | BK11: 48679843.89 | BL11: 5385651334 | BM11: 2878.208533 | BN11: 4887520520 | BO11: 1698112.025 | BS11: 7.788267652e+13 | BT11: 7.788264696e+13 | BU11: 7.788235593e+13 | BV11: 77882357410588 | BW11: 7.788236302e+13 | BX11: 7.78823645e+13 | BY11: 7.788235216e+13 | BZ11: 7.788235749e+13 | CA11: 7.788235924e+13 | CB11: 7.788236457e+13 | CC11: 1 | CD11: 0 | CE11: 0 | CF11: 0 | CG11: 0 | CH11: 0 | CI11: 0 | CJ11: 0 | CK11: 0 | CL11: 0 | CN11: 1 | CO11: 0 | CP11: 0 | CQ11: 0 | CR11: 0 | CS11: 0 | CT11: 0 | CU11: 0 | CV11: 0 | DA11: 30000 | DB11: 0.84 | DC11: 0 | DD11: 0 | DE11: 0 | DF11: 0.02 | DG11: 0 | DH11: 0 | DI11: 0 | DJ11: 0 | DK11: 0.14
B12: 5 | C12: 1609987.112 | D12: 0.2809245509 | E12: 0.1374728085 | F12: 0.2079588747 | G12: 0.5807816801 | H12: 0.1869394183 | I12: 0.3635994971 | J12: 0.03857922804 | K12: 0.5156150054 | L12: 24.10355824 | M12: 953.2773547 | N12: 9364.952189 | O12: 67463.5911 | P12: 41.2341439 | Q12: 6.401271641 | R12: 8784.076613 | S12: 2412.439553 | T12: 208.2969022 | U12: 238.5911133 | V12: 0.9245456385 | X12: 45575076.85 | Y12: 9883740.885 | Z12: 45575343.68 | AA12: 13276179.43 | AB12: 45577971.29 | AC12: 43492941.37 | AD12: 2627.612175 | AE12: 30216761.94 | AF12: 11499.70389 | AG12: 45577971.38 | AH12: 43492911.46 | AI12: 2627.697672 | AJ12: 30216732.03 | AK12: 11499.31834 | AL12: 45577971.44 | AM12: 43492467.67 | AN12: 2627.762821 | AO12: 30216288.24 | AP12: 11498.86436 | AQ12: 45577971.53 | AR12: 43492437.76 | AS12: 2627.848317 | AT12: 30216258.33 | AU12: 11498.47886 | AV12: 45577971.07 | AW12: 43492764.89 | AX12: 2627.391504 | AY12: 30215860.72 | AZ12: 11500.32672 | BA12: 45577971.38 | BB12: 43492040.15 | BC12: 2627.697672 | BD12: 30215860.72 | BE12: 11498.98675 | BF12: 45577971.22 | BG12: 43492291.19 | BH12: 2627.542149 | BI12: 30216111.76 | BJ12: 11499.76291 | BK12: 45577971.53 | BL12: 43491566.45 | BM12: 2627.848317 | BN12: 30215387.01 | BO12: 11498.14729 | BS12: 7.292011307e+13 | BT12: 7.292053661e+13 | BU12: 7.292471058e+13 | BV12: 7.292471071e+13 | BW12: 7.292471082e+13 | BX12: 7.292471096e+13 | BY12: 7.292471022e+13 | BZ12: 7.292471072e+13 | CA12: 7.292471047e+13 | CB12: 7.292471096e+13 | CC12: 0 | CD12: 0 | CE12: 0 | CF12: 0 | CG12: 0 | CH12: 0 | CI12: 0 | CJ12: 0 | CK12: 0 | CL12: 1 | CN12: 0 | CO12: 0 | CP12: 0 | CQ12: 0 | CR12: 0 | CS12: 0 | CT12: 0 | CU12: 0 | CV12: 1 | DA12: 40000 | DB12: 0.81 | DC12: 0 | DD12: 0 | DE12: 0 | DF12: 0.021 | DG12: 0.001 | DH12: 0 | DI12: 0 | DJ12: 0 | DK12: 0.169
B13: 6 | C13: 1534534.026 | D13: 0.172121252 | E13: 0.1559971577 | F13: 0.2173278755 | G13: 0.5058665194 | H13: 0.2775823219 | I13: 0.3990512054 | J13: 0.03526164681 | K13: 0.4463333546 | L13: 1047.641532 | M13: 3954.74017 | N13: 2871.116738 | O13: 1141003.151 | P13: 202.0653007 | Q13: 3053.890973 | R13: 6096.253413 | S13: 11296.79157 | T13: 0.6863380202 | U13: 29.5592033 | V13: 0.5446346496 | X13: 43438610.16 | Y13: 167150178.9 | Z13: 43438916.64 | AA13: 298963190.1 | AB13: 43441950.37 | AC13: 1604029596 | AD13: 3033.731343 | AE13: 1305066406 | AF13: 430185.2268 | AG13: 43441950.43 | AH13: 1604028539 | AI13: 3033.792318 | AJ13: 1305065349 | AK13: 430176.2322 | AL13: 43441950.64 | AM13: 1604017348 | AN13: 3034.002108 | AO13: 1305054158 | AP13: 430142.7987 | AQ13: 43441950.7 | AR13: 1604016291 | AS13: 3034.063083 | AT13: 1305053101 | AU13: 430133.8057 | AV13: 43441950.16 | AW13: 1604038191 | AX13: 3033.527861 | AY13: 1305064371 | AZ13: 430213.4118 | BA13: 43441950.43 | BB13: 1604027561 | BC13: 3033.792318 | BD13: 1305064371 | BE13: 430175.91 | BF13: 43441950.43 | BG13: 1604025943 | BH13: 3033.798626 | BI13: 1305062753 | BJ13: 430174.4821 | BK13: 43441950.7 | BL13: 1604015313 | BM13: 3034.063083 | BN13: 1305052123 | BO13: 430133.4835 | BS13: 6.95016091e+13 | BT13: 6.950196765e+13 | BU13: 6.950551656e+13 | BV13: 6.950551666e+13 | BW13: 6.9505517e+13 | BX13: 6.95055171e+13 | BY13: 6.950551622e+13 | BZ13: 6.950551666e+13 | CA13: 6.950551667e+13 | CB13: 6.95055171e+13 | CC13: 0 | CD13: 0 | CE13: 0 | CF13: 0 | CG13: 0 | CH13: 0 | CI13: 0 | CJ13: 0 | CK13: 0 | CL13: 1 | CN13: 0 | CO13: 0 | CP13: 0 | CQ13: 0 | CR13: 0 | CS13: 0 | CT13: 0 | CU13: 0 | CV13: 1 | DA13: 50000 | DB13: 0.785 | DC13: 0 | DD13: 0 | DE13: 0 | DF13: 0.019 | DG13: 0.001 | DH13: 0 | DI13: 0 | DJ13: 0 | DK13: 0.196
B14: 7 | C14: 2075613.308 | D14: 0.2189866353 | E14: 0.1548718529 | F14: 0.1828175607 | G14: 0.4901189854 | H14: 0.2583921178 | I14: 0.2549616811 | J14: 0.04148010117 | K14: 0.6503355825 | L14: 701.4830365 | M14: 1265.117834 | N14: 1300.006508 | O14: 181373.2101 | P14: 106.0234338 | Q14: 716.6770757 | R14: 10943.43276 | S14: 31711.00476 | T14: 3199.01497 | U14: 1816.878642 | V14: 0.6692816742 | X14: 58756512.12 | Y14: 26678605.23 | Z14: 58756800.5 | AA14: 157127028.1 | AB14: 58759647.12 | AC14: 1446801543 | AD14: 2846.613521 | AE14: 1289674515 | AF14: 453055.7116 | AG14: 58759653.44 | AH14: 1447416801 | AI14: 2852.936954 | AJ14: 1290289773 | AK14: 452267.1879 | AL14: 58759696.34 | AM14: 1446433805 | AN14: 2895.839458 | AO14: 1289306776 | AP14: 445227.2976 | AQ14: 58759702.67 | AR14: 1447049063 | AS14: 2902.162891 | AT14: 1289922035 | AU14: 444469.2058 | AV14: 58759608.04 | AW14: 1446876134 | AX14: 2807.531076 | AY14: 1290060481 | AZ14: 459499.9826 | BA14: 58759653.44 | BB14: 1447187509 | BC14: 2852.936954 | BD14: 1290060481 | BE14: 452186.8171 | BF14: 58759657.26 | BG14: 1446508396 | BH14: 2856.757013 | BI14: 1289381368 | BJ14: 451344.4306 | BK14: 58759702.67 | BL14: 1446819771 | BM14: 2902.162891 | BN14: 1289692742 | BO14: 444390.1982 | BS14: 9.401039272e+13 | BT14: 9.401072368e+13 | BU14: 9.401398859e+13 | BV14: 9.401399809e+13 | BW14: 9.401406772e+13 | BX14: 9.401407722e+13 | BY14: 9.401392598e+13 | BZ14: 9.401399832e+13 | CA14: 9.401400511e+13 | CB14: 9.401407745e+13 | CC14: 0 | CD14: 0 | CE14: 0 | CF14: 0 | CG14: 0 | CH14: 0 | CI14: 0 | CJ14: 0 | CK14: 0 | CL14: 1 | CN14: 0 | CO14: 0 | CP14: 0 | CQ14: 0 | CR14: 0 | CS14: 0 | CT14: 0 | CU14: 0 | CV14: 1 | DA14: 60000 | DB14: 0.751 | DC14: 0 | DD14: 0.001 | DE14: 0.001 | DF14: 0.02 | DG14: 0.002 | DH14: 0.001 | DI14: 0.001 | DJ14: 0.001 | DK14: 0.23
B15: 8 | C15: 1718251.839 | D15: 0.1784156637 | E15: 0.237530482 | F15: 0.2509846043 | G15: 0.6401576546 | H15: 0.2598359881 | I15: 0.3262969971 | J15: 0.04146121292 | K15: 0.5060324972 | L15: 221.972211 | M15: 2170.664991 | N15: 8813.611173 | O15: 1204491.493 | P15: 122.0168731 | Q15: 172.3439285 | R15: 6925.609825 | S15: 11513.69169 | T15: 90.8647765 | U15: 238.4205114 | V15: 0.8497720921 | X15: 48639838.87 | Y15: 181719511.8 | Z15: 48640102.76 | AA15: 202510315.1 | AB15: 48642705.14 | AC15: 407167237.6 | AD15: 2602.381954 | AE15: 204656922.4 | AF15: 78642.15402 | AG15: 48642734.22 | AH15: 406261663.5 | AI15: 2631.465226 | AJ15: 203751348.3 | AK15: 77428.85839 | AL15: 48642863.03 | AM15: 398526441.6 | AN15: 2760.268055 | AO15: 196016126.5 | AP15: 71013.43877 | AQ15: 48642892.11 | AR15: 397620867.5 | AS15: 2789.351327 | AT15: 195110552.4 | AU15: 69948.36057 | AV15: 48642604.07 | AW15: 412291513.7 | AX15: 2501.309096 | AY15: 203337513 | AZ15: 81292.43737 | BA15: 48642734.22 | BB15: 405847828.1 | BC15: 2631.465226 | BD15: 203337513 | BE15: 77271.59416 | BF15: 48642761.95 | BG15: 403650717.7 | BH15: 2659.195196 | BI15: 201140402.6 | BJ15: 75639.57805 | BK15: 48642892.11 | BL15: 397207032.2 | BM15: 2789.351327 | BN15: 194696717 | BO15: 69799.998 | BS15: 7.782356047e+13 | BT15: 7.78239619e+13 | BU15: 7.782792106e+13 | BV15: 7.782796849e+13 | BW15: 7.782818231e+13 | BX15: 7.782822975e+13 | BY15: 7.782775422e+13 | BZ15: 7.782796891e+13 | CA15: 7.782801547e+13 | CB15: 7.782823017e+13 | CC15: 0 | CD15: 0 | CE15: 0 | CF15: 0 | CG15: 0 | CH15: 0 | CI15: 0 | CJ15: 0 | CK15: 0 | CL15: 1 | CN15: 0 | CO15: 0 | CP15: 0 | CQ15: 0 | CR15: 0 | CS15: 0 | CT15: 0 | CU15: 0 | CV15: 1 | DA15: 70000 | DB15: 0.728 | DC15: 0 | DD15: 0.001 | DE15: 0.001 | DF15: 0.021 | DG15: 0.002 | DH15: 0.001 | DI15: 0.001 | DJ15: 0.001 | DK15: 0.252
B16: 9 | C16: 2313639.614 | D16: 0.1230358539 | E16: 0.09708450749 | F16: 0.1955244875 | G16: 0.5702944079 | H16: 0.3017105476 | I16: 0.4236479094 | J16: 0.03393079841 | K16: 0.6084405734 | L16: 246.3840272 | M16: 897.7247558 | N16: 3193.751182 | O16: 560154.2513 | P16: 76.62618448 | Q16: 358.1758361 | R16: 1392.152967 | S16: 806.4325383 | T16: 195.283075 | U16: 1409.998064 | V16: 0.6713323724 | X16: 65494986.2 | Y16: 81820391.01 | Z16: 65495284.26 | AA16: 126606597.4 | AB16: 65498248.27 | AC16: 570018740.1 | AD16: 2964.017336 | AE16: 443412142.7 | AF16: 149598.3634 | AG16: 65498249.31 | AH16: 569996357.6 | AI16: 2965.055561 | AJ16: 443389760.2 | AK16: 149538.4323 | AL16: 65498252.66 | AM16: 569914613.7 | AN16: 2968.398029 | AO16: 443308016.2 | AP16: 149342.5113 | AQ16: 65498253.69 | AR16: 569892231.2 | AS16: 2969.436254 | AT16: 443285633.7 | AU16: 149282.758 | AV16: 65498245.28 | AW16: 570086378.5 | AX16: 2961.018219 | AY16: 443385331.2 | AZ16: 149740.8319 | BA16: 65498249.31 | BB16: 569991928.7 | BC16: 2965.055561 | BD16: 443385331.2 | BE16: 149536.9386 | BF16: 65498249.66 | BG16: 569982252 | BH16: 2965.398912 | BI16: 443375654.6 | BJ16: 149516.3611 | BK16: 65498253.69 | BL16: 569887802.2 | BM16: 2969.436254 | BN16: 443281204.8 | BO16: 149281.2665 | BS16: 1.047918961e+14 | BT16: 1.047923282e+14 | BU16: 1.047966272e+14 | BV16: 1.047966289e+14 | BW16: 1.047966343e+14 | BX16: 1.04796636e+14 | BY16: 1.047966224e+14 | BZ16: 1.047966289e+14 | CA16: 1.047966295e+14 | CB16: 1.04796636e+14 | CC16: 0 | CD16: 0 | CE16: 0 | CF16: 0 | CG16: 0 | CH16: 0 | CI16: 0 | CJ16: 0 | CK16: 0 | CL16: 1 | CN16: 0 | CO16: 0 | CP16: 0 | CQ16: 0 | CR16: 0 | CS16: 0 | CT16: 0 | CU16: 0 | CV16: 1 | DA16: 80000 | DB16: 0.709 | DC16: 0 | DD16: 0.001 | DE16: 0.001 | DF16: 0.026 | DG16: 0.002 | DH16: 0.001 | DI16: 0.001 | DJ16: 0.001 | DK16: 0.266
B17: 10 | C17: 1276728.482 | D17: 0.1485884031 | E17: 0.1522959581 | F17: 0.1886799329 | G17: 0.5938637571 | H17: 0.2239194452 | I17: 0.3977340019 | J17: 0.02307183964 | K17: 0.5016171112 | L17: 566.185502 | M17: 1584.992487 | N17: 4302.713033 | O17: 1097419.278 | P17: 38.85570879 | Q17: 3225.051174 | R17: 38183.37339 | S17: 12428.12602 | T17: 3357.601433 | U17: 1577.106756 | V17: 0.7794772523 | X17: 36140487.31 | Y17: 160143121.7 | Z17: 36140769.3 | AA17: 213711220.7 | AB17: 36143566.79 | AC17: 730202225.5 | AD17: 2797.492494 | AE17: 516491004.8 | AF17: 184626.4131 | AG17: 36143572.5 | AH17: 730068154.2 | AI17: 2803.196769 | AJ17: 516356933.6 | AK17: 184202.8855 | AL17: 36143586.73 | AM17: 729267707.9 | AN17: 2817.424326 | AO17: 515556487.2 | AP17: 182988.5837 | AQ17: 36143592.43 | AR17: 729133636.6 | AS17: 2823.128601 | AT17: 515422415.9 | AU17: 182571.3557 | AV17: 36143552.93 | AW17: 730435690.2 | AX17: 2783.626641 | AY17: 515914279 | AZ17: 185338.8926 | BA17: 36143572.5 | BB17: 729625499.7 | BC17: 2803.196769 | BD17: 515914279 | BE17: 184044.9749 | BF17: 36143572.86 | BG17: 729501172.6 | BH17: 2803.558473 | BI17: 515789951.9 | BJ17: 183976.8839 | BK17: 36143592.43 | BL17: 728690982.1 | BM17: 2823.128601 | BN17: 514979761.4 | BO17: 182414.5599 | BS17: 5.782461955e+13 | BT17: 5.782501717e+13 | BU17: 5.782897667e+13 | BV17: 5.782898593e+13 | BW17: 5.782900949e+13 | BX17: 5.782901876e+13 | BY17: 5.782895425e+13 | BZ17: 5.782898637e+13 | CA17: 5.782898708e+13 | CB17: 5.78290192e+13 | CC17: 0 | CD17: 0 | CE17: 0 | CF17: 0 | CG17: 0 | CH17: 0 | CI17: 0 | CJ17: 0 | CK17: 0 | CL17: 1 | CN17: 0 | CO17: 0 | CP17: 0 | CQ17: 0 | CR17: 0 | CS17: 0 | CT17: 0 | CU17: 0 | CV17: 1 | DA17: 90000 | DB17: 0.689 | DC17: 0 | DD17: 0.001 | DE17: 0.001 | DF17: 0.026 | DG17: 0.002 | DH17: 0.001 | DI17: 0.001 | DJ17: 0.001 | DK17: 0.286
B18: 11 | C18: 1792607.744 | D18: 0.1613712687 | E18: 0.2138739272 | F18: 0.2090400082 | G18: 0.6036403527 | H18: 0.2366201207 | I18: 0.4865550657 | J18: 0.03421876357 | K18: 0.4869820476 | L18: 578.996919 | M18: 1356.404367 | N18: 10628.51491 | O18: 1303006.249 | P18: 23.51266445 | Q18: 3430.333528 | R18: 22603.28505 | S18: 6398.404822 | T18: 5290.79195 | U18: 790.5322362 | V18: 0.8700923555 | X18: 50744946.45 | Y18: 191028281.9 | Z18: 50745219.47 | AA18: 270314955.9 | AB18: 50747919.41 | AC18: 1048185652 | AD18: 2699.936452 | AE18: 777870695.8 | AF18: 288107.0387 | AG18: 50747921.69 | AH18: 1048072504 | AI18: 2702.221563 | AJ18: 777757548.6 | AK18: 287821.5315 | AL18: 50747927.67 | AM18: 1047705166 | AN18: 2708.195497 | AO18: 777390209.9 | AP18: 287050.9942 | AQ18: 50747929.95 | AR18: 1047592019 | AS18: 2710.480608 | AT18: 777277062.7 | AU18: 286767.2472 | AV18: 50747915.44 | AW18: 1048340265 | AX18: 2695.970409 | AY18: 777675446.6 | AZ18: 288458.4505 | BA18: 50747921.69 | BB18: 1047990402 | BC18: 2702.221563 | BD18: 777675446.6 | BE18: 287791.1484 | BF18: 50747923.7 | BG18: 1047859779 | BH18: 2704.229454 | BI18: 777544823.5 | BJ18: 287529.16 | BK18: 50747929.95 | BL18: 1047509917 | BM18: 2710.480608 | BN18: 777194960.7 | BO18: 286736.9566 | BS18: 8.11917233e+13 | BT18: 8.119208084e+13 | BU18: 8.119562287e+13 | BV18: 8.119562664e+13 | BW18: 8.119563656e+13 | BX18: 8.119564033e+13 | BY18: 8.119561637e+13 | BZ18: 8.119562672e+13 | CA18: 8.119563006e+13 | CB18: 8.119564041e+13 | CC18: 0 | CD18: 0 | CE18: 0 | CF18: 0 | CG18: 0 | CH18: 0 | CI18: 0 | CJ18: 0 | CK18: 0 | CL18: 1 | CN18: 0 | CO18: 0 | CP18: 0 | CQ18: 0 | CR18: 0 | CS18: 0 | CT18: 0 | CU18: 0 | CV18: 1 | DA18: 100000 | DB18: 0.662 | DC18: 0 | DD18: 0.001 | DE18: 0.001 | DF18: 0.024 | DG18: 0.002 | DH18: 0.001 | DI18: 0.001 | DJ18: 0.001 | DK18: 0.315
B19: 12 | C19: 1584659.342 | D19: 0.2073799964 | E19: 0.2191974453 | F19: 0.2107057024 | G19: 0.5346739833 | H19: 0.3147442525 | I19: 0.2715648162 | J19: 0.04283338884 | K19: 0.7112514234 | L19: 1031.010296 | M19: 6701.541351 | N19: 112.6402767 | O19: 52919.5436 | P19: 454.8164956 | Q19: 1693.082517 | R19: 2269.540588 | S19: 5890.311442 | T19: 1537.495808 | U19: 177.9355319 | V19: 0.997410726 | X19: 44857804.05 | Y19: 8592460.069 | Z19: 44858027.41 | AA19: 156566324.5 | AB19: 44860232.94 | AC19: 1623604884 | AD19: 2205.527829 | AE19: 1467038559 | AF19: 665164.3838 | AG19: 44860281.55 | AH19: 1624588667 | AI19: 2254.136714 | AJ19: 1468022343 | AK19: 651257.0129 | AL19: 44860844.8 | AM19: 1622372573 | AN19: 2817.384903 | AO19: 1465806248 | AP19: 520271.9183 | AQ19: 44860893.41 | AR19: 1623356356 | AS19: 2865.993788 | AT19: 1466790032 | AU19: 511791.0716 | AV19: 44859915.96 | AW19: 1623981633 | AX19: 1888.543218 | AY19: 1467595830 | AZ19: 777104.7099 | BA19: 44860281.55 | BB19: 1624162154 | BC19: 2254.136714 | BD19: 1467595830 | BE19: 651067.7994 | BF19: 44860527.81 | BG19: 1622749322 | BH19: 2500.400293 | BI19: 1466182998 | BJ19: 586379.3097 | BK19: 44860893.41 | BL19: 1622929843 | BM19: 2865.993788 | BN19: 1466363519 | BO19: 511642.253 | BS19: 7.177247788e+13 | BT19: 7.177268729e+13 | BU19: 7.17747491e+13 | BV19: 7.177482589e+13 | BW19: 7.17757293e+13 | BX19: 7.177580609e+13 | BY19: 7.177424155e+13 | BZ19: 7.177482632e+13 | CA19: 7.177522175e+13 | CB19: 7.177580652e+13 | CC19: 0 | CD19: 0 | CE19: 0 | CF19: 0 | CG19: 0 | CH19: 0 | CI19: 0 | CJ19: 0 | CK19: 0 | CL19: 1 | CN19: 0 | CO19: 0 | CP19: 0 | CQ19: 0 | CR19: 0 | CS19: 0 | CT19: 0 | CU19: 0 | CV19: 1 | DA19: =DA18+50000 -> 150000 | DB19: 0.56 | DC19: 0 | DD19: 0 | DE19: 0 | DF19: 0.022 | DG19: 0.004 | DH19: 0 | DI19: 0 | DJ19: 0.001 | DK19: 0.42
B20: 13 | C20: 1793569.927 | D20: 0.1314749901 | E20: 0.1053892972 | F20: 0.2024697111 | G20: 0.5073677867 | H20: 0.2761670733 | I20: 0.4115717099 | J20: 0.04156786496 | K20: 0.4265280768 | L20: 415.7783868 | M20: 267.3483479 | N20: 2291.53868 | O20: 30756.01477 | P20: 11.02099407 | Q20: 6978.347357 | R20: 6557.348223 | S20: 10263.27696 | T20: 6037.864393 | U20: 467.9125308 | V20: 0.9532149221 | X20: 50772282.42 | Y20: 4500098.647 | Z20: 50772553.69 | AA20: 72285038.93 | AB20: 50775248.3 | AC20: 741923998.6 | AD20: 2694.613226 | AE20: 669638959.6 | AF20: 248510.2326 | AG20: 50775248.71 | AH20: 741939267.4 | AI20: 2695.02341 | AJ20: 669654228.4 | AK20: 248478.0748 | AL20: 50775249.78 | AM20: 741932647.8 | AN20: 2696.087047 | AO20: 669647608.9 | AP20: 248377.5921 | AQ20: 50775250.19 | AR20: 741947916.6 | AS20: 2696.49723 | AT20: 669662877.7 | AU20: 248345.4721 | AV20: 50775247.02 | AW20: 741915729.1 | AX20: 2693.32628 | AY20: 669644093 | AZ20: 248630.8836 | BA20: 50775248.71 | BB20: 741929131.9 | BC20: 2695.02341 | BD20: 669644093 | BE20: 248474.314 | BF20: 50775248.49 | BG20: 741924378.3 | BH20: 2694.800101 | BI20: 669639339.4 | BJ20: 248493.1402 | BK20: 50775250.19 | BL20: 741937781.2 | BM20: 2696.49723 | BN20: 669652742.2 | BO20: 248341.7134 | BS20: 8.123564737e+13 | BT20: 8.123601362e+13 | BU20: 8.123965536e+13 | BV20: 8.1239656e+13 | BW20: 8.123965771e+13 | BX20: 8.123965835e+13 | BY20: 8.123965331e+13 | BZ20: 8.123965601e+13 | CA20: 8.123965566e+13 | CB20: 8.123965836e+13 | CC20: 0 | CD20: 0 | CE20: 0 | CF20: 0 | CG20: 0 | CH20: 0 | CI20: 0 | CJ20: 0 | CK20: 0 | CL20: 1 | CN20: 0 | CO20: 0 | CP20: 0 | CQ20: 0 | CR20: 0 | CS20: 0 | CT20: 0 | CU20: 0 | CV20: 1 | DA20: =DA19+50000 -> 200000 | DB20: 0.469 | DC20: 0.002 | DD20: 0.002 | DE20: 0.002 | DF20: 0.015 | DG20: 0.008 | DH20: 0.002 | DI20: 0.002 | DJ20: 0.003 | DK20: 0.518
B21: 14 | C21: 1656612.064 | D21: 0.1518419785 | E21: 0.1018797096 | F21: 0.2063344988 | G21: 0.5788408739 | H21: 0.3258007854 | I21: 0.2713905211 | J21: 0.0473482727 | K21: 0.4810316168 | L21: 40.85538564 | M21: 731.5443498 | N21: 3108.579643 | O21: 128389.1899 | P21: 221.8117428 | Q21: 5583.238656 | R21: 28969.66759 | S21: 33803.29664 | T21: 1409.523466 | U21: 957.6692619 | V21: 0.8299275792 | X21: 46894937.2 | Y21: 18657648.44 | Z21: 46895216.02 | AA21: 24466131.57 | AB21: 46897980.47 | AC21: 70919652.22 | AD21: 2764.442534 | AE21: 46453520.66 | AF21: 16803.93789 | AG21: 46897983.2 | AH21: 71304066.01 | AI21: 2767.174981 | AJ21: 46837934.45 | AK21: 16926.26407 | AL21: 46897993.31 | AM21: 70911259.57 | AN21: 2777.284666 | AO21: 46445128 | AP21: 16723.21479 | AQ21: 46897996.04 | AR21: 71295673.36 | AS21: 2780.017112 | AT21: 46829541.8 | AU21: 16845.05523 | AV21: 46897963.69 | AW21: 70673977.57 | AX21: 2747.661387 | AY21: 46494903.48 | AZ21: 16921.62786 | BA21: 46897983.2 | BB21: 70961035.05 | BC21: 2767.174981 | BD21: 46494903.48 | BE21: 16802.29975 | BF21: 46897976.53 | BG21: 70665584.92 | BH21: 2760.503518 | BI21: 46199453.35 | BJ21: 16735.87918 | BK21: 46897996.04 | BL21: 70952642.39 | BM21: 2780.017112 | BN21: 46486510.83 | BO21: 16721.66355 | BS21: 7.503188086e+13 | BT21: 7.503232117e+13 | BU21: 7.503669783e+13 | BV21: 7.503670182e+13 | BW21: 7.503671838e+13 | BX21: 7.503672237e+13 | BY21: 7.503667122e+13 | BZ21: 7.503670216e+13 | CA21: 7.503669178e+13 | CB21: 7.503672271e+13 | CC21: 0 | CD21: 0 | CE21: 0 | CF21: 0 | CG21: 0 | CH21: 0 | CI21: 0 | CJ21: 0 | CK21: 0 | CL21: 1 | CN21: 0 | CO21: 0 | CP21: 0 | CQ21: 0 | CR21: 0 | CS21: 0 | CT21: 0 | CU21: 0 | CV21: 1 | DA21: 225000 | DB21: 0.432 | DC21: 0 | DD21: 0.003 | DE21: 0.003 | DF21: 0.015 | DG21: 0.01 | DH21: 0.002 | DI21: 0.003 | DJ21: 0.003 | DK21: 0.557
B22: 15 | C22: 1578039.958 | D22: 0.1893212686 | E22: 0.09690542004 | F22: 0.1752210967 | G22: 0.5635715738 | H22: 0.2794738304 | I22: 0.3505033396 | J22: 0.04165645433 | K22: 0.4349796219 | L22: 1324.548383 | M22: 5112.246829 | N22: 1185.914708 | O22: 276314.0717 | P22: 379.8038033 | Q22: 6136.866725 | R22: 2470.746791 | S22: 1095.161448 | T22: 3231.923011 | U22: 246.7882134 | V22: 0.6398501387 | X22: 44670352.84 | Y22: 40479245.43 | Z22: 44670652.33 | AA22: 226926954.2 | AB22: 44673620.06 | AC22: 2075015444 | AD22: 2967.731234 | AE22: 1848088490 | AF22: 622727.7151 | AG22: 44673620.06 | AH22: 2075015440 | AI22: 2967.73173 | AJ22: 1848088485 | AK22: 622727.6093 | AL22: 44673620.06 | AM22: 2075015438 | AN22: 2967.732344 | AO22: 1848088484 | AP22: 622727.48 | AQ22: 44673620.06 | AR22: 2075015433 | AS22: 2967.732841 | AT22: 1848088479 | AU22: 622727.3742 | AV22: 44673620.06 | AW22: 2075015463 | AX22: 2967.729408 | AY22: 1848088483 | AZ22: 622728.0957 | BA22: 44673620.06 | BB22: 2075015437 | BC22: 2967.73173 | BD22: 1848088483 | BE22: 622727.6084 | BF22: 44673620.06 | BG22: 2075015457 | BH22: 2967.730518 | BI22: 1848088503 | BJ22: 622727.8694 | BK22: 44673620.06 | BL22: 2075015431 | BM22: 2967.732841 | BN22: 1848088476 | BO22: 622727.3733 | BS22: 7.147252407e+13 | BT22: 71472816797528 | BU22: 7.147571708e+13 | BV22: 7.147571708e+13 | BW22: 7.147571708e+13 | BX22: 7.147571708e+13 | BY22: 7.147571708e+13 | BZ22: 7.147571708e+13 | CA22: 7.147571708e+13 | CB22: 7.147571708e+13 | CC22: 0 | CD22: 0 | CE22: 0 | CF22: 0 | CG22: 0 | CH22: 0 | CI22: 0 | CJ22: 0 | CK22: 0 | CL22: 1 | CN22: 0 | CO22: 0 | CP22: 0 | CQ22: 0 | CR22: 0 | CS22: 0 | CT22: 0 | CU22: 0 | CV22: 1 | DA22: =DA20+50000 -> 250000 | DB22: 0.407 | DC22: 0 | DD22: 0.003 | DE22: 0.003 | DF22: 0.016 | DG22: 0.011 | DH22: 0.003 | DI22: 0.003 | DJ22: 0.003 | DK22: 0.584
B23: 16 | C23: 1955280.442 | D23: 0.1629638941 | E23: 0.1672831771 | F23: 0.234473288 | G23: 0.6011976225 | H23: 0.2874282957 | I23: 0.479513584 | J23: 0.04006004791 | K23: 0.6436523419 | L23: 263.1545537 | M23: 8971.983509 | N23: 668.7888144 | O23: 266241.8784 | P23: 928.9917872 | Q23: 262.9970988 | R23: 36459.24408 | S23: 2013.616166 | T23: 10233.90006 | U23: 808.137929 | V23: 0.6793143818 | X23: 55349957.26 | Y23: 38947259.55 | Z23: 55350246.52 | AA23: 84414698.41 | AB23: 55353109.69 | AC23: 521348079.9 | AD23: 2863.170767 | AE23: 436933381.5 | AF23: 152604.7229 | AG23: 55353116.42 | AH23: 521294815.9 | AI23: 2869.897334 | AJ23: 436880117.5 | AK23: 152228.483 | AL23: 55353139.23 | AM23: 521012949.4 | AN23: 2892.709667 | AO23: 436598251 | AP23: 150930.5465 | AQ23: 55353145.96 | AR23: 520959685.4 | AS23: 2899.436234 | AT23: 436544987 | AU23: 150562.0237 | AV23: 55353095.7 | AW23: 521078094.2 | AX23: 2849.181056 | AY23: 436449943.3 | AZ23: 153184.3483 | BA23: 55353116.42 | BB23: 520864641.8 | BC23: 2869.897334 | BD23: 436449943.3 | BE23: 152078.5911 | BF23: 55353125.24 | BG23: 520742963.7 | BH23: 2878.719956 | BI23: 436328265.3 | BJ23: 151570.2367 | BK23: 55353145.96 | BL23: 520529511.3 | BM23: 2899.436234 | BN23: 436114812.9 | BO23: 150413.6589 | BS23: 8.855989267e+13 | BT23: 8.856031002e+13 | BU23: 8.856445416e+13 | BV23: 8.856446498e+13 | BW23: 8.856450176e+13 | BX23: 8.856451257e+13 | BY23: 8.856443205e+13 | BZ23: 8.856446541e+13 | CA23: 8.856447964e+13 | CB23: 8.8564513e+13 | CC23: 0 | CD23: 0 | CE23: 0 | CF23: 0 | CG23: 0 | CH23: 0 | CI23: 0 | CJ23: 0 | CK23: 0 | CL23: 1 | CN23: 0 | CO23: 0 | CP23: 0 | CQ23: 0 | CR23: 0 | CS23: 0 | CT23: 0 | CU23: 0 | CV23: 1 | DA23: =DA22+50000 -> 300000 | DB23: 0.351 | DC23: 0 | DD23: 0.003 | DE23: 0.003 | DF23: 0.014 | DG23: 0.011 | DH23: 0.003 | DI23: 0.003 | DJ23: 0.003 | DK23: 0.641
B24: 17 | C24: 1571512.252 | D24: 0.1945187045 | E24: 0.179277036 | F24: 0.1898668728 | G24: 0.5160263895 | H24: 0.3487663161 | I24: 0.3389891745 | J24: 0.03823031565 | K24: 0.4557550171 | L24: 292.5327548 | M24: 613.1953555 | N24: 22272.22565 | O24: 278193.8284 | P24: 148.1807423 | Q24: 3433.474293 | R24: 3459.974008 | S24: 6375.579153 | T24: 2383.964323 | U24: 34.97577049 | V24: 0.2307094251 | X24: 44485109.18 | Y24: 40756210.88 | Z24: 44485442.92 | AA24: 79994321.88 | AB24: 44488739.88 | AC24: 467888760.7 | AD24: 3296.957233 | AE24: 387894438.8 | AF24: 117652.2507 | AG24: 44488739.94 | AH24: 467889417.9 | AI24: 3297.015511 | AJ24: 387895096 | AK24: 117650.3704 | AL24: 44488740.31 | AM24: 467884926.2 | AN24: 3297.388972 | AO24: 387890604.4 | AP24: 117635.6832 | AQ24: 44488740.37 | AR24: 467885583.4 | AS24: 3297.44725 | AT24: 387891261.6 | AU24: 117633.8034 | AV24: 44488739.53 | AW24: 467891740.9 | AX24: 3296.606637 | AY24: 387894408.5 | AZ24: 117664.7538 | BA24: 44488739.94 | BB24: 467888730.3 | BC24: 3297.015511 | BD24: 387894408.5 | BE24: 117650.1618 | BF24: 44488739.96 | BG24: 467887906.5 | BH24: 3297.038376 | BI24: 387893584.6 | BJ24: 117649.0961 | BK24: 44488740.37 | BL24: 467884895.9 | BM24: 3297.44725 | BN24: 387890574 | BO24: 117633.5949 | BS24: 7.117613393e+13 | BT24: 7.117662868e+13 | BU24: 7.118151592e+13 | BV24: 7.118151601e+13 | BW24: 7.118151661e+13 | BX24: 7.11815167e+13 | BY24: 7.118151535e+13 | BZ24: 7.118151601e+13 | CA24: 7.118151605e+13 | CB24: 7.11815167e+13 | CC24: 0 | CD24: 0 | CE24: 0 | CF24: 0 | CG24: 0 | CH24: 0 | CI24: 0 | CJ24: 0 | CK24: 0 | CL24: 1 | CN24: 0 | CO24: 0 | CP24: 0 | CQ24: 0 | CR24: 0 | CS24: 0 | CT24: 0 | CU24: 0 | CV24: 1 | DA24: 350000 | DB24: 0.302 | DC24: 0 | DD24: 0.003 | DE24: 0.003 | DF24: 0.012 | DG24: 0.013 | DH24: 0.003 | DI24: 0.003 | DJ24: 0.003 | DK24: 0.692
B25: 18 | C25: 1930915.093 | D25: 0.1616577097 | E25: 0.2167837693 | F25: 0.1937960233 | G25: 0.5416948238 | H25: 0.2144471343 | I25: 0.3095882052 | J25: 0.04323448839 | K25: 0.5994480316 | L25: 213.3550933 | M25: 317.9308832 | N25: 393.9167206 | O25: 1495652.143 | P25: 114.3375028 | Q25: 14991.00352 | R25: 11741.32072 | S25: 26918.17401 | T25: 5358.597681 | U25: 1450.125017 | V25: 0.7559250562 | X25: 54660239.53 | Y25: 220505849.9 | Z25: 54660516.86 | AA25: 240276186.6 | AB25: 54663256.6 | AC25: 432711780.2 | AD25: 2739.741219 | AE25: 192435593.6 | AF25: 70238.60219 | AG25: 54663267.03 | AH25: 432779783.4 | AI25: 2750.168614 | AJ25: 192503596.8 | AK25: 69997.01611 | AL25: 54663339.34 | AM25: 427676760 | AN25: 2822.477637 | AO25: 187400573.4 | AP25: 66395.7691 | AQ25: 54663349.77 | AR25: 427744763.2 | AS25: 2832.905032 | AT25: 187468576.6 | AU25: 66175.38341 | AV25: 54663218.11 | AW25: 434920486.2 | AX25: 2701.248577 | AY25: 192174010.9 | AZ25: 71142.66067 | BA25: 54663267.03 | BB25: 432450197.5 | BC25: 2750.168614 | BD25: 192174010.9 | BE25: 69877.17405 | BF25: 54663300.85 | BG25: 429885466 | BH25: 2783.984995 | BI25: 189609279.4 | BJ25: 68107.1485 | BK25: 54663349.77 | BL25: 427415177.4 | BM25: 2832.905032 | BN25: 187138990.8 | BO25: 66059.04139 | BS25: 8.745616275e+13 | BT25: 8.745658671e+13 | BU25: 8.746077786e+13 | BV25: 8.746079447e+13 | BW25: 8.746091527e+13 | BX25: 8.746093189e+13 | BY25: 8.746071406e+13 | BZ25: 8.74607948e+13 | CA25: 8.746085147e+13 | CB25: 8.746093221e+13 | CC25: 0 | CD25: 0 | CE25: 0 | CF25: 0 | CG25: 0 | CH25: 0 | CI25: 0 | CJ25: 0 | CK25: 0 | CL25: 1 | CN25: 0 | CO25: 0 | CP25: 0 | CQ25: 0 | CR25: 0 | CS25: 0 | CT25: 0 | CU25: 0 | CV25: 1 | DA25: 400000 | DB25: 0.257 | DC25: 0 | DD25: 0.003 | DE25: 0.003 | DF25: 0.01 | DG25: 0.014 | DH25: 0.003 | DI25: 0.003 | DJ25: 0.003 | DK25: 0.739
B26: 19 | C26: 1570444.411 | D26: 0.1532158624 | E26: 0.2094994784 | F26: 0.2004217404 | G26: 0.4726285266 | H26: 0.3054859611 | I26: 0.3330908504 | J26: 0.03013860095 | K26: 0.538373935 | L26: 168.0904108 | M26: 6861.940383 | N26: 4902.037012 | O26: 101127.9061 | P26: 37.37693492 | Q26: 83.6608867 | R26: 25686.61128 | S26: 99126.80773 | T26: 7273.78094 | U26: 449.3268637 | V26: 0.541242196 | X26: 44455206.67 | Y26: 14861383.19 | Z26: 44455504.68 | AA26: 39209372.9 | AB26: 44458453.12 | AC26: 271220415.6 | AD26: 2948.432673 | AE26: 232011042.7 | AF26: 78689.61865 | AG26: 44458458.86 | AH26: 273945692.6 | AI26: 2954.176648 | AJ26: 234736319.7 | AK26: 79459.13452 | AL26: 44458529.07 | AM26: 270906396.3 | AN26: 3024.382362 | AO26: 231697023.4 | AP26: 76609.69934 | AQ26: 44458534.81 | AR26: 273631673.3 | AS26: 3030.126337 | AT26: 234422300.4 | AU26: 77363.87015 | AV26: 44458420.6 | AW26: 270643467.6 | AX26: 2915.912761 | AY26: 234023922.4 | AZ26: 80257.51851 | BA26: 44458458.86 | BB26: 273233295.3 | BC26: 2954.176648 | BD26: 234023922.4 | BE26: 79217.98534 | BF26: 44458496.55 | BG26: 270329448.4 | BH26: 2991.86245 | BI26: 231120075.5 | BJ26: 77249.5659 | BK26: 44458534.81 | BL26: 272919276.1 | BM26: 3030.126337 | BN26: 233709903.2 | BO26: 77128.76534 | BS26: 7.112831581e+13 | BT26: 7.112876829e+13 | BU26: 7.113325377e+13 | BV26: 7.113326023e+13 | BW26: 7.11333756e+13 | BX26: 7.113338207e+13 | BY26: 7.113320231e+13 | BZ26: 7.113326094e+13 | CA26: 7.113332415e+13 | CB26: 7.113338278e+13 | CC26: 0 | CD26: 0 | CE26: 0 | CF26: 0 | CG26: 0 | CH26: 0 | CI26: 0 | CJ26: 0 | CK26: 0 | CL26: 1 | CN26: 0 | CO26: 0 | CP26: 0 | CQ26: 0 | CR26: 0 | CS26: 0 | CT26: 0 | CU26: 0 | CV26: 1 | DA26: 450000 | DB26: 0.209 | DC26: 0.001 | DD26: 0.003 | DE26: 0.003 | DF26: 0.009 | DG26: 0.013 | DH26: 0.003 | DI26: 0.003 | DJ26: 0.003 | DK26: 0.787
B27: 20 | C27: 1615532.398 | D27: 0.1906834569 | E27: 0.1289873828 | F27: 0.2027162414 | G27: 0.5434169124 | H27: 0.2908527115 | I27: 0.4921885709 | J27: 0.02984512526 | K27: 0.5370081172 | L27: 743.8634041 | M27: 1625.936722 | N27: 8608.953861 | O27: 632060.147 | P27: 63.08886652 | Q27: 6141.804286 | R27: 23283.20686 | S27: 30548.82198 | T27: 2661.880881 | U27: 907.2045797 | V27: 0.7639202584 | X27: 45731887.08 | Y27: 92595096.28 | Z27: 45732173.3 | AA27: 194901313.6 | AB27: 45735009.16 | AC27: 1200326686 | AD27: 2835.864279 | AE27: 1005425372 | AF27: 354539.3127 | AG27: 45735009.16 | AH27: 1200326693 | AI27: 2835.864531 | AJ27: 1005425380 | AK27: 354539.2837 | AL27: 45735009.16 | AM27: 1200326668 | AN27: 2835.865017 | AO27: 1005425354 | AP27: 354539.2142 | AQ27: 45735009.16 | AR27: 1200326675 | AS27: 2835.865269 | AT27: 1005425362 | AU27: 354539.1852 | AV27: 45735009.16 | AW27: 1200326690 | AX27: 2835.863718 | AY27: 1005425369 | AZ27: 354539.3815 | BA27: 45735009.16 | BB27: 1200326682 | BC27: 2835.864531 | BD27: 1005425369 | BE27: 354539.2798 | BF27: 45735009.16 | BG27: 1200326673 | BH27: 2835.864456 | BI27: 1005425359 | BJ27: 354539.2859 | BK27: 45735009.16 | BL27: 1200326664 | BM27: 2835.865269 | BN27: 1005425351 | BO27: 354539.1813 | BS27: 7.317092673e+13 | BT27: 7.317128237e+13 | BU27: 7.317481433e+13 | BV27: 7.317481433e+13 | BW27: 7.317481433e+13 | BX27: 7.317481433e+13 | BY27: 7.317481433e+13 | BZ27: 7.317481433e+13 | CA27: 7.317481433e+13 | CB27: 7.317481433e+13 | CC27: 0 | CD27: 0 | CE27: 0 | CF27: 0 | CG27: 0 | CH27: 0 | CI27: 0 | CJ27: 0 | CK27: 0 | CL27: 1 | CN27: 0 | CO27: 0 | CP27: 0 | CQ27: 0 | CR27: 0 | CS27: 0 | CT27: 0 | CU27: 0 | CV27: 1 | DA27: 500000 | DB27: 0.183 | DC27: 0 | DD27: 0.003 | DE27: 0.003 | DF27: 0.006 | DG27: 0.016 | DH27: 0.003 | DI27: 0.003 | DJ27: 0.003 | DK27: 0.816
B28: 21 | C28: 1503158.91 | D28: 0.2297484192 | E28: 0.1213065237 | F28: 0.187029671 | G28: 0.5088482252 | H28: 0.3097433778 | I28: 0.4184773827 | J28: 0.05130775152 | K28: 0.5442239109 | L28: 649.5885587 | M28: 496.8150635 | N28: 2332.037323 | O28: 129146.6238 | P28: 450.6179566 | Q28: 2625.449632 | R28: 48000.57589 | S28: 8143.244104 | T28: 315.8809613 | U28: 2015.327795 | V28: 0.5881127286 | X28: 42550437.82 | Y28: 18921135.53 | Z28: 42550738.18 | AA28: 107774681 | AB28: 42553704.43 | AC28: 970105240.2 | AD28: 2966.258328 | AE28: 862330559.2 | AF28: 290713.2366 | AG28: 42553705.72 | AH28: 970121144.9 | AI28: 2967.543101 | AJ28: 862346463.9 | AK28: 290592.7343 | AL28: 42553708.87 | AM28: 970088691.8 | AN28: 2970.689124 | AO28: 862314010.9 | AP28: 290274.066 | AQ28: 42553710.15 | AR28: 970104596.5 | AS28: 2971.973896 | AT28: 862329915.5 | AU28: 290153.9332 | AV28: 42553699.87 | AW28: 969995243.7 | AX28: 2961.695571 | AY28: 862211843.6 | AZ28: 291121.0227 | BA28: 42553705.72 | BB28: 969986524.6 | BC28: 2967.543101 | BD28: 862211843.6 | BE28: 290547.3701 | BF28: 42553704.3 | BG28: 969978695.3 | BH28: 2966.126367 | BI28: 862204014.4 | BJ28: 290683.5069 | BK28: 42553710.15 | BL28: 969969976.2 | BM28: 2971.973896 | BN28: 862195295.3 | BO28: 290108.6367 | BS28: 6.808068158e+13 | BT28: 6.808107331e+13 | BU28: 6.808495699e+13 | BV28: 6.808495903e+13 | BW28: 6.80849641e+13 | BX28: 6.808496614e+13 | BY28: 6.80849498e+13 | BZ28: 6.808495916e+13 | CA28: 6.808495691e+13 | CB28: 6.808496627e+13 | CC28: 0 | CD28: 0 | CE28: 0 | CF28: 0 | CG28: 0 | CH28: 0 | CI28: 0 | CJ28: 0 | CK28: 0 | CL28: 1 | CN28: 0 | CO28: 0 | CP28: 0 | CQ28: 0 | CR28: 0 | CS28: 0 | CT28: 0 | CU28: 0 | CV28: 1 | DA28: 550000 | DB28: 0.156 | DC28: 0 | DD28: 0.004 | DE28: 0.004 | DF28: 0.006 | DG28: 0.015 | DH28: 0.004 | DI28: 0.004 | DJ28: 0.004 | DK28: 0.843
B29: 22 | C29: 1784181.782 | D29: 0.1991976816 | E29: 0.2057106205 | F29: 0.1991570813 | G29: 0.5401648275 | H29: 0.2401525152 | I29: 0.3768336641 | J29: 0.04111815344 | K29: 0.5315326272 | L29: 443.7613658 | M29: 1816.618232 | N29: 6381.286957 | O29: 250878.0683 | P29: 13.93470207 | Q29: 6934.855513 | R29: 59426.22924 | S29: 1139.695472 | T29: 2816.287231 | U29: 311.5007994 | V29: 0.6541963993 | X29: 50506174.93 | Y29: 36775721.4 | Z29: 50506467.34 | AA29: 108003545.4 | AB29: 50509352.15 | AC29: 791048896.2 | AD29: 2884.811629 | AE29: 683045350.8 | AF29: 236772.947 | AG29: 50509352.93 | AH29: 791042233.1 | AI29: 2885.591448 | AJ29: 683038687.6 | AK29: 236706.6509 | AL29: 50509355.94 | AM29: 791018615.2 | AN29: 2888.597865 | AO29: 683015069.8 | AP29: 236452.1134 | AQ29: 50509356.72 | AR29: 791011952.1 | AS29: 2889.377684 | AT29: 683008406.6 | AU29: 236385.9908 | AV29: 50509349.83 | AW29: 790985954.2 | AX29: 2882.489771 | AY29: 682950893.4 | AZ29: 236930.8992 | BA29: 50509352.93 | BB29: 790954438.9 | BC29: 2885.591448 | BD29: 682950893.4 | BE29: 236676.2259 | BF29: 50509353.62 | BG29: 790955673.2 | BH29: 2886.276007 | BI29: 682952127.7 | BJ29: 236620.5193 | BK29: 50509356.72 | BL29: 790924157.9 | BM29: 2889.377684 | BN29: 682920612.4 | BO29: 236355.6056 | BS29: 8.080984311e+13 | BT29: 8.081023974e+13 | BU29: 8.081417239e+13 | BV29: 8.081417365e+13 | BW29: 8.081417848e+13 | BX29: 8.081417974e+13 | BY29: 8.081416874e+13 | BZ29: 8.081417374e+13 | CA29: 8.081417483e+13 | CB29: 8.081417982e+13 | CC29: 0 | CD29: 0 | CE29: 0 | CF29: 0 | CG29: 0 | CH29: 0 | CI29: 0 | CJ29: 0 | CK29: 0 | CL29: 1 | CN29: 0 | CO29: 0 | CP29: 0 | CQ29: 0 | CR29: 0 | CS29: 0 | CT29: 0 | CU29: 0 | CV29: 1 | DA29: 600000 | DB29: 0.135 | DC29: 0.001 | DD29: 0.004 | DE29: 0.004 | DF29: 0.009 | DG29: 0.017 | DH29: 0.004 | DI29: 0.004 | DJ29: 0.004 | DK29: 0.863
B30: 23 | C30: 1524186.974 | D30: 0.2297104028 | E30: 0.07295595447 | F30: 0.2111335352 | G30: 0.4271532099 | H30: 0.2201557558 | I30: 0.4400119447 | J30: 0.02773480619 | K30: 0.6208220701 | L30: 28.7827287 | M30: 3373.245823 | N30: 1637.424748 | O30: 124500.2892 | P30: 72.53836565 | Q30: 3639.84782 | R30: 3320.519505 | S30: 14169.64249 | T30: 3719.18946 | U30: 1261.133991 | V30: 0.4160633332 | X30: 43145548.29 | Y30: 18238307.41 | Z30: 43145868.04 | AA30: 21131904.56 | AB30: 43149036.31 | AC30: 48524652.02 | AD30: 3168.267894 | AE30: 27392747.45 | AF30: 8645.96946 | AG30: 43149036.37 | AH30: 48525926.23 | AI30: 3168.326013 | AJ30: 27394021.67 | AK30: 8646.213034 | AL30: 43149036.44 | AM30: 48524431.75 | AN30: 3168.39371 | AO30: 27392527.19 | AP30: 8645.556611 | AQ30: 43149036.49 | AR30: 48525705.97 | AS30: 3168.451829 | AT30: 27393801.41 | AU30: 8645.800183 | AV30: 43149036.16 | AW30: 48525039.89 | AX30: 3168.11526 | AY30: 27393655.81 | AZ30: 8646.672727 | BA30: 43149036.37 | BB30: 48525560.38 | BC30: 3168.326013 | BD30: 27393655.81 | BE30: 8646.09756 | BF30: 43149036.28 | BG30: 48524819.63 | BH30: 3168.241076 | BI30: 27392915.07 | BJ30: 8646.095549 | BK30: 43149036.49 | BL30: 48525340.11 | BM30: 3168.451829 | BN30: 27393435.55 | BO30: 8645.684715 | BS30: 6.903285902e+13 | BT30: 6.903336774e+13 | BU30: 6.903840957e+13 | BV30: 6.903840966e+13 | BW30: 6.903840977e+13 | BX30: 6.903840986e+13 | BY30: 6.903840933e+13 | BZ30: 6.903840966e+13 | CA30: 6.903840953e+13 | CB30: 6.903840986e+13 | CC30: 0 | CD30: 0 | CE30: 0 | CF30: 0 | CG30: 0 | CH30: 0 | CI30: 0 | CJ30: 0 | CK30: 0 | CL30: 1 | CN30: 0 | CO30: 0 | CP30: 0 | CQ30: 0 | CR30: 0 | CS30: 0 | CT30: 0 | CU30: 0 | CV30: 1 | DA30: 650000 | DB30: 0.117 | DC30: 0 | DD30: 0.003 | DE30: 0.003 | DF30: 0.007 | DG30: 0.016 | DH30: 0.003 | DI30: 0.003 | DJ30: 0.003 | DK30: 0.882 | DN30: 0 | DQ30: 0 | DR30: For PSA Plot
B31: 24 | C31: 1598851.155 | D31: 0.2612231372 | E31: 0.1765319092 | F31: 0.1879073516 | G31: 0.5827666829 | H31: 0.287201813 | I31: 0.3879524027 | J31: 0.04847836125 | K31: 0.4360350936 | L31: 1309.62077 | M31: 773.4945532 | N31: 5096.596139 | O31: 369035.2816 | P31: 54.30515133 | Q31: 758.4727427 | R31: 33810.99723 | S31: 25086.53248 | T31: 642.9751503 | U31: 79.87335122 | V31: 0.8719624742 | X31: 45259764.3 | Y31: 54062672.59 | Z31: 45260035.13 | AA31: 240783005.7 | AB31: 45262700.06 | AC31: 2079463535 | AD31: 2664.926828 | AE31: 1838680529 | AF31: 689955.3526 | AG31: 45262700.06 | AH31: 2079463535 | AI31: 2664.926832 | AJ31: 1838680529 | AK31: 689955.3515 | AL31: 45262700.06 | AM31: 2079463534 | AN31: 2664.926838 | AO31: 1838680529 | AP31: 689955.3498 | AQ31: 45262700.06 | AR31: 2079463535 | AS31: 2664.926842 | AT31: 1838680529 | AU31: 689955.3488 | AV31: 45262700.06 | AW31: 2079463535 | AX31: 2664.926815 | AY31: 1838680529 | AZ31: 689955.3558 | BA31: 45262700.06 | BB31: 2079463535 | BC31: 2664.926832 | BD31: 1838680529 | BE31: 689955.3515 | BF31: 45262700.06 | BG31: 2079463534 | BH31: 2664.926825 | BI31: 1838680529 | BJ31: 689955.3531 | BK31: 45262700.06 | BL31: 2079463534 | BM31: 2664.926842 | BN31: 1838680529 | BO31: 689955.3487 | BS31: 7.241556882e+13 | BT31: 7.241581543e+13 | BU31: 7.241824063e+13 | BV31: 7.241824063e+13 | BW31: 7.241824063e+13 | BX31: 7.241824063e+13 | BY31: 7.241824063e+13 | BZ31: 7.241824063e+13 | CA31: 7.241824063e+13 | CB31: 7.241824063e+13 | CC31: 0 | CD31: 0 | CE31: 0 | CF31: 0 | CG31: 0 | CH31: 0 | CI31: 0 | CJ31: 0 | CK31: 0 | CL31: 1 | CN31: 0 | CO31: 0 | CP31: 0 | CQ31: 0 | CR31: 0 | CS31: 0 | CT31: 0 | CU31: 0 | CV31: 1 | DA31: 700000 | DB31: 0.095 | DC31: 0 | DD31: 0.003 | DE31: 0.003 | DF31: 0.007 | DG31: 0.016 | DH31: 0.003 | DI31: 0.003 | DJ31: 0.003 | DK31: 0.904 | DN31: =DQ31/150000 -> 4333.333333 | DQ31: 650000000
B32: 25 | C32: 1632823.714 | D32: 0.1953396124 | E32: 0.1281288803 | F32: 0.1968983344 | G32: 0.4121929148 | H32: 0.2027279295 | I32: 0.3441624363 | J32: 0.03849118781 | K32: 0.4795677897 | L32: 15.48654566 | M32: 151.9520665 | N32: 7902.716958 | O32: 3095273.756 | P32: 4.1853624 | Q32: 5632.093209 | R32: 2482.302023 | S32: 123.0663342 | T32: 3589.951068 | U32: 525.0906253 | V32: 0.8565687817 | X32: 46221505.81 | Y32: 452588411 | Z32: 46221780.67 | AA32: 416623845.1 | AB32: 46224500.42 | AC32: 59856649.56 | AD32: 2719.745777 | AE32: -356767195.5 | AF32: -131176.6705 | AG32: 46224503.83 | AH32: 59376576.06 | AI32: 2723.157017 | AJ32: -357247269 | AK32: -131188.6413 | AL32: 46224515.3 | AM32: 57818140.21 | AN32: 2734.630613 | AO32: -358805704.9 | AP32: -131208.1066 | AQ32: 46224518.71 | AR32: 57338066.71 | AS32: 2738.041852 | AT32: -359285778.4 | AU32: -131219.9732 | AV32: 46224487.62 | AW32: 61634566.21 | AX32: 2706.953904 | AY32: -357274686.4 | AZ32: -131984.0304 | BA32: 46224503.83 | BB32: 59349158.68 | BC32: 2723.157017 | BD32: -357274686.4 | BE32: -131198.7095 | BF32: 46224502.51 | BG32: 59596056.86 | BH32: 2721.83874 | BI32: -357027788.2 | BJ32: -131171.5433 | BK32: 46224518.71 | BL32: 57310649.33 | BM32: 2738.041852 | BN32: -359313195.8 | BO32: -131229.9867 | BS32: 7.395395671e+13 | BT32: 7.395443245e+13 | BU32: 7.395914081e+13 | BV32: 7.395914675e+13 | BW32: 7.395916666e+13 | BX32: 7.39591726e+13 | BY32: 7.395911856e+13 | BZ32: 7.395914677e+13 | CA32: 7.395914442e+13 | CB32: 7.395917263e+13 | CC32: 0 | CD32: 0 | CE32: 0 | CF32: 0 | CG32: 0 | CH32: 0 | CI32: 0 | CJ32: 0 | CK32: 0 | CL32: 1 | CN32: 0 | CO32: 0 | CP32: 0 | CQ32: 0 | CR32: 0 | CS32: 0 | CT32: 0 | CU32: 0 | CV32: 1 | DA32: 750000 | DB32: 0.084 | DC32: 0 | DD32: 0.003 | DE32: 0.003 | DF32: 0.006 | DG32: 0.016 | DH32: 0.003 | DI32: 0.003 | DJ32: 0.003 | DK32: 0.915
B33: 26 | C33: 1975015.505 | D33: 0.2399850801 | E33: 0.1755406037 | F33: 0.1965242584 | G33: 0.4157238294 | H33: 0.3431913159 | I33: 0.3055256231 | J33: 0.0395649529 | K33: 0.5922662863 | L33: 596.5146199 | M33: 933.5875462 | N33: 20.78965649 | O33: 922503.1843 | P33: 0.7300942573 | Q33: 681.3079646 | R33: 3688.526621 | S33: 9958.771886 | T33: 2778.063379 | U33: 135.260011 | V33: 0.5424892205 | X33: 55908496.35 | Y33: 135144405.2 | Z33: 55908798.98 | AA33: 230731079.9 | AB33: 55911780.7 | AC33: 1177961245 | AD33: 2981.723822 | AE33: 947230165.1 | AF33: 317678.7059 | AG33: 55911780.7 | AH33: 1177961259 | AI33: 2981.724168 | AJ33: 947230178.6 | AK33: 317678.6736 | AL33: 55911780.71 | AM33: 1177960990 | AN33: 2981.730573 | AO33: 947229910.3 | AP33: 317677.9012 | AQ33: 55911780.71 | AR33: 1177961004 | AS33: 2981.730918 | AT33: 947229923.9 | AU33: 317677.8689 | AV33: 55911780.7 | AW33: 1177961406 | AX33: 2981.719323 | AY33: 947230168.7 | AZ33: 317679.1864 | BA33: 55911780.7 | BB33: 1177961249 | BC33: 2981.724168 | BD33: 947230168.7 | BE33: 317678.6703 | BF33: 55911780.7 | BG33: 1177961151 | BH33: 2981.726074 | BI33: 947230071.5 | BJ33: 317678.4345 | BK33: 55911780.71 | BL33: 1177960994 | BM33: 2981.730918 | BN33: 947229914 | BO33: 317677.8656 | BS33: 8.945345902e+13 | BT33: 8.945384763e+13 | BU33: 8.945767116e+13 | BV33: 8.945767116e+13 | BW33: 8.945767117e+13 | BX33: 8.945767117e+13 | BY33: 8.945767115e+13 | BZ33: 8.945767116e+13 | CA33: 8.945767116e+13 | CB33: 89457671170000 | CC33: 0 | CD33: 0 | CE33: 0 | CF33: 0 | CG33: 0 | CH33: 0 | CI33: 0 | CJ33: 0 | CK33: 0 | CL33: 1 | CN33: 0 | CO33: 0 | CP33: 0 | CQ33: 0 | CR33: 0 | CS33: 0 | CT33: 0 | CU33: 0 | CV33: 1 | DA33: 800000 | DB33: 0.069 | DC33: 0 | DD33: 0.003 | DE33: 0.003 | DF33: 0.006 | DG33: 0.016 | DH33: 0.003 | DI33: 0.003 | DJ33: 0.003 | DK33: 0.93
B34: 27 | C34: 1636611.656 | D34: 0.1869175261 | E34: 0.1265461133 | F34: 0.2051591266 | G34: 0.6035390686 | H34: 0.2391665834 | I34: 0.3266795735 | J34: 0.03713000244 | K34: 0.5085369126 | L34: 520.6273925 | M34: 320.9916636 | N34: 227.8859639 | O34: 135211.5758 | P34: 66.95918744 | Q34: 2541.873444 | R34: 21767.30713 | S34: 11560.28763 | T34: 1840.255556 | U34: 47.46229421 | V34: 0.9464009414 | X34: 46328834.12 | Y34: 19801673.25 | Z34: 46329103.12 | AA34: 96221550.79 | AB34: 46331765.87 | AC34: 845515679.3 | AD34: 2662.748563 | AE34: 749294128.5 | AF34: 281398.7542 | AG34: 46331766.5 | AH34: 845527082.4 | AI34: 2663.379374 | AJ34: 749305531.6 | AK34: 281336.3874 | AL34: 46331767.7 | AM34: 845507466.4 | AN34: 2664.573101 | AO34: 749285915.6 | AP34: 281202.9872 | AQ34: 46331768.33 | AR34: 845518869.4 | AS34: 2665.203912 | AT34: 749297318.6 | AU34: 281140.7094 | AV34: 46331763.72 | AW34: 845500349.6 | AX34: 2660.594994 | AY34: 749276507.3 | AZ34: 281619.9041 | BA34: 46331766.5 | BB34: 845498058.1 | BC34: 2663.379374 | BD34: 749276507.3 | BE34: 281325.4899 | BF34: 46331765.54 | BG34: 845492136.7 | BH34: 2662.419532 | BI34: 749270585.9 | BJ34: 281424.6879 | BK34: 46331768.33 | BL34: 845489845.1 | BM34: 2665.203912 | BN34: 749268294.3 | BO34: 281129.8193 | BS34: 7.412611478e+13 | BT34: 7.412646878e+13 | BU34: 7.412997988e+13 | BV34: 7.412998088e+13 | BW34: 7.412998281e+13 | BX34: 7.41299838e+13 | BY34: 7.412997645e+13 | BZ34: 7.412998091e+13 | CA34: 7.412997938e+13 | CB34: 7.412998383e+13 | CC34: 0 | CD34: 0 | CE34: 0 | CF34: 0 | CG34: 0 | CH34: 0 | CI34: 0 | CJ34: 0 | CK34: 0 | CL34: 1 | CN34: 0 | CO34: 0 | CP34: 0 | CQ34: 0 | CR34: 0 | CS34: 0 | CT34: 0 | CU34: 0 | CV34: 1 | DA34: 850000 | DB34: 0.058 | DC34: 0 | DD34: 0.003 | DE34: 0.003 | DF34: 0.005 | DG34: 0.017 | DH34: 0.003 | DI34: 0.003 | DJ34: 0.003 | DK34: 0.941
B35: 28 | C35: 1941887.841 | D35: 0.1264232392 | E35: 0.1907295924 | F35: 0.205383603 | G35: 0.5592822784 | H35: 0.2422954146 | I35: 0.3856139826 | J35: 0.04124798009 | K35: 0.4163215697 | L35: 54.48728935 | M35: 3110.748949 | N35: 313.4030583 | O35: 2986185.45 | P35: 40.87669094 | Q35: 3231.217145 | R35: 3677.629703 | S35: 10987.27765 | T35: 4247.649706 | U35: 340.8966401 | V35: 0.8736347224 | X35: 54971027.09 | Y35: 437053542.8 | Z35: 54971302 | AA35: 409429877 | AB35: 54974025.48 | AC35: 134433929.7 | AD35: 2723.472722 | AE35: -274995947.4 | AF35: -100972.536 | AG35: 54974026.94 | AH35: 134280894.9 | AI35: 2724.939368 | AJ35: -275148982.1 | AK35: -100974.3503 | AL35: 54974033.01 | AM35: 133415907.8 | AN35: 2731.008902 | AO35: -276013969.2 | AP35: -101066.6677 | AQ35: 54974034.48 | AR35: 133262873 | AS35: 2732.475548 | AT35: -276167004 | AU35: -101068.4265 | AV35: 54974021.35 | AW35: 134982557.9 | AX35: 2719.349814 | AY35: -275164989.5 | AZ35: -101187.7869 | BA35: 54974026.94 | BB35: 134264887.5 | BC35: 2724.939368 | BD35: -275164989.5 | BE35: -100980.2246 | BF35: 54974028.89 | BG35: 133964536 | BH35: 2726.885995 | BI35: -275465341 | BJ35: -101018.283 | BK35: 54974034.48 | BL35: 133246865.7 | BM35: 2732.475548 | BN35: -276183011.4 | BO35: -101074.2847 | BS35: 8.795320629e+13 | BT35: 8.795367378e+13 | BU35: 8.795830633e+13 | BV35: 8.795830883e+13 | BW35: 8.795831941e+13 | BX35: 8.79583219e+13 | BY35: 8.795829918e+13 | BZ35: 8.795830884e+13 | CA35: 8.795831226e+13 | CB35: 8.795832192e+13 | CC35: 0 | CD35: 0 | CE35: 0 | CF35: 0 | CG35: 0 | CH35: 0 | CI35: 0 | CJ35: 0 | CK35: 0 | CL35: 1 | CN35: 0 | CO35: 0 | CP35: 0 | CQ35: 0 | CR35: 0 | CS35: 0 | CT35: 0 | CU35: 0 | CV35: 1 | DA35: 900000 | DB35: 0.05 | DC35: 0.001 | DD35: 0.003 | DE35: 0.003 | DF35: 0.005 | DG35: 0.015 | DH35: 0.003 | DI35: 0.003 | DJ35: 0.004 | DK35: 0.948
B36: 29 | C36: 2002763.692 | D36: 0.1555738027 | E36: 0.2065549344 | F36: 0.1869002337 | G36: 0.5808215084 | H36: 0.2613884012 | I36: 0.2515215635 | J36: 0.0338813968 | K36: 0.5743066477 | L36: 88.58300661 | M36: 3170.220212 | N36: 1392.418329 | O36: 174006.311 | P36: 217.9867029 | Q36: 7435.007092 | R36: 36160.29289 | S36: 8535.729617 | T36: 729.4509414 | U36: 31.98589646 | V36: 0.9060761941 | X36: 56694435.13 | Y36: 25491592.15 | Z36: 56694706.45 | AA36: 40909062.96 | AB36: 56697389.46 | AC36: 179519424.5 | AD36: 2683.010905 | AE36: 138610361.5 | AF36: 51662.24306 | AG36: 56697389.47 | AH36: 179519739.8 | AI36: 2683.024268 | AJ36: 138610676.9 | AK36: 51662.10329 | AL36: 56697389.58 | AM36: 179518769.7 | AN36: 2683.13773 | AO36: 138609706.7 | AP36: 51659.55707 | AQ36: 56697389.6 | AR36: 179519085 | AS36: 2683.151094 | AT36: 138610022.1 | AU36: 51659.41732 | AV36: 56697389.38 | AW36: 179518215.1 | AX36: 2682.938597 | AY36: 138608884 | AZ36: 51663.08471 | BA36: 56697389.47 | BB36: 179517947 | BC36: 2683.024268 | BD36: 138608884 | BE36: 51661.43507 | BF36: 56697389.51 | BG36: 179517560.3 | BH36: 2683.065422 | BI36: 138608497.3 | BJ36: 51660.49854 | BK36: 56697389.6 | BL36: 179517292.2 | BM36: 2683.151094 | BN36: 138608229.2 | BO36: 51658.74913 | BS36: 9.071107072e+13 | BT36: 9.07114894e+13 | BU36: 9.071564361e+13 | BV36: 9.071564363e+13 | BW36: 9.071564382e+13 | BX36: 9.071564384e+13 | BY36: 9.07156435e+13 | BZ36: 9.071564363e+13 | CA36: 9.07156437e+13 | CB36: 9.071564384e+13 | CC36: 0 | CD36: 0 | CE36: 0 | CF36: 0 | CG36: 0 | CH36: 0 | CI36: 0 | CJ36: 0 | CK36: 0 | CL36: 1 | CN36: 0 | CO36: 0 | CP36: 0 | CQ36: 0 | CR36: 0 | CS36: 0 | CT36: 0 | CU36: 0 | CV36: 1 | DA36: 950000 | DB36: 0.043 | DC36: 0 | DD36: 0.003 | DE36: 0.003 | DF36: 0.006 | DG36: 0.014 | DH36: 0.003 | DI36: 0.003 | DJ36: 0.003 | DK36: 0.956
B37: 30 | C37: 1738607.414 | D37: 0.2679903895 | E37: 0.2438288848 | F37: 0.2337692302 | G37: 0.5676460979 | H37: 0.2166393855 | I37: 0.3742837292 | J37: 0.03556405559 | K37: 0.6488339513 | L37: 318.8634076 | M37: 1097.344889 | N37: 4968.022246 | O37: 23296.73679 | P37: 642.5923706 | Q37: 9084.351703 | R37: 13566.55587 | S37: 10116.8872 | T37: 7225.818518 | U37: 1372.439203 | V37: 0.9150560269 | X37: 49216265.62 | Y37: 3413256.035 | Z37: 49216529.48 | AA37: 54441873.7 | AB37: 49219119.45 | AC37: 555149347.7 | AD37: 2589.965159 | AE37: 500707474 | AF37: 193325.9497 | AG37: 49219119.51 | AH37: 555150138.6 | AI37: 2590.029543 | AJ37: 500708264.9 | AK37: 193321.4492 | AL37: 49219119.74 | AM37: 555149807 | AN37: 2590.254467 | AO37: 500707933.3 | AP37: 193304.5342 | AQ37: 49219119.8 | AR37: 555150597.8 | AS37: 2590.318851 | AT37: 500708724.1 | AU37: 193300.0348 | AV37: 49219119.27 | AW37: 555148382.2 | AX37: 2589.791092 | AY37: 500707110.8 | AZ37: 193338.8034 | BA37: 49219119.51 | BB37: 555148984.5 | BC37: 2590.029543 | BD37: 500707110.8 | BE37: 193321.0036 | BF37: 49219119.56 | BG37: 555148841.5 | BH37: 2590.0804 | BI37: 500706967.8 | BJ37: 193317.1525 | BK37: 49219119.8 | BL37: 555149443.7 | BM37: 2590.318851 | BN37: 500707570 | BO37: 193299.5893 | BS37: 7.874602158e+13 | BT37: 7.874639273e+13 | BU37: 7.875003597e+13 | BV37: 7.875003607e+13 | BW37: 7.875003643e+13 | BX37: 7.875003653e+13 | BY37: 7.875003569e+13 | BZ37: 7.875003607e+13 | CA37: 7.875003615e+13 | CB37: 7.875003653e+13 | CC37: 0 | CD37: 0 | CE37: 0 | CF37: 0 | CG37: 0 | CH37: 0 | CI37: 0 | CJ37: 0 | CK37: 0 | CL37: 1 | CN37: 0 | CO37: 0 | CP37: 0 | CQ37: 0 | CR37: 0 | CS37: 0 | CT37: 0 | CU37: 0 | CV37: 1 | DA37: 1000000 | DB37: 0.035 | DC37: 0 | DD37: 0.003 | DE37: 0.003 | DF37: 0.005 | DG37: 0.017 | DH37: 0.003 | DI37: 0.003 | DJ37: 0.003 | DK37: 0.964
B38: 31 | C38: 1460798.823 | D38: 0.2769865701 | E38: 0.1440601625 | F38: 0.1977334331 | G38: 0.5429991803 | H38: 0.2942394624 | I38: 0.3365771399 | J38: 0.04444421662 | K38: 0.486692853 | L38: 1809.436367 | M38: 4084.477428 | N38: 3638.873613 | O38: 317523.3935 | P38: 209.2229467 | Q38: 243.4408065 | R38: 17797.18522 | S38: 5.326010716 | T38: 427.5179797 | U38: 703.5051135 | V38: 0.5677869768 | X38: 41351206.68 | Y38: 46633064.21 | Z38: 41351506.05 | AA38: 283296254.3 | AB38: 41354452.3 | AC38: 2623654316 | AD38: 2946.247478 | AE38: 2340358062 | AF38: 794352.1648 | AG38: 41354454.92 | AH38: 2623619883 | AI38: 2948.860908 | AJ38: 2340323628 | AK38: 793636.4926 | AL38: 41354460.2 | AM38: 2623551279 | AN38: 2954.148558 | AO38: 2340255025 | AP38: 792192.7347 | AQ38: 41354462.82 | AR38: 2623516846 | AS38: 2956.761988 | AT38: 2340220591 | AU38: 791480.8837 | AV38: 41354441.06 | AW38: 2623719293 | AX38: 2935.003087 | AY38: 2340240348 | AZ38: 797355.3275 | BA38: 41354454.92 | BB38: 2623536602 | BC38: 2948.860908 | BD38: 2340240348 | BE38: 793608.2509 | BF38: 41354448.96 | BG38: 2623616256 | BH38: 2942.904167 | BI38: 2340320002 | BJ38: 795241.6622 | BK38: 41354462.82 | BL38: 2623433565 | BM38: 2956.761988 | BN38: 2340137311 | BO38: 791452.7175 | BS38: 6.616188406e+13 | BT38: 6.616212639e+13 | BU38: 6.616450003e+13 | BV38: 6.616450424e+13 | BW38: 6.616451277e+13 | BX38: 6.616451699e+13 | BY38: 6.616448197e+13 | BZ38: 6.616450433e+13 | CA38: 6.616449472e+13 | CB38: 6.616451707e+13 | CC38: 0 | CD38: 0 | CE38: 0 | CF38: 0 | CG38: 0 | CH38: 0 | CI38: 0 | CJ38: 0 | CK38: 0 | CL38: 1 | CN38: 0 | CO38: 0 | CP38: 0 | CQ38: 0 | CR38: 0 | CS38: 0 | CT38: 0 | CU38: 0 | CV38: 1 | DA38: =DA37+100000 -> 1100000 | DB38: 0.029 | DC38: 0.001 | DD38: 0.003 | DE38: 0.003 | DF38: 0.006 | DG38: 0.019 | DH38: 0.003 | DI38: 0.003 | DJ38: 0.004 | DK38: 0.969
B39: 32 | C39: 1532421.925 | D39: 0.1499816366 | E39: 0.08759042372 | F39: 0.1814105144 | G39: 0.5002642096 | H39: 0.2875234685 | I39: 0.2602834162 | J39: 0.03786367491 | K39: 0.4935143352 | L39: 101.5967655 | M39: 5269.982895 | N39: 2528.635358 | O39: 500279.0509 | P39: 151.8469756 | Q39: 818.2987639 | R39: 24455.00348 | S39: 11027.96899 | T39: 1410.558594 | U39: 558.1983446 | V39: 0.9709028323 | X39: 43379316.3 | Y39: 72479122.88 | Z39: 43379581.79 | AA39: 81553838.23 | AB39: 43382217.94 | AC39: 162106544.8 | AD39: 2636.149007 | AE39: 80552706.58 | AF39: 30556.96259 | AG39: 43382220.37 | AH39: 162202106.8 | AI39: 2638.583139 | AJ39: 80648268.59 | AK39: 30564.99051 | AL39: 43382230.61 | AM39: 161817248.4 | AN39: 2648.818678 | AO39: 80263410.18 | AP39: 30301.58721 | AQ39: 43382233.04 | AR39: 161912810.4 | AS39: 2651.25281 | AT39: 80358972.19 | AU39: 30309.81123 | AV39: 43382201.67 | AW39: 162152581.2 | AX39: 2619.881844 | AY39: 80308256.44 | AZ39: 30653.38868 | BA39: 43382220.37 | BB39: 161862094.7 | BC39: 2638.583139 | BD39: 80308256.44 | BE39: 30436.12887 | BF39: 43382214.34 | BG39: 161863284.8 | BH39: 2632.551515 | BI39: 80309446.56 | BJ39: 30506.3153 | BK39: 43382233.04 | BL39: 161572798.3 | BM39: 2651.25281 | BN39: 80018960.04 | BO39: 30181.56538 | BS39: 6.94068336e+13 | BT39: 6.940724931e+13 | BU39: 6.941138659e+13 | BV39: 6.941139039e+13 | BW39: 6.941140715e+13 | BX39: 6.941141095e+13 | BY39: 6.941136052e+13 | BZ39: 6.941139073e+13 | CA39: 6.941138108e+13 | CB39: 6.941141129e+13 | CC39: 0 | CD39: 0 | CE39: 0 | CF39: 0 | CG39: 0 | CH39: 0 | CI39: 0 | CJ39: 0 | CK39: 0 | CL39: 1 | CN39: 0 | CO39: 0 | CP39: 0 | CQ39: 0 | CR39: 0 | CS39: 0 | CT39: 0 | CU39: 0 | CV39: 1 | DA39: 1200000 | DB39: 0.02 | DC39: 0 | DD39: 0.003 | DE39: 0.004 | DF39: 0.004 | DG39: 0.016 | DH39: 0.003 | DI39: 0.004 | DJ39: 0.004 | DK39: 0.98
B40: 33 | C40: 1656955.398 | D40: 0.1918906833 | E40: 0.1878782047 | F40: 0.2076583692 | G40: 0.4822555027 | H40: 0.2594047806 | I40: 0.3155959657 | J40: 0.04393729907 | K40: 0.579444679 | L40: 207.9451563 | M40: 1057.108587 | N40: 75.60418293 | O40: 473563.4953 | P40: 28.75486028 | Q40: 3292.006557 | R40: 28362.96542 | S40: 318.4540407 | T40: 2698.986579 | U40: 76.90541816 | V40: 0.7977186889 | X40: 46904548.54 | Y40: 70374310.77 | Z40: 46904816.16 | AA40: 97122539.69 | AB40: 46907458.61 | AC40: 353103704.4 | AD40: 2642.446133 | AE40: 255981164.7 | AF40: 96872.80341 | AG40: 46907476.96 | AH40: 352734509.4 | AI40: 2660.800614 | AJ40: 255611969.8 | AK40: 96065.81133 | AL40: 46907606.66 | AM40: 350169532.8 | AN40: 2790.503873 | AO40: 253046993.1 | AP40: 90681.46994 | AQ40: 46907625.02 | AR40: 349800337.8 | AS40: 2808.858355 | AT40: 252677798.2 | AU40: 89957.47248 | AV40: 46907372.47 | AW40: 353202812.4 | AX40: 2556.309799 | AY40: 253887612 | AZ40: 99318.01384 | BA40: 46907476.96 | BB40: 351010151.7 | BC40: 2660.800614 | BD40: 253887612 | BE40: 95417.7516 | BF40: 46907520.53 | BG40: 350268640.8 | BH40: 2704.36754 | BI40: 253146101.1 | BJ40: 93606.3968 | BK40: 46907625.02 | BL40: 348075980.1 | BM40: 2808.858355 | BN40: 250953440.4 | BO40: 89343.57263 | BS40: 7.504720729e+13 | BT40: 7.504760873e+13 | BU40: 7.505158066e+13 | BV40: 7.50516104e+13 | BW40: 7.505182049e+13 | BX40: 7.505185023e+13 | BY40: 7.505144275e+13 | BZ40: 7.505161213e+13 | CA40: 7.505168257e+13 | CB40: 7.505185195e+13 | CC40: 0 | CD40: 0 | CE40: 0 | CF40: 0 | CG40: 0 | CH40: 0 | CI40: 0 | CJ40: 0 | CK40: 0 | CL40: 1 | CN40: 0 | CO40: 0 | CP40: 0 | CQ40: 0 | CR40: 0 | CS40: 0 | CT40: 0 | CU40: 0 | CV40: 1 | DA40: 1300000 | DB40: 0.015 | DC40: 0 | DD40: 0.003 | DE40: 0.004 | DF40: 0.004 | DG40: 0.018 | DH40: 0.003 | DI40: 0.004 | DJ40: 0.004 | DK40: 0.985
B41: 34 | C41: 1475221.764 | D41: 0.2237157236 | E41: 0.1465757874 | F41: 0.1676006957 | G41: 0.5651406009 | H41: 0.232659682 | I41: 0.267666828 | J41: 0.03437016101 | K41: 0.5367007098 | L41: 1585.259894 | M41: 1947.208852 | N41: 2317.143973 | O41: 1636638.159 | P41: 108.2900974 | Q41: 567.5406572 | R41: 48560.8744 | S41: 86053.32671 | T41: 511.7310091 | U41: 177.1804197 | V41: 0.7351304202 | X41: 41759705.14 | Y41: 239887447.3 | Z41: 41759991.48 | AA41: 433329670.2 | AB41: 41762820.46 | AC41: 2333380935 | AD41: 2828.973954 | AE41: 1900051264 | AF41: 671639.7164 | AG41: 41762821.86 | AH41: 2333546075 | AI41: 2830.378158 | AJ41: 1900216404 | AK41: 671364.8489 | AL41: 41762826 | AM41: 2332985040 | AN41: 2834.522341 | AO41: 1899655370 | AP41: 670185.3582 | AQ41: 41762827.41 | AR41: 2333150180 | AS41: 2835.926544 | AT41: 1899820510 | AU41: 669911.7485 | AV41: 41762813.93 | AW41: 2333698974 | AX41: 2822.443641 | AY41: 1900066423 | AZ41: 673199.0659 | BA41: 41762821.86 | BB41: 2333396093 | BC41: 2830.378158 | BD41: 1900066423 | BE41: 671311.859 | BF41: 41762819.47 | BG41: 2333303080 | BH41: 2827.992027 | BI41: 1899973410 | BJ41: 671845.3911 | BK41: 41762827.41 | BL41: 2333000199 | BM41: 2835.926544 | BN41: 1899670529 | BO41: 669858.8623 | BS41: 6.681528834e+13 | BT41: 6.681555304e+13 | BU41: 6.681817935e+13 | BV41: 6.681818143e+13 | BW41: 6.681818862e+13 | BX41: 6.68181907e+13 | BY41: 6.681816858e+13 | BZ41: 6.681818158e+13 | CA41: 6.681817785e+13 | CB41: 6.681819085e+13 | CC41: 0 | CD41: 0 | CE41: 0 | CF41: 0 | CG41: 0 | CH41: 0 | CI41: 0 | CJ41: 0 | CK41: 0 | CL41: 1 | CN41: 0 | CO41: 0 | CP41: 0 | CQ41: 0 | CR41: 0 | CS41: 0 | CT41: 0 | CU41: 0 | CV41: 1 | DA41: 1400000 | DB41: 0.012 | DC41: 0 | DD41: 0.004 | DE41: 0.004 | DF41: 0.005 | DG41: 0.019 | DH41: 0.003 | DI41: 0.004 | DJ41: 0.004 | DK41: 0.988
B42: 35 | C42: 1375280.453 | D42: 0.2117197485 | E42: 0.05606111739 | F42: 0.2612903974 | G42: 0.4849763528 | H42: 0.3259560955 | I42: 0.3970254841 | J42: 0.04792230703 | K42: 0.4714681764 | L42: 257.8545346 | M42: 1985.595919 | N42: 12766.997 | O42: 1544755.953 | P42: 27.66543089 | Q42: 3541.509373 | R42: 2850.046263 | S42: 12825.59403 | T42: 58.85647354 | U42: 561.264343 | V42: 0.836982382 | X42: 38930524.62 | Y42: 225397793.9 | Z42: 38930803.66 | AA42: 238690243.4 | AB42: 38933564.45 | AC42: 369857496.5 | AD42: 2760.789749 | AE42: 131167253.1 | AF42: 47510.77228 | AG42: 38933566.49 | AH42: 369803200.3 | AI42: 2762.837973 | AJ42: 131112956.9 | AK42: 47455.89796 | AL42: 38933568.5 | AM42: 369598698.8 | AN42: 2764.83979 | AO42: 130908455.5 | AP42: 47347.5736 | AQ42: 38933570.54 | AR42: 369544402.7 | AS42: 2766.888014 | AT42: 130854159.3 | AU42: 47292.90042 | AV42: 38933554.96 | AW42: 370501507.9 | AX42: 2751.302809 | AY42: 131093176.2 | AZ42: 47647.67286 | BA42: 38933566.49 | BB42: 369783419.6 | BC42: 2762.837973 | BD42: 131093176.2 | BE42: 47448.73838 | BF42: 38933559.01 | BG42: 370242710.3 | BH42: 2755.35285 | BI42: 131552466.9 | BJ42: 47744.32678 | BK42: 38933570.54 | BL42: 369524621.9 | BM42: 2766.888014 | BN42: 130834378.5 | BO42: 47285.75131 | BS42: 6.228861399e+13 | BT42: 6.228904716e+13 | BU42: 6.229333326e+13 | BV42: 6.229333659e+13 | BW42: 6.229334e+13 | BX42: 6.229334333e+13 | BY42: 6.229331743e+13 | BZ42: 6.229333661e+13 | CA42: 6.229332417e+13 | CB42: 6.229334335e+13 | CC42: 0 | CD42: 0 | CE42: 0 | CF42: 0 | CG42: 0 | CH42: 0 | CI42: 0 | CJ42: 0 | CK42: 0 | CL42: 1 | CN42: 0 | CO42: 0 | CP42: 0 | CQ42: 0 | CR42: 0 | CS42: 0 | CT42: 0 | CU42: 0 | CV42: 1 | DA42: 1500000 | DB42: 0.011 | DC42: 0 | DD42: 0.003 | DE42: 0.004 | DF42: 0.004 | DG42: 0.019 | DH42: 0.003 | DI42: 0.004 | DJ42: 0.004 | DK42: 0.989
B43: 36 | C43: 1802621.228 | D43: 0.128900385 | E43: 0.1561167311 | F43: 0.2093746618 | G43: 0.5892484638 | H43: 0.2534467315 | I43: 0.2359648319 | J43: 0.03899870998 | K43: 0.3873674434 | L43: 393.6355944 | M43: 1221.590732 | N43: 1732.434343 | O43: 887930.8132 | P43: 63.5989402 | Q43: 1815.958064 | R43: 4639.23981 | S43: 28.59197131 | T43: 6411.172886 | U43: 207.9334363 | V43: 0.9900648698 | X43: 51028611.09 | Y43: 127835135.3 | Z43: 51028867.11 | AA43: 181830933.7 | AB43: 51031404.97 | AC43: 715700717.2 | AD43: 2537.860445 | AE43: 533869783.5 | AF43: 210362.1515 | AG43: 51031413.15 | AH43: 715354827.7 | AI43: 2546.042501 | AJ43: 533523894 | AK43: 209550.2702 | AL43: 51031453.41 | AM43: 713715739.8 | AN43: 2586.305628 | AO43: 531884806.1 | AP43: 205654.274 | AQ43: 51031461.6 | AR43: 713369850.3 | AS43: 2594.487684 | AT43: 531538916.6 | AU43: 204872.3992 | AV43: 51031358.48 | AW43: 717494690.4 | AX43: 2491.372103 | AY43: 533346396.6 | AZ43: 214077.3737 | BA43: 51031413.15 | BB43: 715177330.3 | BC43: 2546.042501 | BD43: 533346396.6 | BE43: 209480.5552 | BF43: 51031406.92 | BG43: 715509713 | BH43: 2539.817286 | BI43: 533678779.3 | BJ43: 210124.8709 | BK43: 51031461.6 | BL43: 713192352.9 | BM43: 2594.487684 | BN43: 531361419.2 | BO43: 204803.986 | BS43: 8.164564992e+13 | BT43: 8.164600554e+13 | BU43: 8.164953225e+13 | BV43: 8.164954569e+13 | BW43: 8.164961175e+13 | BX43: 8.164962518e+13 | BY43: 8.164945607e+13 | BZ43: 8.164954586e+13 | CA43: 8.164953557e+13 | CB43: 8.164962536e+13 | CC43: 0 | CD43: 0 | CE43: 0 | CF43: 0 | CG43: 0 | CH43: 0 | CI43: 0 | CJ43: 0 | CK43: 0 | CL43: 1 | CN43: 0 | CO43: 0 | CP43: 0 | CQ43: 0 | CR43: 0 | CS43: 0 | CT43: 0 | CU43: 0 | CV43: 1 | DA43: 1600000 | DB43: 0.009 | DC43: 0 | DD43: 0.003 | DE43: 0.004 | DF43: 0.004 | DG43: 0.016 | DH43: 0.003 | DI43: 0.004 | DJ43: 0.004 | DK43: 0.991
B44: 37 | C44: 1607696.488 | D44: 0.201947719 | E44: 0.2298989061 | F44: 0.2003676244 | G44: 0.578339072 | H44: 0.2608093824 | I44: 0.2939595884 | J44: 0.03368819867 | K44: 0.5339664257 | L44: 116.6609193 | M44: 2961.052293 | N44: 9538.45892 | O44: 1186856.59 | P44: 54.21262257 | Q44: 4228.042016 | R44: 24125.22833 | S44: 3988.946346 | T44: 852.5192741 | U44: 528.2672193 | V44: 0.8319390521 | X44: 45510089.15 | Y44: 176018777.4 | Z44: 45510361.6 | AA44: 179791044.3 | AB44: 45513048.03 | AC44: 208944201.1 | AD44: 2686.427427 | AE44: 29153156.85 | AF44: 10852.01728 | AG44: 45513056.4 | AH44: 208574842 | AI44: 2694.803276 | AJ44: 28783797.69 | AK44: 10681.2241 | AL44: 45513102.57 | AM44: 206101799 | AN44: 2740.97416 | AO44: 26310754.72 | AP44: 9599.05245 | AQ44: 45513110.95 | AR44: 205732439.8 | AS44: 2749.350008 | AT44: 25941395.56 | AU44: 9435.464923 | AV44: 45513011.39 | AW44: 210425889.1 | AX44: 2649.786291 | AY44: 28299070.53 | AZ44: 10679.75581 | BA44: 45513056.4 | BB44: 208090114.8 | BC44: 2694.803276 | BD44: 28299070.53 | BE44: 10501.34932 | BF44: 45513065.93 | BG44: 207583487 | BH44: 2704.333024 | BI44: 27792442.71 | BJ44: 10277.00452 | BK44: 45513110.95 | BL44: 205247712.7 | BM44: 2749.350008 | BN44: 25456668.41 | BO44: 9259.158831 | BS44: 7.281596662e+13 | BT44: 7.281639877e+13 | BU44: 7.28206679e+13 | BV44: 7.282068167e+13 | BW44: 7.282075802e+13 | BX44: 7.282077179e+13 | BY44: 7.282060779e+13 | BZ44: 7.282068215e+13 | CA44: 7.282069791e+13 | CB44: 7.282077227e+13 | CC44: 0 | CD44: 0 | CE44: 0 | CF44: 0 | CG44: 0 | CH44: 0 | CI44: 0 | CJ44: 0 | CK44: 0 | CL44: 1 | CN44: 0 | CO44: 0 | CP44: 0 | CQ44: 0 | CR44: 0 | CS44: 0 | CT44: 0 | CU44: 0 | CV44: 1 | DA44: 1700000 | DB44: 0.003 | DC44: 0 | DD44: 0.004 | DE44: 0.004 | DF44: 0.007 | DG44: 0.014 | DH44: 0.002 | DI44: 0.004 | DJ44: 0.004 | DK44: 0.997
B45: 38 | C45: 2043144.185 | D45: 0.2003700104 | E45: 0.1556865908 | F45: 0.1779348121 | G45: 0.4823276615 | H45: 0.2833192389 | I45: 0.2995758436 | J45: 0.0409936505 | K45: 0.5270386134 | L45: 108.0929537 | M45: 1246.235897 | N45: 2078.877534 | O45: 872449.2955 | P45: 198.8061937 | Q45: 15981.18175 | R45: 28735.41028 | S45: 11538.89791 | T45: 437.3050246 | U45: 1051.515008 | V45: 0.9394678977 | X45: 57837609.87 | Y45: 128647970.7 | Z45: 57837858.17 | AA45: 139739064 | AB45: 57840313.52 | AC45: 241524777.5 | AD45: 2455.35784 | AE45: 101785713.5 | AF45: 41454.53337 | AG45: 57840339.3 | AH45: 241637857.9 | AI45: 2481.136687 | AJ45: 101898793.9 | AK45: 41069.39956 | AL45: 57840490.59 | AM45: 235894954.9 | AN45: 2632.428317 | AO45: 96155890.91 | AP45: 36527.44893 | AQ45: 57840516.37 | AR45: 236008035.3 | AS45: 2658.207164 | AT45: 96268971.35 | AU45: 36215.75197 | AV45: 57840167.44 | AW45: 244594762.5 | AX45: 2309.278593 | AY45: 98989468.59 | AZ45: 42865.97073 | BA45: 57840339.3 | BB45: 238728532.6 | BC45: 2481.136687 | BD45: 98989468.59 | BE45: 39896.82194 | BF45: 57840344.52 | BG45: 238964939.9 | BH45: 2486.349071 | BI45: 99225875.86 | BJ45: 39908.2643 | BK45: 57840516.37 | BL45: 233098710 | BM45: 2658.207164 | BN45: 93359645.99 | BO45: 35121.28297 | BS45: 9.254004714e+13 | BT45: 9.254043333e+13 | BU45: 9.254426011e+13 | BV45: 9.254430125e+13 | BW45: 9.254454906e+13 | BX45: 9.254459019e+13 | BY45: 9.254402332e+13 | BZ45: 9.254430416e+13 | CA45: 9.254431226e+13 | CB45: 9.25445931e+13 | CC45: 0 | CD45: 0 | CE45: 0 | CF45: 0 | CG45: 0 | CH45: 0 | CI45: 0 | CJ45: 0 | CK45: 0 | CL45: 1 | CN45: 0 | CO45: 0 | CP45: 0 | CQ45: 0 | CR45: 0 | CS45: 0 | CT45: 0 | CU45: 0 | CV45: 1
B46: 39 | C46: 1826929.758 | D46: 0.2183671166 | E46: 0.1116930042 | F46: 0.235596179 | G46: 0.5126228238 | H46: 0.2519116361 | I46: 0.424146501 | J46: 0.03339408628 | K46: 0.527593976 | L46: 802.092723 | M46: 1310.442927 | N46: 8960.846172 | O46: 249041.1351 | P46: 193.4984008 | Q46: 1703.468025 | R46: 23605.88362 | S46: 1379.453349 | T46: 347.4073793 | U46: 4284.854644 | V46: 0.8769676661 | X46: 51716602.54 | Y46: 36471332.19 | Z46: 51716876.87 | AA46: 167604730.8 | AB46: 51719590.49 | AC46: 1458858253 | AD46: 2713.625531 | AE46: 1291253522 | AF46: 475840.7183 | AG46: 51719591.95 | AH46: 1458845430 | AI46: 2715.080763 | AJ46: 1291240699 | AK46: 475580.9539 | AL46: 51719594.05 | AM46: 1458822359 | AN46: 2717.176895 | AO46: 1291217628 | AP46: 475205.582 | AQ46: 51719595.5 | AR46: 1458809536 | AS46: 2718.632127 | AT46: 1291204805 | AU46: 474946.4969 | AV46: 51719586.61 | AW46: 1458837355 | AX46: 2709.74075 | AY46: 1291175382 | AZ46: 476494.0637 | BA46: 51719591.95 | BB46: 1458780112 | BC46: 2715.080763 | BD46: 1291175382 | BE46: 475556.8965 | BF46: 51719590.16 | BG46: 1458801461 | BH46: 2713.292114 | BI46: 1291196730 | BJ46: 475878.26 | BK46: 51719595.5 | BL46: 1458744218 | BM46: 2718.632127 | BN46: 1291139487 | BO46: 474922.4709 | BS46: 8.27465276e+13 | BT46: 8.274683539e+13 | BU46: 8.274988593e+13 | BV46: 8.274988827e+13 | BW46: 8.274989165e+13 | BX46: 8.274989399e+13 | BY46: 8.274987974e+13 | BZ46: 8.274988834e+13 | CA46: 8.274988546e+13 | CB46: 8.274989406e+13 | CC46: 0 | CD46: 0 | CE46: 0 | CF46: 0 | CG46: 0 | CH46: 0 | CI46: 0 | CJ46: 0 | CK46: 0 | CL46: 1 | CN46: 0 | CO46: 0 | CP46: 0 | CQ46: 0 | CR46: 0 | CS46: 0 | CT46: 0 | CU46: 0 | CV46: 1 | DA46: Acceptability Curve
B47: 40 | C47: 1860759.956 | D47: 0.15253892 | E47: 0.1688861753 | F47: 0.2559627848 | G47: 0.629633257 | H47: 0.2380312596 | I47: 0.3584279978 | J47: 0.03386525822 | K47: 0.5293457564 | L47: 31.79286228 | M47: 1102.675443 | N47: 3695.351511 | O47: 350069.2207 | P47: 212.6208193 | Q47: 556.9717989 | R47: 31508.36378 | S47: 48371.8969 | T47: 1170.670199 | U47: 470.5904995 | V47: 0.8635073707 | X47: 52674314.34 | Y47: 51194814.23 | Z47: 52674588.36 | AA47: 53564362.08 | AB47: 52677301.05 | AC47: 64930390.44 | AD47: 2712.689133 | AE47: 11366028.36 | AF47: 4189.948719 | AG47: 52677305.43 | AH47: 65311960.69 | AI47: 2717.062111 | AJ47: 11747598.61 | AK47: 4323.640069 | AL47: 52677319.31 | AM47: 64643453.06 | AN47: 2730.948399 | AO47: 11079090.98 | AP47: 4056.865733 | AQ47: 52677323.68 | AR47: 65025023.31 | AS47: 2735.321377 | AT47: 11460661.23 | AU47: 4189.877405 | AV47: 52677288.47 | AW47: 64837627.33 | AX47: 2700.103835 | AY47: 11453478.83 | AZ47: 4241.866065 | BA47: 52677305.43 | BB47: 65017840.91 | BC47: 2717.062111 | BD47: 11453478.83 | BE47: 4215.390875 | BF47: 52677306.73 | BG47: 64550689.96 | BH47: 2718.363101 | BI47: 10986327.88 | BJ47: 4041.523325 | BK47: 52677323.68 | BL47: 64730903.53 | BM47: 2735.321377 | BN47: 11166541.45 | BO47: 4082.350814 | BS47: 8.427885175e+13 | BT47: 8.427928782e+13 | BU47: 8.428361675e+13 | BV47: 8.428362337e+13 | BW47: 8.428364626e+13 | BX47: 8.428365287e+13 | BY47: 8.428359671e+13 | BZ47: 8.428362366e+13 | CA47: 8.428362621e+13 | CB47: 8.428365316e+13 | CC47: 0 | CD47: 0 | CE47: 0 | CF47: 0 | CG47: 0 | CH47: 0 | CI47: 0 | CJ47: 0 | CK47: 0 | CL47: 1 | CN47: 0 | CO47: 0 | CP47: 0 | CQ47: 0 | CR47: 0 | CS47: 0 | CT47: 0 | CU47: 0 | CV47: 1 | DB47: Policy SQ | DC47: Policy UCSNP | DD47: Policy URCSNP | DE47: Policy UCSNPSF | DF47: Policy URCSNPSF | DG47: Policy UNDNP | DH47: Policy URNDNP | DI47: Policy UNDNPSF | DJ47: Policy URNDNPSF
B48: 41 | C48: 1859014.81 | D48: 0.1968093415 | E48: 0.1618132935 | F48: 0.2324460253 | G48: 0.5629753413 | H48: 0.2485361048 | I48: 0.3092635761 | J48: 0.05483777347 | K48: 0.5340027577 | L48: 1858.131693 | M48: 1153.010789 | N48: 2571.823365 | O48: 613959.0018 | P48: 525.8994911 | Q48: 3408.223904 | R48: 12028.94464 | S48: 2183.725632 | T48: 759.3367917 | U48: 182.6673305 | V48: 0.8213212814 | X48: 52624857.75 | Y48: 89956051.12 | Z48: 52625136.37 | AA48: 396050187.4 | AB48: 52627883.22 | AC48: 3427347341 | AD48: 2746.845504 | AE48: 3031297154 | AF48: 1103555.751 | AG48: 52627883.94 | AH48: 3427331100 | AI48: 2747.566657 | AJ48: 3031280912 | AK48: 1103260.19 | AL48: 52627886.47 | AM48: 3427263059 | AN48: 2750.101425 | AO48: 3031212872 | AP48: 1102218.574 | AQ48: 52627887.2 | AR48: 3427246818 | AS48: 2750.822578 | AT48: 3031196630 | AU48: 1101923.713 | AV48: 52627880.33 | AW48: 3427406693 | AX48: 2743.961714 | AY48: 3031260490 | AZ48: 1104702.181 | BA48: 52627883.94 | BB48: 3427310677 | BC48: 2747.566657 | BD48: 3031260490 | BE48: 1103252.757 | BF48: 52627883.59 | BG48: 3427322411 | BH48: 2747.217635 | BI48: 3031272224 | BJ48: 1103397.192 | BK48: 52627887.2 | BL48: 3427226395 | BM48: 2750.822578 | BN48: 3031176208 | BO48: 1101916.289 | BS48: 8.419968245e+13 | BT48: 8.419982215e+13 | BU48: 8.42011858e+13 | BV48: 8.420118697e+13 | BW48: 8.42011911e+13 | BX48: 8.420119227e+13 | BY48: 8.420118113e+13 | BZ48: 8.420118699e+13 | CA48: 8.420118642e+13 | CB48: 8.420119229e+13 | CC48: 0 | CD48: 0 | CE48: 0 | CF48: 0 | CG48: 0 | CH48: 0 | CI48: 0 | CJ48: 0 | CK48: 0 | CL48: 1 | CN48: 0 | CO48: 0 | CP48: 0 | CQ48: 0 | CR48: 0 | CS48: 0 | CT48: 0 | CU48: 0 | CV48: 1 | DA48: WTP Threshold
B49: 42 | C49: 2082112.248 | D49: 0.1865490712 | E49: 0.1045327175 | F49: 0.1801612321 | G49: 0.5189297212 | H49: 0.217955156 | I49: 0.4471064013 | J49: 0.03722136886 | K49: 0.5633275911 | L49: 801.6505233 | M49: 20.75450486 | N49: 8048.429731 | O49: 1154034.158 | P49: 123.5636033 | Q49: 7271.982449 | R49: 20380.90116 | S49: 1332.660461 | T49: 1061.620825 | U49: 1059.511798 | V49: 0.9858456418 | X49: 58940854.19 | Y49: 169062888.2 | Z49: 58941120.66 | AA49: 306845865.4 | AB49: 58943762.47 | AC49: 1665223797 | AD49: 2641.80892 | AE49: 1358377932 | AF49: 514184.7775 | AG49: 58943762.47 | AH49: 1665223797 | AI49: 2641.80892 | AJ49: 1358377932 | AK49: 514184.7775 | AL49: 58943762.47 | AM49: 1665223797 | AN49: 2641.80892 | AO49: 1358377932 | AP49: 514184.7775 | AQ49: 58943762.47 | AR49: 1665223797 | AS49: 2641.80892 | AT49: 1358377932 | AU49: 514184.7775 | AV49: 58943762.47 | AW49: 1665223797 | AX49: 2641.80892 | AY49: 1358377932 | AZ49: 514184.7775 | BA49: 58943762.47 | BB49: 1665223797 | BC49: 2641.80892 | BD49: 1358377932 | BE49: 514184.7775 | BF49: 58943762.47 | BG49: 1665223797 | BH49: 2641.80892 | BI49: 1358377932 | BJ49: 514184.7775 | BK49: 58943762.47 | BL49: 1665223797 | BM49: 2641.80892 | BN49: 1358377932 | BO49: 514184.7775 | BS49: 9.430519764e+13 | BT49: 9.430548621e+13 | BU49: 9.430835472e+13 | BV49: 9.430835472e+13 | BW49: 9.430835472e+13 | BX49: 9.430835472e+13 | BY49: 9.430835472e+13 | BZ49: 9.430835472e+13 | CA49: 9.430835472e+13 | CB49: 9.430835472e+13 | CC49: 0 | CD49: 0 | CE49: 1 | CF49: 1 | CG49: 1 | CH49: 1 | CI49: 1 | CJ49: 1 | CK49: 1 | CL49: 1 | CN49: 0 | CO49: 1 | CP49: 1 | CQ49: 1 | CR49: 1 | CS49: 1 | CT49: 1 | CU49: 1 | CV49: 1
B50: 43 | C50: 1622876.82 | D50: 0.1797181057 | E50: 0.1948491481 | F50: 0.2341159201 | G50: 0.5487988323 | H50: 0.2685393909 | I50: 0.3517997191 | J50: 0.02807044631 | K50: 0.6561722703 | L50: 178.6176881 | M50: 199.4352295 | N50: 6679.824343 | O50: 56135.24529 | P50: 36.98536609 | Q50: 1742.251303 | R50: 26972.95997 | S50: 4826.491149 | T50: 2931.427921 | U50: 330.1290747 | V50: 0.8726142634 | X50: 45939908.49 | Y50: 8263180.701 | Z50: 45940175.87 | AA50: 35206386.59 | AB50: 45942818.93 | AC50: 292376078.6 | AD50: 2643.060947 | AE50: 257169692 | AF50: 97299.94772 | AG50: 45942828.26 | AH50: 292468613.9 | AI50: 2652.394657 | AJ50: 257262227.3 | AK50: 96992.43911 | AL50: 45942886.28 | AM50: 292244830 | AN50: 2710.408701 | AO50: 257038443.4 | AP50: 94833.83199 | AQ50: 45942895.61 | AR50: 292337365.3 | AS50: 2719.742411 | AT50: 257130978.7 | AU50: 94542.40138 | AV50: 45942785.25 | AW50: 291811369.2 | AX50: 2609.384912 | AY50: 256610851 | AZ50: 98341.50947 | BA50: 45942828.26 | BB50: 291817237.6 | BC50: 2652.394657 | BD50: 256610851 | BE50: 96746.85867 | BF50: 45942852.6 | BG50: 291680120.6 | BH50: 2676.732666 | BI50: 256473734 | BJ50: 95815.96895 | BK50: 45942895.61 | BL50: 291685989 | BM50: 2719.742411 | BN50: 256479602.4 | BO50: 94302.90214 | BS50: 7.350384532e+13 | BT50: 7.350424618e+13 | BU50: 7.350821791e+13 | BV50: 7.350823275e+13 | BW50: 7.35083258e+13 | BX50: 7.350834064e+13 | BY50: 7.350816459e+13 | BZ50: 7.35082334e+13 | CA50: 7.350827248e+13 | CB50: 7.350834129e+13 | CC50: 0 | CD50: 0 | CE50: 0 | CF50: 0 | CG50: 0 | CH50: 0 | CI50: 0 | CJ50: 0 | CK50: 0 | CL50: 1 | CN50: 0 | CO50: 0 | CP50: 0 | CQ50: 0 | CR50: 0 | CS50: 0 | CT50: 0 | CU50: 0 | CV50: 1
B51: 44 | C51: 2172300.507 | D51: 0.1794321061 | E51: 0.2447220737 | F51: 0.186834324 | G51: 0.5132351175 | H51: 0.2824238839 | I51: 0.3359067858 | J51: 0.02854957413 | K51: 0.4716475026 | L51: 2.509847242 | M51: 792.6658197 | N51: 4130.047387 | O51: 491476.6282 | P51: 27.91547907 | Q51: 760.1415117 | R51: 21580.51224 | S51: 1482.20686 | T51: 2119.813949 | U51: 716.6855613 | V51: 0.823196528 | X51: 61493877.3 | Y51: 72000329.38 | Z51: 61494153.7 | AA51: 67440684.91 | AB51: 61496882 | AC51: 13940469.26 | AD51: 2728.302952 | AE51: -53500215.65 | AF51: -19609.33833 | AG51: 61496882 | AH51: 13940425.3 | AI51: 2728.305485 | AJ51: -53500259.61 | AK51: -19609.33624 | AL51: 61496882.02 | AM51: 13940009.82 | AN51: 2728.323968 | AO51: -53500675.09 | AP51: -19609.35568 | AQ51: 61496882.02 | AR51: 13939965.86 | AS51: 2728.326501 | AT51: -53500719.05 | AU51: -19609.35358 | AV51: 61496881.99 | AW51: 13940538.85 | AX51: 2728.291816 | AY51: -53500436.77 | AZ51: -19609.49941 | BA51: 61496882 | BB51: 13940248.14 | BC51: 2728.305485 | BD51: -53500436.77 | BE51: -19609.40117 | BF51: 61496882.01 | BG51: 13940079.4 | BH51: 2728.312832 | BI51: -53500605.51 | BJ51: -19609.41021 | BK51: 61496882.02 | BL51: 13939788.7 | BM51: 2728.326501 | BN51: -53500896.21 | BO51: -19609.41852 | BS51: 9.839013168e+13 | BT51: 9.839057847e+13 | BU51: 9.839499726e+13 | BV51: 9.839499726e+13 | BW51: 9.839499729e+13 | BX51: 9.83949973e+13 | BY51: 9.839499724e+13 | BZ51: 9.839499726e+13 | CA51: 9.839499728e+13 | CB51: 9.83949973e+13 | CC51: 0 | CD51: 0 | CE51: 0 | CF51: 0 | CG51: 0 | CH51: 0 | CI51: 0 | CJ51: 0 | CK51: 0 | CL51: 1 | CN51: 0 | CO51: 0 | CP51: 0 | CQ51: 0 | CR51: 0 | CS51: 0 | CT51: 0 | CU51: 0 | CV51: 1
B52: 45 | C52: 1735933.727 | D52: 0.1262620456 | E52: 0.1081032514 | F52: 0.1884575809 | G52: 0.6982975858 | H52: 0.2181813104 | I52: 0.2307837824 | J52: 0.03628084991 | K52: 0.3496929177 | L52: 154.5241368 | M52: 2269.332272 | N52: 1371.336063 | O52: 115690.0618 | P52: 35.66210598 | Q52: 9763.532482 | R52: 18138.93117 | S52: 5372.82247 | T52: 937.784531 | U52: 702.5305053 | V52: 0.9864858326 | X52: 49140696.26 | Y52: 16707513.77 | Z52: 49140959.33 | AA52: 40433302.04 | AB52: 49143572.49 | AC52: 268819123.3 | AD52: 2613.15468 | AE52: 228385821.3 | AF52: 87398.50842 | AG52: 49143577.58 | AH52: 268884277.1 | AI52: 2618.244718 | AJ52: 228450975 | AK52: 87253.48456 | AL52: 49143586.24 | AM52: 268912665.8 | AN52: 2626.908459 | AO52: 228479363.7 | AP52: 86976.5229 | AQ52: 49143591.33 | AR52: 268977819.5 | AS52: 2631.998496 | AT52: 228544517.5 | AU52: 86833.07296 | AV52: 49143547.81 | AW52: 268640498 | AX52: 2588.479619 | AY52: 228136183.6 | AZ52: 88135.20569 | BA52: 49143577.58 | BB52: 268569485.7 | BC52: 2618.244718 | BD52: 228136183.6 | BE52: 87133.25462 | BF52: 49143561.56 | BG52: 268734040.5 | BH52: 2602.233398 | BI52: 228300738.4 | BJ52: 87732.61408 | BK52: 49143591.33 | BL52: 268663028.1 | BM52: 2631.998496 | BN52: 228229726.1 | BO52: 86713.47129 | BS52: 7.862509731e+13 | BT52: 78625494496454 | BU52: 7.862944716e+13 | BV52: 7.862945524e+13 | BW52: 7.862946907e+13 | BX52: 7.862947715e+13 | BY52: 7.862940786e+13 | BZ52: 7.862945555e+13 | CA52: 7.862942977e+13 | CB52: 7.862947746e+13 | CC52: 0 | CD52: 0 | CE52: 0 | CF52: 0 | CG52: 0 | CH52: 0 | CI52: 0 | CJ52: 0 | CK52: 0 | CL52: 1 | CN52: 0 | CO52: 0 | CP52: 0 | CQ52: 0 | CR52: 0 | CS52: 0 | CT52: 0 | CU52: 0 | CV52: 1 | DA52: 0 | DB52: 0.928 | DC52: 0 | DD52: 0 | DE52: 0.012 | DF52: 0 | DG52: 0 | DH52: 0.002 | DI52: 0 | DJ52: 0.058
B53: 46 | C53: 1578132.813 | D53: 0.273180746 | E53: 0.1800485985 | F53: 0.2186457509 | G53: 0.6064057573 | H53: 0.2134905863 | I53: 0.2851514067 | J53: 0.03730217834 | K53: 0.5826296301 | L53: 3244.267253 | M53: 4501.664711 | N53: 3314.213602 | O53: 40023.34961 | P53: 103.1770414 | Q53: 12765.89526 | R53: 15884.00977 | S53: 3003.315914 | T53: 3748.782683 | U53: 644.9406698 | V53: 0.8613757835 | X53: 44673222.98 | Y53: 5863697.469 | Z53: 44673494.36 | AA53: 470562262.4 | AB53: 44676162.08 | AC53: 5072817438 | AD53: 2667.721339 | AE53: 4602255176 | AF53: 1725163.385 | AG53: 44676162.14 | AH53: 5072817590 | AI53: 2667.778469 | AJ53: 4602255327 | AK53: 1725126.498 | AL53: 44676162.28 | AM53: 5072818169 | AN53: 2667.917141 | AO53: 4602255906 | AP53: 1725037.047 | AQ53: 44676162.34 | AR53: 5072818320 | AS53: 2667.97427 | AT53: 4602256058 | AU53: 1725000.166 | AV53: 44676161.86 | AW53: 5072816488 | AX53: 2667.500305 | AY53: 4602253973 | AZ53: 1725305.885 | BA53: 44676162.14 | BB53: 5072816236 | BC53: 2667.778469 | BD53: 4602253973 | BE53: 1725125.991 | BF53: 44676162.06 | BG53: 5072817219 | BH53: 2667.696106 | BI53: 4602254956 | BJ53: 1725179.621 | BK53: 44676162.34 | BL53: 5072816966 | BM53: 2667.97427 | BN53: 4602254704 | BO53: 1724999.658 | BS53: 7.14771509e+13 | BT53: 71477120418576 | BU53: 7.147678652e+13 | BV53: 7.147678661e+13 | BW53: 7.147678683e+13 | BX53: 7.147678692e+13 | BY53: 7.147678616e+13 | BZ53: 7.147678661e+13 | CA53: 7.147678648e+13 | CB53: 7.147678692e+13 | CC53: 1 | CD53: 0 | CE53: 0 | CF53: 0 | CG53: 0 | CH53: 0 | CI53: 0 | CJ53: 0 | CK53: 0 | CL53: 0 | CN53: 1 | CO53: 0 | CP53: 0 | CQ53: 0 | CR53: 0 | CS53: 0 | CT53: 0 | CU53: 0 | CV53: 0 | DA53: 5000 | DB53: 0.907 | DC53: 0 | DD53: 0 | DE53: 0.014 | DF53: 0 | DG53: 0 | DH53: 0 | DI53: 0.002 | DJ53: 0.077
B54: 47 | C54: 1982626.294 | D54: 0.2343252226 | E54: 0.09681594764 | F54: 0.1997798783 | G54: 0.5330516081 | H54: 0.2804784509 | I54: 0.1972682812 | J54: 0.03705756311 | K54: 0.6172467837 | L54: 993.9802795 | M54: 1365.300101 | N54: 725.8731516 | O54: 377098.5718 | P54: 53.81576134 | Q54: 1636.935694 | R54: 3207.397263 | S54: 1559.514811 | T54: 1051.052556 | U54: 101.775166 | V54: 0.8456376437 | X54: 56124302.89 | Y54: 54954449.65 | Z54: 56124571.94 | AA54: 229254060.3 | AB54: 56127230.63 | AC54: 1956854312 | AD54: 2658.688686 | AE54: 1727600251 | AF54: 649794.1112 | AG54: 56127242.22 | AH54: 1956726092 | AI54: 2670.279132 | AJ54: 1727472031 | AK54: 646925.6381 | AL54: 56127289.95 | AM54: 1955911855 | AN54: 2718.014321 | AO54: 1726657794 | AP54: 635264.4212 | AQ54: 56127301.54 | AR54: 1955783634 | AS54: 2729.604767 | AT54: 1726529574 | AU54: 632519.9879 | AV54: 56127131.09 | AW54: 1958414829 | AX54: 2559.149203 | AY54: 1727327386 | AZ54: 674961.5786 | BA54: 56127242.22 | BB54: 1956581446 | BC54: 2670.279132 | BD54: 1727327386 | BE54: 646871.4694 | BF54: 56127190.41 | BG54: 1957472372 | BH54: 2618.474838 | BI54: 1728218312 | BJ54: 660009.5165 | BK54: 56127301.54 | BL54: 1955638989 | BM54: 2729.604767 | BN54: 1726384928 | BO54: 632466.9965 | BS54: 8.979882968e+13 | BT54: 8.979908585e+13 | BU54: 8.980161215e+13 | BV54: 8.980163082e+13 | BW54: 8.980170801e+13 | BX54: 8.980172668e+13 | BY54: 8.980145132e+13 | BZ54: 8.980163096e+13 | CA54: 8.980154719e+13 | CB54: 8.980172683e+13 | CC54: 0 | CD54: 0 | CE54: 0 | CF54: 0 | CG54: 0 | CH54: 0 | CI54: 0 | CJ54: 0 | CK54: 0 | CL54: 1 | CN54: 0 | CO54: 0 | CP54: 0 | CQ54: 0 | CR54: 0 | CS54: 0 | CT54: 0 | CU54: 0 | CV54: 1 | DA54: 10000 | DB54: 0.887 | DC54: 0 | DD54: 0 | DE54: 0.016 | DF54: 0 | DG54: 0 | DH54: 0 | DI54: 0 | DJ54: 0.097
B55: 48 | C55: 1636656.524 | D55: 0.1735445055 | E55: 0.08826637789 | F55: 0.1832780157 | G55: 0.5949248377 | H55: 0.293427279 | I55: 0.3567887846 | J55: 0.03396691687 | K55: 0.6788238137 | L55: 462.3736205 | M55: 1611.950128 | N55: 855.3511102 | O55: 130966.375 | P55: 236.0718461 | Q55: 5211.2234 | R55: 7855.145719 | S55: 4452.309795 | T55: 1800.096539 | U55: 336.6206992 | V55: 0.9840904972 | X55: 46330233.71 | Y55: 18628983.14 | Z55: 46330484.87 | AA55: 86132555.42 | AB55: 46332977.23 | AC55: 752820848.1 | AD55: 2492.361791 | AE55: 666688292.7 | AF55: 267492.5828 | AG55: 46332995.6 | AH55: 752914976.6 | AI55: 2510.729348 | AJ55: 666782421.2 | AK55: 265573.1976 | AL55: 46333036.18 | AM55: 752697246.2 | AN55: 2551.313704 | AO55: 666564690.8 | AP55: 261263.3209 | AQ55: 46333054.55 | AR55: 752791374.8 | AS55: 2569.681261 | AT55: 666658819.4 | AU55: 259432.4944 | AV55: 46332911.89 | AW55: 752860339.5 | AX55: 2427.022848 | AY55: 666414084.4 | AZ55: 274580.8862 | BA55: 46332995.6 | BB55: 752546639.8 | BC55: 2510.729348 | BD55: 666414084.4 | BE55: 265426.4925 | BF55: 46332970.84 | BG55: 752736737.6 | BH55: 2485.974761 | BI55: 666604182.2 | BJ55: 268145.9976 | BK55: 46333054.55 | BL55: 752423037.9 | BM55: 2569.681261 | BN55: 666290482.5 | BO55: 259289.1549 | BS55: 7.41283553e+13 | BT55: 7.412868966e+13 | BU55: 7.413201075e+13 | BV55: 7.413204004e+13 | BW55: 7.413210519e+13 | BX55: 7.413213449e+13 | BY55: 7.413190616e+13 | BZ55: 7.413204041e+13 | CA55: 7.413200061e+13 | CB55: 7.413213486e+13 | CC55: 0 | CD55: 0 | CE55: 0 | CF55: 0 | CG55: 0 | CH55: 0 | CI55: 0 | CJ55: 0 | CK55: 0 | CL55: 1 | CN55: 0 | CO55: 0 | CP55: 0 | CQ55: 0 | CR55: 0 | CS55: 0 | CT55: 0 | CU55: 0 | CV55: 1 | DA55: =DA54+10000 -> 20000 | DB55: 0.859 | DC55: 0 | DD55: 0 | DE55: 0.018 | DF55: 0 | DG55: 0 | DH55: 0 | DI55: 0 | DJ55: 0.123
B56: 49 | C56: 1874531.73 | D56: 0.2509348629 | E56: 0.1903737879 | F56: 0.1971046209 | G56: 0.4457875067 | H56: 0.2671488436 | I56: 0.4101431583 | J56: 0.03452758362 | K56: 0.5420010378 | L56: 1568.433516 | M56: 2052.11835 | N56: 4083.617302 | O56: 85608.52753 | P56: 291.8920228 | Q56: 5381.372166 | R56: 5630.437327 | S56: 2677.687133 | T56: 1731.358578 | U56: 996.7536059 | V56: 0.8201310861 | X56: 53064130.16 | Y56: 12563681.21 | Z56: 53064405.55 | AA56: 278598827.5 | AB56: 53067119.07 | AC56: 2914773897 | AD56: 2713.512776 | AE56: 2636175069 | AF56: 971499.0447 | AG56: 53067120.13 | AH56: 2914776764 | AI56: 2714.573136 | AJ56: 2636177936 | AK56: 971120.616 | AL56: 53067125.02 | AM56: 2914764930 | AN56: 2719.463762 | AO56: 2636166103 | AP56: 969369.822 | AQ56: 53067126.08 | AR56: 2914767797 | AS56: 2720.524122 | AT56: 2636168970 | AU56: 968993.0511 | AV56: 53067115.26 | AW56: 2914773944 | AX56: 2709.707228 | AY56: 2636163311 | AZ56: 972859.0911 | BA56: 53067120.13 | BB56: 2914762138 | BC56: 2714.573136 | BD56: 2636163311 | BE56: 971115.2283 | BF56: 53067121.21 | BG56: 2914764978 | BH56: 2715.658214 | BI56: 2636166150 | BJ56: 970728.2517 | BK56: 53067126.08 | BL56: 2914753172 | BM56: 2720.524122 | BN56: 2636154344 | BO56: 968987.6751 | BS56: 8.49025957e+13 | BT56: 8.490277028e+13 | BU56: 8.490447573e+13 | BV56: 8.490447742e+13 | BW56: 8.490448526e+13 | BX56: 8.490448695e+13 | BY56: 8.490446964e+13 | BZ56: 8.490447744e+13 | CA56: 8.490447917e+13 | CB56: 8.490448697e+13 | CC56: 0 | CD56: 0 | CE56: 0 | CF56: 0 | CG56: 0 | CH56: 0 | CI56: 0 | CJ56: 0 | CK56: 0 | CL56: 1 | CN56: 0 | CO56: 0 | CP56: 0 | CQ56: 0 | CR56: 0 | CS56: 0 | CT56: 0 | CU56: 0 | CV56: 1 | DA56: 30000 | DB56: 0.839 | DC56: 0 | DD56: 0 | DE56: 0.02 | DF56: 0 | DG56: 0 | DH56: 0 | DI56: 0 | DJ56: 0.141
B57: 50 | C57: 1847336.26 | D57: 0.199048415 | E57: 0.1175081674 | F57: 0.2117938778 | G57: 0.4656426005 | H57: 0.2385105266 | I57: 0.4457302434 | J57: 0.03316686962 | K57: 0.5495884874 | L57: 180.4121926 | M57: 89.19482969 | N57: 7754.215823 | O57: 591714.8105 | P57: 10.45206967 | Q57: 858.1630827 | R57: 15730.40712 | S57: 8517.19226 | T57: 3611.166073 | U57: 68.82552578 | V57: 0.5753709635 | X57: 52293975.01 | Y57: 86658580.83 | Z57: 52294278.68 | AA57: 110387110.4 | AB57: 52297285.95 | AC57: 339591278.6 | AD57: 3007.265441 | AE57: 229204168.2 | AF57: 76216.80652 | AG57: 52297286.6 | AH57: 339586669.4 | AI57: 3007.920475 | AJ57: 229199559 | AK57: 76198.67643 | AL57: 52297288.05 | AM57: 339540738.7 | AN57: 3009.364673 | AO57: 229153628.3 | AP57: 76146.84599 | AQ57: 52297288.7 | AR57: 339536129.5 | AS57: 3010.019708 | AT57: 229149019.1 | AU57: 76128.74377 | AV57: 52297284.28 | AW57: 339611123.1 | AX57: 3005.595552 | AY57: 229178276.6 | AZ57: 76250.53759 | BA57: 52297286.6 | BB57: 339565387 | BC57: 3007.920475 | BD57: 229178276.6 | BE57: 76191.60098 | BF57: 52297286.38 | BG57: 339560583.2 | BH57: 3007.694785 | BI57: 229173472.8 | BJ57: 76195.72104 | BK57: 52297288.7 | BL57: 339514847.1 | BM57: 3010.019708 | BN57: 229127736.7 | BO57: 76121.67325 | BS57: 8.367027337e+13 | BT57: 8.367073551e+13 | BU57: 8.367531793e+13 | BV57: 8.367531898e+13 | BW57: 8.367532134e+13 | BX57: 8.367532239e+13 | BY57: 8.367531523e+13 | BZ57: 8.3675319e+13 | CA57: 8.367531864e+13 | CB57: 8.367532241e+13 | CC57: 0 | CD57: 0 | CE57: 0 | CF57: 0 | CG57: 0 | CH57: 0 | CI57: 0 | CJ57: 0 | CK57: 0 | CL57: 1 | CN57: 0 | CO57: 0 | CP57: 0 | CQ57: 0 | CR57: 0 | CS57: 0 | CT57: 0 | CU57: 0 | CV57: 1 | DA57: 40000 | DB57: 0.809 | DC57: 0 | DD57: 0 | DE57: 0.022 | DF57: 0.001 | DG57: 0 | DH57: 0 | DI57: 0 | DJ57: 0.169
B58: 51 | C58: 1705489.313 | D58: 0.2069120983 | E58: 0.1869968709 | F58: 0.1532820892 | G58: 0.5131046032 | H58: 0.2856517568 | I58: 0.3175040519 | J58: 0.03388379824 | K58: 0.5326168724 | L58: 548.4851112 | M58: 384.0314839 | N58: 6524.024311 | O58: 671652.0867 | P58: 5.534308112 | Q58: 140.7442203 | R58: 44958.73422 | S58: 12091.40223 | T58: 1214.7532 | U58: 893.7035523 | V58: 0.6544273553 | X58: 48278417.69 | Y58: 98429240.75 | Z58: 48278710.91 | AA58: 176797844.5 | AB58: 48281607.37 | AC58: 936525310.4 | AD58: 2896.462885 | AE58: 759727465.9 | AF58: 262294.908 | AG58: 48281607.73 | AH58: 936527404.4 | AI58: 2896.819711 | AJ58: 759729559.9 | AK58: 262263.3218 | AL58: 48281609.75 | AM58: 936457295 | AN58: 2898.841253 | AO58: 759659450.5 | AP58: 262056.2439 | AQ58: 48281610.11 | AR58: 936459389 | AS58: 2899.198079 | AT58: 759661544.4 | AU58: 262024.713 | AV58: 48281605.64 | AW58: 936529088.9 | AX58: 2894.732583 | AY58: 759683751.7 | AZ58: 262436.5913 | BA58: 48281607.73 | BB58: 936481596.3 | BC58: 2896.819711 | BD58: 759683751.7 | BE58: 262247.5085 | BF58: 48281608.02 | BG58: 936461073.5 | BH58: 2897.110952 | BI58: 759663229 | BJ58: 262214.0614 | BK58: 48281610.11 | BL58: 936413580.8 | BM58: 2899.198079 | BN58: 759615736.3 | BO58: 262008.9127 | BS58: 7.724536988e+13 | BT58: 7.724576065e+13 | BU58: 7.724963527e+13 | BV58: 7.724963584e+13 | BW58: 7.724963914e+13 | BX58: 7.724963971e+13 | BY58: 7.724963249e+13 | BZ58: 7.724963588e+13 | CA58: 7.724963637e+13 | CB58: 7.724963975e+13 | CC58: 0 | CD58: 0 | CE58: 0 | CF58: 0 | CG58: 0 | CH58: 0 | CI58: 0 | CJ58: 0 | CK58: 0 | CL58: 1 | CN58: 0 | CO58: 0 | CP58: 0 | CQ58: 0 | CR58: 0 | CS58: 0 | CT58: 0 | CU58: 0 | CV58: 1 | DA58: 50000 | DB58: 0.783 | DC58: 0 | DD58: 0 | DE58: 0.019 | DF58: 0.001 | DG58: 0 | DH58: 0 | DI58: 0 | DJ58: 0.198
B59: 52 | C59: 1752226.307 | D59: 0.2188682861 | E59: 0.2002864949 | F59: 0.2175613815 | G59: 0.422686261 | H59: 0.3264256297 | I59: 0.3963223014 | J59: 0.04389723072 | K59: 0.6826427115 | L59: 178.1892335 | M59: 852.7845109 | N59: 7432.555602 | O59: 330640.3374 | P59: 6.883109494 | Q59: 7857.710061 | R59: 2743.033827 | S59: 23291.46682 | T59: 801.6464421 | U59: 1110.945832 | V59: 0.9226767991 | X59: 49601802.21 | Y59: 48723432.22 | Z59: 49602067.04 | AA59: 73420401.57 | AB59: 49604676.72 | AC59: 317546267.7 | AD59: 2609.675029 | AE59: 244125866.1 | AF59: 93546.46208 | AG59: 49604678.74 | AH59: 317777833.4 | AI59: 2611.694181 | AJ59: 244357431.9 | AK59: 93562.80443 | AL59: 49604709.78 | AM59: 317125009.9 | AN59: 2642.737403 | AO59: 243704608.3 | AP59: 92216.73257 | AQ59: 49604711.8 | AR59: 317356575.6 | AS59: 2644.756555 | AT59: 243936174.1 | AU59: 92233.88581 | AV59: 49604663.22 | AW59: 317723602.1 | AX59: 2596.170016 | AY59: 244326493.1 | AZ59: 94110.35935 | BA59: 49604678.74 | BB59: 317746894.7 | BC59: 2611.694181 | BD59: 244326493.1 | BE59: 93550.9582 | BF59: 49604696.28 | BG59: 317302344.3 | BH59: 2629.23239 | BI59: 243881942.8 | BJ59: 92757.84966 | BK59: 49604711.8 | BL59: 317325636.9 | BM59: 2644.756555 | BN59: 243905235.3 | BO59: 92222.18767 | BS59: 7.936283481e+13 | BT59: 7.936323385e+13 | BU59: 7.936716521e+13 | BV59: 7.93671682e+13 | BW59: 7.936721853e+13 | BX59: 7.936722153e+13 | BY59: 7.936714342e+13 | BZ59: 7.936716824e+13 | CA59: 7.936719674e+13 | CB59: 7.936722156e+13 | CC59: 0 | CD59: 0 | CE59: 0 | CF59: 0 | CG59: 0 | CH59: 0 | CI59: 0 | CJ59: 0 | CK59: 0 | CL59: 1 | CN59: 0 | CO59: 0 | CP59: 0 | CQ59: 0 | CR59: 0 | CS59: 0 | CT59: 0 | CU59: 0 | CV59: 1 | DA59: 60000 | DB59: 0.751 | DC59: 0.001 | DD59: 0.001 | DE59: 0.02 | DF59: 0.002 | DG59: 0.001 | DH59: 0.001 | DI59: 0.001 | DJ59: 0.23
B60: 53 | C60: 1559850.333 | D60: 0.2116892498 | E60: 0.2109500869 | F60: 0.2185645491 | G60: 0.5658184483 | H60: 0.2209811917 | I60: 0.484004672 | J60: 0.03578096323 | K60: 0.4947237306 | L60: 945.4981404 | M60: 857.1934947 | N60: 2179.892438 | O60: 1224119.92 | P60: 8.49404773 | Q60: 7826.088169 | R60: 33812.23908 | S60: 56338.64116 | T60: 654.9063901 | U60: 2254.344456 | V60: 0.8925906895 | X60: 44155681.32 | Y60: 179600997.9 | Z60: 44155950.51 | AA60: 299547057.5 | AB60: 44158606.05 | AC60: 1476550517 | AD60: 2655.539863 | AE60: 1177003459 | AF60: 443225.6792 | AG60: 44158608.16 | AH60: 1476586582 | AI60: 2657.648917 | AJ60: 1177039524 | AK60: 442887.515 | AL60: 44158612.28 | AM60: 1476220067 | AN60: 2661.769569 | AO60: 1176673010 | AP60: 442064.1905 | AQ60: 44158614.39 | AR60: 1476256132 | AS60: 2663.878623 | AT60: 1176709075 | AU60: 441727.7366 | AV60: 44158602.36 | AW60: 1476665816 | AX60: 2651.850538 | AY60: 1176946356 | AZ60: 443820.7731 | BA60: 44158608.16 | BB60: 1476493414 | BC60: 2657.648917 | BD60: 1176946356 | BE60: 442852.4584 | BF60: 44158608.59 | BG60: 1476335367 | BH60: 2658.080245 | BI60: 1176788310 | BJ60: 442721.1375 | BK60: 44158614.39 | BL60: 1476162964 | BM60: 2663.878623 | BN60: 1176615907 | BO60: 441692.762 | BS60: 7.06489105e+13 | BT60: 7.064922127e+13 | BU60: 7.065229313e+13 | BV60: 7.065229647e+13 | BW60: 7.065230343e+13 | BX60: 7.065230677e+13 | BY60: 7.065228712e+13 | BZ60: 7.065229657e+13 | CA60: 7.065229741e+13 | CB60: 7.065230686e+13 | CC60: 0 | CD60: 0 | CE60: 0 | CF60: 0 | CG60: 0 | CH60: 0 | CI60: 0 | CJ60: 0 | CK60: 0 | CL60: 1 | CN60: 0 | CO60: 0 | CP60: 0 | CQ60: 0 | CR60: 0 | CS60: 0 | CT60: 0 | CU60: 0 | CV60: 1 | DA60: 70000 | DB60: 0.727 | DC60: 0.001 | DD60: 0.001 | DE60: 0.021 | DF60: 0.002 | DG60: 0.001 | DH60: 0.001 | DI60: 0.001 | DJ60: 0.253
B61: 54 | C61: 1847578.3 | D61: 0.1281324516 | E61: 0.1397738075 | F61: 0.1906997537 | G61: 0.5048907708 | H61: 0.2796942952 | I61: 0.3043711866 | J61: 0.03970477702 | K61: 0.4181938425 | L61: 82.14417298 | M61: 986.8329765 | N61: 79.24877345 | O61: 373039.0762 | P61: 196.5639418 | Q61: 1601.257657 | R61: 4391.870031 | S61: 15689.98828 | T61: 5690.693378 | U61: 3877.334592 | V61: 0.715028484 | X61: 52300978.38 | Y61: 54649189.04 | Z61: 52301271.71 | AA61: 64210949.47 | AB61: 52304182.25 | AC61: 157269051.6 | AD61: 2910.543721 | AE61: 93058102.11 | AF61: 31972.75528 | AG61: 52304182.25 | AH61: 157269062.8 | AI61: 2910.543903 | AJ61: 93058113.34 | AK61: 31972.75713 | AL61: 52304182.25 | AM61: 157269033.3 | AN61: 2910.544935 | AO61: 93058083.85 | AP61: 31972.73566 | AQ61: 52304182.26 | AR61: 157269044.5 | AS61: 2910.545118 | AT61: 93058095.07 | AU61: 31972.73751 | AV61: 52304182.25 | AW61: 157269062.8 | AX61: 2910.542785 | AY61: 93058109.37 | AZ61: 31972.76805 | BA61: 52304182.25 | BB61: 157269058.8 | BC61: 2910.543903 | BD61: 93058109.37 | BE61: 31972.75577 | BF61: 52304182.25 | BG61: 157269044.5 | BH61: 2910.544 | BI61: 93058095.05 | BJ61: 31972.74978 | BK61: 52304182.26 | BL61: 157269040.6 | BM61: 2910.545118 | BN61: 93058091.1 | BO61: 31972.73615 | BS61: 8.368151076e+13 | BT61: 8.368197053e+13 | BU61: 8.368653434e+13 | BV61: 8.368653434e+13 | BW61: 8.368653434e+13 | BX61: 8.368653434e+13 | BY61: 8.368653434e+13 | BZ61: 8.368653434e+13 | CA61: 8.368653434e+13 | CB61: 8.368653434e+13 | CC61: 0 | CD61: 0 | CE61: 0 | CF61: 0 | CG61: 0 | CH61: 0 | CI61: 0 | CJ61: 0 | CK61: 0 | CL61: 1 | CN61: 0 | CO61: 0 | CP61: 0 | CQ61: 0 | CR61: 0 | CS61: 0 | CT61: 0 | CU61: 0 | CV61: 1 | DA61: 80000 | DB61: 0.708 | DC61: 0.001 | DD61: 0.001 | DE61: 0.026 | DF61: 0.002 | DG61: 0.001 | DH61: 0.001 | DI61: 0.001 | DJ61: 0.267
B62: 55 | C62: 1818571.95 | D62: 0.1806204456 | E62: 0.1590444474 | F62: 0.1674404106 | G62: 0.616838513 | H62: 0.296178438 | I62: 0.3416465526 | J62: 0.04430494865 | K62: 0.6461995449 | L62: 355.6079111 | M62: 5979.113244 | N62: 3588.070442 | O62: 735940.9545 | P62: 80.54609233 | Q62: 5991.220273 | R62: 428.6309741 | S62: 15820.07789 | T62: 2175.182718 | U62: 554.3620685 | V62: 0.8866939934 | X62: 51480005.23 | Y62: 107813347.7 | Z62: 51480279.14 | AA62: 157635814.7 | AB62: 51482988.64 | AC62: 651800148.8 | AD62: 2709.501704 | AE62: 494164334.1 | AF62: 182381.9979 | AG62: 51482988.64 | AH62: 651800152.1 | AI62: 2709.502813 | AJ62: 494164337.4 | AK62: 182381.9245 | AL62: 51482988.64 | AM62: 651799969.1 | AN62: 2709.50746 | AO62: 494164154.5 | AP62: 182381.5441 | AQ62: 51482988.65 | AR62: 651799972.4 | AS62: 2709.508569 | AT62: 494164157.7 | AU62: 182381.4707 | AV62: 51482988.64 | AW62: 651800287 | AX62: 2709.497596 | AY62: 494164336.3 | AZ62: 182382.2752 | BA62: 51482988.64 | BB62: 651800151 | BC62: 2709.502813 | BD62: 494164336.3 | BE62: 182381.9241 | BF62: 51482988.64 | BG62: 651800107.3 | BH62: 2709.503352 | BI62: 494164292.6 | BJ62: 182381.8716 | BK62: 51482988.65 | BL62: 651799971.3 | BM62: 2709.508569 | BN62: 494164156.6 | BO62: 182381.4703 | BS62: 8.236790055e+13 | BT62: 8.236828898e+13 | BU62: 8.237213002e+13 | BV62: 8.237213002e+13 | BW62: 8.237213003e+13 | BX62: 8.237213003e+13 | BY62: 8.237213002e+13 | BZ62: 8.237213002e+13 | CA62: 8.237213003e+13 | CB62: 8.237213003e+13 | CC62: 0 | CD62: 0 | CE62: 0 | CF62: 0 | CG62: 0 | CH62: 0 | CI62: 0 | CJ62: 0 | CK62: 0 | CL62: 1 | CN62: 0 | CO62: 0 | CP62: 0 | CQ62: 0 | CR62: 0 | CS62: 0 | CT62: 0 | CU62: 0 | CV62: 1 | DA62: 90000 | DB62: 0.687 | DC62: 0.001 | DD62: 0.001 | DE62: 0.026 | DF62: 0.002 | DG62: 0.001 | DH62: 0.001 | DI62: 0.001 | DJ62: 0.288
B63: 56 | C63: 2412924.549 | D63: 0.18231299 | E63: 0.1742773311 | F63: 0.1978694656 | G63: 0.4548809424 | H63: 0.2614805738 | I63: 0.3771883223 | J63: 0.04537721589 | K63: 0.4586438624 | L63: 272.9236134 | M63: 670.5222632 | N63: 28090.9735 | O63: 370913.2366 | P63: 126.2201813 | Q63: 2891.170942 | R63: 71807.27943 | S63: 1900.227383 | T63: 1949.290387 | U63: 455.0758537 | V63: 0.9895019792 | X63: 68306047.72 | Y63: 54337791.74 | Z63: 68306311.17 | AA63: 113129968 | AB63: 68308914.56 | AC63: 667849800.9 | AD63: 2603.39147 | AE63: 554719832.9 | AF63: 213075.8433 | AG63: 68308914.56 | AH63: 667849797.6 | AI63: 2603.391772 | AJ63: 554719829.7 | AK63: 213075.8174 | AL63: 68308914.57 | AM63: 667849771.9 | AN63: 2603.393284 | AO63: 554719803.9 | AP63: 213075.6837 | AQ63: 68308914.57 | AR63: 667849768.6 | AS63: 2603.393586 | AT63: 554719800.7 | AU63: 213075.6577 | AV63: 68308914.56 | AW63: 667849743.9 | AX63: 2603.390298 | AY63: 554719751.8 | AZ63: 213075.9081 | BA63: 68308914.56 | BB63: 667849719.8 | BC63: 2603.391772 | BD63: 554719751.8 | BE63: 213075.7875 | BF63: 68308914.56 | BG63: 667849714.9 | BH63: 2603.392112 | BI63: 554719746.9 | BJ63: 213075.7577 | BK63: 68308914.57 | BL63: 667849690.8 | BM63: 2603.393586 | BN63: 554719722.8 | BO63: 213075.6279 | BS63: 1.09289622e+14 | BT63: 1.092899847e+14 | BU63: 1.092935955e+14 | BV63: 1.092935955e+14 | BW63: 1.092935955e+14 | BX63: 1.092935955e+14 | BY63: 1.092935955e+14 | BZ63: 1.092935955e+14 | CA63: 1.092935955e+14 | CB63: 1.092935955e+14 | CC63: 0 | CD63: 0 | CE63: 0 | CF63: 0 | CG63: 0 | CH63: 0 | CI63: 0 | CJ63: 0 | CK63: 0 | CL63: 1 | CN63: 0 | CO63: 0 | CP63: 0 | CQ63: 0 | CR63: 0 | CS63: 0 | CT63: 0 | CU63: 0 | CV63: 1 | DA63: 100000 | DB63: 0.662 | DC63: 0.001 | DD63: 0.001 | DE63: 0.024 | DF63: 0.002 | DG63: 0.001 | DH63: 0.001 | DI63: 0.001 | DJ63: 0.315
B64: 57 | C64: 1721879.948 | D64: 0.1785800047 | E64: 0.08660675185 | F64: 0.2022857523 | G64: 0.5504214216 | H64: 0.2841950957 | I64: 0.3775002024 | J64: 0.03859818508 | K64: 0.4822576048 | L64: 524.746597 | M64: 4211.604214 | N64: 743.1789367 | O64: 861806.3367 | P64: 304.3281323 | Q64: 6543.485596 | R64: 12011.39935 | S64: 117.6699462 | T64: 2183.660672 | U64: 145.2865843 | V64: 0.9605105681 | X64: 48742766.45 | Y64: 126248366.5 | Z64: 48743036.37 | AA64: 197890954.8 | AB64: 48745713.26 | AC64: 903618001.1 | AD64: 2676.888094 | AE64: 705727046.3 | AF64: 263637.112 | AG64: 48745713.28 | AH64: 903617196.9 | AI64: 2676.907989 | AJ64: 705726242.1 | AK64: 263634.8522 | AL64: 48745713.31 | AM64: 903616458 | AN64: 2676.934393 | AO64: 705725503.3 | AP64: 263631.9759 | AQ64: 48745713.33 | AR64: 903615653.9 | AS64: 2676.954287 | AT64: 705724699.1 | AU64: 263629.7162 | AV64: 48745713.19 | AW64: 903620134.5 | AX64: 2676.820267 | AY64: 705725612.8 | AZ64: 263643.2567 | BA64: 48745713.28 | BB64: 903616567.6 | BC64: 2676.907989 | BD64: 705725612.8 | BE64: 263634.6172 | BF64: 48745713.24 | BG64: 903618591.5 | BH64: 2676.866565 | BI64: 705727636.7 | BJ64: 263639.4529 | BK64: 48745713.33 | BL64: 903615024.6 | BM64: 2676.954287 | BN64: 705724069.8 | BO64: 263629.4811 | BS64: 7.798830008e+13 | BT64: 7.798866031e+13 | BU64: 7.79922376e+13 | BV64: 7.799223763e+13 | BW64: 7.799223768e+13 | BX64: 7.799223771e+13 | BY64: 7.799223749e+13 | BZ64: 7.799223764e+13 | CA64: 7.799223757e+13 | CB64: 7.799223771e+13 | CC64: 0 | CD64: 0 | CE64: 0 | CF64: 0 | CG64: 0 | CH64: 0 | CI64: 0 | CJ64: 0 | CK64: 0 | CL64: 1 | CN64: 0 | CO64: 0 | CP64: 0 | CQ64: 0 | CR64: 0 | CS64: 0 | CT64: 0 | CU64: 0 | CV64: 1 | DA64: =DA63+50000 -> 150000 | DB64: 0.56 | DC64: 0 | DD64: 0 | DE64: 0.022 | DF64: 0.004 | DG64: 0 | DH64: 0 | DI64: 0.001 | DJ64: 0.42
B65: 58 | C65: 1536658.496 | D65: 0.1941512503 | E65: 0.2163176377 | F65: 0.1780915317 | G65: 0.5893077636 | H65: 0.2552179508 | I65: 0.4886037907 | J65: 0.04144775656 | K65: 0.4880548861 | L65: 337.0705895 | M65: 237.799493 | N65: 3871.673903 | O65: 459881.953 | P65: 463.4541701 | Q65: 3680.552195 | R65: 7592.659987 | S65: 516.1167867 | T65: 692.6926931 | U65: 1845.357864 | V65: 0.8976894728 | X65: 43499078.67 | Y65: 68638882.39 | Z65: 43499340.79 | AA65: 110560421.8 | AB65: 43501929.51 | AC65: 523832806.3 | AD65: 2588.715282 | AE65: 413272384.5 | AF65: 159643.8154 | AG65: 43501957.56 | AH65: 523257303 | AI65: 2616.771512 | AJ65: 412696881.2 | AK65: 157712.2341 | AL65: 43502022.97 | AM65: 521995976.5 | AN65: 2682.176117 | AO65: 411435554.7 | AP65: 153396.1742 | AQ65: 43502051.03 | AR65: 521420473.2 | AS65: 2710.232347 | AT65: 410860051.4 | AU65: 151595.8777 | AV65: 43501877.71 | AW65: 524623499.6 | AX65: 2536.917768 | AY65: 412386072.7 | AZ65: 162553.9771 | BA65: 43501957.56 | BB65: 522946494.5 | BC65: 2616.771512 | BD65: 412386072.7 | BE65: 157593.4585 | BF65: 43501971.17 | BG65: 522786669.8 | BH65: 2630.378603 | BI65: 412226248 | BJ65: 156717.4579 | BK65: 43502051.03 | BL65: 521109664.7 | BM65: 2710.232347 | BN65: 410549242.9 | BO65: 151481.198 | BS65: 6.959845723e+13 | BT65: 6.959883471e+13 | BU65: 6.960256338e+13 | BV65: 6.960260885e+13 | BW65: 6.960271475e+13 | BX65: 6.960276022e+13 | BY65: 6.960247971e+13 | BZ65: 6.960260916e+13 | CA65: 6.960263109e+13 | CB65: 6.960276053e+13 | CC65: 0 | CD65: 0 | CE65: 0 | CF65: 0 | CG65: 0 | CH65: 0 | CI65: 0 | CJ65: 0 | CK65: 0 | CL65: 1 | CN65: 0 | CO65: 0 | CP65: 0 | CQ65: 0 | CR65: 0 | CS65: 0 | CT65: 0 | CU65: 0 | CV65: 1 | DA65: =DA64+50000 -> 200000 | DB65: 0.47 | DC65: 0.002 | DD65: 0.002 | DE65: 0.015 | DF65: 0.008 | DG65: 0.002 | DH65: 0.002 | DI65: 0.003 | DJ65: 0.519
B66: 59 | C66: 1316070.183 | D66: 0.1961700655 | E66: 0.08611521003 | F66: 0.1975309509 | G66: 0.5024746165 | H66: 0.2742830874 | I66: 0.2618576661 | J66: 0.03929975549 | K66: 0.4379568952 | L66: 706.6789768 | M66: 1657.527774 | N66: 2100.175164 | O66: 34895.85169 | P66: 213.9205838 | Q66: 485.9113919 | R66: 2354.149407 | S66: 231.5353975 | T66: 1026.972322 | U66: 284.4178594 | V66: 0.8223051484 | X66: 37254272.34 | Y66: 5111664.516 | Z66: 37254554.72 | AA66: 89260095.25 | AB66: 37257351.42 | AC66: 922850185.6 | AD66: 2796.691539 | AE66: 833590090.3 | AF66: 298062.9357 | AG66: 37257351.47 | AH66: 922850149.9 | AI66: 2796.743791 | AJ66: 833590054.7 | AK66: 298057.3542 | AL66: 37257351.58 | AM66: 922850018.8 | AN66: 2796.859658 | AO66: 833589923.6 | AP66: 298044.9595 | AQ66: 37257351.64 | AR66: 922849983.1 | AS66: 2796.91191 | AT66: 833589887.9 | AU66: 298039.3787 | AV66: 37257351.09 | AW66: 922850222.7 | AX66: 2796.367205 | AY66: 833589581.7 | AZ66: 298097.3244 | BA66: 37257351.47 | BB66: 922849677 | BC66: 2796.743791 | BD66: 833589581.7 | BE66: 298057.1851 | BF66: 37257351.26 | BG66: 922850055.9 | BH66: 2796.535324 | BI66: 833589960.7 | BJ66: 298079.5392 | BK66: 37257351.64 | BL66: 922849510.2 | BM66: 2796.91191 | BN66: 833589414.9 | BO66: 298039.2096 | BS66: 5.960683063e+13 | BT66: 5.96071983e+13 | BU66: 59610839416216 | BV66: 5.96108395e+13 | BW66: 5.961083969e+13 | BX66: 5.961083977e+13 | BY66: 5.96108389e+13 | BZ66: 5.96108395e+13 | CA66: 5.961083917e+13 | CB66: 5.961083977e+13 | CC66: 0 | CD66: 0 | CE66: 0 | CF66: 0 | CG66: 0 | CH66: 0 | CI66: 0 | CJ66: 0 | CK66: 0 | CL66: 1 | CN66: 0 | CO66: 0 | CP66: 0 | CQ66: 0 | CR66: 0 | CS66: 0 | CT66: 0 | CU66: 0 | CV66: 1 | DA66: 225000 | DB66: 0.43 | DC66: 0.003 | DD66: 0.003 | DE66: 0.015 | DF66: 0.01 | DG66: 0.002 | DH66: 0.003 | DI66: 0.003 | DJ66: 0.559
B67: 60 | C67: 1106990.1 | D67: 0.1413315072 | E67: 0.216837738 | F67: 0.2066868988 | G67: 0.480871838 | H67: 0.2639829714 | I67: 0.3099948963 | J67: 0.04126388933 | K67: 0.5790098475 | L67: 52.29551469 | M67: 132.5427481 | N67: 5500.959337 | O67: 263849.4843 | P67: 1.082303811 | Q67: 5562.84534 | R67: 1683.944044 | S67: 11855.50578 | T67: 123.1147649 | U67: 176.1079141 | V67: 0.9264687316 | X67: 31335395.64 | Y67: 38657187.6 | Z67: 31335664.79 | AA67: 40865775.05 | AB67: 31338325.9 | AC67: 62201663.98 | AD67: 2661.110647 | AE67: 21335888.93 | AF67: 8017.663212 | AG67: 31338326.16 | AH67: 62213610.49 | AI67: 2661.370653 | AJ67: 21347835.44 | AK67: 8021.368769 | AL67: 31338329.33 | AM67: 62166439.39 | AN67: 2664.546016 | AO67: 21300664.34 | AP67: 7994.106393 | AQ67: 31338329.59 | AR67: 62178385.89 | AS67: 2664.806022 | AT67: 21312610.84 | AU67: 7997.809472 | AV67: 31338324.61 | AW67: 62215323.93 | AX67: 2659.827509 | AY67: 21345683.47 | AZ67: 8025.21344 | BA67: 31338326.16 | BB67: 62211458.52 | BC67: 2661.370653 | BD67: 21345683.47 | BE67: 8020.560177 | BF67: 31338328.05 | BG67: 62180099.33 | BH67: 2663.262878 | BI67: 21314324.28 | BJ67: 8003.086912 | BK67: 31338329.59 | BL67: 62176233.93 | BM67: 2664.806022 | BN67: 21310458.88 | BO67: 7997.001922 | BS67: 5.013659437e+13 | BT67: 5.013702279e+13 | BU67: 5.014125923e+13 | BV67: 5.014125964e+13 | BW67: 5.014126477e+13 | BX67: 5.014126517e+13 | BY67: 5.014125717e+13 | BZ67: 5.014125964e+13 | CA67: 5.01412627e+13 | CB67: 5.014126517e+13 | CC67: 0 | CD67: 0 | CE67: 0 | CF67: 0 | CG67: 0 | CH67: 0 | CI67: 0 | CJ67: 0 | CK67: 0 | CL67: 1 | CN67: 0 | CO67: 0 | CP67: 0 | CQ67: 0 | CR67: 0 | CS67: 0 | CT67: 0 | CU67: 0 | CV67: 1 | DA67: =DA65+50000 -> 250000 | DB67: 0.407 | DC67: 0.003 | DD67: 0.003 | DE67: 0.016 | DF67: 0.011 | DG67: 0.003 | DH67: 0.003 | DI67: 0.003 | DJ67: 0.584
B68: 61 | C68: 1712970.783 | D68: 0.2003294161 | E68: 0.1375715491 | F68: 0.203690215 | G68: 0.5049440579 | H68: 0.2711848256 | I68: 0.4009033042 | J68: 0.04281847589 | K68: 0.3863549311 | L68: 96.1874012 | M68: 18918.77883 | N68: 2873.418279 | O68: 928698.187 | P68: 675.3739038 | Q68: 1226.237478 | R68: 26274.65338 | S68: 34.07460044 | T68: 2222.271926 | U68: 341.3905599 | V68: 0.9697423077 | X68: 48490561.7 | Y68: 136013198 | Z68: 48490826.85 | AA68: 141176478.7 | AB68: 48493448.59 | AC68: 182410504.9 | AD68: 2621.736779 | AE68: 41234026.16 | AF68: 15727.75211 | AG68: 48493450.26 | AH68: 182337000 | AI68: 2623.409222 | AJ68: 41160521.31 | AK68: 15689.70672 | AL68: 48493453.32 | AM68: 182207174.3 | AN68: 2626.471705 | AO68: 41030695.63 | AP68: 15621.98274 | AQ68: 48493454.99 | AR68: 182133669.5 | AS68: 2628.144148 | AT68: 40957190.78 | AU68: 15584.0732 | AV68: 48493443.19 | AW68: 182537254.5 | AX68: 2616.338156 | AY68: 41049533.6 | AZ68: 15689.68962 | BA68: 48493450.26 | BB68: 182226012.3 | BC68: 2623.409222 | BD68: 41049533.6 | BE68: 15647.40006 | BF68: 48493447.92 | BG68: 182333924 | BH68: 2621.073082 | BI68: 41157445.26 | BJ68: 15702.51724 | BK68: 48493454.99 | BL68: 182022681.8 | BM68: 2628.144148 | BN68: 40846203.07 | BO68: 15541.84275 | BS68: 7.75847627e+13 | BT68: 7.758518178e+13 | BU68: 7.758933533e+13 | BV68: 7.758933808e+13 | BW68: 7.758934311e+13 | BX68: 7.758934586e+13 | BY68: 7.758932656e+13 | BZ68: 7.758933819e+13 | CA68: 7.758933434e+13 | CB68: 77589345968161 | CC68: 0 | CD68: 0 | CE68: 0 | CF68: 0 | CG68: 0 | CH68: 0 | CI68: 0 | CJ68: 0 | CK68: 0 | CL68: 1 | CN68: 0 | CO68: 0 | CP68: 0 | CQ68: 0 | CR68: 0 | CS68: 0 | CT68: 0 | CU68: 0 | CV68: 1 | DA68: =DA67+50000 -> 300000 | DB68: 0.351 | DC68: 0.003 | DD68: 0.003 | DE68: 0.014 | DF68: 0.011 | DG68: 0.003 | DH68: 0.003 | DI68: 0.003 | DJ68: 0.641
B69: 62 | C69: 1827300.441 | D69: 0.1532380321 | E69: 0.1613369931 | F69: 0.1978504473 | G69: 0.6373537424 | H69: 0.3331118341 | I69: 0.362058072 | J69: 0.04078955085 | K69: 0.5240143502 | L69: 7.006032541 | M69: 648.8331308 | N69: 1913.729409 | O69: 671714.7153 | P69: 17.65257361 | Q69: 123.7750383 | R69: 32366.28929 | S69: 17.68131004 | T69: 9175.26701 | U69: 1667.374305 | V69: 0.8770319777 | X69: 51727095.45 | Y69: 98404175.45 | Z69: 51727371.32 | AA69: 92725692.14 | AB69: 51730103.34 | AC69: 23683357.48 | AD69: 2732.02027 | AE69: -69042334.66 | AF69: -25271.5309 | AG69: 51730103.34 | AH69: 23683252.03 | AI69: 2732.023694 | AJ69: -69042440.11 | AK69: -25271.53782 | AL69: 51730103.35 | AM69: 23682829.65 | AN69: 2732.037421 | AO69: -69042862.49 | AP69: -25271.56545 | AQ69: 51730103.36 | AR69: 23682724.2 | AS69: 2732.040846 | AT69: -69042967.94 | AU69: -25271.57237 | AV69: 51730103.33 | AW69: 23683445.83 | AX69: 2732.00763 | AY69: -69042741.6 | AZ69: -25271.79677 | BA69: 51730103.34 | BB69: 23682950.54 | BC69: 2732.023694 | BD69: -69042741.6 | BE69: -25271.64817 | BF69: 51730103.34 | BG69: 23682918.01 | BH69: 2732.024781 | BI69: -69042774.13 | BJ69: -25271.65003 | BK69: 51730103.36 | BL69: 23682422.71 | BM69: 2732.040846 | BN69: -69043269.43 | BO69: -25271.68272 | BS69: 8.276325431e+13 | BT69: 8.276370138e+13 | BU69: 8.276814166e+13 | BV69: 8.276814166e+13 | BW69: 8.276814168e+13 | BX69: 8.276814169e+13 | BY69: 8.276814164e+13 | BZ69: 8.276814166e+13 | CA69: 8.276814166e+13 | CB69: 8.276814169e+13 | CC69: 0 | CD69: 0 | CE69: 0 | CF69: 0 | CG69: 0 | CH69: 0 | CI69: 0 | CJ69: 0 | CK69: 0 | CL69: 1 | CN69: 0 | CO69: 0 | CP69: 0 | CQ69: 0 | CR69: 0 | CS69: 0 | CT69: 0 | CU69: 0 | CV69: 1 | DA69: 350000 | DB69: 0.302 | DC69: 0.003 | DD69: 0.003 | DE69: 0.012 | DF69: 0.013 | DG69: 0.003 | DH69: 0.003 | DI69: 0.003 | DJ69: 0.692
B70: 63 | C70: 1779425.084 | D70: 0.1788849866 | E70: 0.1326052545 | F70: 0.201426151 | G70: 0.5671273575 | H70: 0.2287797784 | I70: 0.4306730215 | J70: 0.03640441167 | K70: 0.7053676307 | L70: 3018.380207 | M70: 4236.274693 | N70: 455.1282318 | O70: 1691583.396 | P70: 172.1851485 | Q70: 1997.869271 | R70: 5321.977389 | S70: 13401.3496 | T70: 10830.08341 | U70: 170.4622048 | V70: 0.9729298875 | X70: 50371865.48 | Y70: 247702789.9 | Z70: 50372131.77 | AA70: 714036671.2 | AB70: 50374769.54 | AC70: 5336911902 | AD70: 2637.765176 | AE70: 4622875231 | AF70: 1752572.698 | AG70: 50374770.47 | AH70: 5336859449 | AI70: 2638.703589 | AJ70: 4622822777 | AK70: 1751929.545 | AL70: 50374772.9 | AM70: 5336644915 | AN70: 2641.132506 | AO70: 4622608244 | AP70: 1750237.155 | AQ70: 50374773.84 | AR70: 5336592462 | AS70: 2642.070919 | AT70: 4622555791 | AU70: 1749595.651 | AV70: 50374767.46 | AW70: 5337069780 | AX70: 2635.685835 | AY70: 4622813682 | AZ70: 1753931.982 | BA70: 50374770.47 | BB70: 5336850354 | BC70: 2638.703589 | BD70: 4622813682 | BE70: 1751926.098 | BF70: 50374770.82 | BG70: 5336802794 | BH70: 2639.053165 | BI70: 4622766123 | BJ70: 1751676.011 | BK70: 50374773.84 | BL70: 5336583367 | BM70: 2642.070919 | BN70: 4622546696 | BO70: 1749592.209 | BS70: 8.059473707e+13 | BT70: 8.05946968e+13 | BU70: 8.059429435e+13 | BV70: 8.05942959e+13 | BW70: 8.05943e+13 | BX70: 8.059430155e+13 | BY70: 8.059429086e+13 | BZ70: 8.059429591e+13 | CA70: 8.059429652e+13 | CB70: 8.059430156e+13 | CC70: 1 | CD70: 0 | CE70: 0 | CF70: 0 | CG70: 0 | CH70: 0 | CI70: 0 | CJ70: 0 | CK70: 0 | CL70: 0 | CN70: 1 | CO70: 0 | CP70: 0 | CQ70: 0 | CR70: 0 | CS70: 0 | CT70: 0 | CU70: 0 | CV70: 0 | DA70: 400000 | DB70: 0.257 | DC70: 0.003 | DD70: 0.003 | DE70: 0.01 | DF70: 0.014 | DG70: 0.003 | DH70: 0.003 | DI70: 0.003 | DJ70: 0.739
B71: 64 | C71: 1653755.299 | D71: 0.2227122461 | E71: 0.2187942062 | F71: 0.1640022526 | G71: 0.6768758004 | H71: 0.2471700529 | I71: 0.2209150632 | J71: 0.04647235415 | K71: 0.5867491426 | L71: 413.9581252 | M71: 2272.294865 | N71: 4918.093789 | O71: 348589.3764 | P71: 134.5708377 | Q71: 2231.85445 | R71: 6653.257076 | S71: 1043.011657 | T71: 250.7592128 | U71: 1648.460849 | V71: 0.7734157893 | X71: 46813952.57 | Y71: 51420917.51 | Z71: 46814231.5 | AA71: 109758022.6 | AB71: 46816977.44 | AC71: 686039747 | AD71: 2745.942573 | AE71: 576281724.4 | AF71: 209866.6338 | AG71: 46816982.26 | AH71: 685975793.6 | AI71: 2750.761913 | AJ71: 576217771.1 | AK71: 209475.6978 | AL71: 46817006.7 | AM71: 685609948.2 | AN71: 2775.206674 | AO71: 575851925.6 | AP71: 207498.7535 | AQ71: 46817011.52 | AR71: 685545994.9 | AS71: 2780.026013 | AT71: 575787972.3 | AU71: 207116.0376 | AV71: 46816950.67 | AW71: 686386333.9 | AX71: 2719.170328 | AY71: 576150517.5 | AZ71: 211884.6736 | BA71: 46816982.26 | BB71: 685908540.1 | BC71: 2750.761913 | BD71: 576150517.5 | BE71: 209451.2487 | BF71: 46816979.93 | BG71: 685956535.2 | BH71: 2748.434429 | BI71: 576198512.6 | BJ71: 209646.0831 | BK71: 46817011.52 | BL71: 685478741.3 | BM71: 2780.026013 | BN71: 575720718.8 | BO71: 207091.8459 | BS71: 7.490227268e+13 | BT71: 7.490266064e+13 | BU71: 7.490647786e+13 | BV71: 7.490648564e+13 | BW71: 7.490652512e+13 | BX71: 7.490653289e+13 | BY71: 7.490643468e+13 | BZ71: 7.490648571e+13 | CA71: 7.490648193e+13 | CB71: 7.490653296e+13 | CC71: 0 | CD71: 0 | CE71: 0 | CF71: 0 | CG71: 0 | CH71: 0 | CI71: 0 | CJ71: 0 | CK71: 0 | CL71: 1 | CN71: 0 | CO71: 0 | CP71: 0 | CQ71: 0 | CR71: 0 | CS71: 0 | CT71: 0 | CU71: 0 | CV71: 1 | DA71: 450000 | DB71: 0.209 | DC71: 0.003 | DD71: 0.003 | DE71: 0.009 | DF71: 0.013 | DG71: 0.003 | DH71: 0.003 | DI71: 0.003 | DJ71: 0.788
B72: 65 | C72: 1534235.973 | D72: 0.1246797299 | E72: 0.216662826 | F72: 0.2198321709 | G72: 0.5941262994 | H72: 0.2706806228 | I72: 0.4130158459 | J72: 0.04109312247 | K72: 0.4640455174 | L72: 410.0424645 | M72: 3243.934282 | N72: 3841.673516 | O72: 79644.54696 | P72: 293.8678784 | Q72: 8897.808254 | R72: 10262.17949 | S72: 3568.746018 | T72: 4646.200434 | U72: 985.1544613 | V72: 0.948882873 | X72: 43430614.48 | Y72: 11663097.61 | Z72: 43430879.98 | AA72: 68554769.23 | AB72: 43433508.03 | AC72: 628803418.3 | AD72: 2628.049168 | AE72: 560248649 | AF72: 213180.429 | AG72: 43433511.35 | AH72: 628824452.3 | AI72: 2631.368552 | AJ72: 560269683 | AK72: 212919.5025 | AL72: 43433528.06 | AM72: 628811769.5 | AN72: 2648.086442 | AO72: 560257000.2 | AP72: 211570.5105 | AQ72: 43433531.38 | AR72: 628832803.5 | AS72: 2651.405826 | AT72: 560278034.3 | AU72: 211313.5714 | AV72: 43433499.36 | AW72: 628739635.8 | AX72: 2619.383647 | AY72: 560173414.1 | AZ72: 213856.9562 | BA72: 43433511.35 | BB72: 628728183.3 | BC72: 2631.368552 | BD72: 560173414.1 | BE72: 212882.9174 | BF72: 43433519.4 | BG72: 628747987.1 | BH72: 2639.420921 | BI72: 560193217.8 | BJ72: 212240.9553 | BK72: 43433531.38 | BL72: 628736534.5 | BM72: 2651.405826 | BN72: 560181765.3 | BO72: 211277.2627 | BS72: =cRatio*X72-Y72 -> 6.948897151e+13 | BT72: =cRatio*Z72-AA72 -> 6.948933941e+13 | BU72: =cRatio*AB72-AC72 -> 6.949298404e+13 | BV72: =cRatio*AG72-AH72 -> 6.949298933e+13 | BW72: =cRatio*AL72-AM72 -> 6.949301609e+13 | BX72: =cRatio*AQ72-AR72 -> 6.949302138e+13 | BY72: =cRatio*AV72-AW72 -> 6.949297024e+13 | BZ72: =cRatio*BA72-BB72 -> 6.949298942e+13 | CA72: =cRatio*BF72-BG72 -> 6.949300229e+13 | CB72: =cRatio*BK72-BL72 -> 6.949302148e+13 | CC72: 0 | CD72: 0 | CE72: 0 | CF72: 0 | CG72: 0 | CH72: 0 | CI72: 0 | CJ72: 0 | CK72: 0 | CL72: 1 | CN72: 0 | CO72: 0 | CP72: 0 | CQ72: 0 | CR72: 0 | CS72: 0 | CT72: 0 | CU72: 0 | CV72: 1 | DA72: 500000 | DB72: 0.183 | DC72: 0.003 | DD72: 0.003 | DE72: 0.006 | DF72: 0.016 | DG72: 0.003 | DH72: 0.003 | DI72: 0.003 | DJ72: 0.816
B73: 66 | C73: 1904787.904 | D73: 0.149200123 | E73: 0.09228074011 | F73: 0.187744114 | G73: 0.557943038 | H73: 0.2497418993 | I73: 0.2480988788 | J73: 0.03759561233 | K73: 0.5773303743 | L73: 61.6643564 | M73: 2682.862016 | N73: 7391.462187 | O73: 110139.7219 | P73: 3.010019873 | Q73: 2226.328392 | R73: 36008.72627 | S73: 2215.570406 | T73: 5743.989029 | U73: 5.155891821 | V73: 0.8534462308 | X73: 53920729.55 | Y73: 16061093.81 | Z73: 53921008.64 | AA73: 27199590.58 | AB73: 53923779.27 | AC73: 123572177.1 | AD73: 2770.633711 | AE73: 96372586.54 | AF73: 34783.58982 | AG73: 53923780.77 | AH73: 123577918.2 | AI73: 2772.133121 | AJ73: 96378327.63 | AK73: 34766.84684 | AL73: 53923786.28 | AM73: 123550378 | AN73: 2777.635799 | AO73: 96350787.37 | AP73: 34688.05644 | AQ73: 53923787.77 | AR73: 123556119 | AS73: 2779.135209 | AT73: 96356528.46 | AU73: 34671.40718 | AV73: 53923771.05 | AW73: 123397887.8 | AX73: 2762.407272 | AY73: 96162769.65 | AZ73: 34811.22086 | BA73: 53923780.77 | BB73: 123362360.2 | BC73: 2772.133121 | BD73: 96162769.65 | BE73: 34689.08796 | BF73: 53923778.05 | BG73: 123376088.6 | BH73: 2769.40936 | BI73: 96176498.03 | BJ73: 34728.16241 | BK73: 53923787.77 | BL73: 123340561.1 | BM73: 2779.135209 | BN73: 96140970.48 | BO73: 34593.84422 | BS73: 8.627315122e+13 | BT73: 8.627358662e+13 | BU73: 8.627792327e+13 | BV73: 8.627792566e+13 | BW73: 8.627793449e+13 | BX73: 8.627793688e+13 | BY73: 8.627791028e+13 | BZ73: 8.627792587e+13 | CA73: 8.62779215e+13 | CB73: 8.62779371e+13 | CC73: =IF(BS73=MAX($BS73:$CB73),1,0) -> 0 | CD73: =IF(BT73=MAX($BS73:$CB73),1,0) -> 0 | CE73: =IF(BU73=MAX($BS73:$CB73),1,0) -> 0 | CF73: =IF(BV73=MAX($BS73:$CB73),1,0) -> 0 | CG73: =IF(BW73=MAX($BS73:$CB73),1,0) -> 0 | CH73: =IF(BX73=MAX($BS73:$CB73),1,0) -> 0 | CI73: =IF(BY73=MAX($BS73:$CB73),1,0) -> 0 | CJ73: =IF(BZ73=MAX($BS73:$CB73),1,0) -> 0 | CK73: =IF(CA73=MAX($BS73:$CB73),1,0) -> 0 | CL73: =IF(CB73=MAX($BS73:$CB73),1,0) -> 1 | CN73: =IF(BT73=MAX($BT73:$CB73),1,0) -> 0 | CO73: =IF(BU73=MAX($BT73:$CB73),1,0) -> 0 | CP73: =IF(BV73=MAX($BT73:$CB73),1,0) -> 0 | CQ73: =IF(BW73=MAX($BT73:$CB73),1,0) -> 0 | CR73: =IF(BX73=MAX($BT73:$CB73),1,0) -> 0 | CS73: =IF(BY73=MAX($BT73:$CB73),1,0) -> 0 | CT73: =IF(BZ73=MAX($BT73:$CB73),1,0) -> 0 | CU73: =IF(CA73=MAX($BT73:$CB73),1,0) -> 0 | CV73: =IF(CB73=MAX($BT73:$CB73),1,0) -> 1 | DA73: 550000 | DB73: 0.156 | DC73: 0.004 | DD73: 0.004 | DE73: 0.006 | DF73: 0.015 | DG73: 0.004 | DH73: 0.004 | DI73: 0.004 | DJ73: 0.843
B74: 67 | C74: 1542744.105 | D74: 0.1635628056 | E74: 0.131491179 | F74: 0.1651674371 | G74: 0.5327950923 | H74: 0.2078488512 | I74: 0.5124820336 | J74: 0.0283367799 | K74: 0.6430209522 | L74: 118.0439157 | M74: 2001.879707 | N74: 11387.11413 | O74: 213014.1083 | P74: 129.4899888 | Q74: 3355.719183 | R74: 3137.235268 | S74: 111.7149772 | T74: 4045.312002 | U74: 2148.729995 | V74: 0.5250011003 | X74: 43671013.45 | Y74: 31205299.17 | Z74: 43671323.46 | AA74: 45847415.59 | AB74: 43674399.63 | AC74: 189796176.8 | AD74: 3076.170478 | AE74: 143948761.2 | AF74: 46794.79313 | AG74: 43674399.67 | AH74: 189795842.8 | AI74: 3076.209488 | AJ74: 143948427.2 | AK74: 46794.09115 | AL74: 43674399.75 | AM74: 189795316.6 | AN74: 3076.291572 | AO74: 143947901 | AP74: 46792.67151 | AQ74: 43674399.79 | AR74: 189794982.6 | AS74: 3076.330582 | AT74: 143947567 | AU74: 46791.96958 | AV74: 43674399.57 | AW74: 189796523.8 | AX74: 3076.109632 | AY74: 143948243 | AZ74: 46795.55031 | BA74: 43674399.67 | BB74: 189795658.6 | BC74: 3076.209488 | BD74: 143948243 | BE74: 46794.03129 | BF74: 43674399.69 | BG74: 189795663.6 | BH74: 3076.230726 | BI74: 143948248 | BJ74: 46793.70986 | BK74: 43674399.79 | BL74: 189794798.5 | BM74: 3076.330582 | BN74: 143947382.9 | BO74: 46791.90972 | BS74: 6.987359031e+13 | BT74: 6.987407168e+13 | BU74: 6.987884961e+13 | BV74: 6.987884967e+13 | BW74: 6.98788498e+13 | BX74: 6.987884987e+13 | BY74: 6.987884951e+13 | BZ74: 6.987884967e+13 | CA74: 6.987884971e+13 | CB74: 6.987884987e+13 | CC74: 0 | CD74: 0 | CE74: 0 | CF74: 0 | CG74: 0 | CH74: 0 | CI74: 0 | CJ74: 0 | CK74: 0 | CL74: 1 | CN74: 0 | CO74: 0 | CP74: 0 | CQ74: 0 | CR74: 0 | CS74: 0 | CT74: 0 | CU74: 0 | CV74: 1 | DA74: 600000 | DB74: 0.134 | DC74: 0.004 | DD74: 0.004 | DE74: 0.009 | DF74: 0.017 | DG74: 0.004 | DH74: 0.004 | DI74: 0.004 | DJ74: 0.865
B75: 68 | C75: 1899949.975 | D75: 0.2164223083 | E75: 0.1576241591 | F75: 0.1991234686 | G75: 0.5625010344 | H75: 0.2362191963 | I75: 0.3604398136 | J75: 0.03590085792 | K75: 0.5769527014 | L75: 2115.896254 | M75: 3044.069259 | N75: 113.8697125 | O75: 417441.2244 | P75: 29.14655236 | Q75: 3346.192152 | R75: 8167.180201 | S75: 78400.45112 | T75: 2363.473608 | U75: 967.3879695 | V75: 0.7487448891 | X75: 53783637.38 | Y75: 61209188.69 | Z75: 53783921.65 | AA75: 421002492.2 | AB75: 53786729.47 | AC75: 3986154587 | AD75: 2807.817529 | AE75: 3565152095 | AF75: 1269723.569 | AG75: 53786732.15 | AH75: 3986467840 | AI75: 2810.492005 | AJ75: 3565465348 | AK75: 1268626.754 | AL75: 53786739.03 | AM75: 3985994592 | AN75: 2817.37348 | AO75: 3564992100 | AP75: 1265360.14 | AQ75: 53786741.7 | AR75: 3986307845 | AS75: 2820.047956 | AT75: 3565305353 | AU75: 1264271.179 | AV75: 53786721.29 | AW75: 3986267058 | AX75: 2799.636317 | AY75: 3565427600 | AZ75: 1273532.415 | BA75: 53786732.15 | BB75: 3986430092 | BC75: 2810.492005 | BD75: 3565427600 | BE75: 1268613.323 | BF75: 53786730.85 | BG75: 3986107063 | BH75: 2809.192268 | BI75: 3565104571 | BJ75: 1269085.286 | BK75: 53786741.7 | BL75: 3986270097 | BM75: 2820.047956 | BN75: 3565267605 | BO75: 1264257.793 | BS75: 8.60537586e+13 | BT75: 8.605385364e+13 | BU75: 8.6054781e+13 | BV75: 8.605478497e+13 | BW75: 8.605479645e+13 | BX75: 8.605480042e+13 | BY75: 8.60547678e+13 | BZ75: 8.6054785e+13 | CA75: 8.605478325e+13 | CB75: 8.605480045e+13 | CC75: 0 | CD75: 0 | CE75: 0 | CF75: 0 | CG75: 0 | CH75: 0 | CI75: 0 | CJ75: 0 | CK75: 0 | CL75: 1 | CN75: 0 | CO75: 0 | CP75: 0 | CQ75: 0 | CR75: 0 | CS75: 0 | CT75: 0 | CU75: 0 | CV75: 1 | DA75: 650000 | DB75: 0.117 | DC75: 0.003 | DD75: 0.003 | DE75: 0.007 | DF75: 0.016 | DG75: 0.003 | DH75: 0.003 | DI75: 0.003 | DJ75: 0.882
B76: 69 | C76: 1367515.853 | D76: 0.2136672313 | E76: 0.2325580575 | F76: 0.1891424482 | G76: 0.4471746671 | H76: 0.2887471902 | I76: 0.2330968695 | J76: 0.0387378902 | K76: 0.5514103246 | L76: 1179.155235 | M76: 7848.338841 | N76: 3921.851929 | O76: 396858.8576 | P76: 10.65770386 | Q76: 2581.130961 | R76: 40736.26067 | S76: 2491.283093 | T76: 1789.69042 | U76: 225.4605344 | V76: 0.6950285516 | X76: 38710529.16 | Y76: 58385489.61 | Z76: 38710815.86 | AA76: 201646813.4 | AB76: 38713638.79 | AC76: 1606822255 | AD76: 2822.925676 | AE76: 1405175442 | AF76: 497772.7377 | AG76: 38713639.86 | AH76: 1606818477 | AI76: 2824.00304 | AJ76: 1405171664 | AK76: 497581.4984 | AL76: 38713656.3 | AM76: 1606537133 | AN76: 2840.43477 | AO76: 1404890319 | AP76: 494603.972 | AQ76: 38713657.37 | AR76: 1606533355 | AS76: 2841.512133 | AT76: 1404886541 | AU76: 494415.1126 | AV76: 38713628.78 | AW76: 1606753460 | AX76: 2812.92077 | AY76: 1404931241 | AZ76: 499456.3858 | BA76: 38713639.86 | BB76: 1606578055 | BC76: 2824.00304 | BD76: 1404931241 | BE76: 497496.363 | BF76: 38713646.29 | BG76: 1606468337 | BH76: 2830.429864 | BI76: 1404821524 | BJ76: 496327.9754 | BK76: 38713657.37 | BL76: 1606292932 | BM76: 2841.512133 | BN76: 1404646119 | BO76: 494330.5018 | BS76: 6.193678826e+13 | BT76: 6.193710373e+13 | BU76: 6.194021524e+13 | BV76: 6.194021696e+13 | BW76: 6.194024354e+13 | BX76: 6.194024526e+13 | BY76: 6.19401993e+13 | BZ76: 6.194021721e+13 | CA76: 6.19402276e+13 | CB76: 6.19402455e+13 | CC76: 0 | CD76: 0 | CE76: 0 | CF76: 0 | CG76: 0 | CH76: 0 | CI76: 0 | CJ76: 0 | CK76: 0 | CL76: 1 | CN76: 0 | CO76: 0 | CP76: 0 | CQ76: 0 | CR76: 0 | CS76: 0 | CT76: 0 | CU76: 0 | CV76: 1 | DA76: 700000 | DB76: 0.095 | DC76: 0.003 | DD76: 0.003 | DE76: 0.007 | DF76: 0.016 | DG76: 0.003 | DH76: 0.003 | DI76: 0.003 | DJ76: 0.904
B77: 70 | C77: 1491351.549 | D77: 0.2146512715 | E77: 0.1636623697 | F77: 0.1746228161 | G77: 0.5952419813 | H77: 0.3285892494 | I77: 0.2800837721 | J77: 0.03986867842 | K77: 0.5986799463 | L77: 88.51130366 | M77: 493.8133297 | N77: 198.5200227 | O77: 256733.5129 | P77: 125.5635987 | Q77: 1792.671067 | R77: 59402.04951 | S77: 62765.94712 | T77: 3627.368688 | U77: 537.4330782 | V77: 0.7202856599 | X77: 42216317.67 | Y77: 37633550.1 | Z77: 42216604.98 | AA77: 48728481.25 | AB77: 42219441.61 | AC77: 135484654.5 | AD77: 2836.626706 | AE77: 86756173.21 | AF77: 30584.27569 | AG77: 42219442.59 | AH77: 135641734.3 | AI77: 2837.611935 | AJ77: 86913253.08 | AK77: 30629.01309 | AL77: 42219447.63 | AM77: 135422084 | AN77: 2842.648322 | AO77: 86693602.77 | AP77: 30497.47734 | AQ77: 42219448.62 | AR77: 135579163.9 | AS77: 2843.63355 | AT77: 86850682.64 | AU77: 30542.15007 | AV77: 42219435.96 | AW77: 135388808.3 | AX77: 2830.973713 | AY77: 86754159.54 | AZ77: 30644.6362 | BA77: 42219442.59 | BB77: 135482640.8 | BC77: 2837.611935 | BD77: 86754159.54 | BE77: 30572.94709 | BF77: 42219441.98 | BG77: 135326237.9 | BH77: 2836.995329 | BI77: 86597756.63 | BJ77: 30524.46219 | BK77: 42219448.62 | BL77: 135420070.3 | BM77: 2843.63355 | BN77: 86691589.1 | BO77: 30486.2028 | BS77: 6.754607064e+13 | BT77: 6.754651924e+13 | BU77: 6.755097109e+13 | BV77: 6.755097251e+13 | BW77: 6.755098079e+13 | BX77: 6.755098221e+13 | BY77: 6.755096214e+13 | BZ77: 6.755097267e+13 | CA77: 6.755097184e+13 | CB77: 6.755098237e+13 | CC77: 0 | CD77: 0 | CE77: 0 | CF77: 0 | CG77: 0 | CH77: 0 | CI77: 0 | CJ77: 0 | CK77: 0 | CL77: 1 | CN77: 0 | CO77: 0 | CP77: 0 | CQ77: 0 | CR77: 0 | CS77: 0 | CT77: 0 | CU77: 0 | CV77: 1 | DA77: 750000 | DB77: 0.084 | DC77: 0.003 | DD77: 0.003 | DE77: 0.006 | DF77: 0.016 | DG77: 0.003 | DH77: 0.003 | DI77: 0.003 | DJ77: 0.915
B78: 71 | C78: 1795627.55 | D78: 0.1706251647 | E78: 0.1729991671 | F78: 0.2189190203 | G78: 0.5170630517 | H78: 0.2094444742 | I78: 0.4376359244 | J78: 0.04348626328 | K78: 0.4650464265 | L78: 301.6169285 | M78: 1425.754018 | N78: 4099.414565 | O78: 473768.6109 | P78: 49.05941564 | Q78: 380.4062175 | R78: 19753.44151 | S78: 120467.8004 | T78: 5699.582834 | U78: 2692.015858 | V78: 0.7579492212 | X78: 50830316.81 | Y78: 69393303.69 | Z78: 50830600.65 | AA78: 113795555.1 | AB78: 50833407.8 | AC78: 546603220.6 | AD78: 2807.153614 | AE78: 432807665.5 | AF78: 154180.2569 | AG78: 50833411.47 | AH78: 547375652 | AI78: 2810.82352 | AJ78: 433580096.9 | AK78: 154253.7601 | AL78: 50833420.66 | AM78: 546337234.6 | AN78: 2820.007269 | AO78: 432541679.5 | AP78: 153383.1789 | AQ78: 50833424.33 | AR78: 547109666 | AS78: 2823.677175 | AT78: 433314111 | AU78: 153457.3834 | AV78: 50833399.88 | AW78: 546629668 | AX78: 2799.226949 | AY78: 433440861.1 | AZ78: 154843.0581 | BA78: 50833411.47 | BB78: 547236416.2 | BC78: 2810.82352 | BD78: 433440861.1 | BE78: 154204.2245 | BF78: 50833412.73 | BG78: 546363682.1 | BH78: 2812.080605 | BI78: 432568127 | BJ78: 153824.9388 | BK78: 50833424.33 | BL78: 546970430.2 | BM78: 2823.677175 | BN78: 433174875.1 | BO78: 153408.0733 | BS78: 8.13284375e+13 | BT78: 8.132884724e+13 | BU78: 8.133290588e+13 | BV78: 8.133291098e+13 | BW78: 8.133292671e+13 | BX78: 81332931813506 | BY78: 8.133289317e+13 | BZ78: 8.133291112e+13 | CA78: 8.1332914e+13 | CB78: 8.133293195e+13 | CC78: 0 | CD78: 0 | CE78: 0 | CF78: 0 | CG78: 0 | CH78: 0 | CI78: 0 | CJ78: 0 | CK78: 0 | CL78: 1 | CN78: 0 | CO78: 0 | CP78: 0 | CQ78: 0 | CR78: 0 | CS78: 0 | CT78: 0 | CU78: 0 | CV78: 1 | DA78: 800000 | DB78: 0.068 | DC78: 0.003 | DD78: 0.003 | DE78: 0.006 | DF78: 0.016 | DG78: 0.003 | DH78: 0.003 | DI78: 0.003 | DJ78: 0.931
B79: 72 | C79: 1593849.512 | D79: 0.1524619643 | E79: 0.1426470337 | F79: 0.1903932749 | G79: 0.4061557032 | H79: 0.2141218128 | I79: 0.3012914204 | J79: 0.03740479444 | K79: 0.4821619256 | L79: 16.9069717 | M79: 227.2774426 | N79: 606.0973497 | O79: 63763.20992 | P79: 38.52725243 | Q79: 4806.187087 | R79: 18133.77801 | S79: 9053.943714 | T79: 534.9385746 | U79: 1350.597887 | V79: 0.6799218093 | X79: 45117971.49 | Y79: 9309424.245 | Z79: 45118264.2 | AA79: 11712058.82 | AB79: 45121165.25 | AC79: 28510440.66 | AD79: 2901.047284 | AE79: 16798381.84 | AF79: 5790.454342 | AG79: 45121167.09 | AH79: 28586767.14 | AI79: 2902.890548 | AJ79: 16874708.31 | AK79: 5813.070811 | AL79: 45121179.62 | AM79: 28514221.44 | AN79: 2915.419281 | AO79: 16802162.62 | AP79: 5763.206249 | AQ79: 45121181.46 | AR79: 28590547.92 | AS79: 2917.262545 | AT79: 16878489.09 | AU79: 5785.728514 | AV79: 45121156.21 | AW79: 28372241.18 | AX79: 2892.006385 | AY79: 16711711.09 | AZ79: 5778.587202 | BA79: 45121167.09 | BB79: 28423769.91 | BC79: 2902.890548 | BD79: 16711711.09 | BE79: 5756.920837 | BF79: 45121170.58 | BG79: 28376021.96 | BH79: 2906.378382 | BI79: 16663963.14 | BJ79: 5733.5835 | BK79: 45121181.46 | BL79: 28427550.69 | BM79: 2917.262545 | BN79: 16715491.86 | BO79: 5729.855165 | BS79: 7.218874507e+13 | BT79: 7.218921101e+13 | BU79: 72193835887820 | BV79: 7.219383876e+13 | BW79: 7.219385888e+13 | BX79: 72193861752131 | BY79: 7.219382156e+13 | BZ79: 7.219383892e+13 | CA79: 7.219384455e+13 | CB79: 7.219386192e+13 | CC79: 0 | CD79: 0 | CE79: 0 | CF79: 0 | CG79: 0 | CH79: 0 | CI79: 0 | CJ79: 0 | CK79: 0 | CL79: 1 | CN79: 0 | CO79: 0 | CP79: 0 | CQ79: 0 | CR79: 0 | CS79: 0 | CT79: 0 | CU79: 0 | CV79: 1 | DA79: 850000 | DB79: 0.058 | DC79: 0.003 | DD79: 0.003 | DE79: 0.005 | DF79: 0.017 | DG79: 0.003 | DH79: 0.003 | DI79: 0.003 | DJ79: 0.941
B80: 73 | C80: 1798498.316 | D80: 0.2031776349 | E80: 0.1748964724 | F80: 0.2313070086 | G80: 0.5722898656 | H80: 0.2475307558 | I80: 0.3556095462 | J80: 0.03308474906 | K80: 0.6170451338 | L80: 374.8154395 | M80: 3189.377526 | N80: 3215.697422 | O80: 90657.76433 | P80: 471.2356808 | Q80: 15429.43204 | R80: 32081.04097 | S80: 66148.68837 | T80: 442.4691791 | U80: 388.4542502 | V80: 0.8218247607 | X80: 50911655.99 | Y80: 13282590.12 | Z80: 50911934.17 | AA80: 74714604.51 | AB80: 50914681.24 | AC80: 671279993.3 | AD80: 2747.068254 | AE80: 596565388.7 | AF80: 217164.3853 | AG80: 50914681.5 | AH80: 671311617.1 | AI80: 2747.325452 | AJ80: 596597012.6 | AK80: 217155.5656 | AL80: 50914682.42 | AM80: 671282782 | AN80: 2748.251173 | AO80: 596568177.5 | AP80: 217071.9268 | AQ80: 50914682.68 | AR80: 671314405.8 | AS80: 2748.508371 | AT80: 596599801.3 | AU80: 217063.1196 | AV80: 50914680.42 | AW80: 671267501.9 | AX80: 2746.246961 | AY80: 596581165.9 | AZ80: 217235.0755 | BA80: 50914681.5 | BB80: 671295770.4 | BC80: 2747.325452 | BD80: 596581165.9 | BE80: 217149.7976 | BF80: 50914681.6 | BG80: 671270290.7 | BH80: 2747.42988 | BI80: 596555686.2 | BJ80: 217132.2699 | BK80: 50914682.68 | BL80: 671298559.2 | BM80: 2748.508371 | BN80: 596583954.7 | BO80: 217057.3541 | BS80: 8.14586363e+13 | BT80: 8.145901996e+13 | BU80: 8.14628187e+13 | BV80: 8.146281908e+13 | BW80: 8.146282059e+13 | BX80: 8.146282097e+13 | BY80: 8.14628174e+13 | BZ80: 8.14628191e+13 | CA80: 8.146281929e+13 | CB80: 8.146282099e+13 | CC80: 0 | CD80: 0 | CE80: 0 | CF80: 0 | CG80: 0 | CH80: 0 | CI80: 0 | CJ80: 0 | CK80: 0 | CL80: 1 | CN80: 0 | CO80: 0 | CP80: 0 | CQ80: 0 | CR80: 0 | CS80: 0 | CT80: 0 | CU80: 0 | CV80: 1 | DA80: 900000 | DB80: 0.051 | DC80: 0.003 | DD80: 0.003 | DE80: 0.005 | DF80: 0.015 | DG80: 0.003 | DH80: 0.003 | DI80: 0.004 | DJ80: 0.948
B81: 74 | C81: 1370399.113 | D81: 0.1163088148 | E81: 0.1467084084 | F81: 0.211480892 | G81: 0.5670558575 | H81: 0.2675573144 | I81: 0.3906892512 | J81: 0.0415509034 | K81: 0.5300981427 | L81: 912.2013183 | M81: 2508.247618 | N81: 1116.731936 | O81: 21027.11027 | P81: 145.6653253 | Q81: 18485.15444 | R81: 23535.87622 | S81: 38374.41648 | T81: 1593.858081 | U81: 173.570114 | V81: 0.6931949906 | X81: 38792218.65 | Y81: 3032312.809 | Z81: 38792503.79 | AA81: 117160842.8 | AB81: 38795333.91 | AC81: 1240256408 | AD81: 2830.122305 | AE81: 1123095565 | AF81: 396836.4064 | AG81: 38795341.97 | AH81: 1241230430 | AI81: 2838.178609 | AJ81: 1124069587 | AK81: 396053.153 | AL81: 38795379.95 | AM81: 1240687306 | AN81: 2876.159449 | AO81: 1123526463 | AP81: 390634.2757 | AQ81: 38795388 | AR81: 1241661328 | AS81: 2884.215754 | AT81: 1124500485 | AU81: 389880.8484 | AV81: 38795310.12 | AW81: 1239676139 | AX81: 2806.333402 | AY81: 1123467709 | AZ81: 400332.9428 | BA81: 38795341.97 | BB81: 1240628552 | BC81: 2838.178609 | BD81: 1123467709 | BE81: 395841.0883 | BF81: 38795356.16 | BG81: 1240107037 | BH81: 2852.370547 | BI81: 1122946194 | BJ81: 393688.7498 | BK81: 38795388 | BL81: 1241059450 | BM81: 2884.215754 | BN81: 1123898608 | BO81: 389672.1686 | BS81: 6.206754681e+13 | BT81: 6.20678889e+13 | BU81: 6.2071294e+13 | BV81: 6.207130592e+13 | BW81: 6.207136723e+13 | BX81: 6.207137914e+13 | BY81: 6.207125652e+13 | BZ81: 6.207130652e+13 | CA81: 6.207132975e+13 | CB81: 6.207137975e+13 | CC81: 0 | CD81: 0 | CE81: 0 | CF81: 0 | CG81: 0 | CH81: 0 | CI81: 0 | CJ81: 0 | CK81: 0 | CL81: 1 | CN81: 0 | CO81: 0 | CP81: 0 | CQ81: 0 | CR81: 0 | CS81: 0 | CT81: 0 | CU81: 0 | CV81: 1 | DA81: 950000 | DB81: 0.043 | DC81: 0.003 | DD81: 0.003 | DE81: 0.006 | DF81: 0.014 | DG81: 0.003 | DH81: 0.003 | DI81: 0.003 | DJ81: 0.956
B82: 75 | C82: 1727337.598 | D82: 0.2212687349 | E82: 0.17691738 | F82: 0.1797014549 | G82: 0.4974694203 | H82: 0.2930096848 | I82: 0.4024706545 | J82: 0.04109641499 | K82: 0.5387199753 | L82: 1260.624596 | M82: 5166.30078 | N82: 6653.502307 | O82: 310087.7587 | P82: 715.185984 | Q82: 1568.481928 | R82: 20264.78208 | S82: 52814.0699 | T82: 385.1291111 | U82: 393.0167694 | V82: 0.7600986498 | X82: 48896967.14 | Y82: 46589334.89 | Z82: 48897238.03 | AA82: 241527197.9 | AB82: 48899913.21 | AC82: 2168278880 | AD82: 2675.179833 | AE82: 1926751682 | AF82: 720232.5833 | AG82: 48899941.7 | AH82: 2171537007 | AI82: 2703.66731 | AJ82: 1930009809 | AK82: 713848.8534 | AL82: 48900062.33 | AM82: 2166345773 | AN82: 2824.296262 | AO82: 1924818575 | AP82: 681521.4821 | AQ82: 48900090.82 | AR82: 2169603900 | AS82: 2852.783739 | AT82: 1928076702 | AU82: 675857.9963 | AV82: 48899810.31 | AW82: 2168287896 | AX82: 2572.274567 | AY82: 1928610020 | AZ82: 749768.3352 | BA82: 48899941.7 | BB82: 2170137218 | BC82: 2703.66731 | BD82: 1928610020 | BE82: 713331.1163 | BF82: 48899959.42 | BG82: 2166354789 | BH82: 2721.390997 | BI82: 1924827591 | BJ82: 707295.4946 | BK82: 48900090.82 | BL82: 2168204111 | BM82: 2852.783739 | BN82: 1926676913 | BO82: 675367.3215 | BS82: 7.823510084e+13 | BT82: 7.823533932e+13 | BU82: 7.823769286e+13 | BV82: 7.823773518e+13 | BW82: 7.823793338e+13 | BX82: 7.82379757e+13 | BY82: 7.82375282e+13 | BZ82: 7.823773658e+13 | CA82: 7.823776872e+13 | CB82: 7.82379771e+13 | CC82: 0 | CD82: 0 | CE82: 0 | CF82: 0 | CG82: 0 | CH82: 0 | CI82: 0 | CJ82: 0 | CK82: 0 | CL82: 1 | CN82: 0 | CO82: 0 | CP82: 0 | CQ82: 0 | CR82: 0 | CS82: 0 | CT82: 0 | CU82: 0 | CV82: 1 | DA82: 1000000 | DB82: 0.034 | DC82: 0.003 | DD82: 0.003 | DE82: 0.005 | DF82: 0.017 | DG82: 0.003 | DH82: 0.003 | DI82: 0.003 | DJ82: 0.965
B83: 76 | C83: 2015106.714 | D83: 0.1880397953 | E83: 0.2270020966 | F83: 0.1945167939 | G83: 0.5843218028 | H83: 0.3155552861 | I83: 0.3322107494 | J83: 0.04080492548 | K83: 0.5790754421 | L83: 346.1044848 | M83: 1543.559815 | N83: 2157.718128 | O83: 79007.94234 | P83: 242.7094295 | Q83: 7726.11159 | R83: 7199.722806 | S83: 137.2602328 | T83: 350.0237361 | U83: 42.02397404 | V83: 0.9269487692 | X83: 57043883.32 | Y83: 11580242.88 | Z83: 57044150.14 | AA83: 74250043.71 | AB83: 57046781.68 | AC83: 692963391.3 | AD83: 2631.542291 | AE83: 618713347.6 | AF83: 235114.3471 | AG83: 57046782.04 | AH83: 692962183.5 | AI83: 2631.907346 | AJ83: 618712139.8 | AK83: 235081.277 | AL83: 57046784.54 | AM83: 692960690.1 | AN83: 2634.400439 | AO83: 618710646.4 | AP83: 234858.2384 | AQ83: 57046784.9 | AR83: 692959482.3 | AS83: 2634.765494 | AT83: 618709438.5 | AU83: 234825.2396 | AV83: 57046780.08 | AW83: 692961966.8 | AX83: 2629.946922 | AY83: 618704827.3 | AZ83: 235253.7316 | BA83: 57046782.04 | BB83: 692954871 | BC83: 2631.907346 | BD83: 618704827.3 | BE83: 235078.4986 | BF83: 57046782.94 | BG83: 692959265.6 | BH83: 2632.805071 | BI83: 618709221.8 | BJ83: 235000.0115 | BK83: 57046784.9 | BL83: 692952169.8 | BM83: 2634.765494 | BN83: 618702126.1 | BO83: 234822.4642 | BS83: 9.127020172e+13 | BT83: 9.127056597e+13 | BU83: 9.127415772e+13 | BV83: 9.127415831e+13 | BW83: 9.12741623e+13 | BX83: 9.127416288e+13 | BY83: 9.127415517e+13 | BZ83: 9.127415831e+13 | CA83: 9.127415974e+13 | CB83: 9.127416289e+13 | CC83: 0 | CD83: 0 | CE83: 0 | CF83: 0 | CG83: 0 | CH83: 0 | CI83: 0 | CJ83: 0 | CK83: 0 | CL83: 1 | CN83: 0 | CO83: 0 | CP83: 0 | CQ83: 0 | CR83: 0 | CS83: 0 | CT83: 0 | CU83: 0 | CV83: 1 | DA83: =DA82+100000 -> 1100000 | DB83: 0.03 | DC83: 0.003 | DD83: 0.003 | DE83: 0.006 | DF83: 0.019 | DG83: 0.003 | DH83: 0.003 | DI83: 0.004 | DJ83: 0.969
B84: 77 | C84: 1833738.23 | D84: 0.2277535858 | E84: 0.1997260386 | F84: 0.1864397481 | G84: 0.4383587092 | H84: 0.2683928394 | I84: 0.4108194124 | J84: 0.0392650552 | K84: 0.5728581686 | L84: 72.46034673 | M84: 781.8501179 | N84: 2049.096171 | O84: 594974.5355 | P84: 190.9425082 | Q84: 831.9968756 | R84: 24215.9238 | S84: 9434.304277 | T84: 1330.627007 | U84: 1484.234039 | V84: 0.9637495087 | X84: 51909348.48 | Y84: 89788106.33 | Z84: 51909604.4 | AA84: 95726550.37 | AB84: 51912129.05 | AC84: 146636810.9 | AD84: 2524.654134 | AE84: 50910260.53 | AF84: 20165.24158 | AG84: 51912146.42 | AH84: 146635387.3 | AI84: 2542.021185 | AJ84: 50908836.89 | AK84: 20026.91292 | AL84: 51912254 | AM84: 143162172.9 | AN84: 2649.602323 | AO84: 47435622.52 | AP84: 17902.92155 | AQ84: 51912271.37 | AR84: 143160749.2 | AS84: 2666.969373 | AT84: 47434198.88 | AU84: 17785.80563 | AV84: 51912064.82 | AW84: 147193954.8 | AX84: 2460.416216 | AY84: 49657509.15 | AZ84: 20182.56457 | BA84: 51912146.42 | BB84: 145384059.5 | BC84: 2542.021185 | BD84: 49657509.15 | BE84: 19534.65591 | BF84: 51912189.76 | BG84: 143719316.8 | BH84: 2585.364405 | BI84: 47992766.42 | BJ84: 18563.25024 | BK84: 51912271.37 | BL84: 141909421.5 | BM84: 2666.969373 | BN84: 46182871.14 | BO84: 17316.61098 | BS84: 8.305486777e+13 | BT84: 8.305527131e+13 | BU84: 8.305925985e+13 | BV84: 8.305928764e+13 | BW84: 8.305946324e+13 | BX84: 8.305949103e+13 | BY84: 8.305915651e+13 | BZ84: 8.305928889e+13 | CA84: 8.30593599e+13 | CB84: 8.305949228e+13 | CC84: 0 | CD84: 0 | CE84: 0 | CF84: 0 | CG84: 0 | CH84: 0 | CI84: 0 | CJ84: 0 | CK84: 0 | CL84: 1 | CN84: 0 | CO84: 0 | CP84: 0 | CQ84: 0 | CR84: 0 | CS84: 0 | CT84: 0 | CU84: 0 | CV84: 1 | DA84: 1200000 | DB84: 0.02 | DC84: 0.003 | DD84: 0.004 | DE84: 0.004 | DF84: 0.016 | DG84: 0.003 | DH84: 0.004 | DI84: 0.004 | DJ84: 0.98
B85: 78 | C85: 1676404.06 | D85: 0.1657945913 | E85: 0.1351526308 | F85: 0.213571996 | G85: 0.5632238165 | H85: 0.2746178692 | I85: 0.3710183605 | J85: 0.02996202201 | K85: 0.4935672302 | L85: 1082.147807 | M85: 1739.417 | N85: 1803.628087 | O85: 477251.4574 | P85: 218.3012585 | Q85: 5144.636563 | R85: 4156.374757 | S85: 23943.25937 | T85: 10932.28038 | U85: 1094.851321 | V85: 0.6331899366 | X85: 47455029.64 | Y85: 69348649.31 | Z85: 47455321.34 | AA85: 228646125.9 | AB85: 47458212.7 | AC85: 1806915469 | AD85: 2891.359807 | AE85: 1578269343 | AF85: 545857.122 | AG85: 47458222.84 | AH85: 1807289873 | AI85: 2901.497193 | AJ85: 1578643747 | AK85: 544079.0192 | AL85: 47458250.79 | AM85: 1806269512 | AN85: 2929.451107 | AO85: 1577623386 | AP85: 538538.903 | AQ85: 47458260.93 | AR85: 1806643916 | AS85: 2939.588494 | AT85: 1577997790 | AU85: 536809.0784 | AV85: 47458179.16 | AW85: 1807493255 | AX85: 2857.821254 | AY85: 1578543159 | AZ85: 552358.9541 | BA85: 47458222.84 | BB85: 1807189285 | BC85: 2901.497193 | BD85: 1578543159 | BE85: 544044.3515 | BF85: 47458217.25 | BG85: 1806847298 | BH85: 2895.912555 | BI85: 1578201172 | BJ85: 544975.424 | BK85: 47458260.93 | BL85: 1806543328 | BM85: 2939.588494 | BN85: 1577897202 | BO85: 536774.8599 | BS85: 7.592797807e+13 | BT85: 7.59282855e+13 | BU85: 7.593133341e+13 | BV85: 7.593134925e+13 | BW85: 7.5931395e+13 | BX85: 7.593141084e+13 | BY85: 7.593127917e+13 | BZ85: 7.593134935e+13 | CA85: 7.593134076e+13 | CB85: 7.593141094e+13 | CC85: 0 | CD85: 0 | CE85: 0 | CF85: 0 | CG85: 0 | CH85: 0 | CI85: 0 | CJ85: 0 | CK85: 0 | CL85: 1 | CN85: 0 | CO85: 0 | CP85: 0 | CQ85: 0 | CR85: 0 | CS85: 0 | CT85: 0 | CU85: 0 | CV85: 1 | DA85: 1300000 | DB85: 0.015 | DC85: 0.003 | DD85: 0.004 | DE85: 0.004 | DF85: 0.018 | DG85: 0.003 | DH85: 0.004 | DI85: 0.004 | DJ85: 0.985
B86: 79 | C86: 1305777.608 | D86: 0.2174541734 | E86: 0.1851030458 | F86: 0.2007805494 | G86: 0.5274875324 | H86: 0.2415721074 | I86: 0.4725534707 | J86: 0.03960957317 | K86: 0.6080400682 | L86: 11.48566823 | M86: 314.4908024 | N86: 1344.487863 | O86: 133929.7791 | P86: 84.57398837 | Q86: 639.6060485 | R86: 17747.64408 | S86: 88.62667539 | T86: 4043.247181 | U86: 868.6953741 | V86: 0.9288234947 | X86: 36963008.74 | Y86: 19620371.97 | Z86: 36963275.83 | AA86: 20197314.35 | AB86: 36965911.95 | AC86: 18954942.69 | AD86: 2636.112588 | AE86: -1242371.654 | AF86: -471.2892993 | AG86: 36965911.95 | AH86: 18954932.48 | AI86: 2636.114257 | AJ86: -1242381.864 | AK86: -471.2928741 | AL86: 36965911.95 | AM86: 18954904.38 | AN86: 2636.11898 | AO86: -1242409.97 | AP86: -471.3026915 | AQ86: 36965911.95 | AR86: 18954894.17 | AS86: 2636.120648 | AT86: -1242420.18 | AU86: -471.3062663 | AV86: 36965911.94 | AW86: 18954917.09 | AX86: 2636.109152 | AY86: -1242428.976 | AZ86: -471.3116582 | BA86: 36965911.95 | BB86: 18954885.37 | BC86: 2636.114257 | BD86: -1242428.976 | BE86: -471.3107456 | BF86: 36965911.95 | BG86: 18954878.77 | BH86: 2636.115544 | BI86: -1242435.573 | BJ86: -471.3130179 | BK86: 36965911.95 | BL86: 18954847.06 | BM86: 2636.120648 | BN86: -1242467.292 | BO86: -471.3241378 | BS86: 5.914079436e+13 | BT86: 5.914122113e+13 | BU86: 5.914544016e+13 | BV86: 5.914544016e+13 | BW86: 5.914544017e+13 | BX86: 59145440170110 | BY86: 5.914544015e+13 | BZ86: 5.914544016e+13 | CA86: 5.914544016e+13 | CB86: 5.914544017e+13 | CC86: 0 | CD86: 0 | CE86: 0 | CF86: 0 | CG86: 0 | CH86: 0 | CI86: 0 | CJ86: 0 | CK86: 0 | CL86: 1 | CN86: 0 | CO86: 0 | CP86: 0 | CQ86: 0 | CR86: 0 | CS86: 0 | CT86: 0 | CU86: 0 | CV86: 1 | DA86: 1400000 | DB86: 0.012 | DC86: 0.004 | DD86: 0.004 | DE86: 0.005 | DF86: 0.019 | DG86: 0.003 | DH86: 0.004 | DI86: 0.004 | DJ86: 0.988
B87: 80 | C87: 1749415.949 | D87: 0.2284394667 | E87: 0.1559013205 | F87: 0.1844923441 | G87: 0.3324329602 | H87: 0.2643989035 | I87: 0.4013847992 | J87: 0.04171344479 | K87: 0.6242134926 | L87: 668.2731881 | M87: 2925.70919 | N87: 905.4090075 | O87: 1159689.384 | P87: 360.4144481 | Q87: 2426.843177 | R87: 27503.4295 | S87: 667.9977694 | T87: 654.0621682 | U87: 340.5341385 | V87: 0.9350934683 | X87: 49522273.73 | Y87: 169901662.6 | Z87: 49522541.04 | AA87: 262565045.6 | AB87: 49525179.72 | AC87: 1171283913 | AD87: 2638.680311 | AE87: 908718867.5 | AF87: 344383.8435 | AG87: 49525179.75 | AH87: 1171282438 | AI87: 2638.710219 | AJ87: 908717392.8 | AK87: 344379.3814 | AL87: 49525180.18 | AM87: 1171259113 | AN87: 2639.146864 | AO87: 908694067 | AP87: 344313.5657 | AQ87: 49525180.21 | AR87: 1171257638 | AS87: 2639.176771 | AT87: 908692592.3 | AU87: 344309.1052 | AV87: 49525179.5 | AW87: 1171289576 | AX87: 2638.46237 | AY87: 908711216 | AZ87: 344409.3903 | BA87: 49525179.75 | BB87: 1171276262 | BC87: 2638.710219 | BD87: 908711216 | BE87: 344377.0406 | BF87: 49525179.97 | BG87: 1171264776 | BH87: 2638.928922 | BI87: 908699729.9 | BJ87: 344344.1475 | BK87: 49525180.21 | BL87: 1171251461 | BM87: 2639.176771 | BN87: 908686415.5 | BO87: 344306.7647 | BS87: 7.923546807e+13 | BT87: 7.923580309e+13 | BU87: 7.923911626e+13 | BV87: 7.923911631e+13 | BW87: 7.923911704e+13 | BX87: 7.923911709e+13 | BY87: 7.923911591e+13 | BZ87: 7.923911632e+13 | CA87: 7.923911668e+13 | CB87: 7.923911709e+13 | CC87: 0 | CD87: 0 | CE87: 0 | CF87: 0 | CG87: 0 | CH87: 0 | CI87: 0 | CJ87: 0 | CK87: 0 | CL87: 1 | CN87: 0 | CO87: 0 | CP87: 0 | CQ87: 0 | CR87: 0 | CS87: 0 | CT87: 0 | CU87: 0 | CV87: 1 | DA87: 1500000 | DB87: 0.011 | DC87: 0.003 | DD87: 0.004 | DE87: 0.004 | DF87: 0.019 | DG87: 0.003 | DH87: 0.004 | DI87: 0.004 | DJ87: 0.989
B88: 81 | C88: 2044008.439 | D88: 0.1458450273 | E88: 0.1418493815 | F88: 0.243933599 | G88: 0.5207291927 | H88: 0.2994342363 | I88: 0.3745975912 | J88: 0.04074985938 | K88: 0.6143286035 | L88: 127.4315162 | M88: 2577.890846 | N88: 152.8792538 | O88: 471559.1664 | P88: 27.99505748 | Q88: 9160.568831 | R88: 11306.69177 | S88: 11120.34151 | T88: 123.9782474 | U88: 510.0776556 | V88: 0.8789001392 | X88: 57862095.97 | Y88: 67674598.2 | Z88: 57862355.99 | AA88: 86196818.33 | AB88: 57864932.55 | AC88: 265977227.6 | AD88: 2576.561042 | AE88: 179780409.3 | AF88: 69775.33477 | AG88: 57864944.98 | AH88: 266233101 | AI88: 2588.985896 | AJ88: 180036282.7 | AK88: 69539.30609 | AL88: 57865022.11 | AM88: 264469509.4 | AN88: 2666.116357 | AO88: 178272691.1 | AP88: 66866.05805 | AQ88: 57865034.53 | AR88: 264725382.9 | AS88: 2678.541212 | AT88: 178528564.5 | AU88: 66651.41599 | AV88: 57864883.74 | AW88: 266500894.7 | AX88: 2527.749078 | AY88: 179502421.7 | AZ88: 71012.75332 | BA88: 57864944.98 | BB88: 265699240 | BC88: 2588.985896 | BD88: 179502421.7 | BE88: 69333.10141 | BF88: 57864973.29 | BG88: 264993176.6 | BH88: 2617.304393 | BI88: 178796358.3 | BJ88: 68313.16936 | BK88: 57865034.53 | BL88: 264191521.9 | BM88: 2678.541212 | BN88: 177994703.5 | BO88: 66452.10563 | BS88: 9.257928588e+13 | BT88: 9.257968339e+13 | BU88: 9.25836261e+13 | BV88: 9.258364573e+13 | BW88: 9.25837709e+13 | BX88: 9.258379052e+13 | BY88: 9.258354748e+13 | BZ88: 9.258364626e+13 | CA88: 9.258369228e+13 | CB88: 9.258379106e+13 | CC88: 0 | CD88: 0 | CE88: 0 | CF88: 0 | CG88: 0 | CH88: 0 | CI88: 0 | CJ88: 0 | CK88: 0 | CL88: 1 | CN88: 0 | CO88: 0 | CP88: 0 | CQ88: 0 | CR88: 0 | CS88: 0 | CT88: 0 | CU88: 0 | CV88: 1 | DA88: 1600000 | DB88: 0.008 | DC88: 0.003 | DD88: 0.004 | DE88: 0.004 | DF88: 0.016 | DG88: 0.003 | DH88: 0.004 | DI88: 0.004 | DJ88: 0.992
B89: 82 | C89: 1608164.82 | D89: 0.193790703 | E89: 0.1909269914 | F89: 0.2048592497 | G89: 0.3959540866 | H89: 0.2953776823 | I89: 0.3261353516 | J89: 0.03734818926 | K89: 0.5089117799 | L89: 185.9538466 | M89: 449.6904407 | N89: 300.7094589 | O89: 188746.5734 | P89: 11.55953348 | Q89: 6202.727937 | R89: 2530.345251 | S89: 1538.580056 | T89: 1022.305898 | U89: 868.3479072 | V89: 0.6727587612 | X89: 45523209.33 | Y89: 27687791.62 | Z89: 45523500.45 | AA89: 52631479.99 | AB89: 45526374.77 | AC89: 299114961.2 | AD89: 2874.32762 | AE89: 246483481.2 | AF89: 85753.44004 | AG89: 45526375.5 | AH89: 299116620.6 | AI89: 2875.053084 | AJ89: 246485140.6 | AK89: 85732.37901 | AL89: 45526385.86 | AM89: 299055514.3 | AN89: 2885.416773 | AO89: 246424034.3 | AP89: 85403.27231 | AQ89: 45526386.59 | AR89: 299057173.7 | AS89: 2886.142236 | AT89: 246425693.7 | AU89: 85382.38022 | AV89: 45526368.87 | AW89: 299150370.2 | AX89: 2868.426439 | AY89: 246472746.9 | AZ89: 85926.11737 | BA89: 45526375.5 | BB89: 299104226.8 | BC89: 2875.053084 | BD89: 246472746.9 | BE89: 85728.06821 | BF89: 45526379.96 | BG89: 299090923.4 | BH89: 2879.515591 | BI89: 246459443.4 | BJ89: 85590.59173 | BK89: 45526386.59 | BL89: 299044780 | BM89: 2886.142236 | BN89: 246413300 | BO89: 85378.08599 | BS89: 7.283710723e+13 | BT89: 7.283754808e+13 | BU89: 7.284190052e+13 | BV89: 7.284190168e+13 | BW89: 7.284191833e+13 | BX89: 7.284191949e+13 | BY89: 7.284189105e+13 | BZ89: 7.28419017e+13 | CA89: 7.284190885e+13 | CB89: 7.28419195e+13 | CC89: 0 | CD89: 0 | CE89: 0 | CF89: 0 | CG89: 0 | CH89: 0 | CI89: 0 | CJ89: 0 | CK89: 0 | CL89: 1 | CN89: 0 | CO89: 0 | CP89: 0 | CQ89: 0 | CR89: 0 | CS89: 0 | CT89: 0 | CU89: 0 | CV89: 1 | DA89: 1700000 | DB89: 0.003 | DC89: 0.004 | DD89: 0.004 | DE89: 0.007 | DF89: 0.014 | DG89: 0.002 | DH89: 0.004 | DI89: 0.004 | DJ89: 0.997
B90: 83 | C90: 1446433.496 | D90: 0.1405208967 | E90: 0.1557222517 | F90: 0.2112441021 | G90: 0.4568904652 | H90: 0.2840054916 | I90: 0.3238223813 | J90: 0.04244321186 | K90: 0.4786372303 | L90: 146.0084125 | M90: 16.47996343 | N90: 2665.574316 | O90: 288702.1648 | P90: 38.04151698 | Q90: 8400.390923 | R90: 38287.16685 | S90: 7485.898897 | T90: 1146.230338 | U90: 558.6632687 | V90: 0.7459709091 | X90: 40944732.15 | Y90: 42293633.85 | Z90: 40945021.21 | AA90: 59326004.83 | AB90: 40947885.01 | AC90: 213080533.7 | AD90: 2863.80474 | AE90: 153754528.8 | AF90: 53688.90089 | AG90: 40947885.02 | AH90: 213080685.1 | AI90: 2863.809938 | AJ90: 153754680.3 | AK90: 53688.85631 | AL90: 40947885.06 | AM90: 213080152.7 | AN90: 2863.853992 | AO90: 153754147.9 | AP90: 53687.84453 | AQ90: 40947885.07 | AR90: 213080304.1 | AS90: 2863.85919 | AT90: 153754299.3 | AU90: 53687.79996 | AV90: 40947884.98 | AW90: 213079785.8 | AX90: 2863.776053 | AY90: 153753568.4 | AZ90: 53689.10333 | BA90: 40947885.02 | BB90: 213079573.2 | BC90: 2863.809938 | BD90: 153753568.4 | BE90: 53688.46807 | BF90: 40947885.03 | BG90: 213079404.8 | BH90: 2863.825305 | BI90: 153753400 | BJ90: 53688.12118 | BK90: 40947885.07 | BL90: 213079192.3 | BM90: 2863.85919 | BN90: 153753187.5 | BO90: 53687.41173 | BS90: 6.551152915e+13 | BT90: 6.55119746e+13 | BU90: 6.551640294e+13 | BV90: 6.551640295e+13 | BW90: 6.551640302e+13 | BX90: 6.551640302e+13 | BY90: 6.551640289e+13 | BZ90: 6.551640295e+13 | CA90: 6.551640297e+13 | CB90: 6.551640303e+13 | CC90: 0 | CD90: 0 | CE90: 0 | CF90: 0 | CG90: 0 | CH90: 0 | CI90: 0 | CJ90: 0 | CK90: 0 | CL90: 1 | CN90: 0 | CO90: 0 | CP90: 0 | CQ90: 0 | CR90: 0 | CS90: 0 | CT90: 0 | CU90: 0 | CV90: 1
B91: 84 | C91: 1781126.276 | D91: 0.2889432047 | E91: 0.1464442544 | F91: 0.1384005442 | G91: 0.437604685 | H91: 0.3207129309 | I91: 0.3275671527 | J91: 0.04336860748 | K91: 0.5305965112 | L91: 649.6923921 | M91: 1200.772484 | N91: 1541.183057 | O91: 236432.9168 | P91: 305.5718399 | Q91: 29.88769497 | R91: 6143.534547 | S91: 394.8370938 | T91: 4690.005145 | U91: 1241.786536 | V91: 0.9128208869 | X91: 50419957.39 | Y91: 34651901.08 | Z91: 50420224.78 | AA91: 137179109.2 | AB91: 50422858.65 | AC91: 1151726318 | AD91: 2633.869205 | AE91: 1014547209 | AF91: 385192.707 | AG91: 50422858.81 | AH91: 1151724804 | AI91: 2634.03141 | AJ91: 1014545695 | AK91: 385168.4119 | AL91: 50422859.79 | AM91: 1151713818 | AN91: 2635.00842 | AO91: 1014534709 | AP91: 385021.4296 | AQ91: 50422859.95 | AR91: 1151712305 | AS91: 2635.170626 | AT91: 1014533195 | AU91: 384997.1556 | AV91: 50422857.4 | AW91: 1151735831 | AX91: 2632.622647 | AY91: 1014541508 | AZ91: 385372.9321 | BA91: 50422858.81 | BB91: 1151720618 | BC91: 2634.03141 | BD91: 1014541508 | BE91: 385166.8224 | BF91: 50422858.54 | BG91: 1151723331 | BH91: 2633.761862 | BI91: 1014544222 | BJ91: 385207.2721 | BK91: 50422859.95 | BL91: 1151708118 | BM91: 2635.170626 | BN91: 1014529009 | BO91: 384995.5668 | BS91: 8.067189717e+13 | BT91: 8.067222247e+13 | BU91: 8.067542211e+13 | BV91: 8.067542237e+13 | BW91: 8.067542395e+13 | BX91: 8.067542421e+13 | BY91: 8.067542011e+13 | BZ91: 8.067542238e+13 | CA91: 8.067542194e+13 | CB91: 8.067542421e+13 | CC91: 0 | CD91: 0 | CE91: 0 | CF91: 0 | CG91: 0 | CH91: 0 | CI91: 0 | CJ91: 0 | CK91: 0 | CL91: 1 | CN91: 0 | CO91: 0 | CP91: 0 | CQ91: 0 | CR91: 0 | CS91: 0 | CT91: 0 | CU91: 0 | CV91: 1
B92: 85 | C92: 1667292.393 | D92: 0.1565675949 | E92: 0.1786168096 | F92: 0.2208292174 | G92: 0.567192079 | H92: 0.3504493355 | I92: 0.2305556139 | J92: 0.03912888558 | K92: 0.5691983006 | L92: 98.0943529 | M92: 6663.661108 | N92: 5974.180922 | O92: 108880.3421 | P92: 49.84022968 | Q92: 1851.485805 | R92: 4796.868261 | S92: 5843.626883 | T92: 2756.446201 | U92: 636.4585321 | V92: 0.8946752665 | X92: 47197352.72 | Y92: 15878928.6 | Z92: 47197612.37 | AA92: 30173489.01 | AB92: 47200180.59 | AC92: 170314644.4 | AD92: 2568.220908 | AE92: 140141155.4 | AF92: 54567.40693 | AG92: 47200189.37 | AH92: 170573189.1 | AI92: 2576.993434 | AJ92: 140399700.1 | AK92: 54481.97821 | AL92: 47200294.59 | AM92: 169837194 | AN92: 2682.216598 | AO92: 139663705 | AP92: 52070.25604 | AQ92: 47200303.36 | AR92: 170095738.7 | AS92: 2690.989123 | AT92: 139922249.7 | AU92: 51996.58687 | AV92: 47200103.98 | AW92: 170451531 | AX92: 2491.606265 | AY92: 140151249.7 | AZ92: 56249.35674 | BA92: 47200189.37 | BB92: 170324738.7 | BC92: 2576.993434 | BD92: 140151249.7 | BE92: 54385.56724 | BF92: 47200217.98 | BG92: 169974080.6 | BH92: 2605.601955 | BI92: 139800591.6 | BJ92: 53653.8558 | BK92: 47200303.36 | BL92: 169847288.3 | BM92: 2690.989123 | BN92: 139673799.3 | BO92: 51904.26006 | BS92: 7.551574847e+13 | BT92: 7.551614962e+13 | BU92: 7.552011864e+13 | BV92: 7.552013241e+13 | BW92: 7.552030151e+13 | BX92: 7.552031528e+13 | BY92: 7.551999592e+13 | BZ92: 7.552013266e+13 | CA92: 7.552017879e+13 | CB92: 7.552031553e+13 | CC92: 0 | CD92: 0 | CE92: 0 | CF92: 0 | CG92: 0 | CH92: 0 | CI92: 0 | CJ92: 0 | CK92: 0 | CL92: 1 | CN92: 0 | CO92: 0 | CP92: 0 | CQ92: 0 | CR92: 0 | CS92: 0 | CT92: 0 | CU92: 0 | CV92: 1
B93: 86 | C93: 1988309.912 | D93: 0.1944569822 | E93: 0.114294618 | F93: 0.2418063801 | G93: 0.484601726 | H93: 0.2140412294 | I93: 0.3965545886 | J93: 0.03651956267 | K93: 0.5813555098 | L93: 41.71435131 | M93: 1509.68104 | N93: 3581.243583 | O93: 896062.6139 | P93: 163.1771301 | Q93: 3087.885515 | R93: 772.16921 | S93: 12176.6003 | T93: 807.1615885 | U93: 786.6165992 | V93: 0.7517037832 | X93: 56285085.35 | Y93: 131254472.7 | Z93: 56285372.97 | AA93: 127708426.5 | AB93: 56288219.69 | AC93: 92458479.73 | AD93: 2846.722999 | AE93: -35249946.8 | AF93: -12382.64025 | AG93: 56288219.9 | AH93: 92455578.81 | AI93: 2846.933883 | AJ93: -35252847.72 | AK93: -12382.74199 | AL93: 56288220.36 | AM93: 92433357.31 | AN93: 2847.394613 | AO93: -35275069.21 | AP93: -12388.54251 | AQ93: 56288220.57 | AR93: 92430456.39 | AS93: 2847.605497 | AT93: -35277970.14 | AU93: -12388.64378 | AV93: 56288219.11 | AW93: 92480812.24 | AX93: 2846.148222 | AY93: -35253191.35 | AZ93: -12386.2809 | BA93: 56288219.9 | BB93: 92455235.17 | BC93: 2846.933883 | BD93: -35253191.35 | BE93: -12382.86269 | BF93: 56288219.79 | BG93: 92455689.82 | BH93: 2846.819837 | BI93: -35252736.71 | BJ93: -12383.19905 | BK93: 56288220.57 | BL93: 92430112.76 | BM93: 2847.605497 | BN93: -35278313.77 | BO93: -12388.76446 | BS93: 9.00560053e+13 | BT93: 9.005646904e+13 | BU93: 9.006105904e+13 | BV93: 9.006105938e+13 | BW93: 9.006106014e+13 | BX93: 9.006106048e+13 | BY93: 9.00610581e+13 | BZ93: 9.006105938e+13 | CA93: 9.00610592e+13 | CB93: 9.006106048e+13 | CC93: 0 | CD93: 0 | CE93: 0 | CF93: 0 | CG93: 0 | CH93: 0 | CI93: 0 | CJ93: 0 | CK93: 0 | CL93: 1 | CN93: 0 | CO93: 0 | CP93: 0 | CQ93: 0 | CR93: 0 | CS93: 0 | CT93: 0 | CU93: 0 | CV93: 1
B94: 87 | C94: 1535520.141 | D94: 0.1989591963 | E94: 0.1416901297 | F94: 0.2294816837 | G94: 0.4323051789 | H94: 0.2402412015 | I94: 0.4035693778 | J94: 0.03773191566 | K94: 0.4308814457 | L94: 746.9101055 | M94: 2760.344477 | N94: 5361.882395 | O94: 235574.2138 | P94: 80.98915072 | Q94: 3230.379003 | R94: 3584.467996 | S94: 134.706437 | T94: 3369.059284 | U94: 479.7582216 | V94: 0.7175303895 | X94: 43466716.64 | Y94: 34497178.7 | Z94: 43467004.38 | AA94: 136095192.2 | AB94: 43469849.45 | AC94: 1142359817 | AD94: 2845.065806 | AE94: 1006264624 | AF94: 353687.6449 | AG94: 43469852.45 | AH94: 1142330152 | AI94: 2848.069283 | AJ94: 1006234960 | AK94: 353304.2422 | AL94: 43469861.34 | AM94: 1142265250 | AN94: 2856.956128 | AO94: 1006170058 | AP94: 352182.5374 | AQ94: 43469864.34 | AR94: 1142235586 | AS94: 2859.959605 | AT94: 1006140394 | AU94: 351802.3094 | AV94: 43469839.46 | AW94: 1142431899 | AX94: 2835.074768 | AY94: 1006204564 | AZ94: 354912.8846 | BA94: 43469852.45 | BB94: 1142299756 | BC94: 2848.069283 | BD94: 1006204564 | BE94: 353293.5698 | BF94: 43469851.35 | BG94: 1142337333 | BH94: 2846.96509 | BI94: 1006242141 | BJ94: 353443.7933 | BK94: 43469864.34 | BL94: 1142205190 | BM94: 2859.959605 | BN94: 1006109998 | BO94: 351791.6813 | BS94: 6.954671213e+13 | BT94: 6.954707092e+13 | BU94: 6.955061676e+13 | BV94: 6.955062159e+13 | BW94: 6.955063588e+13 | BX94: 6.955064071e+13 | BY94: 6.95506007e+13 | BZ94: 6.955062162e+13 | CA94: 6.955061982e+13 | CB94: 6.955064074e+13 | CC94: 0 | CD94: 0 | CE94: 0 | CF94: 0 | CG94: 0 | CH94: 0 | CI94: 0 | CJ94: 0 | CK94: 0 | CL94: 1 | CN94: 0 | CO94: 0 | CP94: 0 | CQ94: 0 | CR94: 0 | CS94: 0 | CT94: 0 | CU94: 0 | CV94: 1
B95: 88 | C95: 1542430.087 | D95: 0.2048663484 | E95: 0.1255450693 | F95: 0.1817500163 | G95: 0.5525235404 | H95: 0.286124047 | I95: 0.2752282066 | J95: 0.03330451796 | K95: 0.5740883223 | L95: 649.2252973 | M95: 1750.221236 | N95: 2364.425999 | O95: 41541.55423 | P95: 62.46097946 | Q95: 5679.154176 | R95: 24761.30106 | S95: 515.9571946 | T95: 5671.57635 | U95: 344.5279552 | V95: 0.6945981335 | X95: 43662308.63 | Y95: 6085694.541 | Z95: 43662601.08 | AA95: 97618587.76 | AB95: 43665494.8 | AC95: 995555206 | AD95: 2893.717163 | AE95: 897936618.3 | AF95: 310305.5923 | AG95: 43665494.81 | AH95: 995555201.5 | AI95: 2893.731731 | AJ95: 897936613.7 | AK95: 310304.0286 | AL95: 43665494.87 | AM95: 995555318.6 | AN95: 2893.787065 | AO95: 897936730.8 | AP95: 310298.1355 | AQ95: 43665494.88 | AR95: 995555314.1 | AS95: 2893.801633 | AT95: 897936726.3 | AU95: 310296.5718 | AV95: 43665494.72 | AW95: 995554311 | AX95: 2893.637595 | AY95: 897935575.8 | AZ95: 310313.7647 | BA95: 43665494.81 | BB95: 995554163.6 | BC95: 2893.731731 | BD95: 897935575.8 | BE95: 310303.6699 | BF95: 43665494.79 | BG95: 995554423.5 | BH95: 2893.707498 | BI95: 897935835.8 | BJ95: 310306.3584 | BK95: 43665494.88 | BL95: 995554276.1 | BM95: 2893.801633 | BN95: 897935688.4 | BO95: 310296.2131 | BS95: 6.985968772e+13 | BT95: 6.986006411e+13 | BU95: 6.986379612e+13 | BV95: 6.986379614e+13 | BW95: 6.986379623e+13 | BX95: 6.986379626e+13 | BY95: 6.9863796e+13 | BZ95: 6.986379615e+13 | CA95: 6.986379611e+13 | CB95: 6.986379626e+13 | CC95: 0 | CD95: 0 | CE95: 0 | CF95: 0 | CG95: 0 | CH95: 0 | CI95: 0 | CJ95: 0 | CK95: 0 | CL95: 1 | CN95: 0 | CO95: 0 | CP95: 0 | CQ95: 0 | CR95: 0 | CS95: 0 | CT95: 0 | CU95: 0 | CV95: 1
B96: 89 | C96: 1406842.893 | D96: 0.2084360717 | E96: 0.1282737094 | F96: 0.2224253097 | G96: 0.4224527733 | H96: 0.318336817 | I96: 0.2956578866 | J96: 0.04895294122 | K96: 0.6091960016 | L96: 920.3862355 | M96: 7089.911733 | N96: 4822.71774 | O96: 84100.9449 | P96: 87.60504491 | Q96: 6257.471747 | R96: 14335.97475 | S96: 30803.4037 | T96: 2624.556838 | U96: 3037.666444 | V96: 0.8571221871 | X96: 39824056.15 | Y96: 12320553.03 | Z96: 39824332.79 | AA96: 129826181.9 | AB96: 39827063.34 | AC96: 1289514538 | AD96: 2730.555042 | AE96: 1159688356 | AF96: 424707.9212 | AG96: 39827063.35 | AH96: 1289514807 | AI96: 2730.556296 | AJ96: 1159688625 | AK96: 424707.825 | AL96: 39827063.36 | AM96: 1289514535 | AN96: 2730.570315 | AO96: 1159688353 | AP96: 424705.5446 | AQ96: 39827063.36 | AR96: 1289514804 | AS96: 2730.571569 | AT96: 1159688623 | AU96: 424705.4484 | AV96: 39827063.33 | AW96: 1289514456 | AX96: 2730.54292 | AY96: 1159688498 | AZ96: 424709.8587 | BA96: 39827063.35 | BB96: 1289514679 | BC96: 2730.556296 | BD96: 1159688498 | BE96: 424707.7782 | BF96: 39827063.35 | BG96: 1289514453 | BH96: 2730.558193 | BI96: 1159688272 | BJ96: 424707.4003 | BK96: 39827063.36 | BL96: 1289514677 | BM96: 2730.571569 | BN96: 1159688495 | BO96: 424705.4016 | BS96: 6.371847752e+13 | BT96: 6.371880264e+13 | BU96: 6.372201184e+13 | BV96: 6.372201184e+13 | BW96: 6.372201186e+13 | BX96: 6.372201186e+13 | BY96: 6.372201182e+13 | BZ96: 6.372201184e+13 | CA96: 6.372201184e+13 | CB96: 6.372201186e+13 | CC96: 0 | CD96: 0 | CE96: 0 | CF96: 0 | CG96: 0 | CH96: 0 | CI96: 0 | CJ96: 0 | CK96: 0 | CL96: 1 | CN96: 0 | CO96: 0 | CP96: 0 | CQ96: 0 | CR96: 0 | CS96: 0 | CT96: 0 | CU96: 0 | CV96: 1
B97: 90 | C97: 1189959.662 | D97: 0.1266717948 | E97: 0.2664942588 | F97: 0.207358193 | G97: 0.5996864953 | H97: 0.311736413 | I97: 0.3108571828 | J97: 0.03602093949 | K97: 0.5806465213 | L97: 434.5327621 | M97: 1803.616988 | N97: 638.7846321 | O97: 847226.4604 | P97: 63.00043996 | Q97: 5413.586592 | R97: 28973.22514 | S97: 1643.831624 | T97: 791.5708124 | U97: 401.5640455 | V97: 0.9029234424 | X97: 33684159.69 | Y97: 126162232.4 | Z97: 33684417.35 | AA97: 164115060.2 | AB97: 33686964 | AC97: 530768131.8 | AD97: 2546.651086 | AE97: 366653071.6 | AF97: 143974.6001 | AG97: 33686976.08 | AH97: 530375150.6 | AI97: 2558.73109 | AJ97: 366260090.4 | AK97: 143141.2984 | AL97: 33687128.86 | AM97: 524565057.2 | AN97: 2711.508589 | AO97: 360449997 | AP97: 132933.3783 | AQ97: 33687140.94 | AR97: 524172076 | AS97: 2723.588593 | AT97: 360057015.8 | AU97: 132199.4874 | AV97: 33686908.22 | AW97: 531527134.4 | AX97: 2490.878284 | AY97: 364830146 | AZ97: 146466.4686 | BA97: 33686976.08 | BB97: 528945206.2 | BC97: 2558.73109 | BD97: 364830146 | BE97: 142582.4494 | BF97: 33687073.08 | BG97: 525324059.8 | BH97: 2655.735788 | BI97: 361208999.6 | BJ97: 136010.8943 | BK97: 33687140.94 | BL97: 522742131.6 | BM97: 2723.588593 | BN97: 358627071.4 | BO97: 131674.4652 | BS97: 5.389452935e+13 | BT97: 5.389490364e+13 | BU97: 5.389861163e+13 | BV97: 5.389863135e+13 | BW97: 5.38988816e+13 | BX97: 53898901324016 | BY97: 5.389852163e+13 | BZ97: 5.389863278e+13 | CA97: 5.389879161e+13 | CB97: 5.389890275e+13 | CC97: 0 | CD97: 0 | CE97: 0 | CF97: 0 | CG97: 0 | CH97: 0 | CI97: 0 | CJ97: 0 | CK97: 0 | CL97: 1 | CN97: 0 | CO97: 0 | CP97: 0 | CQ97: 0 | CR97: 0 | CS97: 0 | CT97: 0 | CU97: 0 | CV97: 1
B98: 91 | C98: 2019167.505 | D98: 0.2164682016 | E98: 0.1397323568 | F98: 0.2065367042 | G98: 0.6587511935 | H98: 0.2734597792 | I98: 0.3090710121 | J98: 0.04077845316 | K98: 0.4950713649 | L98: 500.3548774 | M98: 1526.135227 | N98: 4344.264472 | O98: 243701.1965 | P98: 93.95738776 | Q98: 3380.883671 | R98: 1660.625316 | S98: 12953.27982 | T98: 366.613059 | U98: 795.6414349 | V98: 0.8281639173 | X98: 57158735.63 | Y98: 35714869.62 | Z98: 57159013.06 | AA98: 124582803.2 | AB98: 57161752.72 | AC98: 1005384669 | AD98: 2739.650399 | AE98: 880801865.8 | AF98: 321501.5559 | AG98: 57161755.95 | AH98: 1005422510 | AI98: 2742.888112 | AJ98: 880839706.6 | AK98: 321135.8504 | AL98: 57161761.4 | AM98: 1005308220 | AN98: 2748.339234 | AO98: 880725417 | AP98: 320457.317 | AQ98: 57161764.64 | AR98: 1005346061 | AS98: 2751.576948 | AT98: 880763257.9 | AU98: 320093.9951 | AV98: 57161740.34 | AW98: 1005511444 | AX98: 2727.275384 | AY98: 880830287.2 | AZ98: 322970.7907 | BA98: 57161755.95 | BB98: 1005413090 | BC98: 2742.888112 | BD98: 880830287.2 | BE98: 321132.4163 | BF98: 57161749.03 | BG98: 1005434995 | BH98: 2735.96422 | BI98: 880852192.1 | BJ98: 321953.111 | BK98: 57161764.64 | BL98: 1005336642 | BM98: 2751.576948 | BN98: 880753838.4 | BO98: 320090.5718 | BS98: 9.145394129e+13 | BT98: 9.145429632e+13 | BU98: 9.145779896e+13 | BV98: 9.14578041e+13 | BW98: 9.145781294e+13 | BX98: 9.145781808e+13 | BY98: 9.145777903e+13 | BZ98: 9.145780411e+13 | CA98: 9.145779301e+13 | CB98: 9.145781809e+13 | CC98: 0 | CD98: 0 | CE98: 0 | CF98: 0 | CG98: 0 | CH98: 0 | CI98: 0 | CJ98: 0 | CK98: 0 | CL98: 1 | CN98: 0 | CO98: 0 | CP98: 0 | CQ98: 0 | CR98: 0 | CS98: 0 | CT98: 0 | CU98: 0 | CV98: 1
